Workbook

Sheet Instructivo
F1: Visor de desempeño fiscal y herramienta de generación de recursos propios
B4: El visor de desempeño fiscal le permite a las entidades territoriales visualizar de manera más sencilla los resultados obtenidos históricamente en los indicadores del Índice de Desempeño Fiscal - IDF. Adicionalmente, les permite compararse con años anteriores y con otros grupos de entidades territoriales; por ejemplo, a las gobernaciones les permite compararse con el promedio de los otros departamentos del país, o a las alcaldías les permite contrastar sus resultados con el promedio obtenido por los otros municipios del departamento, entre otras agrupaciones territoriales. Finalmente, el visor contiene en la última parte una gráfica que les indica a las entidades territoriales su resultado en cuanto a las dos dimensiones del IDF (Dimensión de Resultados Fiscales y de Gestión Financiera territorial), junto a dos párrafos que le indican cuánto le hace falta para lograr los puntajes máximos que se pueden obtener en estas dos dimensiones, con el fin de saber en qué indicadores debe desempeñar en mayor medida sus esfuerzos.
B6: Instrucciones para hacer uso de la herramienta y analizar la información
B7: 1. Visor de desempeño fiscal
B8: 1.1 Dirigirse a la hoja denominada "Visor" e indicar el departamento o el municipio a revisar.
B9: 1.2 La primera sección contiene información territorial como código DANE, región, departamento, subregión, categoría y grupo de dotaciones iniciales (vigencia 2019 informe MDM).
B11: 1.3 La segunda sección muestra los resultados de la entidad territorial establecida en el paso 1. Al lado izquierdo de esta tabla se encuentran los indicadores que componen el IDF, organizados de acuerdo con las dos dimensiones de gestión; a la derecha de estos, se encuentra la vigencia actual de revisión, en este caso 2020, y con esta, los resultados propiamente dichos. Los resultados están organizados en dos partes: por un lado, el resultado exacto obtenido de la operación matemática correspondiente a cada indicador y, al lado, la calificación que obtiene la entidad territorial en el respectivo indicador, según el resultado anteriormente visto. Junto a esto (resultados de la vigencia actual) hay un componente con la misma estructura que contiene los resultados de vigencias anteriores. Es importante aclarar que en este caso el año de comparación es el 2019, sin embargo los puntajes mostrados corresponden a una simulación realizada de acuerdo con la nueva metodología de cálculo del IDF y no a los resultados oficiales de la entidad territorial, ya que esta nueva metodología aplica oficialmente a partir del año 2020. Finalmente, en esta sección hay una parte que le indica a la entidad la diferencia entre los puntajes obtenidos en los años 2020 y 2019 y le dice si al final su desempeño fiscal disminuyó o mejoró en comparación con el año anterior.
B12: 1.4 La siguiente sección contiene las variables que componen cada uno de los indicadores del IDF. Esta sección lo que hace es traer la información que reporta la entidad territorial en el FUT, a través del CHIP, y la muestra para los año 2020 y 2019 (año de comparación). La información de las variables del año 2019 se encuentra deflactada, es decir a precios constantes del año 2020. Por esta razón, puede no coincidir exactamente con la reportada por la entidad territorial. Igual que en la sección anterior, al final de esta se encuentra una columna que muestra el cambio encontrado entre una vigencia y la otra, e indica si la variable creció o disminuyó en comparación con el año anterior.
B13: 1.5 La sección posterior contiene la comparación entre la entidad territorial (municipio o departamento) y el promedio de sus pares a un nivel indicado: en el caso de los municipios las agrupaciones con las que se puede comparar son los otros municipios de la misma región, los otros municipios del mismo departamento, los otros municipios de la misma subregión departamental y los municipios con las mismas capacidades iniciales (definidas en el MDM). Por su parte, para los departamentos, los posibles niveles de comparación son los demás departamentos del país, los demás departamentos de la misma región y los departamentos clasificados en la misma categoría seún la Ley 617 de 2000. El nivel de comparación debe ser elegido en el cuadro con fondo verde, ubicado en la celda D68. Inicialmente, la sección le muestra la posición que obtiene la entidad territorial en contraste con sus pares del nivel de comparación elegido. Debajo nuevamente muestra los indicadores del IDF y los resultados de la respectiva entidad territorial al costado derecho, en el centro muestra el promedio de los resultados obtenidos por los municipios o departamentos del nivel de comparación seleccionado.
B14: 1.6 Al final el visor contiene una gráfica que le muestra a la entidad territorial su resultado en las dos dimensiones y le indica al lado cuántos puntos le hicieron falta para obtener el máximo posible de las dos dimensiones de gestión. Por otro lado, tiene un botón que le permite generar un archivo PDF con los resultados obtenidos en el IDF.
B15: 2. Herramienta de recursos propios
B16: 2.1 La primera sección contiene información territorial de la entidad como código DANE, región, departamento, subregión, categoría y grupo de dotaciones iniciales.
B17: 2.2 La segunda sección contiene un promedio de cada una de las variables y le permite a la entidad analizar cómo ha sido su desempeño en términos de generación de recursos propios durante los últimos 4 años para las tres variables del indicador de desempeño fiscal (Capacidad de ahorro, Generación de ingresos propios, dependencia de las trasferencias).
B18: i. Bonificación de generación de recursos propios. Mide la capacidad de la entidad de generar recursos propios continuamente (por más de dos vigencias).
B19: ii. Dependencia de las transferencias. Mide la importancia de las transferencias nacionales en los ingresos totales
B20: iii. Ahorro corriente. Determinar el grado en el cual se liberan excedentes para financiar la inversión, luego de cubrir el funcionamiento, el pago de intereses de deuda. Es una medida de solvencia financiera.
B21: iv. Tasa efectivo de recaudo por cada mil pesos de avalúo. (recaudo de predial/ avalúo de los predios de la vigencia) x 1000
B22: v. Uso de instrumentos de OT. (Número de instrumentos usados por la entidad territorial durante las últimas vigencias. (Predial, delineación urbana, valorización y plusvalía).
B23: 2.3 En esta misma sección la entidad podrá revisar el rango de clasificación para cada una de las variables mencionadas en el punto 2.2, se aclara que esta clasificación se realizó a partir de los resultados promedio que ha tenido en los últimos años la entidad. Los indicadores se clasifican en tres categorías: "sobresaliente", "sostenible" y "por mejorar", los cuales están alineadas con las categorizaciones del índice de desempeño fiscal y las de MDM y se definieron realizando un análisis estadístico y cada denominación se define a continuación:
B27: Sobresaliente: Existe una fortaleza significativa en la entidad, en términos de esfuerzo para tener la variable en un aspecto positivo
B28: Sostenible: Existe una fortaleza significativa en la entidad, en términos de esfuerzo para tener la variable en un aspecto estable, sin embargo, debe buscar nuevos esfuerzos para seguir mejorando.
B29: Por mejorar: Es necesario que la entidad haga esfuerzos por mejorar su recaudo, por lo que se le sugiere que implemente acciones para mejorar su recaudo y mejorar esta variable.
B31: 2.4 En la tercera sección se hace un breve resumen histórico del comportamiento de las variables analizadas en la sección anterior. Las variables de desempeño fiscal se analizan desde el 2017 al 2020.
B32: 2.5 Una vez se identifique y se prioricen aquellas variables que requieren generar un mayor esfuerzo, teniendo en cuenta que las que aparece en rojo e indican una clasificación “por mejorar". Se podrá seleccionar la dimensión de gestión que considere más pertinente (fiscal y financiera, administrativa y planificación), una vez se selecciona al final la entidad podrá encontrar diferentes acciones sujetas a implementar para mejorar las fuentes de financiación.
B33: 2.6 Por último, la herramienta también le permitirá encontrar otras acciones para aquellas variables categorizadas en los rangos sobresaliente y sostenible.
B34: Se aclara que las acciones de cada una de las dimensiones de gestión (fiscal y financiera, administrativa y planificación) que define el instrumento dependerá del comportamiento de cada una de las variables objeto de análisis.

Sheet VISOR
G2: VISOR DE DESEMPEÑO FISCAL 2020
B12: Escoger tipo de entidad territorial | G12: Departamento
B13: =IF($G$12="Municipio","Indique el municipio a revisar",IF($G$12="Departamento","Indique el departamento a revisar","")) -> Indique el departamento a revisar | D13: =IF(OR($G$12="Municipio",$G$12="Departamento"),"(Puede escribir el nombre)","") -> (Puede escribir el nombre) | G13: nariño
B15: Información Entidad Territorial
B16: Código DANE: | D16: =IFERROR(IF($G$12="Departamento",VLOOKUP($G$13,CHOOSE({2,1},Listas!B2:B33,Listas!C2:C33),2,FALSE),IF(G12="Municipio",VLOOKUP($G$13,CHOOSE({2,1},Listas!$D$2:$D$1102,Listas!$E$2:$E$1102),2,FALSE),"")),"") -> 52 | G16: Categoría: | I16: =IFERROR(VLOOKUP($D$16,Base!$A$4:$G$1137,7,FALSE),"") -> 1
B17: Región: | D17: =IFERROR(VLOOKUP($D$16,Base!$A$4:$D$1137,4,FALSE),"") -> PACÍFICO | G17: Grupo capacidades iniciales: | I17: =IFERROR(VLOOKUP($D$16,Base!$A$4:$I$1137,8,FALSE),"") -> NA
B18: Departamento: | D18: =IFERROR(VLOOKUP($D$16,Base!A4:$E$1137,5,FALSE),"") -> NA | G18: Subregión: | I18: =IFERROR(VLOOKUP($D$16,Base!$A$4:$I$1137,6,FALSE),"") -> NA
B20: Resultados Desempeño Fiscal | D20: Vigencia Actual | G20: Año de comparación | I20: Contribución al cambio
B21: Indicadores | D21: 2020 | G21: 2019
D22: Resultado | E22: Calificación | G22: Resultado | H22: Calificación | I22: 2019 - 2020
B23: Dependencia de transferencias | D23: =IFERROR(VLOOKUP($D$16,Base!$4:$1137,MATCH("r"&RIGHT(VISOR!$D$21,2)&"1",Base!$4:$4,0),FALSE),"") -> 69.09850362 | E23: =IFERROR(VLOOKUP($D$16,Base!$4:$1137,MATCH("c"&RIGHT(VISOR!$D$21,2)&"1",Base!$4:$4,0),FALSE),"") -> 30.90149638 | G23: =IFERROR(VLOOKUP($D$16,Base!$4:$1137,MATCH("r"&RIGHT($G$21,2)&"1",Base!$4:$4,0),FALSE),"") -> 64.02214566 | H23: =IFERROR(VLOOKUP($D$16,Base!$4:$1137,MATCH("c"&RIGHT($G$21,2)&"1",Base!$4:$4,0),FALSE),"") -> 35.97785434 | I23: =IFERROR(((E23-H23)*(1/5)*0.8),"") -> -0.8122172733
B24: Relevancia formación bruta de capital (FBK) fijo | D24: =IFERROR(VLOOKUP($D$16,Base!$4:$1137,MATCH("r"&RIGHT(VISOR!$D$21,2)&"2",Base!$4:$4,0),FALSE),"") -> 9.7522017 | E24: =IFERROR(VLOOKUP($D$16,Base!$4:$1137,MATCH("c"&RIGHT(VISOR!$D$21,2)&"2",Base!$4:$4,0),FALSE),"") -> 16.52649331 | G24: =IFERROR(VLOOKUP($D$16,Base!$4:$1137,MATCH("r"&RIGHT($G$21,2)&"2",Base!$4:$4,0),FALSE),"") -> 11.30897292 | H24: =IFERROR(VLOOKUP($D$16,Base!$4:$1137,MATCH("c"&RIGHT($G$21,2)&"2",Base!$4:$4,0),FALSE),"") -> 28.47054455 | I24: =IFERROR(((E24-H24)*(1/5)*0.8),"") -> -1.911048199
B25: Endeudamiento de largo plazo | D25: =IFERROR(VLOOKUP($D$16,Base!$4:$1137,MATCH("r"&RIGHT(VISOR!$D$21,2)&"3",Base!$4:$4,0),FALSE),"") -> 64.347106 | E25: =IFERROR(VLOOKUP($D$16,Base!$4:$1137,MATCH("c"&RIGHT(VISOR!$D$21,2)&"3",Base!$4:$4,0),FALSE),"") -> 35.652894 | G25: =IFERROR(VLOOKUP($D$16,Base!$4:$1137,MATCH("r"&RIGHT($G$21,2)&"3",Base!$4:$4,0),FALSE),"") -> 66.28450743 | H25: =IFERROR(VLOOKUP($D$16,Base!$4:$1137,MATCH("c"&RIGHT($G$21,2)&"3",Base!$4:$4,0),FALSE),"") -> 33.71549257 | I25: =IFERROR(((E25-H25)*(1/5)*0.8),"") -> 0.3099842292
B26: Ahorro corriente | D26: =IFERROR(VLOOKUP($D$16,Base!$4:$1137,MATCH("r"&RIGHT(VISOR!$D$21,2)&"4",Base!$4:$4,0),FALSE),"") -> 55.19423644 | E26: =IFERROR(VLOOKUP($D$16,Base!$4:$1137,MATCH("c"&RIGHT(VISOR!$D$21,2)&"4",Base!$4:$4,0),FALSE),"") -> 80 | G26: =IFERROR(VLOOKUP($D$16,Base!$4:$1137,MATCH("r"&RIGHT($G$21,2)&"4",Base!$4:$4,0),FALSE),"") -> 52.5882678 | H26: =IFERROR(VLOOKUP($D$16,Base!$4:$1137,MATCH("c"&RIGHT($G$21,2)&"4",Base!$4:$4,0),FALSE),"") -> 70 | I26: =IFERROR(((E26-H26)*(1/5)*0.8),"") -> 1.6
B27: Balance primario | D27: =IFERROR(VLOOKUP($D$16,Base!$4:$1137,MATCH("r"&RIGHT(VISOR!$D$21,2)&"5",Base!$4:$4,0),FALSE),"") -> 20.48318771 | E27: =IFERROR(VLOOKUP($D$16,Base!$4:$1137,MATCH("c"&RIGHT(VISOR!$D$21,2)&"5",Base!$4:$4,0),FALSE),"") -> 20 | G27: =IFERROR(VLOOKUP($D$16,Base!$4:$1137,MATCH("r"&RIGHT($G$21,2)&"5",Base!$4:$4,0),FALSE),"") -> 18.82652545 | H27: =IFERROR(VLOOKUP($D$16,Base!$4:$1137,MATCH("c"&RIGHT($G$21,2)&"5",Base!$4:$4,0),FALSE),"") -> 40 | I27: =IFERROR(((E27-H27)*(1/5)*0.8),"") -> -3.2
B28: Dimensión Resultados Fiscales | D28: =IFERROR(VLOOKUP($D$16,Base!$4:$1137,MATCH("r"&RIGHT($D$21,2)&"f",Base!$4:$4,0),FALSE),"") -> 36.61617674 | E28: =IFERROR(VLOOKUP($D$16,Base!$4:$1137,MATCH("c"&RIGHT($D$21,2)&"f",Base!$4:$4,0),FALSE),"") -> 29.29294139 | G28: =IFERROR(VLOOKUP($D$16,Base!$4:$1137,MATCH("r"&RIGHT($G$21,2)&"f",Base!$4:$4,0),FALSE),"") -> 41.63277829 | H28: =IFERROR(VLOOKUP($D$16,Base!$4:$1137,MATCH("c"&RIGHT($G$21,2)&"f",Base!$4:$4,0),FALSE),"") -> 33.30622263 | I28: =IFERROR(E28-H28,"") -> -4.013281243
B29: Capacidad de programación y ejecución de ingresos | D29: =IFERROR(VLOOKUP($D$16,Base!$4:$1137,MATCH("r"&RIGHT(VISOR!$D$21,2)&"6",Base!$4:$4,0),FALSE),"") -> 82.0992981 | E29: =IFERROR(VLOOKUP($D$16,Base!$4:$1137,MATCH("c"&RIGHT(VISOR!$D$21,2)&"6",Base!$4:$4,0),FALSE),"") -> 80 | G29: =IFERROR(VLOOKUP($D$16,Base!$4:$1137,MATCH("r"&RIGHT($G$21,2)&"6",Base!$4:$4,0),FALSE),"") -> 121.08743 | H29: =IFERROR(VLOOKUP($D$16,Base!$4:$1137,MATCH("c"&RIGHT($G$21,2)&"6",Base!$4:$4,0),FALSE),"") -> 70 | I29: =IFERROR((E29-H29)*(1/3)*0.2,"") -> 0.6666666667
B30: Capacidad de ejecución del gasto de inversión | D30: =IFERROR(VLOOKUP($D$16,Base!$4:$1137,MATCH("r"&RIGHT(VISOR!$D$21,2)&"7",Base!$4:$4,0),FALSE),"") -> 89.91677338 | E30: =IFERROR(VLOOKUP($D$16,Base!$4:$1137,MATCH("c"&RIGHT(VISOR!$D$21,2)&"7",Base!$4:$4,0),FALSE),"") -> 80 | G30: =IFERROR(VLOOKUP($D$16,Base!$4:$1137,MATCH("r"&RIGHT($G$21,2)&"7",Base!$4:$4,0),FALSE),"") -> 92.67152031 | H30: =IFERROR(VLOOKUP($D$16,Base!$4:$1137,MATCH("c"&RIGHT($G$21,2)&"7",Base!$4:$4,0),FALSE),"") -> 100 | I30: =IFERROR((E30-H30)*(1/3)*0.2,"") -> -1.333333333
B31: Nivel de holgura | D31: =IFERROR(VLOOKUP($D$16,Base!$4:$1137,MATCH("r"&RIGHT(VISOR!$D$21,2)&"8",Base!$4:$4,0),FALSE),"") -> 0 | E31: =IFERROR(VLOOKUP($D$16,Base!$4:$1137,MATCH("c"&RIGHT(VISOR!$D$21,2)&"8",Base!$4:$4,0),FALSE),"") -> 0 | G31: =IFERROR(VLOOKUP($D$16,Base!$4:$1137,MATCH("r"&RIGHT($G$21,2)&"8",Base!$4:$4,0),FALSE),"") -> 0 | H31: =IFERROR(VLOOKUP($D$16,Base!$4:$1137,MATCH("c"&RIGHT($G$21,2)&"8",Base!$4:$4,0),FALSE),"") -> 0 | I31: =IFERROR((E31-H31)*(1/3)*0.2,"") -> 0
B32: Bonificación catastro | D32: =IFERROR(VLOOKUP($D$16,Base!$4:$1137,MATCH("r"&RIGHT(VISOR!$D$21,2)&"9",Base!$4:$4,0),FALSE),"") -> NA | E32: =IFERROR(VLOOKUP($D$16,Base!$4:$1137,MATCH("c"&RIGHT(VISOR!$D$21,2)&"9",Base!$4:$4,0),FALSE),"") -> NA | G32: =IFERROR(VLOOKUP($D$16,Base!$4:$1137,MATCH("r"&RIGHT($G$21,2)&"9",Base!$4:$4,0),FALSE),"") -> NA | H32: =IFERROR(VLOOKUP($D$16,Base!$4:$1137,MATCH("c"&RIGHT($G$21,2)&"9",Base!$4:$4,0),FALSE),"") -> NA | I32: =IFERROR((E32-H32)*0.2,"") -> 
B33: Bonificación esfuerzo propio | D33: =IFERROR(VLOOKUP($D$16,Base!$4:$1137,MATCH("r"&RIGHT(VISOR!$D$21,2)&"10",Base!$4:$4,0),FALSE),"") -> 0 | E33: =IFERROR(VLOOKUP($D$16,Base!$4:$1137,MATCH("c"&RIGHT(VISOR!$D$21,2)&"10",Base!$4:$4,0),FALSE),"") -> 0 | G33: =IFERROR(VLOOKUP($D$16,Base!$4:$1137,MATCH("r"&RIGHT($G$21,2)&"10",Base!$4:$4,0),FALSE),"") -> 0.2449598545 | H33: =IFERROR(VLOOKUP($D$16,Base!$4:$1137,MATCH("c"&RIGHT($G$21,2)&"10",Base!$4:$4,0),FALSE),"") -> 0.2449598545 | I33: =IFERROR((E33-H33)*0.2,"") -> -0.0489919709
B34: Dimensión Gestión Financiera Territorial | D34: =IFERROR(VLOOKUP($D$16,Base!$4:$1137,MATCH("r"&RIGHT(VISOR!$D$21,2)&"g",Base!$4:$4,0),FALSE),"") -> 53.33333333 | E34: =IFERROR(VLOOKUP($D$16,Base!$4:$1137,MATCH("c"&RIGHT(VISOR!$D$21,2)&"g",Base!$4:$4,0),FALSE),"") -> 10.66666667 | G34: =IFERROR(VLOOKUP($D$16,Base!$4:$1137,MATCH("r"&RIGHT($G$21,2)&"g",Base!$4:$4,0),FALSE),"") -> 56.91162652 | H34: =IFERROR(VLOOKUP($D$16,Base!$4:$1137,MATCH("c"&RIGHT($G$21,2)&"g",Base!$4:$4,0),FALSE),"") -> 11.3823253 | I34: =IFERROR((E34-H34),"") -> -0.7156586376
B35: Índice de Desempeño Fiscal | D35: =IFERROR(VLOOKUP($D$16,Base!$4:$1137,MATCH("r"&RIGHT(VISOR!$D$21,2),Base!$4:$4,0),FALSE),"") -> 39.95960806 | G35: =IFERROR(H34+H28,"") -> 44.68854794 | I35: =IFERROR(IF(D35="N.D.","SIN INFORMACIÓN",D35-G35),"") -> -4.72893988
B36: Clasificación Desempeño Fiscal | D36: =IFERROR(VLOOKUP($D$16,Base!$4:$1137,MATCH("c"&RIGHT(VISOR!$D$21,2),Base!$4:$4,0),FALSE),"") -> 1. Deterioro (<40) | G36: =IFERROR(VLOOKUP($D$16,Base!$4:$1137,MATCH("c"&RIGHT($G$21,2),Base!$4:$4,0),FALSE),"") -> 2. Riesgo (>=40 y <60) | I36: =IFERROR(IF(I35<>"",IF(I35="SIN INFORMACIÓN","SIN INFORMACIÓN",IF(I35>=0,"Mejoró","Disminuyó")),""),"") -> Disminuyó
J38: Millones de pesos constantes 2020
B39: Variables Indicadores Desempeño Fiscal | D39: 2020 | G39: 2019 | I39: Dif. Abs | J39: Var Rel. (%)
B40: 1. Dependencias de las transferencias
B41: SGP + otras transferencias nacionales | D41: =IFERROR(VLOOKUP($D$16,Base!$4:$1137,MATCH("var"&RIGHT(VISOR!$D$21,2)&"1",Base!$4:$4,0),FALSE),"") -> 757072.9086 | G41: =IFERROR(VLOOKUP($D$16,Base!$4:$1137,MATCH("var"&RIGHT($G$21,2)&"1",Base!$4:$4,0),FALSE)*Deflactor,"") -> 728269.7812 | I41: =IFERROR(D41-G41,"") -> 28803.12741 | J41: =IFERROR((D41/G41-1),"") -> 0.03955007905
B42: Ingresos totales | D42: =IFERROR(VLOOKUP($D$16,Base!$4:$1137,MATCH("var"&RIGHT(VISOR!$D$21,2)&"2",Base!$4:$4,0),FALSE),"") -> 1095642.986 | G42: =IFERROR(VLOOKUP($D$16,Base!$4:$1137,MATCH("var"&RIGHT($G$21,2)&"2",Base!$4:$4,0),FALSE)*Deflactor,"") -> 1137527.919 | I42: =IFERROR(IF($G$39<>"SELECCIONAR",D42-G42,""),"") -> -41884.93254 | J42: =IFERROR((D42/G42-1),"") -> -0.03682101498
B43: 2. Relevancia formación bruta de capital (FBK) fijo
B44: Formación bruta de capital fijo | D44: =IFERROR(VLOOKUP($D$16,Base!$4:$1137,MATCH("var"&RIGHT(VISOR!$D$21,2)&"3",Base!$4:$4,0),FALSE),"") -> 97706.16295 | G44: =IFERROR(VLOOKUP($D$16,Base!$4:$1137,MATCH("var"&RIGHT($G$21,2)&"3",Base!$4:$4,0),FALSE)*Deflactor,"") -> 111064.9185 | I44: =IFERROR(IF($G$39<>"SELECCIONAR",D44-G44,""),"") -> -13358.75552 | J44: =IFERROR((D44/G44-1),"") -> -0.1202788037
B45: Gasto de inversión | D45: =IFERROR(VLOOKUP($D$16,Base!$4:$1137,MATCH("var"&RIGHT(VISOR!$D$21,2)&"4",Base!$4:$4,0),FALSE),"") -> 1001888.25 | G45: =IFERROR(VLOOKUP($D$16,Base!$4:$1137,MATCH("var"&RIGHT($G$21,2)&"4",Base!$4:$4,0),FALSE)*Deflactor,"") -> 982095.5381 | I45: =IFERROR(IF($G$39<>"SELECCIONAR",D45-G45,""),"") -> 19792.71184 | J45: =IFERROR((D45/G45-1),"") -> 0.02015355031
B46: 3. Endeudamiento de largo plazo
B47: Activos totales | D47: =IFERROR(VLOOKUP($D$16,Base!$4:$1137,MATCH("var"&RIGHT(VISOR!$D$21,2)&"5",Base!$4:$4,0),FALSE),"") -> 2909535.96 | G47: =IFERROR(VLOOKUP($D$16,Base!$4:$1137,MATCH("var"&RIGHT($G$21,2)&"6",Base!$4:$4,0),FALSE)*Deflactor,"") -> 2730161.536 | I47: =IFERROR(IF($G$39<>"SELECCIONAR",D47-G47,""),"") -> 179374.4242 | J47: =IFERROR((D47/G47-1),"") -> 0.06570102971
B48: Pasivos totales | D48: =IFERROR(VLOOKUP($D$16,Base!$4:$1137,MATCH("var"&RIGHT(VISOR!$D$21,2)&"6",Base!$4:$4,0),FALSE),"") -> 1872202.188 | G48: =IFERROR(VLOOKUP($D$16,Base!$4:$1137,MATCH("var"&RIGHT($G$21,2)&"5",Base!$4:$4,0),FALSE)*Deflactor,"") -> 1809674.126 | I48: =IFERROR(IF($G$39<>"SELECCIONAR",D48-G48,""),"") -> 62528.06216 | J48: =IFERROR((D48/G48-1),"") -> 0.03455211148
B49: 4. Ahorro corriente
B50: Ahorro corriente | D50: =IFERROR(VLOOKUP($D$16,Base!$4:$1137,MATCH("var"&RIGHT(VISOR!$D$21,2)&"7",Base!$4:$4,0),FALSE),"") -> 151995.0749 | G50: =IFERROR(VLOOKUP($D$16,Base!$4:$1137,MATCH("var"&RIGHT($G$21,2)&"7",Base!$4:$4,0),FALSE)*Deflactor,"") -> 171230.2231 | I50: =IFERROR(IF($G$39<>"SELECCIONAR",D50-G50,""),"") -> -19235.14819 | J50: =IFERROR((D50/G50-1),"") -> -0.1123350063
B51: Ingreso corriente | D51: =IFERROR(VLOOKUP($D$16,Base!$4:$1137,MATCH("var"&RIGHT(VISOR!$D$21,2)&"8",Base!$4:$4,0),FALSE),"") -> 275382.1499 | G51: =IFERROR(VLOOKUP($D$16,Base!$4:$1137,MATCH("var"&RIGHT($G$21,2)&"8",Base!$4:$4,0),FALSE)*Deflactor,"") -> 325605.3684 | I51: =IFERROR(IF($G$39<>"SELECCIONAR",D51-G51,""),"") -> -50223.21855 | J51: =IFERROR((D51/G51-1),"") -> -0.1542456711
B52: 5. Balance primario
B53: Déficit o superávit + intereses deuda + RB | D53: =IFERROR(VLOOKUP($D$16,Base!$4:$1137,MATCH("var"&RIGHT(VISOR!$D$21,2)&"9",Base!$4:$4,0),FALSE),"") -> 224422.6096 | G53: =IFERROR(VLOOKUP($D$16,Base!$4:$1137,MATCH("var"&RIGHT($G$21,2)&"9",Base!$4:$4,0),FALSE)*Deflactor,"") -> 68079.11356 | I53: =IFERROR(IF($G$39<>"SELECCIONAR",D53-G53,""),"") -> 156343.496 | J53: =IFERROR((D53/G53-1),"") -> 2.296497234
B54: Ingresos totales + desembolsos | D54: =IFERROR(VLOOKUP($D$16,Base!$4:$1137,MATCH("var"&RIGHT(VISOR!$D$21,2)&"10",Base!$4:$4,0),FALSE),"") -> 1095642.986 | G54: =IFERROR(VLOOKUP($D$16,Base!$4:$1137,MATCH("var"&RIGHT($G$21,2)&"10",Base!$4:$4,0),FALSE)*Deflactor,"") -> 1137527.919 | I54: =IFERROR(IF($G$39<>"SELECCIONAR",D54-G54,""),"") -> -41884.93254 | J54: =IFERROR((D54/G54-1),"") -> -0.03682101498
B55: 6. Capacidad de programación y ejecución de ingresos
B56: Recaudo | D56: =IFERROR(VLOOKUP($D$16,Base!$4:$1137,MATCH("var"&RIGHT(VISOR!$D$21,2)&"11",Base!$4:$4,0),FALSE),"") -> 200224.1885 | G56: =IFERROR(VLOOKUP($D$16,Base!$4:$1137,MATCH("var"&RIGHT($G$21,2)&"11",Base!$4:$4,0),FALSE)*Deflactor,"") -> 276217.236 | I56: =IFERROR(IF($G$39<>"SELECCIONAR",D56-G56,""),"") -> -75993.04755 | J56: =IFERROR((D56/G56-1),"") -> -0.2751205849
B57: Presupuesto inicial | D57: =IFERROR(VLOOKUP($D$16,Base!$4:$1137,MATCH("var"&RIGHT(VISOR!$D$21,2)&"12",Base!$4:$4,0),FALSE),"") -> 243880.5119 | G57: =IFERROR(VLOOKUP($D$16,Base!$4:$1137,MATCH("var"&RIGHT($G$21,2)&"12",Base!$4:$4,0),FALSE)*Deflactor,"") -> 228113.881 | I57: =IFERROR(IF($G$39<>"SELECCIONAR",D57-G57,""),"") -> 15766.63091 | J57: =IFERROR((D57/G57-1),"") -> 0.06911736734
B58: 7. Capacidad de ejecución del gasto de inversión
B59: Pagos | D59: =IFERROR(VLOOKUP($D$16,Base!$4:$1137,MATCH("var"&RIGHT(VISOR!$D$21,2)&"13",Base!$4:$4,0),FALSE),"") -> 840373.2702 | G59: =IFERROR(VLOOKUP($D$16,Base!$4:$1137,MATCH("var"&RIGHT($G$21,2)&"13",Base!$4:$4,0),FALSE)*Deflactor,"") -> 848012.6727 | I59: =IFERROR(IF($G$39<>"SELECCIONAR",D59-G59,""),"") -> -7639.402485 | J59: =IFERROR((D59/G59-1),"") -> -0.009008594719
B60: Compromisos | D60: =IFERROR(VLOOKUP($D$16,Base!$4:$1137,MATCH("var"&RIGHT(VISOR!$D$21,2)&"14",Base!$4:$4,0),FALSE),"") -> 934612.3517 | G60: =IFERROR(VLOOKUP($D$16,Base!$4:$1137,MATCH("var"&RIGHT($G$21,2)&"14",Base!$4:$4,0),FALSE)*Deflactor,"") -> 915073.66 | I60: =IFERROR(IF($G$39<>"SELECCIONAR",D60-G60,""),"") -> 19538.69167 | J60: =IFERROR((D60/G60-1),"") -> 0.02135204249
B61: 8. Nivel de holgura
B62: Límite Ley 617 de 2000 | D62: =IFERROR(VLOOKUP($D$16,Base!$4:$1137,MATCH("var"&RIGHT(VISOR!$D$21,2)&"15",Base!$4:$4,0),FALSE),"") -> 55 | G62: =IFERROR(VLOOKUP($D$16,Base!$4:$1137,MATCH("var"&RIGHT($G$21,2)&"15",Base!$4:$4,0),FALSE),"") -> 55
B63: Gastos de funcionamiento / ICLD | D63: =IFERROR(VLOOKUP($D$16,Base!$4:$1137,MATCH("var"&RIGHT(VISOR!$D$21,2)&"16",Base!$4:$4,0),FALSE),"") -> 58.21112135 | G63: =IFERROR(VLOOKUP($D$16,Base!$4:$1137,MATCH("var"&RIGHT($G$21,2)&"16",Base!$4:$4,0),FALSE),"") -> 63.55035136 | I63: =IFERROR(IF($G$39<>"SELECCIONAR",D63-G63,""),"") -> -5.339230004 | J63: =IFERROR((D63/G63-1),"") -> -0.08401574327
B64: Holgura | D64: =IFERROR(D62-D63,"") -> -3.211121354 | G64: =IFERROR(G62-G63,"") -> -8.550351359 | I64: =IFERROR(IF($G$39<>"SELECCIONAR",D64-G64,""),"") -> 5.339230004 | J64: =IFERROR((D64/G64-1),"") -> -0.6244456842
B67: Comparación territorial del desempeño fiscal 2019 | G67: =UPPER(D68) -> REGIÓN | I67: =IF($D$68="Categoría Ley 617",I16,IF($D$68="Nación","COLOMBIA",IF($D$68="Región",$D$17,IF($D$68="Departamento",$D$18,IF($D$68="Subregión",$I$18,IF($D$68="Grupo capacidades iniciales",$I$17,"")))))) -> PACÍFICO
B68: Nivel de comparación | D68: Región | G68: Posición Ranking 2020 | I68: =IFERROR(IF(AND($D$68="Región",$G$12="Municipio"),VLOOKUP($D$16,Base!A4:CV1137,MATCH("PR",Base!4:4,0),FALSE)&" de "&VLOOKUP($D$16,Base!A4:CV1137,MATCH("NMR",Base!4:4,0),FALSE),IF(AND($D$68="Departamento",$G$12="Municipio"),VLOOKUP($D$16,Base!A4:CV1137,MATCH("PD",Base!4:4,0),FALSE)&" de "&VLOOKUP($D$16,Base!A4:CV1137,MATCH("NMD",Base!4:4,0),FALSE),IF(AND($D$68="Subregión",$G$12="Municipio"),VLOOKUP($D$16,Base!A4:CV1137,MATCH("PSR",Base!4:4,0),FALSE)&" de "&VLOOKUP($D$16,Base!A4:CV1137,MATCH("NMSR",Base!4:4,0),FALSE),IF(AND($D$68="Grupo Capacidades Iniciales",$G$12="Municipio"),VLOOKUP($D$16,Base!A4:CV1137,MATCH("PGCI",Base!4:4,0),FALSE)&" de "&VLOOKUP($D$16,Base!A4:CV1137,MATCH("NMGCI",Base!4:4,0),FALSE),IF(AND($D$68="Nación",$G$12="Departamento"),VLOOKUP($D$16,Base!A4:VV1137,MATCH("PDN",Base!4:4,0),FALSE)&" de 32",IF(AND($D$68="Región",$G$12="Departamento"),VLOOKUP($D$16,Base!A4:VV1137,MATCH("PDR",Base!4:4,0),FALSE)&" de "&VLOOKUP($D$16,Base!A4:VV1137,MATCH("NDR",Base!4:4,0),FALSE),IF(AND($D$68="Categoría Ley 617",$G$12="Departamento"),VLOOKUP($D$16,Base!A4:VV1137,MATCH("PDL",Base!4:4,0),FALSE)&" de "&VLOOKUP($D$16,Base!A4:VV1137,MATCH("NDL",Base!4:4,0),FALSE),""))))))),"") -> 4 de 4
B70: INDICADORES | G70: =IFERROR(IF(AND(D68="Región",$G$12="Municipio"),"Promedio Desempeño Fiscal 2020 de municipios en "&D17,IF(AND(D68="Departamento",$G$12="Municipio"),"Promedio Desempeño Fiscal 2020 de municipios en "&D18,IF(AND(D68="Subregión",$G$12="Municipio"),"Promedio Desempeño Fiscal 2020 de municipios en la subregión "&I18,IF(AND(D68="Grupo Capacidades Iniciales",$G$12="Municipio"),"Promedio Desempeño Fiscal 2020 de municipios con capacidades iniciales "&I17,IF(AND(D68="Nación",$G$12="Departamento"),"Promedio Desempeño Fiscal 2020 de departamentos en Colombia",IF(AND(D68="Región",$G$12="Departamento"),"Promedio Desempeño Fiscal 2020 de departamentos en "&D17,IF(AND(D68="Categoría Ley 617",$G$12="Departamento"),"Promedio Desempeño Fiscal 2020 de departamentos en categoría "&I16,""))))))),"") -> Promedio Desempeño Fiscal 2020 de departamentos en PACÍFICO | I70: =IFERROR(IF(I68<>"",G13,""),"") -> nariño
B71: =B23 -> Dependencia de transferencias | G71: =IFERROR(IF(AND($D$68="Departamento",$G$12="Municipio"),VLOOKUP($D$16,Base!$4:$1137,MATCH("PRDC201",Base!$4:$4,0),FALSE),IF(AND($D$68="Región",$G$12="Municipio"),VLOOKUP($D$16,Base!$4:$1137,MATCH("PRRC201",Base!$4:$4,0),FALSE),IF(AND($D$68="Subregión",$G$12="Municipio"),VLOOKUP($D$16,Base!$4:$1137,MATCH("PRSRC201",Base!$4:$4,0),FALSE),IF(AND($D$68="GRUPO CAPACIDADES INICIALES",$G$12="Municipio"),VLOOKUP($D$16,Base!$4:$1137,MATCH("PRGCIC201",Base!$4:$4,0),FALSE),IF(AND($D$68="Nación",$G$12="Departamento"),VLOOKUP($D$16,Base!$4:$1137,MATCH("PRDN201",Base!$4:$4,0),FALSE),IF(AND($D$68="Región",$G$12="Departamento"),VLOOKUP($D$16,Base!$4:$1137,MATCH("PRDR201",Base!$4:$4,0),FALSE),IF(AND($D$68="Categoría Ley 617",$G$12="Departamento"),VLOOKUP($D$16,Base!$4:$1137,MATCH("PRDL201",Base!$4:$4,0),FALSE),""))))))),"") -> 33.20640361 | I71: =IFERROR(IF($I$68<>"",E23,""),"") -> 30.90149638
B72: Relevancia formación bruta de capital (FBK) fijo | G72: =IFERROR(IF(AND($D$68="Departamento",$G$12="Municipio"),VLOOKUP($D$16,Base!$4:$1137,MATCH("PRDC202",Base!$4:$4,0),FALSE),IF(AND($D$68="Región",$G$12="Municipio"),VLOOKUP($D$16,Base!$4:$1137,MATCH("PRRC202",Base!$4:$4,0),FALSE),IF(AND($D$68="Subregión",$G$12="Municipio"),VLOOKUP($D$16,Base!$4:$1137,MATCH("PRSRC202",Base!$4:$4,0),FALSE),IF(AND($D$68="GRUPO CAPACIDADES INICIALES",$G$12="Municipio"),VLOOKUP($D$16,Base!$4:$1137,MATCH("PRGCIC202",Base!$4:$4,0),FALSE),IF(AND($D$68="Nación",$G$12="Departamento"),VLOOKUP($D$16,Base!$4:$1137,MATCH("PRDN202",Base!$4:$4,0),FALSE),IF(AND($D$68="Región",$G$12="Departamento"),VLOOKUP($D$16,Base!$4:$1137,MATCH("PRDR202",Base!$4:$4,0),FALSE),IF(AND($D$68="Categoría Ley 617",$G$12="Departamento"),VLOOKUP($D$16,Base!$4:$1137,MATCH("PRDL202",Base!$4:$4,0),FALSE),""))))))),"") -> 42.96662107 | I72: =IFERROR(IF($I$68<>"",E24,""),"") -> 16.52649331
B73: Endeudamiento de largo plazo | G73: =IFERROR(IF(AND($D$68="Departamento",$G$12="Municipio"),VLOOKUP($D$16,Base!$4:$1137,MATCH("PRDC203",Base!$4:$4,0),FALSE),IF(AND($D$68="Región",$G$12="Municipio"),VLOOKUP($D$16,Base!$4:$1137,MATCH("PRRC203",Base!$4:$4,0),FALSE),IF(AND($D$68="Subregión",$G$12="Municipio"),VLOOKUP($D$16,Base!$4:$1137,MATCH("PRSRC203",Base!$4:$4,0),FALSE),IF(AND($D$68="GRUPO CAPACIDADES INICIALES",$G$12="Municipio"),VLOOKUP($D$16,Base!$4:$1137,MATCH("PRGCIC203",Base!$4:$4,0),FALSE),IF(AND($D$68="Nación",$G$12="Departamento"),VLOOKUP($D$16,Base!$4:$1137,MATCH("PRDN203",Base!$4:$4,0),FALSE),IF(AND($D$68="Región",$G$12="Departamento"),VLOOKUP($D$16,Base!$4:$1137,MATCH("PRDR203",Base!$4:$4,0),FALSE),IF(AND($D$68="Categoría Ley 617",$G$12="Departamento"),VLOOKUP($D$16,Base!$4:$1137,MATCH("PRDL203",Base!$4:$4,0),FALSE),""))))))),"") -> 45.44251875 | I73: 35.652894
B74: Ahorro corriente | G74: =IFERROR(IF(AND($D$68="Departamento",$G$12="Municipio"),VLOOKUP($D$16,Base!$4:$1137,MATCH("PRDC204",Base!$4:$4,0),FALSE),IF(AND($D$68="Región",$G$12="Municipio"),VLOOKUP($D$16,Base!$4:$1137,MATCH("PRRC204",Base!$4:$4,0),FALSE),IF(AND($D$68="Subregión",$G$12="Municipio"),VLOOKUP($D$16,Base!$4:$1137,MATCH("PRSRC204",Base!$4:$4,0),FALSE),IF(AND($D$68="GRUPO CAPACIDADES INICIALES",$G$12="Municipio"),VLOOKUP($D$16,Base!$4:$1137,MATCH("PRGCIC204",Base!$4:$4,0),FALSE),IF(AND($D$68="Nación",$G$12="Departamento"),VLOOKUP($D$16,Base!$4:$1137,MATCH("PRDN204",Base!$4:$4,0),FALSE),IF(AND($D$68="Región",$G$12="Departamento"),VLOOKUP($D$16,Base!$4:$1137,MATCH("PRDR204",Base!$4:$4,0),FALSE),IF(AND($D$68="Categoría Ley 617",$G$12="Departamento"),VLOOKUP($D$16,Base!$4:$1137,MATCH("PRDL204",Base!$4:$4,0),FALSE),""))))))),"") -> 72.5 | I74: 80
B75: Balance primario | G75: =IFERROR(IF(AND($D$68="Departamento",$G$12="Municipio"),VLOOKUP($D$16,Base!$4:$1137,MATCH("PRDC205",Base!$4:$4,0),FALSE),IF(AND($D$68="Región",$G$12="Municipio"),VLOOKUP($D$16,Base!$4:$1137,MATCH("PRRC205",Base!$4:$4,0),FALSE),IF(AND($D$68="Subregión",$G$12="Municipio"),VLOOKUP($D$16,Base!$4:$1137,MATCH("PRSRC205",Base!$4:$4,0),FALSE),IF(AND($D$68="GRUPO CAPACIDADES INICIALES",$G$12="Municipio"),VLOOKUP($D$16,Base!$4:$1137,MATCH("PRGCIC205",Base!$4:$4,0),FALSE),IF(AND($D$68="Nación",$G$12="Departamento"),VLOOKUP($D$16,Base!$4:$1137,MATCH("PRDN205",Base!$4:$4,0),FALSE),IF(AND($D$68="Región",$G$12="Departamento"),VLOOKUP($D$16,Base!$4:$1137,MATCH("PRDR205",Base!$4:$4,0),FALSE),IF(AND($D$68="Categoría Ley 617",$G$12="Departamento"),VLOOKUP($D$16,Base!$4:$1137,MATCH("PRDL205",Base!$4:$4,0),FALSE),""))))))),"") -> 30 | I75: 20
B76: Dimensión Resultados Fiscales | G76: =IFERROR(IF(AND($D$68="Departamento",$G$12="Municipio"),VLOOKUP($D$16,Base!$4:$1137,MATCH("PRDC20F",Base!$4:$4,0),FALSE),IF(AND($D$68="Región",$G$12="Municipio"),VLOOKUP($D$16,Base!$4:$1137,MATCH("PRRC20F",Base!$4:$4,0),FALSE),IF(AND($D$68="Subregión",$G$12="Municipio"),VLOOKUP($D$16,Base!$4:$1137,MATCH("PRSRC20F",Base!$4:$4,0),FALSE),IF(AND($D$68="GRUPO CAPACIDADES INICIALES",$G$12="Municipio"),VLOOKUP($D$16,Base!$4:$1137,MATCH("PRGCIC20F",Base!$4:$4,0),FALSE),IF(AND($D$68="Nación",$G$12="Departamento"),VLOOKUP($D$16,Base!$4:$1137,MATCH("PRDN20F",Base!$4:$4,0),FALSE),IF(AND($D$68="Región",$G$12="Departamento"),VLOOKUP($D$16,Base!$4:$1137,MATCH("PRDR20F",Base!$4:$4,0),FALSE),IF(AND($D$68="Categoría Ley 617",$G$12="Departamento"),VLOOKUP($D$16,Base!$4:$1137,MATCH("PRDL20F",Base!$4:$4,0),FALSE),""))))))),"") -> 35.85848695 | I76: 29.29294139
B77: Capacidad de programación y ejecución de ingresos | G77: =IFERROR(IF(AND($D$68="Departamento",$G$12="Municipio"),VLOOKUP($D$16,Base!$4:$1137,MATCH("PRDC206",Base!$4:$4,0),FALSE),IF(AND($D$68="Región",$G$12="Municipio"),VLOOKUP($D$16,Base!$4:$1137,MATCH("PRRC206",Base!$4:$4,0),FALSE),IF(AND($D$68="Subregión",$G$12="Municipio"),VLOOKUP($D$16,Base!$4:$1137,MATCH("PRSRC206",Base!$4:$4,0),FALSE),IF(AND($D$68="GRUPO CAPACIDADES INICIALES",$G$12="Municipio"),VLOOKUP($D$16,Base!$4:$1137,MATCH("PRGCIC206",Base!$4:$4,0),FALSE),IF(AND($D$68="Nación",$G$12="Departamento"),VLOOKUP($D$16,Base!$4:$1137,MATCH("PRDN206",Base!$4:$4,0),FALSE),IF(AND($D$68="Región",$G$12="Departamento"),VLOOKUP($D$16,Base!$4:$1137,MATCH("PRDR206",Base!$4:$4,0),FALSE),IF(AND($D$68="Categoría Ley 617",$G$12="Departamento"),VLOOKUP($D$16,Base!$4:$1137,MATCH("PRDL206",Base!$4:$4,0),FALSE),""))))))),"") -> 85 | I77: 80
B78: Capacidad de ejecución del gasto de inversión | G78: =IFERROR(IF(AND($D$68="Departamento",$G$12="Municipio"),VLOOKUP($D$16,Base!$4:$1137,MATCH("PRDC207",Base!$4:$4,0),FALSE),IF(AND($D$68="Región",$G$12="Municipio"),VLOOKUP($D$16,Base!$4:$1137,MATCH("PRRC207",Base!$4:$4,0),FALSE),IF(AND($D$68="Subregión",$G$12="Municipio"),VLOOKUP($D$16,Base!$4:$1137,MATCH("PRSRC207",Base!$4:$4,0),FALSE),IF(AND($D$68="GRUPO CAPACIDADES INICIALES",$G$12="Municipio"),VLOOKUP($D$16,Base!$4:$1137,MATCH("PRGCIC207",Base!$4:$4,0),FALSE),IF(AND($D$68="Nación",$G$12="Departamento"),VLOOKUP($D$16,Base!$4:$1137,MATCH("PRDN207",Base!$4:$4,0),FALSE),IF(AND($D$68="Región",$G$12="Departamento"),VLOOKUP($D$16,Base!$4:$1137,MATCH("PRDR207",Base!$4:$4,0),FALSE),IF(AND($D$68="Categoría Ley 617",$G$12="Departamento"),VLOOKUP($D$16,Base!$4:$1137,MATCH("PRDL207",Base!$4:$4,0),FALSE),""))))))),"") -> 95 | I78: 80
B79: Nivel de holgura | G79: =IFERROR(IF(AND($D$68="Departamento",$G$12="Municipio"),VLOOKUP($D$16,Base!$4:$1137,MATCH("PRDC208",Base!$4:$4,0),FALSE),IF(AND($D$68="Región",$G$12="Municipio"),VLOOKUP($D$16,Base!$4:$1137,MATCH("PRRC208",Base!$4:$4,0),FALSE),IF(AND($D$68="Subregión",$G$12="Municipio"),VLOOKUP($D$16,Base!$4:$1137,MATCH("PRSRC208",Base!$4:$4,0),FALSE),IF(AND($D$68="GRUPO CAPACIDADES INICIALES",$G$12="Municipio"),VLOOKUP($D$16,Base!$4:$1137,MATCH("PRGCIC208",Base!$4:$4,0),FALSE),IF(AND($D$68="Nación",$G$12="Departamento"),VLOOKUP($D$16,Base!$4:$1137,MATCH("PRDN208",Base!$4:$4,0),FALSE),IF(AND($D$68="Región",$G$12="Departamento"),VLOOKUP($D$16,Base!$4:$1137,MATCH("PRDR208",Base!$4:$4,0),FALSE),IF(AND($D$68="Categoría Ley 617",$G$12="Departamento"),VLOOKUP($D$16,Base!$4:$1137,MATCH("PRDL208",Base!$4:$4,0),FALSE),""))))))),"") -> 50 | I79: 0
B80: Bonificación catastro | G80: =IFERROR(IF(AND($D$68="Departamento",$G$12="Municipio"),VLOOKUP($D$16,Base!$4:$1137,MATCH("PRDC209",Base!$4:$4,0),FALSE),IF(AND($D$68="Región",$G$12="Municipio"),VLOOKUP($D$16,Base!$4:$1137,MATCH("PRRC209",Base!$4:$4,0),FALSE),IF(AND($D$68="Subregión",$G$12="Municipio"),VLOOKUP($D$16,Base!$4:$1137,MATCH("PRSRC209",Base!$4:$4,0),FALSE),IF(AND($D$68="GRUPO CAPACIDADES INICIALES",$G$12="Municipio"),VLOOKUP($D$16,Base!$4:$1137,MATCH("PRGCIC209",Base!$4:$4,0),FALSE),IF(AND($D$68="Nación",$G$12="Departamento"),VLOOKUP($D$16,Base!$4:$1137,MATCH("PRDN209",Base!$4:$4,0),FALSE),IF(AND($D$68="Región",$G$12="Departamento"),VLOOKUP($D$16,Base!$4:$1137,MATCH("PRDR209",Base!$4:$4,0),FALSE),IF(AND($D$68="Categoría Ley 617",$G$12="Departamento"),VLOOKUP($D$16,Base!$4:$1137,MATCH("PRDL209",Base!$4:$4,0),FALSE),""))))))),"") -> 0 | I80: NA
B81: Bonificación esfuerzo propio | G81: =IFERROR(IF(AND($D$68="Departamento",$G$12="Municipio"),VLOOKUP($D$16,Base!$4:$1137,MATCH("PRDC2010",Base!$4:$4,0),FALSE),IF(AND($D$68="Región",$G$12="Municipio"),VLOOKUP($D$16,Base!$4:$1137,MATCH("PRRC2010",Base!$4:$4,0),FALSE),IF(AND($D$68="Subregión",$G$12="Municipio"),VLOOKUP($D$16,Base!$4:$1137,MATCH("PRSRC2010",Base!$4:$4,0),FALSE),IF(AND($D$68="GRUPO CAPACIDADES INICIALES",$G$12="Municipio"),VLOOKUP($D$16,Base!$4:$1137,MATCH("PRGCIC2010",Base!$4:$4,0),FALSE),IF(AND($D$68="Nación",$G$12="Departamento"),VLOOKUP($D$16,Base!$4:$1137,MATCH("PRDN2010",Base!$4:$4,0),FALSE),IF(AND($D$68="Región",$G$12="Departamento"),VLOOKUP($D$16,Base!$4:$1137,MATCH("PRDR2010",Base!$4:$4,0),FALSE),IF(AND($D$68="Categoría Ley 617",$G$12="Departamento"),VLOOKUP($D$16,Base!$4:$1137,MATCH("PRDL2010",Base!$4:$4,0),FALSE),""))))))),"") -> 0 | I81: 0
B82: Dimensión Gestión Financiera Territorial | G82: =IFERROR(IF(AND($D$68="Departamento",$G$12="Municipio"),VLOOKUP($D$16,Base!$4:$1137,MATCH("PRDC20G",Base!$4:$4,0),FALSE),IF(AND($D$68="Región",$G$12="Municipio"),VLOOKUP($D$16,Base!$4:$1137,MATCH("PRRC20G",Base!$4:$4,0),FALSE),IF(AND($D$68="Subregión",$G$12="Municipio"),VLOOKUP($D$16,Base!$4:$1137,MATCH("PRSRC20G",Base!$4:$4,0),FALSE),IF(AND($D$68="GRUPO CAPACIDADES INICIALES",$G$12="Municipio"),VLOOKUP($D$16,Base!$4:$1137,MATCH("PRGCIC20G",Base!$4:$4,0),FALSE),IF(AND($D$68="Nación",$G$12="Departamento"),VLOOKUP($D$16,Base!$4:$1137,MATCH("PRDN20G",Base!$4:$4,0),FALSE),IF(AND($D$68="Región",$G$12="Departamento"),VLOOKUP($D$16,Base!$4:$1137,MATCH("PRDR20G",Base!$4:$4,0),FALSE),IF(AND($D$68="Categoría Ley 617",$G$12="Departamento"),VLOOKUP($D$16,Base!$4:$1137,MATCH("PRDL20G",Base!$4:$4,0),FALSE),""))))))),"") -> 15.33333333 | I82: 10.66666667
B83: Índice de Desempeño Fiscal | G83: =IFERROR(IF(AND($D$68="Departamento",$G$12="Municipio"),VLOOKUP($D$16,Base!$4:$1137,MATCH("PRDC20",Base!$4:$4,0),FALSE),IF(AND($D$68="Región",$G$12="Municipio"),VLOOKUP($D$16,Base!$4:$1137,MATCH("PRRC20",Base!$4:$4,0),FALSE),IF(AND($D$68="Subregión",$G$12="Municipio"),VLOOKUP($D$16,Base!$4:$1137,MATCH("PRSRC20",Base!$4:$4,0),FALSE),IF(AND($D$68="GRUPO CAPACIDADES INICIALES",$G$12="Municipio"),VLOOKUP($D$16,Base!$4:$1137,MATCH("PRGCIC20",Base!$4:$4,0),FALSE),IF(AND($D$68="Nación",$G$12="Departamento"),VLOOKUP($D$16,Base!$4:$1137,MATCH("PRDN20",Base!$4:$4,0),FALSE),IF(AND($D$68="Región",$G$12="Departamento"),VLOOKUP($D$16,Base!$4:$1137,MATCH("PRDR20",Base!$4:$4,0),FALSE),IF(AND($D$68="Categoría Ley 617",$G$12="Departamento"),VLOOKUP($D$16,Base!$4:$1137,MATCH("PRDL20",Base!$4:$4,0),FALSE),""))))))),"") -> 51.19182028 | I83: =IFERROR(IF($I$68<>"",D35,""),"") -> 39.95960806
G88: Si tu Dimensión de Resultados Fiscales se acerca a 80 y tu Dimensión de Gestión Financiera Territorial se acerca a 20, tendrás un excelente desempeño fiscal. | I88: Para saber cómo mejorar tu desempeño generando más recursos propios, da clic en el botón de abajo▿▿▿
G93: =IF(I83<>"","Te hacen falta","") -> Te hacen falta | H93: =IFERROR(80-I76,"") -> 50.70705861
G94: =IF(I83<>"","puntos para llegar a los 80 puntos de la Dimensión de Resultados Fiscales.","") -> puntos para llegar a los 80 puntos de la Dimensión de Resultados Fiscales.
G96: =IF(I83<>"","Te hacen falta","") -> Te hacen falta | H96: =IFERROR(20-I82,"") -> 9.333333333
G97: =IF(I83<>"","puntos para llegar a los 20 puntos de la Dimensión de Gestión Financiera.","") -> puntos para llegar a los 20 puntos de la Dimensión de Gestión Financiera. | I97: Para generar un PDF de tu IDF, presiona el ícono:
B100: * Las categorizaciones de las entidades territoriales por tipología, esfuerzo de cierre de brechas y grupo de capacidades iniciales corresponden a análisis y ejercicios técnicos desarrollados por la Dirección de Descentralización y Desarrollo Regional del DNP. Para consultar sobre la metodología de estos ejercicios, referirse a los distintos programas de Desarrollo Territorial en la página web del DNP. ** Los puntajes del año 2019 corresponden a simulaciones realizadas con la nueva metodología de cálculo y no a resultados oficiales de la entidad territorial.

Sheet Base (hidden)
A1: =COLUMN() -> 1 | B1: =COLUMN() -> 2 | C1: =COLUMN() -> 3 | D1: =COLUMN() -> 4 | E1: =COLUMN() -> 5 | F1: =COLUMN() -> 6 | G1: =COLUMN() -> 7 | H1: =COLUMN() -> 8 | I1: =COLUMN() -> 9 | J1: =COLUMN() -> 10
J3: Dependencia de las transferencias | L3: Relevancia formación bruta de capital (FBK) fijo | N3: Endeudamiento de largo plazo | P3: Ahorro corriente | R3: Balance Primario/ IT | T3: FISCAL | V3: Capacidad de programación y ejecución de recursos | X3: Capacidad de ejecución del gasto de inversión | Z3: Nivel de holgura | AB3: Bonificación Catastro | AD3: Bonificación esfuerzo propio | AF3: FISCAL | AJ3: Dependencia de las transferencias | AL3: Relevancia formación bruta de capital (FBK) fijo | AN3: Endeudamiento de largo plazo | AP3: Ahorro corriente | AR3: Balance Primario/ IT | AT3: FISCAL | CW3: K | CX3: M | CY3: O | CZ3: Q | DA3: S | DB3: U | DC3: W | DD3: Y | DE3: AA | DF3: AC | DG3: AE | DH3: AG | DI3: AH | DJ3: K | DK3: M | DL3: O | DM3: Q | DN3: S | DO3: U | DP3: W | DQ3: Y | DR3: AA | DS3: AC | DT3: AE | DU3: AG | DV3: AH | DW3: K | DX3: M | DY3: O | DZ3: Q | EA3: S | EB3: U | EC3: W | ED3: Y | EE3: AA | EF3: AC | EG3: AE | EH3: AG | EI3: AH | EJ3: K | EK3: M | EL3: O | EM3: Q | EN3: S | EO3: U | EP3: W | EQ3: Y | ER3: AA | ES3: AC | ET3: AE | EU3: AG | EV3: AH | EW3: DEPARTAMENTOS
A4: cod2 | B4: nombre | C4: et | D4: region | E4: depar | F4: subreg | G4: cat | H4: capini | I4: Categoría Ruralidad | J4: r201 | K4: c201 | L4: r202 | M4: c202 | N4: r203 | O4: c203 | P4: r204 | Q4: c204 | R4: r205 | S4: c205 | T4: r20f | U4: c20f | V4: r206 | W4: c206 | X4: r207 | Y4: c207 | Z4: r208 | AA4: c208 | AB4: r209 | AC4: c209 | AD4: r2010 | AE4: c2010 | AF4: r20g | AG4: c20g | AH4: r20 | AI4: c20 | AJ4: r191 | AK4: c191 | AL4: r192 | AM4: c192 | AN4: r193 | AO4: c193 | AP4: r194 | AQ4: c194 | AR4: r195 | AS4: c195 | AT4: r19f | AU4: c19f | AV4: r196 | AW4: c196 | AX4: r197 | AY4: c197 | AZ4: r198 | BA4: c198 | BB4: r199 | BC4: c199 | BD4: r1910 | BE4: c1910 | BF4: r19g | BG4: c19g | BH4: c19 | BI4: var201 | BJ4: var191 | BK4: var202 | BL4: var192 | BM4: var203 | BN4: var193 | BO4: var204 | BP4: var194 | BQ4: var205 | BR4: var195 | BS4: var206 | BT4: var196 | BU4: var207 | BV4: var197 | BW4: var208 | BX4: var198 | BY4: var209 | BZ4: var199 | CA4: var2010 | CB4: var1910 | CC4: var2011 | CD4: var1911 | CE4: var2012 | CF4: var1912 | CG4: var2013 | CH4: var1913 | CI4: var2014 | CJ4: var1914 | CK4: var2015 | CL4: var1915 | CM4: var2016 | CN4: var1916 | CO4: NMD | CP4: PD | CQ4: NMR | CR4: PR | CS4: NMSR | CT4: PSR | CU4: NMGCI | CV4: PGCI | CW4: PRDC201 | CX4: PRDC202 | CY4: PRDC203 | CZ4: PRDC204 | DA4: PRDC205 | DB4: PRDC20F | DC4: PRDC206 | DD4: PRDC207 | DE4: PRDC208 | DF4: PRDC209 | DG4: PRDC2010 | DH4: PRDC20G | DI4: PRDC20 | DJ4: PRRC201 | DK4: PRRC202 | DL4: PRRC203 | DM4: PRRC204 | DN4: PRRC205 | DO4: PRRC20F | DP4: PRRC206 | DQ4: PRRC207 | DR4: PRRC208 | DS4: PRRC209 | DT4: PRRC2010 | DU4: PRRC20G | DV4: PRRC20 | DW4: PRSRC201 | DX4: PRSRC202 | DY4: PRSRC203 | DZ4: PRSRC204 | EA4: PRSRC205 | EB4: PRSRC20F | EC4: PRSRC206 | ED4: PRSRC207 | EE4: PRSRC208 | EF4: PRSRC209 | EG4: PRSRC2010 | EH4: PRSRC20G | EI4: PRSRC20 | EJ4: PRGCIC201 | EK4: PRGCIC202 | EL4: PRGCIC203 | EM4: PRGCIC204 | EN4: PRGCIC205 | EO4: PRGCIC20F | EP4: PRGCIC206 | EQ4: PRGCIC207 | ER4: PRGCIC208 | ES4: PRGCIC209 | ET4: PRGCIC2010 | EU4: PRGCIC20G | EV4: PRGCIC20 | EW4: PDN | EX4: NDR | EY4: PDR | EZ4: NDL | FA4: PDL | FB4: PRDN201 | FC4: PRDN202 | FD4: PRDN203 | FE4: PRDN204 | FF4: PRDN205 | FG4: PRDN20F | FH4: PRDN206 | FI4: PRDN207 | FJ4: PRDN208 | FK4: PRDN209 | FL4: PRDN2010 | FM4: PRDN20G | FN4: PRDN20 | FO4: PRDR201 | FP4: PRDR202 | FQ4: PRDR203 | FR4: PRDR204 | FS4: PRDR205 | FT4: PRDR20F | FU4: PRDR206 | FV4: PRDR207 | FW4: PRDR208 | FX4: PRDR209 | FY4: PRDR2010 | FZ4: PRDR20G | GA4: PRDR20 | GB4: PRDL201 | GC4: PRDL202 | GD4: PRDL203 | GE4: PRDL204 | GF4: PRDL205 | GG4: PRDL20F | GH4: PRDL206 | GI4: PRDL207 | GJ4: PRDL208 | GK4: PRDL209 | GL4: PRDL2010 | GM4: PRDL20G | GN4: PRDL20 | GO4: HRP171 | GP4: HRP172 | GQ4: HRP173 | GR4: HRP181 | GS4: HRP182 | GT4: HRP183 | GU4: HRP191 | GV4: HRP192 | GW4: HRP193 | GX4: HRP201 | GY4: HRP202 | GZ4: HRP203
A5: 05 | B5: ANTIOQUIA | C5: D | D5: EJE CAFETERO Y ANTIOQUIA | E5: NA | F5: NA | G5: E | H5: NA | J5: 44.56523068 | K5: 55.43476932 | L5: 34.23877513 | M5: 100 | N5: 77.56540685 | O5: 22.43459315 | P5: 44.87263368 | Q5: 50 | R5: 8.404277318 | S5: 80 | T5: 61.57387249 | U5: 49.25909799 | V5: 68.83551278 | W5: 60 | X5: 90.95030136 | Y5: 100 | Z5: 0.08803492683 | AA5: 85.65750331 | AB5: NA | AC5: NA | AD5: 0 | AE5: 0 | AF5: 81.88583444 | AG5: 16.37716689 | AH5: 65.63626488 | AI5: 3. Vulnerable (>=60 y <70) | AJ5: 32.00742284 | AK5: 67.99257716 | AL5: 39.29582619 | AM5: 100 | AN5: 72.11228123 | AO5: 27.88771877 | AP5: 55.69934762 | AQ5: 80 | AR5: 14.91306007 | AS5: 60 | AT5: 67.17605919 | AU5: 53.74084735 | AV5: 101.5789167 | AW5: 100 | AX5: 95.22613123 | AY5: 100 | AZ5: 19.4067622 | BA5: 100 | BB5: NA | BC5: NA | BD5: 0.2574949122 | BE5: 0.2574949122 | BF5: 100 | BG5: 20 | BH5: 4. Solvente (>=70 y <80) | BI5: 1823047.056 | BJ5: 1493225.156 | BK5: 4090738.515 | BL5: 4665246.445 | BM5: 1222873.476 | BN5: 1497996.703 | BO5: 3571604.039 | BP5: 3812101.304 | BQ5: 13508051.74 | BR5: 9509103.519 | BS5: 10477575.29 | BT5: 13186524.34 | BU5: 818518.6252 | BV5: 1447467.358 | BW5: 1824093.123 | BX5: 2598715.101 | BY5: 358241.6784 | BZ5: -212484.4417 | CA5: 4090738.515 | CB5: 4665246.445 | CC5: 1590618.43 | CD5: 2300868.927 | CE5: 2310752.642 | CF5: 2265104.808 | CG5: 3143551.079 | CH5: 3548585.729 | CI5: 3456339.377 | CJ5: 3726483.144 | CK5: 50 | CL5: 50 | CM5: 41.19650732 | CN5: 30.5932378 | CO5: NA | CP5: NA | CQ5: 178 | CR5: NA | CS5: NA | CT5: NA | CU5: NA | CV5: NA | CW5: 34.29489845 | CX5: 56.23302274 | CY5: 52.00358312 | CZ5: 61.875 | DA5: 38.125 | DB5: 38.80504069 | DC5: 73.4375 | DD5: 92.1875 | DE5: 63.63241705 | DF5: NA | DG5: 0 | DH5: 15.2838278 | DI5: 54.08886849 | DJ5: 38.54097184 | DK5: 32.12471709 | DL5: 73.81714932 | DM5: 60.05617978 | DN5: 45.16853933 | DO5: 39.95320918 | DP5: 66.29213483 | DQ5: 94.60674157 | DR5: 67.86105604 | DS5: 0.1123595506 | DT5: 0.07340741741 | DU5: 15.28548135 | DV5: 55.23869053 | DW5: NA | DX5: NA | DY5: NA | DZ5: NA | EA5: NA | EB5: NA | EC5: NA | ED5: NA | EE5: NA | EF5: NA | EG5: NA | EH5: NA | EI5: NA | EJ5: NA | EK5: NA | EL5: NA | EM5: NA | EN5: NA | EO5: NA | EP5: NA | EQ5: NA | ER5: NA | ES5: NA | ET5: NA | EU5: NA | EV5: NA | EW5: 12 | EX5: 4 | EY5: 3 | EZ5: 3 | FA5: 3 | FB5: 34.29489845 | FC5: 56.23302274 | FD5: 52.00358312 | FE5: 61.875 | FF5: 38.125 | FG5: 38.80504069 | FH5: 73.4375 | FI5: 92.1875 | FJ5: 63.63241705 | FK5: 0 | FL5: 0 | FM5: 15.2838278 | FN5: 54.08886849 | FO5: 50.38952594 | FP5: 76.77481727 | FQ5: 38.66928328 | FR5: 60 | FS5: 55 | FT5: 44.93338024 | FU5: 67.5 | FV5: 100 | FW5: 89.78893178 | FX5: 0 | FY5: 0 | FZ5: 17.15259545 | GA5: 62.08597569 | GB5: 60.27208034 | GC5: 84.76106523 | GD5: 21.80229595 | GE5: 83.33333333 | GF5: 60 | GG5: 49.62700398 | GH5: 80 | GI5: 93.33333333 | GJ5: 95.21916777 | GK5: 0 | GL5: 0 | GM5: 17.90350007 | GN5: 67.53050405 | GO5: 49.23148386 | GP5: 0 | GQ5: 33.00408503 | GR5: 50.0842572 | GS5: 0 | GT5: 32.6850918 | GU5: 55.69934762 | GV5: 0.2574949122 | GW5: 32.00742284 | GX5: 44.87263368 | GY5: 0 | GZ5: 44.56523068
A6: 08 | B6: ATLÁNTICO | C6: D | D6: CARIBE | E6: NA | F6: NA | G6: 1 | H6: NA | J6: 38.24378055 | K6: 61.75621945 | L6: 21.56894284 | M6: 36.55164244 | N6: 42.86905338 | O6: 57.13094662 | P6: 68.1028436 | Q6: 100 | R6: 16.98395155 | S6: 40 | T6: 59.0877617 | U6: 47.27020936 | V6: 91.90914039 | W6: 100 | X6: 77.63681938 | Y6: 70 | Z6: 0.2835400719 | AA6: 100 | AB6: NA | AC6: NA | AD6: 0 | AE6: 0 | AF6: 90 | AG6: 18 | AH6: 65.27020936 | AI6: 3. Vulnerable (>=60 y <70) | AJ6: 34.73495606 | AK6: 65.26504394 | AL6: 39.72166005 | AM6: 100 | AN6: 42.07971704 | AO6: 57.92028296 | AP6: 68.26703749 | AQ6: 100 | AR6: 3.533828035 | AS6: 100 | AT6: 84.63706538 | AU6: 67.7096523 | AV6: 109.9475492 | AW6: 100 | AX6: 81.38329171 | AY6: 80 | AZ6: 27.69876069 | BA6: 100 | BB6: NA | BC6: NA | BD6: 0.2677509035 | BE6: 0.2677509035 | BF6: 93.60108424 | BG6: 18.72021685 | BH6: 5. Sostenible (>=80) | BI6: 423924.3776 | BJ6: 411793.8626 | BK6: 1108479.265 | BL6: 1185531.549 | BM6: 207032.2291 | BN6: 486452.2539 | BO6: 959862.6627 | BP6: 1224652.377 | BQ6: 4136488.511 | BR6: 1582881.528 | BS6: 1773273.468 | BT6: 3761625.883 | BU6: 436577.1313 | BV6: 488520.0268 | BW6: 641055.6567 | BX6: 715601.6208 | BY6: 188263.5813 | BZ6: -140220.7255 | CA6: 1108479.265 | CB6: 1185531.549 | CC6: 625841.2756 | CD6: 664817.7136 | CE6: 680934.7503 | CF6: 604668.0607 | CG6: 711308.7499 | CH6: 894134.3647 | CI6: 916200.2714 | CJ6: 1098670.68 | CK6: 55 | CL6: 55 | CM6: 26.64599281 | CN6: 27.30123931 | CO6: NA | CP6: NA | CQ6: 195 | CR6: NA | CS6: NA | CT6: NA | CU6: NA | CV6: NA | CW6: 34.29489845 | CX6: 56.23302274 | CY6: 52.00358312 | CZ6: 61.875 | DA6: 38.125 | DB6: 38.80504069 | DC6: 73.4375 | DD6: 92.1875 | DE6: 63.63241705 | DF6: NA | DG6: 0 | DH6: 15.2838278 | DI6: 54.08886849 | DJ6: 16.1180535 | DK6: 30.39618919 | DL6: 69.48577879 | DM6: 56.61538462 | DN6: 72.1025641 | DO6: 39.15487523 | DP6: 60.46153846 | DQ6: 93.12820513 | DR6: 49.5692992 | DS6: 0.05128205128 | DT6: 0.03980529745 | DU6: 13.56174404 | DV6: 52.87970618 | DW6: NA | DX6: NA | DY6: NA | DZ6: NA | EA6: NA | EB6: NA | EC6: NA | ED6: NA | EE6: NA | EF6: NA | EG6: NA | EH6: NA | EI6: NA | EJ6: NA | EK6: NA | EL6: NA | EM6: NA | EN6: NA | EO6: NA | EP6: NA | EQ6: NA | ER6: NA | ES6: NA | ET6: NA | EU6: NA | EV6: NA | EW6: 5 | EX6: 7 | EY6: 1 | EZ6: 6 | FA6: 2 | FB6: 34.29489845 | FC6: 56.23302274 | FD6: 52.00358312 | FE6: 61.875 | FF6: 38.125 | FG6: 38.80504069 | FH6: 73.4375 | FI6: 92.1875 | FJ6: 63.63241705 | FK6: 0 | FL6: 0 | FM6: 15.2838278 | FN6: 54.08886849 | FO6: 32.09961407 | FP6: 52.70008658 | FQ6: 49.14793259 | FR6: 65.71428571 | FS6: 37.14285714 | FT6: 37.88876418 | FU6: 78.57142857 | FV6: 95.71428571 | FW6: 60.82394829 | FX6: 0 | FY6: 0 | FZ6: 15.6739775 | GA6: 53.56274168 | GB6: 39.73877374 | GC6: 41.28140171 | GD6: 41.12295011 | GE6: 66.66666667 | GF6: 40 | GG6: 36.60956676 | GH6: 81.66666667 | GI6: 83.33333333 | GJ6: 53.86983669 | GK6: 0 | GL6: 0 | GM6: 14.59132245 | GN6: 51.2008892 | GO6: 66.21840333 | GP6: 0 | GQ6: 34.99967069 | GR6: 68.95370587 | GS6: 0 | GT6: 33.2236408 | GU6: 68.26703749 | GV6: 0.2677509035 | GW6: 34.73495606 | GX6: 68.1028436 | GY6: 0 | GZ6: 38.24378055
A7: 13 | B7: BOLÍVAR | C7: D | D7: CARIBE | E7: NA | F7: NA | G7: 1 | H7: NA | J7: 65.39027243 | K7: 34.60972757 | L7: 12.90965514 | M7: 21.87724741 | N7: 68.93445138 | O7: 31.06554862 | P7: 43.74401195 | Q7: 50 | R7: 15.31969506 | S7: 40 | T7: 35.51050472 | U7: 28.40840378 | V7: 71.84340216 | W7: 70 | X7: 92.55171709 | Y7: 100 | Z7: 0.1323291966 | AA7: 100 | AB7: NA | AC7: NA | AD7: 0 | AE7: 0 | AF7: 90 | AG7: 18 | AH7: 46.40840378 | AI7: 2. Riesgo (>=40 y <60) | AJ7: 55.97571836 | AK7: 44.02428164 | AL7: 32.95601879 | AM7: 82.96737536 | AN7: 69.1692312 | AO7: 30.8307688 | AP7: 46.43728367 | AQ7: 70 | AR7: 4.697544276 | AS7: 100 | AT7: 65.56448516 | AU7: 52.45158813 | AV7: 106.2523587 | AW7: 100 | AX7: 83.89752651 | AY7: 80 | AZ7: 7.310256842 | BA7: 63.58780972 | BB7: NA | BC7: NA | BD7: 0.1735675756 | BE7: 0.1735675756 | BF7: 81.36950415 | BG7: 16.27390083 | BH7: 3. Vulnerable (>=60 y <70) | BI7: 853130.8762 | BJ7: 769940.5733 | BK7: 1304675.519 | BL7: 1375490.295 | BM7: 126866.0338 | BN7: 485880.2261 | BO7: 982722.0974 | BP7: 1474329.254 | BQ7: 3639178.101 | BR7: 2418643.792 | BS7: 2508647.459 | BT7: 3496704.748 | BU7: 136689.6266 | BV7: 193198.3922 | BW7: 312476.2008 | BX7: 416041.5445 | BY7: 199872.311 | BZ7: -20925.74898 | CA7: 1304675.519 | CB7: 1375490.295 | CC7: 308887.0529 | CD7: 416041.5445 | CE7: 429944.913 | CF7: 391559.8199 | CG7: 899886.2752 | CH7: 984598.6276 | CI7: 972306.4071 | CJ7: 1173572.891 | CK7: 55 | CL7: 55 | CM7: 41.76708034 | CN7: 47.68974316 | CO7: NA | CP7: NA | CQ7: 195 | CR7: NA | CS7: NA | CT7: NA | CU7: NA | CV7: NA | CW7: 34.29489845 | CX7: 56.23302274 | CY7: 52.00358312 | CZ7: 61.875 | DA7: 38.125 | DB7: 38.80504069 | DC7: 73.4375 | DD7: 92.1875 | DE7: 63.63241705 | DF7: NA | DG7: 0 | DH7: 15.2838278 | DI7: 54.08886849 | DJ7: 16.1180535 | DK7: 30.39618919 | DL7: 69.48577879 | DM7: 56.61538462 | DN7: 72.1025641 | DO7: 39.15487523 | DP7: 60.46153846 | DQ7: 93.12820513 | DR7: 49.5692992 | DS7: 0.05128205128 | DT7: 0.03980529745 | DU7: 13.56174404 | DV7: 52.87970618 | DW7: NA | DX7: NA | DY7: NA | DZ7: NA | EA7: NA | EB7: NA | EC7: NA | ED7: NA | EE7: NA | EF7: NA | EG7: NA | EH7: NA | EI7: NA | EJ7: NA | EK7: NA | EL7: NA | EM7: NA | EN7: NA | EO7: NA | EP7: NA | EQ7: NA | ER7: NA | ES7: NA | ET7: NA | EU7: NA | EV7: NA | EW7: 25 | EX7: 7 | EY7: 6 | EZ7: 6 | FA7: 3 | FB7: 34.29489845 | FC7: 56.23302274 | FD7: 52.00358312 | FE7: 61.875 | FF7: 38.125 | FG7: 38.80504069 | FH7: 73.4375 | FI7: 92.1875 | FJ7: 63.63241705 | FK7: 0 | FL7: 0 | FM7: 15.2838278 | FN7: 54.08886849 | FO7: 32.09961407 | FP7: 52.70008658 | FQ7: 49.14793259 | FR7: 65.71428571 | FS7: 37.14285714 | FT7: 37.88876418 | FU7: 78.57142857 | FV7: 95.71428571 | FW7: 60.82394829 | FX7: 0 | FY7: 0 | FZ7: 15.6739775 | GA7: 53.56274168 | GB7: 39.73877374 | GC7: 41.28140171 | GD7: 41.12295011 | GE7: 66.66666667 | GF7: 40 | GG7: 36.60956676 | GH7: 81.66666667 | GI7: 83.33333333 | GJ7: 53.86983669 | GK7: 0 | GL7: 0 | GM7: 14.59132245 | GN7: 51.2008892 | GO7: 46.81626444 | GP7: 0 | GQ7: 58.58979203 | GR7: 48.91516142 | GS7: 0 | GT7: 53.31703425 | GU7: 46.43728367 | GV7: 0.1735675756 | GW7: 55.97571836 | GX7: 43.74401195 | GY7: 0 | GZ7: 65.39027243
A8: 15 | B8: BOYACÁ | C8: D | D8: CENTRAL | E8: NA | F8: NA | G8: 1 | H8: NA | J8: 62.99244487 | K8: 37.00755513 | L8: 18.77639527 | M8: 31.81927326 | N8: 64.71818679 | O8: 35.28181321 | P8: 41.71741225 | Q8: 50 | R8: 14.23764781 | S8: 60 | T8: 42.82172832 | U8: 34.25738265 | V8: 82.39719759 | W8: 80 | X8: 87.81765328 | Y8: 80 | Z8: 0 | AA8: 0 | AB8: NA | AC8: NA | AD8: 0 | AE8: 0 | AF8: 53.33333333 | AG8: 10.66666667 | AH8: 44.92404932 | AI8: 2. Riesgo (>=40 y <60) | AJ8: 55.76079003 | AK8: 44.23920997 | AL8: 28.9618257 | AM8: 72.91192176 | AN8: 60.11275582 | AO8: 39.88724418 | AP8: 46.83620455 | AQ8: 70 | AR8: 12.19587887 | AS8: 60 | AT8: 57.40767518 | AU8: 45.92614014 | AV8: 101.8943143 | AW8: 100 | AX8: 82.34754632 | AY8: 80 | AZ8: 8.151498674 | BA8: 70.90529893 | BB8: NA | BC8: NA | BD8: 0.1610814825 | BE8: 0.1610814825 | BF8: 83.79618112 | BG8: 16.75923622 | BH8: 3. Vulnerable (>=60 y <70) | BI8: 739814.0092 | BJ8: 675405.0505 | BK8: 1174448.794 | BL8: 1211254.45 | BM8: 197900.9153 | BN8: 369307.1477 | BO8: 1053987.8 | BP8: 1275151.475 | BQ8: 4425569.808 | BR8: 2484104.379 | BS8: 2864148.535 | BT8: 4132408.081 | BU8: 127383.2687 | BV8: 172430.5149 | BW8: 305347.9634 | BX8: 368156.4647 | BY8: 169372.9584 | BZ8: -111324.5836 | CA8: 1174448.794 | CB8: 1211254.45 | CC8: 278845.4207 | CD8: 337446.0444 | CE8: 338416.1463 | CF8: 331172.5947 | CG8: 851469.3998 | CH8: 896402.1877 | CI8: 969587.9678 | CJ8: 1088559.681 | CK8: 55 | CL8: 55 | CM8: 59.33403855 | CN8: 46.84850133 | CO8: NA | CP8: NA | CQ8: 324 | CR8: NA | CS8: NA | CT8: NA | CU8: NA | CV8: NA | CW8: 34.29489845 | CX8: 56.23302274 | CY8: 52.00358312 | CZ8: 61.875 | DA8: 38.125 | DB8: 38.80504069 | DC8: 73.4375 | DD8: 92.1875 | DE8: 63.63241705 | DF8: NA | DG8: 0 | DH8: 15.2838278 | DI8: 54.08886849 | DJ8: 30.19856982 | DK8: 36.99558085 | DL8: 80.95066794 | DM8: 65.21604938 | DN8: 40.12345679 | DO8: 40.55749196 | DP8: 66.57407407 | DQ8: 90.86419753 | DR8: 84.24544645 | DS8: 0.08641975309 | DT8: 0.03297453732 | DU8: 16.12870955 | DV8: 56.77970478 | DW8: NA | DX8: NA | DY8: NA | DZ8: NA | EA8: NA | EB8: NA | EC8: NA | ED8: NA | EE8: NA | EF8: NA | EG8: NA | EH8: NA | EI8: NA | EJ8: NA | EK8: NA | EL8: NA | EM8: NA | EN8: NA | EO8: NA | EP8: NA | EQ8: NA | ER8: NA | ES8: NA | ET8: NA | EU8: NA | EV8: NA | EW8: 27 | EX8: 4 | EY8: 4 | EZ8: 6 | FA8: 4 | FB8: 34.29489845 | FC8: 56.23302274 | FD8: 52.00358312 | FE8: 61.875 | FF8: 38.125 | FG8: 38.80504069 | FH8: 73.4375 | FI8: 92.1875 | FJ8: 63.63241705 | FK8: 0 | FL8: 0 | FM8: 15.2838278 | FN8: 54.08886849 | FO8: 42.2746477 | FP8: 62.52681364 | FQ8: 27.35606324 | FR8: 62.5 | FS8: 65 | FT8: 41.54520393 | FU8: 85 | FV8: 90 | FW8: 50 | FX8: 0 | FY8: 0 | FZ8: 15 | GA8: 56.54520393 | GB8: 39.73877374 | GC8: 41.28140171 | GD8: 41.12295011 | GE8: 66.66666667 | GF8: 40 | GG8: 36.60956676 | GH8: 81.66666667 | GI8: 83.33333333 | GJ8: 53.86983669 | GK8: 0 | GL8: 0 | GM8: 14.59132245 | GN8: 51.2008892 | GO8: 49.37250487 | GP8: 0 | GQ8: 61.17733678 | GR8: 43.49317805 | GS8: 0 | GT8: 53.83379168 | GU8: 46.83620455 | GV8: 0.1610814825 | GW8: 55.76079003 | GX8: 41.71741225 | GY8: 0 | GZ8: 62.99244487
A9: 17 | B9: CALDAS | C9: D | D9: EJE CAFETERO Y ANTIOQUIA | E9: NA | F9: NA | G9: 2 | H9: NA | J9: 52.65131001 | K9: 47.34868999 | L9: 28.11029882 | M9: 100 | N9: 58.0311368 | O9: 41.9688632 | P9: 50.56963519 | Q9: 70 | R9: 13.03552998 | S9: 60 | T9: 63.86351064 | U9: 51.09080851 | V9: 67.22901504 | W9: 60 | X9: 97.82682092 | Y9: 100 | Z9: 0.08560459722 | AA9: 73.49822383 | AB9: NA | AC9: NA | AD9: 0 | AE9: 0 | AF9: 77.83274128 | AG9: 15.56654826 | AH9: 66.65735677 | AI9: 3. Vulnerable (>=60 y <70) | AJ9: 49.44137476 | AK9: 50.55862524 | AL9: 20.14051326 | AM9: 53.02881188 | AN9: 57.70031078 | AO9: 42.29968922 | AP9: 51.58300125 | AQ9: 70 | AR9: 2.588764474 | AS9: 100 | AT9: 63.17742527 | AU9: 50.54194021 | AV9: 90.54965572 | AW9: 100 | AX9: 94.83618886 | AY9: 100 | AZ9: 17.28488078 | BA9: 100 | BB9: NA | BC9: NA | BD9: 0.2716408915 | BE9: 0.2716408915 | BF9: 100 | BG9: 20 | BH9: 4. Solvente (>=70 y <80) | BI9: 380027.6069 | BJ9: 348896.5841 | BK9: 721781.8642 | BL9: 705677.3517 | BM9: 197199.4625 | BN9: 133046.6492 | BO9: 701520.3352 | BP9: 660592.1483 | BQ9: 2979685 | BR9: 1708930.206 | BS9: 1729145.079 | BT9: 2961734.838 | BU9: 119285.5412 | BV9: 137277.2344 | BW9: 235883.729 | BX9: 266128.8236 | BY9: 96019.39461 | BZ9: -53231.62246 | CA9: 721781.8642 | CB9: 705677.3517 | CC9: 168877.8477 | CD9: 205974.4737 | CE9: 251197.8609 | CF9: 227471.2942 | CG9: 561980.3017 | CH9: 597522.4115 | CI9: 574464.4427 | CJ9: 630057.3849 | CK9: 60 | CL9: 60 | CM9: 51.43954028 | CN9: 42.71511922 | CO9: NA | CP9: NA | CQ9: 178 | CR9: NA | CS9: NA | CT9: NA | CU9: NA | CV9: NA | CW9: 34.29489845 | CX9: 56.23302274 | CY9: 52.00358312 | CZ9: 61.875 | DA9: 38.125 | DB9: 38.80504069 | DC9: 73.4375 | DD9: 92.1875 | DE9: 63.63241705 | DF9: NA | DG9: 0 | DH9: 15.2838278 | DI9: 54.08886849 | DJ9: 38.54097184 | DK9: 32.12471709 | DL9: 73.81714932 | DM9: 60.05617978 | DN9: 45.16853933 | DO9: 39.95320918 | DP9: 66.29213483 | DQ9: 94.60674157 | DR9: 67.86105604 | DS9: 0.1123595506 | DT9: 0.07340741741 | DU9: 15.28548135 | DV9: 55.23869053 | DW9: NA | DX9: NA | DY9: NA | DZ9: NA | EA9: NA | EB9: NA | EC9: NA | ED9: NA | EE9: NA | EF9: NA | EG9: NA | EH9: NA | EI9: NA | EJ9: NA | EK9: NA | EL9: NA | EM9: NA | EN9: NA | EO9: NA | EP9: NA | EQ9: NA | ER9: NA | ES9: NA | ET9: NA | EU9: NA | EV9: NA | EW9: 4 | EX9: 4 | EY9: 2 | EZ9: 9 | FA9: 2 | FB9: 34.29489845 | FC9: 56.23302274 | FD9: 52.00358312 | FE9: 61.875 | FF9: 38.125 | FG9: 38.80504069 | FH9: 73.4375 | FI9: 92.1875 | FJ9: 63.63241705 | FK9: 0 | FL9: 0 | FM9: 15.2838278 | FN9: 54.08886849 | FO9: 50.38952594 | FP9: 76.77481727 | FQ9: 38.66928328 | FR9: 60 | FS9: 55 | FT9: 44.93338024 | FU9: 67.5 | FV9: 100 | FW9: 89.78893178 | FX9: 0 | FY9: 0 | FZ9: 17.15259545 | GA9: 62.08597569 | GB9: 40.90337055 | GC9: 67.01605117 | GD9: 46.82144749 | GE9: 57.77777778 | GF9: 44.44444444 | GG9: 41.11409463 | GH9: 66.66666667 | GI9: 94.44444444 | GJ9: 64.08121774 | GK9: 0 | GL9: 0 | GM9: 15.01282192 | GN9: 56.12691655 | GO9: 42.74464383 | GP9: 0 | GQ9: 53.6697374 | GR9: 47.66047412 | GS9: 0 | GT9: 50.68797421 | GU9: 51.58300125 | GV9: 0.2716408915 | GW9: 49.44137476 | GX9: 50.56963519 | GY9: 0 | GZ9: 52.65131001
A10: 18 | B10: CAQUETÁ | C10: D | D10: AMAZONÍA | E10: NA | F10: NA | G10: 4 | H10: NA | J10: 75.74821584 | K10: 24.25178416 | L10: 35.32845745 | M10: 67.57727338 | N10: 43.09206492 | O10: 56.90793508 | P10: 36.62984345 | Q10: 50 | R10: 15.06701651 | S10: 40 | T10: 47.74739852 | U10: 38.19791882 | V10: 74.70928335 | W10: 70 | X10: 90.92161803 | Y10: 100 | Z10: 0.005941855329 | AA10: 4.124580896 | AB10: NA | AC10: NA | AD10: 0 | AE10: 0 | AF10: 58.04152697 | AG10: 11.60830539 | AH10: 49.80622421 | AI10: 2. Riesgo (>=40 y <60) | AJ10: 73.03665391 | AK10: 26.96334609 | AL10: 31.02190944 | AM10: 79.35725637 | AN10: 43.65848919 | AO10: 56.34151081 | AP10: 40.80231148 | AQ10: 50 | AR10: 8.353737642 | AS10: 80 | AT10: 58.53242265 | AU10: 46.82593812 | AV10: 93.71956144 | AW10: 100 | AX10: 87.26033881 | AY10: 80 | AZ10: 5.325731674 | BA10: 51.66255862 | BB10: NA | BC10: NA | BD10: 0.2830160038 | BE10: 0.2830160038 | BF10: 77.50386888 | BG10: 15.50077378 | BH10: 3. Vulnerable (>=60 y <70) | BI10: 254591.7558 | BJ10: 242042.9663 | BK10: 336102.6434 | BL10: 331399.3089 | BM10: 149634.4193 | BN10: 144012.0682 | BO10: 423552.0882 | BP10: 464226.9633 | BQ10: 1396255.051 | BR10: 644512.9587 | BS10: 601675.1331 | BT10: 1476260.335 | BU10: 24490.54051 | BV10: 31827.10085 | BW10: 66859.5282 | BX10: 78003.18094 | BY10: 50640.64079 | BZ10: -34388.97031 | CA10: 336102.6434 | CB10: 331399.3089 | CC10: 55594.78582 | CD10: 69337.6434 | CE10: 74414.8295 | CF10: 73984.174 | CG10: 248564.7252 | CH10: 278894.6878 | CI10: 273383.5259 | CJ10: 319612.1991 | CK10: 70 | CL10: 70 | CM10: 69.40581447 | CN10: 64.67426833 | CO10: NA | CP10: NA | CQ10: 39 | CR10: NA | CS10: NA | CT10: NA | CU10: NA | CV10: NA | CW10: 34.29489845 | CX10: 56.23302274 | CY10: 52.00358312 | CZ10: 61.875 | DA10: 38.125 | DB10: 38.80504069 | DC10: 73.4375 | DD10: 92.1875 | DE10: 63.63241705 | DF10: NA | DG10: 0 | DH10: 15.2838278 | DI10: 54.08886849 | DJ10: 17.33692719 | DK10: 37.23605515 | DL10: 75.85562983 | DM10: 53.33333333 | DN10: 55.8974359 | DO10: 38.34550102 | DP10: 66.15384615 | DQ10: 84.61538462 | DR10: 62.21553338 | DS10: 0 | DT10: 0.05542678519 | DU10: 14.21006963 | DV10: 52.55557066 | DW10: NA | DX10: NA | DY10: NA | DZ10: NA | EA10: NA | EB10: NA | EC10: NA | ED10: NA | EE10: NA | EF10: NA | EG10: NA | EH10: NA | EI10: NA | EJ10: NA | EK10: NA | EL10: NA | EM10: NA | EN10: NA | EO10: NA | EP10: NA | EQ10: NA | ER10: NA | ES10: NA | ET10: NA | EU10: NA | EV10: NA | EW10: 17 | EX10: 6 | EY10: 4 | EZ10: 10 | FA10: 4 | FB10: 34.29489845 | FC10: 56.23302274 | FD10: 52.00358312 | FE10: 61.875 | FF10: 38.125 | FG10: 38.80504069 | FH10: 73.4375 | FI10: 92.1875 | FJ10: 63.63241705 | FK10: 0 | FL10: 0 | FM10: 15.2838278 | FN10: 54.08886849 | FO10: 17.97461146 | FP10: 55.33413569 | FQ10: 73.52401261 | FR10: 61.66666667 | FS10: 26.66666667 | FT10: 37.62657489 | FU10: 60 | FV10: 90 | FW10: 75.10497708 | FX10: 0 | FY10: 0 | FZ10: 15.00699847 | GA10: 52.63357337 | GB10: 18.7310903 | GC10: 47.50967026 | GD10: 68.80367135 | GE10: 54 | GF10: 28 | GG10: 34.72710911 | GH10: 70 | GI10: 94 | GJ10: 65.06298625 | GK10: 0 | GL10: 0 | GM10: 15.27086575 | GN10: 49.99797486 | GO10: 41.57993456 | GP10: 0 | GQ10: 64.72848089 | GR10: 47.21027328 | GS10: 0.1472544329 | GT10: 66.32394987 | GU10: 40.80231148 | GV10: 0.2830160038 | GW10: 73.03665391 | GX10: 36.62984345 | GY10: 0 | GZ10: 75.74821584
A11: 19 | B11: CAUCA | C11: D | D11: PACÍFICO | E11: NA | F11: NA | G11: 3 | H11: NA | J11: 81.33780291 | K11: 18.66219709 | L11: 13.70670333 | M11: 41.94346967 | N11: 37.84055054 | O11: 62.15944946 | P11: 57.03391058 | Q11: 80 | R11: 20.18405578 | S11: 20 | T11: 44.55302325 | U11: 35.6424186 | V11: 91.67783266 | W11: 100 | X11: 97.57490307 | Y11: 100 | Z11: 0.3235240745 | AA11: 100 | AB11: NA | AC11: NA | AD11: 0 | AE11: 0 | AF11: 100 | AG11: 20 | AH11: 55.6424186 | AI11: 2. Riesgo (>=40 y <60) | AJ11: 76.99596674 | AK11: 23.00403326 | AL11: 13.29881729 | AM11: 23.48242249 | AN11: 18.25240863 | AO11: 81.74759137 | AP11: 45.4280739 | AQ11: 70 | AR11: 15.17254564 | AS11: 40 | AT11: 47.64680942 | AU11: 38.11744754 | AV11: 103.2279081 | AW11: 100 | AX11: 94.94397189 | AY11: 100 | AZ11: 18.89163989 | BA11: 100 | BB11: NA | BC11: NA | BD11: 0.1749607619 | BE11: 0.1749607619 | BF11: 100 | BG11: 20 | BH11: 2. Riesgo (>=40 y <60) | BI11: 986996.3035 | BJ11: 896074.134 | BK11: 1213453.361 | BL11: 1163793.601 | BM11: 164159.2726 | BN11: 156057.8667 | BO11: 1197656.859 | BP11: 1173471.771 | BQ11: 2978719.401 | BR11: 511990.3984 | BS11: 1127163.82 | BT11: 2805056.63 | BU11: 114898.1662 | BV11: 88371.26077 | BW11: 201455.8795 | BX11: 194530.063 | BY11: 244924.1033 | BZ11: -16817.83978 | CA11: 1213453.361 | CB11: 1163793.601 | CC11: 174847.5882 | CD11: 181568.9637 | CE11: 190719.5918 | CF11: 175891.3525 | CG11: 1025589.045 | CH11: 1019464.883 | CI11: 1051078.723 | CJ11: 1073754.197 | CK11: 70 | CL11: 70 | CM11: 37.64759255 | CN11: 51.10836011 | CO11: NA | CP11: NA | CQ11: 178 | CR11: NA | CS11: NA | CT11: NA | CU11: NA | CV11: NA | CW11: 34.29489845 | CX11: 56.23302274 | CY11: 52.00358312 | CZ11: 61.875 | DA11: 38.125 | DB11: 38.80504069 | DC11: 73.4375 | DD11: 92.1875 | DE11: 63.63241705 | DF11: NA | DG11: 0 | DH11: 15.2838278 | DI11: 54.08886849 | DJ11: 20.43086405 | DK11: 33.76336341 | DL11: 72.84038856 | DM11: 60.4494382 | DN11: 60.56179775 | DO11: 39.68733631 | DP11: 58.03370787 | DQ11: 92.02247191 | DR11: 71.03511351 | DS11: 0 | DT11: 0.05384817472 | DU11: 14.75009904 | DV11: 54.43743535 | DW11: NA | DX11: NA | DY11: NA | DZ11: NA | EA11: NA | EB11: NA | EC11: NA | ED11: NA | EE11: NA | EF11: NA | EG11: NA | EH11: NA | EI11: NA | EJ11: NA | EK11: NA | EL11: NA | EM11: NA | EN11: NA | EO11: NA | EP11: NA | EQ11: NA | ER11: NA | ES11: NA | ET11: NA | EU11: NA | EV11: NA | EW11: 14 | EX11: 4 | EY11: 2 | EZ11: 4 | FA11: 2 | FB11: 34.29489845 | FC11: 56.23302274 | FD11: 52.00358312 | FE11: 61.875 | FF11: 38.125 | FG11: 38.80504069 | FH11: 73.4375 | FI11: 92.1875 | FJ11: 63.63241705 | FK11: 0 | FL11: 0 | FM11: 15.2838278 | FN11: 54.08886849 | FO11: 33.20640361 | FP11: 42.96662107 | FQ11: 45.44251875 | FR11: 72.5 | FS11: 30 | FT11: 35.85848695 | FU11: 85 | FV11: 95 | FW11: 50 | FX11: 0 | FY11: 0 | FZ11: 15.33333333 | GA11: 51.19182028 | GB11: 30.68665722 | GC11: 54.81098964 | GD11: 60.63508263 | GE11: 67.5 | GF11: 30 | GG11: 38.98123672 | GH11: 80 | GI11: 95 | GJ11: 50 | GK11: 0 | GL11: 0 | GM11: 15 | GN11: 53.98123672 | GO11: 46.45207427 | GP11: 0 | GQ11: 77.3444681 | GR11: 47.57029692 | GS11: 0 | GT11: 80.32342196 | GU11: 45.4280739 | GV11: 0.1749607619 | GW11: 76.99596674 | GX11: 57.03391058 | GY11: 0 | GZ11: 81.33780291
A12: 20 | B12: CESAR | C12: D | D12: CARIBE | E12: NA | F12: NA | G12: 2 | H12: NA | J12: 74.19454773 | K12: 25.80545227 | L12: 26.47094903 | M12: 94.1681524 | N12: 29.05429613 | O12: 70.94570387 | P12: 45.24342038 | Q12: 70 | R12: 11.95455674 | S12: 60 | T12: 64.18386171 | U12: 51.34708937 | V12: 79.34390722 | W12: 70 | X12: 93.4549462 | Y12: 100 | Z12: 0.02242623393 | AA12: 19.25467106 | AB12: NA | AC12: NA | AD12: 0 | AE12: 0 | AF12: 63.08489035 | AG12: 12.61697807 | AH12: 63.96406744 | AI12: 3. Vulnerable (>=60 y <70) | AJ12: 67.63699427 | AK12: 32.36300573 | AL12: 32.22127144 | AM12: 84.83675266 | AN12: 30.9534661 | AO12: 69.0465339 | AP12: 48.98030184 | AQ12: 70 | AR12: 15.74398045 | AS12: 40 | AT12: 59.24925846 | AU12: 47.39940677 | AV12: 100.2359325 | AW12: 100 | AX12: 96.2358902 | AY12: 100 | AZ12: 1.617859258 | BA12: 11.09810461 | BB12: NA | BC12: NA | BD12: 0 | BE12: 0 | BF12: 70.36603487 | BG12: 14.07320697 | BH12: 3. Vulnerable (>=60 y <70) | BI12: 560238.1263 | BJ12: 570942.4316 | BK12: 755093.3908 | BL12: 844127.4451 | BM12: 232071.0644 | BN12: 332039.6882 | BO12: 876700.9603 | BP12: 1030498.405 | BQ12: 2180519.672 | BR12: 633372.887 | BS12: 633534.6427 | BT12: 2046209.897 | BU12: 69627.70814 | BV12: 86535.72912 | BW12: 153895.7655 | BX12: 176674.5526 | BY12: 91822.16022 | BZ12: 43591.6257 | CA12: 755093.3908 | CB12: 844127.4451 | CC12: 140615.0299 | CD12: 160754.8338 | CE12: 177222.215 | CF12: 160376.4536 | CG12: 637118.7317 | CH12: 683656.873 | CI12: 681738.9101 | CJ12: 710396.996 | CK12: 60 | CL12: 60 | CM12: 57.75737661 | CN12: 58.38214074 | CO12: NA | CP12: NA | CQ12: 195 | CR12: NA | CS12: NA | CT12: NA | CU12: NA | CV12: NA | CW12: 34.29489845 | CX12: 56.23302274 | CY12: 52.00358312 | CZ12: 61.875 | DA12: 38.125 | DB12: 38.80504069 | DC12: 73.4375 | DD12: 92.1875 | DE12: 63.63241705 | DF12: NA | DG12: 0 | DH12: 15.2838278 | DI12: 54.08886849 | DJ12: 16.1180535 | DK12: 30.39618919 | DL12: 69.48577879 | DM12: 56.61538462 | DN12: 72.1025641 | DO12: 39.15487523 | DP12: 60.46153846 | DQ12: 93.12820513 | DR12: 49.5692992 | DS12: 0.05128205128 | DT12: 0.03980529745 | DU12: 13.56174404 | DV12: 52.87970618 | DW12: NA | DX12: NA | DY12: NA | DZ12: NA | EA12: NA | EB12: NA | EC12: NA | ED12: NA | EE12: NA | EF12: NA | EG12: NA | EH12: NA | EI12: NA | EJ12: NA | EK12: NA | EL12: NA | EM12: NA | EN12: NA | EO12: NA | EP12: NA | EQ12: NA | ER12: NA | ES12: NA | ET12: NA | EU12: NA | EV12: NA | EW12: 6 | EX12: 7 | EY12: 2 | EZ12: 9 | FA12: 3 | FB12: 34.29489845 | FC12: 56.23302274 | FD12: 52.00358312 | FE12: 61.875 | FF12: 38.125 | FG12: 38.80504069 | FH12: 73.4375 | FI12: 92.1875 | FJ12: 63.63241705 | FK12: 0 | FL12: 0 | FM12: 15.2838278 | FN12: 54.08886849 | FO12: 32.09961407 | FP12: 52.70008658 | FQ12: 49.14793259 | FR12: 65.71428571 | FS12: 37.14285714 | FT12: 37.88876418 | FU12: 78.57142857 | FV12: 95.71428571 | FW12: 60.82394829 | FX12: 0 | FY12: 0 | FZ12: 15.6739775 | GA12: 53.56274168 | GB12: 40.90337055 | GC12: 67.01605117 | GD12: 46.82144749 | GE12: 57.77777778 | GF12: 44.44444444 | GG12: 41.11409463 | GH12: 66.66666667 | GI12: 94.44444444 | GJ12: 64.08121774 | GK12: 0 | GL12: 0 | GM12: 15.01282192 | GN12: 56.12691655 | GO12: 42.81221005 | GP12: 0 | GQ12: 71.5050057 | GR12: 47.70292839 | GS12: 0 | GT12: 72.13971877 | GU12: 48.98030184 | GV12: 0 | GW12: 67.63699427 | GX12: 45.24342038 | GY12: 0 | GZ12: 74.19454773
A13: 23 | B13: CÓRDOBA | C13: D | D13: CARIBE | E13: NA | F13: NA | G13: 1 | H13: NA | J13: 76.06167503 | K13: 23.93832497 | L13: 11.50097847 | M13: 40.91375387 | N13: 93.2131238 | O13: 6.786876205 | P13: 42.77943225 | Q13: 50 | R13: 18.7943844 | S13: 40 | T13: 32.32779101 | U13: 25.86223281 | V13: 82.43543949 | W13: 80 | X13: 94.59635423 | Y13: 100 | Z13: 0.06072027812 | AA13: 52.13309492 | AB13: NA | AC13: NA | AD13: 0 | AE13: 0 | AF13: 77.37769831 | AG13: 15.47553966 | AH13: 41.33777247 | AI13: 2. Riesgo (>=40 y <60) | AJ13: 73.14947571 | AK13: 26.85052429 | AL13: 16.19537977 | AM13: 40.77216247 | AN13: 75.35995699 | AO13: 24.64004301 | AP13: 41.22340523 | AQ13: 50 | AR13: 12.55620775 | AS13: 60 | AT13: 40.45254595 | AU13: 32.36203676 | AV13: 89.21475299 | AW13: 80 | AX13: 95.68437325 | AY13: 100 | AZ13: 11.96467662 | BA13: 100 | BB13: NA | BC13: NA | BD13: 0.08037870583 | BE13: 0.08037870583 | BF13: 93.41371204 | BG13: 18.68274241 | BH13: 2. Riesgo (>=40 y <60) | BI13: 886762.6942 | BJ13: 829458.8139 | BK13: 1165846.918 | BL13: 1133923.115 | BM13: 120148.7915 | BN13: 177096.5595 | BO13: 1044683.214 | BP13: 1093500.505 | BQ13: 2582211.873 | BR13: 1837540.01 | BS13: 2406960.35 | BT13: 2438350.662 | BU13: 84211.58362 | BV13: 89476.33383 | BW13: 196850.634 | BX13: 217052.2627 | BY13: 219113.7513 | BZ13: -16102.05554 | CA13: 1165846.918 | CB13: 1133923.115 | CC13: 184173.9938 | CD13: 208617.7626 | CE13: 223416.0392 | CF13: 233837.7405 | CG13: 954060.8053 | CH13: 978324.1492 | CI13: 1008559.805 | CJ13: 1022449.242 | CK13: 60 | CL13: 55 | CM13: 53.92797219 | CN13: 43.03532338 | CO13: NA | CP13: NA | CQ13: 195 | CR13: NA | CS13: NA | CT13: NA | CU13: NA | CV13: NA | CW13: 34.29489845 | CX13: 56.23302274 | CY13: 52.00358312 | CZ13: 61.875 | DA13: 38.125 | DB13: 38.80504069 | DC13: 73.4375 | DD13: 92.1875 | DE13: 63.63241705 | DF13: NA | DG13: 0 | DH13: 15.2838278 | DI13: 54.08886849 | DJ13: 16.1180535 | DK13: 30.39618919 | DL13: 69.48577879 | DM13: 56.61538462 | DN13: 72.1025641 | DO13: 39.15487523 | DP13: 60.46153846 | DQ13: 93.12820513 | DR13: 49.5692992 | DS13: 0.05128205128 | DT13: 0.03980529745 | DU13: 13.56174404 | DV13: 52.87970618 | DW13: NA | DX13: NA | DY13: NA | DZ13: NA | EA13: NA | EB13: NA | EC13: NA | ED13: NA | EE13: NA | EF13: NA | EG13: NA | EH13: NA | EI13: NA | EJ13: NA | EK13: NA | EL13: NA | EM13: NA | EN13: NA | EO13: NA | EP13: NA | EQ13: NA | ER13: NA | ES13: NA | ET13: NA | EU13: NA | EV13: NA | EW13: 30 | EX13: 7 | EY13: 7 | EZ13: 6 | FA13: 5 | FB13: 34.29489845 | FC13: 56.23302274 | FD13: 52.00358312 | FE13: 61.875 | FF13: 38.125 | FG13: 38.80504069 | FH13: 73.4375 | FI13: 92.1875 | FJ13: 63.63241705 | FK13: 0 | FL13: 0 | FM13: 15.2838278 | FN13: 54.08886849 | FO13: 32.09961407 | FP13: 52.70008658 | FQ13: 49.14793259 | FR13: 65.71428571 | FS13: 37.14285714 | FT13: 37.88876418 | FU13: 78.57142857 | FV13: 95.71428571 | FW13: 60.82394829 | FX13: 0 | FY13: 0 | FZ13: 15.6739775 | GA13: 53.56274168 | GB13: 39.73877374 | GC13: 41.28140171 | GD13: 41.12295011 | GE13: 66.66666667 | GF13: 40 | GG13: 36.60956676 | GH13: 81.66666667 | GI13: 83.33333333 | GJ13: 53.86983669 | GK13: 0 | GL13: 0 | GM13: 14.59132245 | GN13: 51.2008892 | GO13: 40.89930949 | GP13: 0 | GQ13: 65.40473907 | GR13: 40.50810916 | GS13: 0 | GT13: 69.37954038 | GU13: 41.22340523 | GV13: 0.08037870583 | GW13: 73.14947571 | GX13: 42.77943225 | GY13: 0 | GZ13: 76.06167503
A14: 25 | B14: CUNDINAMARCA | C14: D | D14: CENTRAL | E14: NA | F14: NA | G14: E | H14: NA | J14: 40.87321115 | K14: 59.12678885 | L14: 28.47410409 | M14: 83.16332573 | N14: 79.26499292 | O14: 20.73500708 | P14: 68.19542378 | Q14: 100 | R14: 9.386833809 | S14: 80 | T14: 68.60502433 | U14: 54.88401947 | V14: 90.55490358 | W14: 100 | X14: 86.25948061 | Y14: 80 | Z14: 0.1050868162 | AA14: 100 | AB14: NA | AC14: NA | AD14: 0 | AE14: 0 | AF14: 93.33333333 | AG14: 18.66666667 | AH14: 73.55068613 | AI14: 4. Solvente (>=70 y <80) | AJ14: 37.04881923 | AK14: 62.95118077 | AL14: 31.25116191 | AM14: 79.52794211 | AN14: 81.00695994 | AO14: 18.99304006 | AP14: 64.08098224 | AQ14: 80 | AR14: 10.97000622 | AS14: 60 | AT14: 60.29443259 | AU14: 48.23554607 | AV14: 105.4854678 | AW14: 100 | AX14: 95.09382523 | AY14: 100 | AZ14: 15.36148171 | BA14: 100 | BB14: NA | BC14: NA | BD14: 0.117893821 | BE14: 0.117893821 | BF14: 100 | BG14: 20 | BH14: 3. Vulnerable (>=60 y <70) | BI14: 954803.8254 | BJ14: 912880.3627 | BK14: 2336013.733 | BL14: 2463993.136 | BM14: 585827.3084 | BN14: 613198.6047 | BO14: 2057403.831 | BP14: 1962162.58 | BQ14: 8161084.147 | BR14: 6449604.597 | BS14: 6468882.772 | BT14: 7961790.693 | BU14: 902995.1305 | BV14: 943499.3524 | BW14: 1324128.63 | BX14: 1472354.698 | BY14: 219277.7268 | BZ14: -27024.78919 | CA14: 2336013.733 | CB14: 2463993.136 | CC14: 1229742.465 | CD14: 1394802.519 | CE14: 1358007.591 | CF14: 1322269.832 | CG14: 1673223.207 | CH14: 1865895.454 | CI14: 1939755.717 | CJ14: 1962162.58 | CK14: 50 | CL14: 50 | CM14: 39.49131838 | CN14: 34.63851829 | CO14: NA | CP14: NA | CQ14: 324 | CR14: NA | CS14: NA | CT14: NA | CU14: NA | CV14: NA | CW14: 34.29489845 | CX14: 56.23302274 | CY14: 52.00358312 | CZ14: 61.875 | DA14: 38.125 | DB14: 38.80504069 | DC14: 73.4375 | DD14: 92.1875 | DE14: 63.63241705 | DF14: NA | DG14: 0 | DH14: 15.2838278 | DI14: 54.08886849 | DJ14: 30.19856982 | DK14: 36.99558085 | DL14: 80.95066794 | DM14: 65.21604938 | DN14: 40.12345679 | DO14: 40.55749196 | DP14: 66.57407407 | DQ14: 90.86419753 | DR14: 84.24544645 | DS14: 0.08641975309 | DT14: 0.03297453732 | DU14: 16.12870955 | DV14: 56.77970478 | DW14: NA | DX14: NA | DY14: NA | DZ14: NA | EA14: NA | EB14: NA | EC14: NA | ED14: NA | EE14: NA | EF14: NA | EG14: NA | EH14: NA | EI14: NA | EJ14: NA | EK14: NA | EL14: NA | EM14: NA | EN14: NA | EO14: NA | EP14: NA | EQ14: NA | ER14: NA | ES14: NA | ET14: NA | EU14: NA | EV14: NA | EW14: 1 | EX14: 4 | EY14: 1 | EZ14: 3 | FA14: 1 | FB14: 34.29489845 | FC14: 56.23302274 | FD14: 52.00358312 | FE14: 61.875 | FF14: 38.125 | FG14: 38.80504069 | FH14: 73.4375 | FI14: 92.1875 | FJ14: 63.63241705 | FK14: 0 | FL14: 0 | FM14: 15.2838278 | FN14: 54.08886849 | FO14: 42.2746477 | FP14: 62.52681364 | FQ14: 27.35606324 | FR14: 62.5 | FS14: 65 | FT14: 41.54520393 | FU14: 85 | FV14: 90 | FW14: 50 | FX14: 0 | FY14: 0 | FZ14: 15 | GA14: 56.54520393 | GB14: 60.27208034 | GC14: 84.76106523 | GD14: 21.80229595 | GE14: 83.33333333 | GF14: 60 | GG14: 49.62700398 | GH14: 80 | GI14: 93.33333333 | GJ14: 95.21916777 | GK14: 0 | GL14: 0 | GM14: 17.90350007 | GN14: 67.53050405 | GO14: 55.86813224 | GP14: 0 | GQ14: 35.87459685 | GR14: 60.92804654 | GS14: 0 | GT14: 38.2510381 | GU14: 64.08098224 | GV14: 0.117893821 | GW14: 37.04881923 | GX14: 68.19542378 | GY14: 0 | GZ14: 40.87321115
A15: 27 | B15: CHOCÓ | C15: D | D15: PACÍFICO | E15: NA | F15: NA | G15: 4 | H15: NA | J15: 82.99276189 | K15: 17.00723811 | L15: 22.10164457 | M15: 42.27665132 | N15: 38.2795561 | O15: 61.7204439 | P15: 20.09770735 | Q15: 30 | R15: 10.58537037 | S15: 60 | T15: 42.20086666 | U15: 33.76069333 | V15: 81.06544129 | W15: 80 | X15: 92.43057834 | Y15: 100 | Z15: 0 | AA15: 0 | AB15: NA | AC15: NA | AD15: 0 | AE15: 0 | AF15: 60 | AG15: 12 | AH15: 45.76069333 | AI15: 2. Riesgo (>=40 y <60) | AJ15: 82.89365928 | AK15: 17.10634072 | AL15: 23.97990529 | AM15: 61.34308061 | AN15: 37.58787331 | AO15: 62.41212669 | AP15: 13.69495855 | AQ15: 20 | AR15: 3.921325435 | AS15: 100 | AT15: 52.1723096 | AU15: 41.73784768 | AV15: 78.35532626 | AW15: 70 | AX15: 91.20747732 | AY15: 100 | AZ15: 0 | BA15: 0 | BB15: NA | BC15: NA | BD15: 0.1130932119 | BE15: 0.1130932119 | BF15: 56.77975988 | BG15: 11.35595198 | BH15: 2. Riesgo (>=40 y <60) | BI15: 428781.1849 | BJ15: 383831.161 | BK15: 516648.8921 | BL15: 463040.4356 | BM15: 140773.3248 | BN15: 148233.3314 | BO15: 636935.9724 | BP15: 618156.4507 | BQ15: 1552859.411 | BR15: 580589.986 | BS15: 594427.6895 | BT15: 1544620.472 | BU15: 14644.67538 | BV15: 9962.955003 | BW15: 72867.39291 | BX15: 72749.07015 | BY15: 55112.61354 | BZ15: -34018.98398 | CA15: 516648.8921 | CB15: 463040.4356 | CC15: 63987.9252 | CD15: 67489.24677 | CE15: 78933.66666 | CF15: 86132.30267 | CG15: 371898.7721 | CH15: 365677.4988 | CI15: 402354.6956 | CJ15: 400929.2982 | CK15: 70 | CL15: 70 | CM15: 105.8443034 | CN15: 105.7919768 | CO15: NA | CP15: NA | CQ15: 178 | CR15: NA | CS15: NA | CT15: NA | CU15: NA | CV15: NA | CW15: 34.29489845 | CX15: 56.23302274 | CY15: 52.00358312 | CZ15: 61.875 | DA15: 38.125 | DB15: 38.80504069 | DC15: 73.4375 | DD15: 92.1875 | DE15: 63.63241705 | DF15: NA | DG15: 0 | DH15: 15.2838278 | DI15: 54.08886849 | DJ15: 20.43086405 | DK15: 33.76336341 | DL15: 72.84038856 | DM15: 60.4494382 | DN15: 60.56179775 | DO15: 39.68733631 | DP15: 58.03370787 | DQ15: 92.02247191 | DR15: 71.03511351 | DS15: 0 | DT15: 0.05384817472 | DU15: 14.75009904 | DV15: 54.43743535 | DW15: NA | DX15: NA | DY15: NA | DZ15: NA | EA15: NA | EB15: NA | EC15: NA | ED15: NA | EE15: NA | EF15: NA | EG15: NA | EH15: NA | EI15: NA | EJ15: NA | EK15: NA | EL15: NA | EM15: NA | EN15: NA | EO15: NA | EP15: NA | EQ15: NA | ER15: NA | ES15: NA | ET15: NA | EU15: NA | EV15: NA | EW15: 26 | EX15: 4 | EY15: 3 | EZ15: 10 | FA15: 8 | FB15: 34.29489845 | FC15: 56.23302274 | FD15: 52.00358312 | FE15: 61.875 | FF15: 38.125 | FG15: 38.80504069 | FH15: 73.4375 | FI15: 92.1875 | FJ15: 63.63241705 | FK15: 0 | FL15: 0 | FM15: 15.2838278 | FN15: 54.08886849 | FO15: 33.20640361 | FP15: 42.96662107 | FQ15: 45.44251875 | FR15: 72.5 | FS15: 30 | FT15: 35.85848695 | FU15: 85 | FV15: 95 | FW15: 50 | FX15: 0 | FY15: 0 | FZ15: 15.33333333 | GA15: 51.19182028 | GB15: 18.7310903 | GC15: 47.50967026 | GD15: 68.80367135 | GE15: 54 | GF15: 28 | GG15: 34.72710911 | GH15: 70 | GI15: 94 | GJ15: 65.06298625 | GK15: 0 | GL15: 0 | GM15: 15.27086575 | GN15: 49.99797486 | GO15: 10.04235984 | GP15: 0 | GQ15: 75.61206501 | GR15: 8.382685428 | GS15: 0 | GT15: 79.40432578 | GU15: 13.69495855 | GV15: 0.1130932119 | GW15: 82.89365928 | GX15: 20.09770735 | GY15: 0 | GZ15: 82.99276189
A16: 41 | B16: HUILA | C16: D | D16: CENTRAL | E16: NA | F16: NA | G16: 2 | H16: NA | J16: 66.11469042 | K16: 33.88530958 | L16: 15.92197096 | M16: 56.64105909 | N16: 65.62762412 | O16: 34.37237588 | P16: 37.07161316 | Q16: 50 | R16: 11.69802531 | S16: 60 | T16: 46.97974891 | U16: 37.58379913 | V16: 87.34959841 | W16: 80 | X16: 90.47538478 | Y16: 100 | Z16: 0 | AA16: 0 | AB16: NA | AC16: NA | AD16: 0 | AE16: 0 | AF16: 60 | AG16: 12 | AH16: 49.58379913 | AI16: 2. Riesgo (>=40 y <60) | AJ16: 61.00766696 | AK16: 38.99233304 | AL16: 29.80392924 | AM16: 78.47202981 | AN16: 67.7712906 | AO16: 32.2287094 | AP16: 53.54629817 | AQ16: 70 | AR16: 9.643439993 | AS16: 80 | AT16: 59.93861445 | AU16: 47.95089156 | AV16: 116.9540654 | AW16: 80 | AX16: 89.24621833 | AY16: 80 | AZ16: 6.615649913 | BA16: 45.38168225 | BB16: NA | BC16: NA | BD16: 0.2119588591 | BE16: 0.2119588591 | BF16: 68.67251961 | BG16: 13.73450392 | BH16: 3. Vulnerable (>=60 y <70) | BI16: 562989.1548 | BJ16: 495999.7371 | BK16: 851534.1315 | BL16: 813012.1374 | BM16: 121772.5784 | BN16: 252493.4495 | BO16: 764808.4442 | BP16: 847181.7509 | BQ16: 2538160.349 | BR16: 1606092.29 | BS16: 1665734.334 | BT16: 2369871.189 | BU16: 68403.97328 | BV16: 125498.93 | BW16: 184518.4697 | BX16: 234374.6146 | BY16: 100402.2949 | BZ16: 720.01944 | CA16: 851534.1315 | CB16: 813012.1374 | CC16: 182834.8045 | CD16: 228804.096 | CE16: 209313.8467 | CF16: 195635.8636 | CG16: 646554.3172 | CH16: 627772.5659 | CI16: 714619.0301 | CJ16: 703416.4333 | CK16: 60 | CL16: 60 | CM16: 61.32016779 | CN16: 53.38435009 | CO16: NA | CP16: NA | CQ16: 324 | CR16: NA | CS16: NA | CT16: NA | CU16: NA | CV16: NA | CW16: 34.29489845 | CX16: 56.23302274 | CY16: 52.00358312 | CZ16: 61.875 | DA16: 38.125 | DB16: 38.80504069 | DC16: 73.4375 | DD16: 92.1875 | DE16: 63.63241705 | DF16: NA | DG16: 0 | DH16: 15.2838278 | DI16: 54.08886849 | DJ16: 30.19856982 | DK16: 36.99558085 | DL16: 80.95066794 | DM16: 65.21604938 | DN16: 40.12345679 | DO16: 40.55749196 | DP16: 66.57407407 | DQ16: 90.86419753 | DR16: 84.24544645 | DS16: 0.08641975309 | DT16: 0.03297453732 | DU16: 16.12870955 | DV16: 56.77970478 | DW16: NA | DX16: NA | DY16: NA | DZ16: NA | EA16: NA | EB16: NA | EC16: NA | ED16: NA | EE16: NA | EF16: NA | EG16: NA | EH16: NA | EI16: NA | EJ16: NA | EK16: NA | EL16: NA | EM16: NA | EN16: NA | EO16: NA | EP16: NA | EQ16: NA | ER16: NA | ES16: NA | ET16: NA | EU16: NA | EV16: NA | EW16: 18 | EX16: 4 | EY16: 3 | EZ16: 9 | FA16: 6 | FB16: 34.29489845 | FC16: 56.23302274 | FD16: 52.00358312 | FE16: 61.875 | FF16: 38.125 | FG16: 38.80504069 | FH16: 73.4375 | FI16: 92.1875 | FJ16: 63.63241705 | FK16: 0 | FL16: 0 | FM16: 15.2838278 | FN16: 54.08886849 | FO16: 42.2746477 | FP16: 62.52681364 | FQ16: 27.35606324 | FR16: 62.5 | FS16: 65 | FT16: 41.54520393 | FU16: 85 | FV16: 90 | FW16: 50 | FX16: 0 | FY16: 0 | FZ16: 15 | GA16: 56.54520393 | GB16: 40.90337055 | GC16: 67.01605117 | GD16: 46.82144749 | GE16: 57.77777778 | GF16: 44.44444444 | GG16: 41.11409463 | GH16: 66.66666667 | GI16: 94.44444444 | GJ16: 64.08121774 | GK16: 0 | GL16: 0 | GM16: 15.01282192 | GN16: 56.12691655 | GO16: 38.76991522 | GP16: 0 | GQ16: 60.84058263 | GR16: 39.7975634 | GS16: 0 | GT16: 59.10401063 | GU16: 53.54629817 | GV16: 0.2119588591 | GW16: 61.00766696 | GX16: 37.07161316 | GY16: 0 | GZ16: 66.11469042
A17: 44 | B17: LA GUAJIRA | C17: D | D17: CARIBE | E17: NA | F17: NA | G17: 4 | H17: NA | J17: 79.33552576 | K17: 20.66447424 | L17: 14.53533221 | M17: 27.80359487 | N17: 41.17718997 | O17: 58.82281003 | P17: 36.79295403 | Q17: 50 | R17: 22.22667997 | S17: 20 | T17: 35.45817583 | U17: 28.36654066 | V17: 98.19799496 | W17: 100 | X17: 93.73049469 | Y17: 100 | Z17: 0.1464655545 | AA17: 100 | AB17: NA | AC17: NA | AD17: 0 | AE17: 0 | AF17: 100 | AG17: 20 | AH17: 48.36654066 | AI17: 2. Riesgo (>=40 y <60) | AJ17: 75.32094427 | AK17: 24.67905573 | AL17: 24.05826594 | AM17: 61.54353528 | AN17: 37.45242082 | AO17: 62.54757918 | AP17: 56.78949007 | AQ17: 80 | AR17: 19.11396645 | AS17: 40 | AT17: 53.75403404 | AU17: 43.00322723 | AV17: 123.1992634 | AW17: 70 | AX17: 91.48670846 | AY17: 100 | AZ17: 5.772114639 | BA17: 55.99272159 | BB17: NA | BC17: NA | BD17: 0 | BE17: 0 | BF17: 75.3309072 | BG17: 15.06618144 | BH17: 2. Riesgo (>=40 y <60) | BI17: 354416.003 | BJ17: 362662.4988 | BK17: 446730.5152 | BL17: 481489.5807 | BM17: 64024.85541 | BN17: 116668.8848 | BO17: 440477.4138 | BP17: 484943.0339 | BQ17: 1855321.665 | BR17: 621551.1441 | BS17: 763969.3266 | BT17: 1659575.35 | BU17: 34476.51165 | BV17: 56393.6967 | BW17: 93704.11419 | BX17: 99303.05173 | BY17: 99293.36196 | BZ17: 28273.32471 | CA17: 446730.5152 | CB17: 481489.5807 | CC17: 79173.1349 | CD17: 95823.63062 | CE17: 80626.01984 | CF17: 77779.38598 | CG17: 334868.7983 | CH17: 375376.2783 | CI17: 357267.7167 | CJ17: 410306.901 | CK17: 70 | CL17: 70 | CM17: 55.35344455 | CN17: 64.22788536 | CO17: NA | CP17: NA | CQ17: 195 | CR17: NA | CS17: NA | CT17: NA | CU17: NA | CV17: NA | CW17: 34.29489845 | CX17: 56.23302274 | CY17: 52.00358312 | CZ17: 61.875 | DA17: 38.125 | DB17: 38.80504069 | DC17: 73.4375 | DD17: 92.1875 | DE17: 63.63241705 | DF17: NA | DG17: 0 | DH17: 15.2838278 | DI17: 54.08886849 | DJ17: 16.1180535 | DK17: 30.39618919 | DL17: 69.48577879 | DM17: 56.61538462 | DN17: 72.1025641 | DO17: 39.15487523 | DP17: 60.46153846 | DQ17: 93.12820513 | DR17: 49.5692992 | DS17: 0.05128205128 | DT17: 0.03980529745 | DU17: 13.56174404 | DV17: 52.87970618 | DW17: NA | DX17: NA | DY17: NA | DZ17: NA | EA17: NA | EB17: NA | EC17: NA | ED17: NA | EE17: NA | EF17: NA | EG17: NA | EH17: NA | EI17: NA | EJ17: NA | EK17: NA | EL17: NA | EM17: NA | EN17: NA | EO17: NA | EP17: NA | EQ17: NA | ER17: NA | ES17: NA | ET17: NA | EU17: NA | EV17: NA | EW17: 21 | EX17: 7 | EY17: 5 | EZ17: 10 | FA17: 6 | FB17: 34.29489845 | FC17: 56.23302274 | FD17: 52.00358312 | FE17: 61.875 | FF17: 38.125 | FG17: 38.80504069 | FH17: 73.4375 | FI17: 92.1875 | FJ17: 63.63241705 | FK17: 0 | FL17: 0 | FM17: 15.2838278 | FN17: 54.08886849 | FO17: 32.09961407 | FP17: 52.70008658 | FQ17: 49.14793259 | FR17: 65.71428571 | FS17: 37.14285714 | FT17: 37.88876418 | FU17: 78.57142857 | FV17: 95.71428571 | FW17: 60.82394829 | FX17: 0 | FY17: 0 | FZ17: 15.6739775 | GA17: 53.56274168 | GB17: 18.7310903 | GC17: 47.50967026 | GD17: 68.80367135 | GE17: 54 | GF17: 28 | GG17: 34.72710911 | GH17: 70 | GI17: 94 | GJ17: 65.06298625 | GK17: 0 | GL17: 0 | GM17: 15.27086575 | GN17: 49.99797486 | GO17: 31.3112153 | GP17: 0 | GQ17: 75.98117321 | GR17: 24.73381449 | GS17: 0 | GT17: 73.50797751 | GU17: 56.78949007 | GV17: 0 | GW17: 75.32094427 | GX17: 36.79295403 | GY17: 0 | GZ17: 79.33552576
A18: 47 | B18: MAGDALENA | C18: D | D18: CARIBE | E18: NA | F18: NA | G18: 2 | H18: NA | J18: 65.98264094 | K18: 34.01735906 | L18: 13.37662726 | M18: 47.58621508 | N18: 49.99166899 | O18: 50.00833101 | P18: 48.84382793 | Q18: 70 | R18: 23.50674108 | S18: 20 | T18: 44.32238103 | U18: 35.45790482 | V18: 59.11931563 | W18: 50 | X18: 95.01717663 | Y18: 100 | Z18: 0.06333713661 | AA18: 54.37987204 | AB18: NA | AC18: NA | AD18: 0 | AE18: 0 | AF18: 68.12662401 | AG18: 13.6253248 | AH18: 49.08322963 | AI18: 2. Riesgo (>=40 y <60) | AJ18: 62.69652702 | AK18: 37.30347298 | AL18: 26.64181256 | AM18: 70.14635864 | AN18: 51.98226033 | AO18: 48.01773967 | AP18: 49.92923233 | AQ18: 70 | AR18: 12.81539072 | AS18: 60 | AT18: 57.09351426 | AU18: 45.67481141 | AV18: 100.0359414 | AW18: 100 | AX18: 95.9924427 | AY18: 100 | AZ18: 8.303429368 | BA18: 56.95942169 | BB18: NA | BC18: NA | BD18: 0.1945493264 | BE18: 0.1945493264 | BF18: 85.84768989 | BG18: 17.16953798 | BH18: 3. Vulnerable (>=60 y <70) | BI18: 680160.3793 | BJ18: 642323.1203 | BK18: 1030817.151 | BL18: 1024495.536 | BM18: 121462.5282 | BN18: 310160.7301 | BO18: 908020.5782 | BP18: 1164187.795 | BQ18: 2065432.602 | BR18: 1036760.575 | BS18: 1032544.23 | BT18: 1994450.739 | BU18: 146567.5759 | BV18: 165878.0191 | BW18: 300073.8929 | BX18: 332226.2557 | BY18: 242311.5186 | BZ18: -88158.9297 | CA18: 1030817.151 | CB18: 1024495.536 | CC18: 195845.9664 | CD18: 324282.5458 | CE18: 331272.3842 | CF18: 324166.0359 | CG18: 778918.5197 | CH18: 908382.4642 | CI18: 819766.0122 | CJ18: 946306.2286 | CK18: 60 | CL18: 60 | CM18: 53.66628634 | CN18: 51.69657063 | CO18: NA | CP18: NA | CQ18: 195 | CR18: NA | CS18: NA | CT18: NA | CU18: NA | CV18: NA | CW18: 34.29489845 | CX18: 56.23302274 | CY18: 52.00358312 | CZ18: 61.875 | DA18: 38.125 | DB18: 38.80504069 | DC18: 73.4375 | DD18: 92.1875 | DE18: 63.63241705 | DF18: NA | DG18: 0 | DH18: 15.2838278 | DI18: 54.08886849 | DJ18: 16.1180535 | DK18: 30.39618919 | DL18: 69.48577879 | DM18: 56.61538462 | DN18: 72.1025641 | DO18: 39.15487523 | DP18: 60.46153846 | DQ18: 93.12820513 | DR18: 49.5692992 | DS18: 0.05128205128 | DT18: 0.03980529745 | DU18: 13.56174404 | DV18: 52.87970618 | DW18: NA | DX18: NA | DY18: NA | DZ18: NA | EA18: NA | EB18: NA | EC18: NA | ED18: NA | EE18: NA | EF18: NA | EG18: NA | EH18: NA | EI18: NA | EJ18: NA | EK18: NA | EL18: NA | EM18: NA | EN18: NA | EO18: NA | EP18: NA | EQ18: NA | ER18: NA | ES18: NA | ET18: NA | EU18: NA | EV18: NA | EW18: 20 | EX18: 7 | EY18: 4 | EZ18: 9 | FA18: 7 | FB18: 34.29489845 | FC18: 56.23302274 | FD18: 52.00358312 | FE18: 61.875 | FF18: 38.125 | FG18: 38.80504069 | FH18: 73.4375 | FI18: 92.1875 | FJ18: 63.63241705 | FK18: 0 | FL18: 0 | FM18: 15.2838278 | FN18: 54.08886849 | FO18: 32.09961407 | FP18: 52.70008658 | FQ18: 49.14793259 | FR18: 65.71428571 | FS18: 37.14285714 | FT18: 37.88876418 | FU18: 78.57142857 | FV18: 95.71428571 | FW18: 60.82394829 | FX18: 0 | FY18: 0 | FZ18: 15.6739775 | GA18: 53.56274168 | GB18: 40.90337055 | GC18: 67.01605117 | GD18: 46.82144749 | GE18: 57.77777778 | GF18: 44.44444444 | GG18: 41.11409463 | GH18: 66.66666667 | GI18: 94.44444444 | GJ18: 64.08121774 | GK18: 0 | GL18: 0 | GM18: 15.01282192 | GN18: 56.12691655 | GO18: 54.24405819 | GP18: 0 | GQ18: 52.97747837 | GR18: 48.50688398 | GS18: 0 | GT18: 63.50657499 | GU18: 49.92923233 | GV18: 0.1945493264 | GW18: 62.69652702 | GX18: 48.84382793 | GY18: 0 | GZ18: 65.98264094
A19: 50 | B19: META | C19: D | D19: LLANOS Y ORINOQUÍA | E19: NA | F19: NA | G19: 1 | H19: NA | J19: 49.78068104 | K19: 50.21931896 | L19: 59.00950381 | M19: 100 | N19: 19.180378 | O19: 80.819622 | P19: 54.60103498 | Q19: 70 | R19: 19.82155288 | S19: 40 | T19: 68.20778819 | U19: 54.56623055 | V19: 80.03427437 | W19: 80 | X19: 77.36111844 | Y19: 70 | Z19: 0.06680963788 | AA19: 71.08592525 | AB19: NA | AC19: NA | AD19: 0 | AE19: 0 | AF19: 73.69530842 | AG19: 14.73906168 | AH19: 69.30529224 | AI19: 3. Vulnerable (>=60 y <70) | AJ19: 37.10740315 | AK19: 62.89259685 | AL19: 34.04218029 | AM19: 85.70180664 | AN19: 19.51484723 | AO19: 80.48515277 | AP19: 55.96823894 | AQ19: 80 | AR19: 18.35352759 | AS19: 40 | AT19: 69.81591125 | AU19: 55.852729 | AV19: 84.83863802 | AW19: 80 | AX19: 86.824281 | AY19: 80 | AZ19: 13.85271544 | BA19: 100 | BB19: NA | BC19: NA | BD19: 0.2057823463 | BE19: 0.2057823463 | BF19: 86.87244901 | BG19: 17.3744898 | BH19: 4. Solvente (>=70 y <80) | BI19: 369172.9828 | BJ19: 342145.8102 | BK19: 741598.8995 | BL19: 922041.9139 | BM19: 736790.8806 | BN19: 325914.3118 | BO19: 1248596.977 | BP19: 957383.7781 | BQ19: 7793274.763 | BR19: 1488034.512 | BS19: 1494779.558 | BT19: 7625140.462 | BU19: 151089.5411 | BV19: 173059.5685 | BW19: 276715.5259 | BX19: 309210.316 | BY19: 151104.6239 | BZ19: 50748.79438 | CA19: 741598.8995 | CB19: 922041.9139 | CC19: 233568.0817 | CD19: 273072.8942 | CE19: 291835.0714 | CF19: 321873.265 | CG19: 424793.0775 | CH19: 638282.0788 | CI19: 549104.1056 | CJ19: 735142.372 | CK19: 55 | CL19: 55 | CM19: 48.31903621 | CN19: 41.14728456 | CO19: NA | CP19: NA | CQ19: 59 | CR19: NA | CS19: NA | CT19: NA | CU19: NA | CV19: NA | CW19: 34.29489845 | CX19: 56.23302274 | CY19: 52.00358312 | CZ19: 61.875 | DA19: 38.125 | DB19: 38.80504069 | DC19: 73.4375 | DD19: 92.1875 | DE19: 63.63241705 | DF19: NA | DG19: 0 | DH19: 15.2838278 | DI19: 54.08886849 | DJ19: 31.12501676 | DK19: 46.20852303 | DL19: 85.63497307 | DM19: 64.91525424 | DN19: 35.93220339 | DO19: 42.21055528 | DP19: 50.6779661 | DQ19: 80.6779661 | DR19: 80.32207825 | DS19: 0.03389830508 | DT19: 0.04824769583 | DU19: 14.12793141 | DV19: 56.33848669 | DW19: NA | DX19: NA | DY19: NA | DZ19: NA | EA19: NA | EB19: NA | EC19: NA | ED19: NA | EE19: NA | EF19: NA | EG19: NA | EH19: NA | EI19: NA | EJ19: NA | EK19: NA | EL19: NA | EM19: NA | EN19: NA | EO19: NA | EP19: NA | EQ19: NA | ER19: NA | ES19: NA | ET19: NA | EU19: NA | EV19: NA | EW19: 2 | EX19: 4 | EY19: 1 | EZ19: 6 | FA19: 1 | FB19: 34.29489845 | FC19: 56.23302274 | FD19: 52.00358312 | FE19: 61.875 | FF19: 38.125 | FG19: 38.80504069 | FH19: 73.4375 | FI19: 92.1875 | FJ19: 63.63241705 | FK19: 0 | FL19: 0 | FM19: 15.2838278 | FN19: 54.08886849 | FO19: 32.03685687 | FP19: 56.95302731 | FQ19: 72.29995198 | FR19: 57.5 | FS19: 25 | FT19: 39.00637379 | FU19: 77.5 | FV19: 87.5 | FW19: 42.77148131 | FX19: 0 | FY19: 0 | FZ19: 13.85143209 | GA19: 52.85780587 | GB19: 39.73877374 | GC19: 41.28140171 | GD19: 41.12295011 | GE19: 66.66666667 | GF19: 40 | GG19: 36.60956676 | GH19: 81.66666667 | GI19: 83.33333333 | GJ19: 53.86983669 | GK19: 0 | GL19: 0 | GM19: 14.59132245 | GN19: 51.2008892 | GO19: 60.17625937 | GP19: 0 | GQ19: 39.08393932 | GR19: 51.46939611 | GS19: 0 | GT19: 39.80484963 | GU19: 55.96823894 | GV19: 0.2057823463 | GW19: 37.10740315 | GX19: 54.60103498 | GY19: 0 | GZ19: 49.78068104
A20: 52 | B20: NARIÑO | C20: D | D20: PACÍFICO | E20: NA | F20: NA | G20: 1 | H20: NA | J20: 69.09850362 | K20: 30.90149638 | L20: 9.7522017 | M20: 16.52649331 | N20: 64.347106 | O20: 35.652894 | P20: 55.19423644 | Q20: 80 | R20: 20.48318771 | S20: 20 | T20: 36.61617674 | U20: 29.29294139 | V20: 82.0992981 | W20: 80 | X20: 89.91677338 | Y20: 80 | Z20: 0 | AA20: 0 | AB20: NA | AC20: NA | AD20: 0 | AE20: 0 | AF20: 53.33333333 | AG20: 10.66666667 | AH20: 39.95960806 | AI20: 1. Deterioro (<40) | AJ20: 64.02214566 | AK20: 35.97785434 | AL20: 11.30897292 | AM20: 28.47054455 | AN20: 66.28450743 | AO20: 33.71549257 | AP20: 52.5882678 | AQ20: 70 | AR20: 18.82652545 | AS20: 40 | AT20: 41.63277829 | AU20: 33.30622263 | AV20: 121.08743 | AW20: 70 | AX20: 92.67152031 | AY20: 100 | AZ20: 0 | BA20: 0 | BB20: NA | BC20: NA | BD20: 0.2449598545 | BE20: 0.2449598545 | BF20: 56.91162652 | BG20: 11.3823253 | BH20: 2. Riesgo (>=40 y <60) | BI20: 757072.9086 | BJ20: 716730.4214 | BK20: 1095642.986 | BL20: 1119503.906 | BM20: 97706.16295 | BN20: 109305.1063 | BO20: 1001888.25 | BP20: 966534.3353 | BQ20: 2909535.96 | BR20: 1781000.026 | BS20: 1872202.188 | BT20: 2686902.407 | BU20: 151995.0749 | BV20: 168517.0978 | BW20: 275382.1499 | BX20: 320446.1849 | BY20: 224422.6096 | BZ20: 67000.40701 | CA20: 1095642.986 | CB20: 1119503.906 | CC20: 200224.1885 | CD20: 271840.6023 | CE20: 243880.5119 | CF20: 224499.44 | CG20: 840373.2702 | CH20: 834575.9991 | CI20: 934612.3517 | CJ20: 900574.412 | CK20: 55 | CL20: 55 | CM20: 58.21112135 | CN20: 63.55035136 | CO20: NA | CP20: NA | CQ20: 178 | CR20: NA | CS20: NA | CT20: NA | CU20: NA | CV20: NA | CW20: 34.29489845 | CX20: 56.23302274 | CY20: 52.00358312 | CZ20: 61.875 | DA20: 38.125 | DB20: 38.80504069 | DC20: 73.4375 | DD20: 92.1875 | DE20: 63.63241705 | DF20: NA | DG20: 0 | DH20: 15.2838278 | DI20: 54.08886849 | DJ20: 20.43086405 | DK20: 33.76336341 | DL20: 72.84038856 | DM20: 60.4494382 | DN20: 60.56179775 | DO20: 39.68733631 | DP20: 58.03370787 | DQ20: 92.02247191 | DR20: 71.03511351 | DS20: 0 | DT20: 0.05384817472 | DU20: 14.75009904 | DV20: 54.43743535 | DW20: NA | DX20: NA | DY20: NA | DZ20: NA | EA20: NA | EB20: NA | EC20: NA | ED20: NA | EE20: NA | EF20: NA | EG20: NA | EH20: NA | EI20: NA | EJ20: NA | EK20: NA | EL20: NA | EM20: NA | EN20: NA | EO20: NA | EP20: NA | EQ20: NA | ER20: NA | ES20: NA | ET20: NA | EU20: NA | EV20: NA | EW20: 31 | EX20: 4 | EY20: 4 | EZ20: 6 | FA20: 6 | FB20: 34.29489845 | FC20: 56.23302274 | FD20: 52.00358312 | FE20: 61.875 | FF20: 38.125 | FG20: 38.80504069 | FH20: 73.4375 | FI20: 92.1875 | FJ20: 63.63241705 | FK20: 0 | FL20: 0 | FM20: 15.2838278 | FN20: 54.08886849 | FO20: 33.20640361 | FP20: 42.96662107 | FQ20: 45.44251875 | FR20: 72.5 | FS20: 30 | FT20: 35.85848695 | FU20: 85 | FV20: 95 | FW20: 50 | FX20: 0 | FY20: 0 | FZ20: 15.33333333 | GA20: 51.19182028 | GB20: 39.73877374 | GC20: 41.28140171 | GD20: 41.12295011 | GE20: 66.66666667 | GF20: 40 | GG20: 36.60956676 | GH20: 81.66666667 | GI20: 83.33333333 | GJ20: 53.86983669 | GK20: 0 | GL20: 0 | GM20: 14.59132245 | GN20: 51.2008892 | GO20: 53.66512155 | GP20: 0 | GQ20: 56.26336301 | GR20: 50.5315339 | GS20: 0 | GT20: 65.6845018 | GU20: 52.5882678 | GV20: 0.2449598545 | GW20: 64.02214566 | GX20: 55.19423644 | GY20: 0 | GZ20: 69.09850362
A21: 54 | B21: NORTE SANTANDER | C21: D | D21: SANTANDERES | E21: NA | F21: NA | G21: 2 | H21: NA | J21: 64.53502568 | K21: 35.46497432 | L21: 19.99512188 | M21: 71.13094743 | N21: 67.75461722 | O21: 32.24538278 | P21: 54.14438507 | Q21: 70 | R21: 14.3554411 | S21: 60 | T21: 53.76826091 | U21: 43.01460873 | V21: 92.44059784 | W21: 100 | X21: 94.69614362 | Y21: 100 | Z21: 0.2139019418 | AA21: 100 | AB21: NA | AC21: NA | AD21: 0 | AE21: 0 | AF21: 100 | AG21: 20 | AH21: 63.01460873 | AI21: 3. Vulnerable (>=60 y <70) | AJ21: 63.76081671 | AK21: 36.23918329 | AL21: 17.19872479 | AM21: 45.28325221 | AN21: 61.92733444 | AO21: 38.07266556 | AP21: 52.90747956 | AQ21: 70 | AR21: 8.894744148 | AS21: 80 | AT21: 53.91902021 | AU21: 43.13521617 | AV21: 106.5013401 | AW21: 100 | AX21: 92.58472821 | AY21: 100 | AZ21: 26.61065621 | BA21: 100 | BB21: NA | BC21: NA | BD21: 0.3914176192 | BE21: 0.3914176192 | BF21: 100 | BG21: 20 | BH21: 3. Vulnerable (>=60 y <70) | BI21: 574618.9268 | BJ21: 606809.0068 | BK21: 890398.5406 | BL21: 951695.7877 | BM21: 173927.9439 | BN21: 160952.7001 | BO21: 869851.8819 | BP21: 935840.8954 | BQ21: 2312368.084 | BR21: 1324040.924 | BS21: 1566736.144 | BT21: 2138055.733 | BU21: 141559.8022 | BV21: 146772.1426 | BW21: 261448.7209 | BX21: 277412.8418 | BY21: 127820.6381 | BZ21: 12481.89907 | CA21: 890398.5406 | CB21: 951695.7877 | CC21: 240879.5226 | CD21: 264584.0222 | CE21: 260577.6339 | CF21: 248432.5756 | CG21: 701367.591 | CH21: 748615.2898 | CI21: 740650.637 | CJ21: 808573.1894 | CK21: 60 | CL21: 60 | CM21: 38.60980582 | CN21: 33.38934379 | CO21: NA | CP21: NA | CQ21: 127 | CR21: NA | CS21: NA | CT21: NA | CU21: NA | CV21: NA | CW21: 34.29489845 | CX21: 56.23302274 | CY21: 52.00358312 | CZ21: 61.875 | DA21: 38.125 | DB21: 38.80504069 | DC21: 73.4375 | DD21: 92.1875 | DE21: 63.63241705 | DF21: NA | DG21: 0 | DH21: 15.2838278 | DI21: 54.08886849 | DJ21: 22.83566958 | DK21: 37.71733661 | DL21: 78.50520104 | DM21: 65.51181102 | DN21: 32.5984252 | DO21: 37.94695095 | DP21: 51.96850394 | DQ21: 91.57480315 | DR21: 88.60733286 | DS21: 0.04724409449 | DT21: 0.04556212973 | DU21: 15.49527057 | DV21: 53.88947049 | DW21: NA | DX21: NA | DY21: NA | DZ21: NA | EA21: NA | EB21: NA | EC21: NA | ED21: NA | EE21: NA | EF21: NA | EG21: NA | EH21: NA | EI21: NA | EJ21: NA | EK21: NA | EL21: NA | EM21: NA | EN21: NA | EO21: NA | EP21: NA | EQ21: NA | ER21: NA | ES21: NA | ET21: NA | EU21: NA | EV21: NA | EW21: 9 | EX21: 2 | EY21: 1 | EZ21: 9 | FA21: 4 | FB21: 34.29489845 | FC21: 56.23302274 | FD21: 52.00358312 | FE21: 61.875 | FF21: 38.125 | FG21: 38.80504069 | FH21: 73.4375 | FI21: 92.1875 | FJ21: 63.63241705 | FK21: 0 | FL21: 0 | FM21: 15.2838278 | FN21: 54.08886849 | FO21: 40.72837278 | FP21: 52.3020015 | FQ21: 33.51412939 | FR21: 55 | FS21: 50 | FT21: 37.04712059 | FU21: 90 | FV21: 90 | FW21: 93.21312199 | FX21: 0 | FY21: 0 | FZ21: 18.21420813 | GA21: 55.26132872 | GB21: 40.90337055 | GC21: 67.01605117 | GD21: 46.82144749 | GE21: 57.77777778 | GF21: 44.44444444 | GG21: 41.11409463 | GH21: 66.66666667 | GI21: 94.44444444 | GJ21: 64.08121774 | GK21: 0 | GL21: 0 | GM21: 15.01282192 | GN21: 56.12691655 | GO21: 41.93375854 | GP21: 0 | GQ21: 64.14820117 | GR21: 50.87349402 | GS21: 0 | GT21: 63.7945994 | GU21: 52.90747956 | GV21: 0.3914176192 | GW21: 63.76081671 | GX21: 54.14438507 | GY21: 0 | GZ21: 64.53502568
A22: 63 | B22: QUINDÍO | C22: D | D22: EJE CAFETERO Y ANTIOQUIA | E22: NA | F22: NA | G22: 3 | H22: NA | J22: 55.95789577 | K22: 44.04210423 | L22: 7.352780505 | M22: 22.50002197 | N22: 70.92523266 | O22: 29.07476734 | P22: 35.6849884 | Q22: 50 | R22: 16.35614583 | S22: 40 | T22: 37.12337871 | U22: 29.69870297 | V22: 75.41421827 | W22: 70 | X22: 98.9361618 | Y22: 100 | Z22: 0.2160872957 | AA22: 100 | AB22: NA | AC22: NA | AD22: 0 | AE22: 0 | AF22: 90 | AG22: 18 | AH22: 47.69870297 | AI22: 2. Riesgo (>=40 y <60) | AJ22: 50.05524317 | AK22: 49.94475683 | AL22: 15.32270275 | AM22: 27.0561037 | AN22: 62.27352754 | AO22: 37.72647246 | AP22: 43.35628558 | AQ22: 50 | AR22: 12.29822702 | AS22: 60 | AT22: 44.9454666 | AU22: 35.95637328 | AV22: 86.1736228 | AW22: 80 | AX22: 95.3929651 | AY22: 100 | AZ22: 12.14542488 | BA22: 100 | BB22: NA | BC22: NA | BD22: 0.155472866 | BE22: 0.155472866 | BF22: 93.4888062 | BG22: 18.69776124 | BH22: 2. Riesgo (>=40 y <60) | BI22: 189606.1508 | BJ22: 177071.6554 | BK22: 338837.1706 | BL22: 353752.4627 | BM22: 18397.16796 | BN22: 42917.51117 | BO22: 250206.9516 | BP22: 280090.9987 | BQ22: 1331899.91 | BR22: 824030.5494 | BS22: 944653.1096 | BT22: 1323243.731 | BU22: 49778.32155 | BV22: 66987.24317 | BW22: 139493.7305 | BX22: 154504.11 | BY22: 55420.70175 | BZ22: 1137.858941 | CA22: 338837.1706 | CB22: 353752.4627 | CC22: 112182.4449 | CD22: 131447.0237 | CE22: 148755.0325 | CF22: 152537.4232 | CG22: 231838.1567 | CH22: 252884.5917 | CI22: 234331.06 | CJ22: 265097.7369 | CK22: 70 | CL22: 70 | CM22: 48.39127043 | CN22: 57.85457512 | CO22: NA | CP22: NA | CQ22: 178 | CR22: NA | CS22: NA | CT22: NA | CU22: NA | CV22: NA | CW22: 34.29489845 | CX22: 56.23302274 | CY22: 52.00358312 | CZ22: 61.875 | DA22: 38.125 | DB22: 38.80504069 | DC22: 73.4375 | DD22: 92.1875 | DE22: 63.63241705 | DF22: NA | DG22: 0 | DH22: 15.2838278 | DI22: 54.08886849 | DJ22: 38.54097184 | DK22: 32.12471709 | DL22: 73.81714932 | DM22: 60.05617978 | DN22: 45.16853933 | DO22: 39.95320918 | DP22: 66.29213483 | DQ22: 94.60674157 | DR22: 67.86105604 | DS22: 0.1123595506 | DT22: 0.07340741741 | DU22: 15.28548135 | DV22: 55.23869053 | DW22: NA | DX22: NA | DY22: NA | DZ22: NA | EA22: NA | EB22: NA | EC22: NA | ED22: NA | EE22: NA | EF22: NA | EG22: NA | EH22: NA | EI22: NA | EJ22: NA | EK22: NA | EL22: NA | EM22: NA | EN22: NA | EO22: NA | EP22: NA | EQ22: NA | ER22: NA | ES22: NA | ET22: NA | EU22: NA | EV22: NA | EW22: 22 | EX22: 4 | EY22: 4 | EZ22: 4 | FA22: 4 | FB22: 34.29489845 | FC22: 56.23302274 | FD22: 52.00358312 | FE22: 61.875 | FF22: 38.125 | FG22: 38.80504069 | FH22: 73.4375 | FI22: 92.1875 | FJ22: 63.63241705 | FK22: 0 | FL22: 0 | FM22: 15.2838278 | FN22: 54.08886849 | FO22: 50.38952594 | FP22: 76.77481727 | FQ22: 38.66928328 | FR22: 60 | FS22: 55 | FT22: 44.93338024 | FU22: 67.5 | FV22: 100 | FW22: 89.78893178 | FX22: 0 | FY22: 0 | FZ22: 17.15259545 | GA22: 62.08597569 | GB22: 30.68665722 | GC22: 54.81098964 | GD22: 60.63508263 | GE22: 67.5 | GF22: 30 | GG22: 38.98123672 | GH22: 80 | GI22: 95 | GJ22: 50 | GK22: 0 | GL22: 0 | GM22: 15 | GN22: 53.98123672 | GO22: 44.07131505 | GP22: 0 | GQ22: 47.44386796 | GR22: 44.43867488 | GS22: 0 | GT22: 50.35818962 | GU22: 43.35628558 | GV22: 0.155472866 | GW22: 50.05524317 | GX22: 35.6849884 | GY22: 0 | GZ22: 55.95789577
A23: 66 | B23: RISARALDA | C23: D | D23: EJE CAFETERO Y ANTIOQUIA | E23: NA | F23: NA | G23: 2 | H23: NA | J23: 45.2674598 | K23: 54.7325402 | L23: 23.78110115 | M23: 84.59924709 | N23: 38.80109057 | O23: 61.19890943 | P23: 48.22827201 | Q23: 70 | R23: 19.04182997 | S23: 40 | T23: 62.10613934 | U23: 49.68491147 | V23: 84.49261222 | W23: 80 | X23: 96.33721087 | Y23: 100 | Z23: 0.206175375 | AA23: 100 | AB23: NA | AC23: NA | AD23: 0 | AE23: 0 | AF23: 93.33333333 | AG23: 18.66666667 | AH23: 68.35157814 | AI23: 3. Vulnerable (>=60 y <70) | AJ23: 43.01238581 | AK23: 56.98761419 | AL23: 18.55160504 | AM23: 48.84530803 | AN23: 42.79087584 | AO23: 57.20912416 | AP23: 62.93982469 | AQ23: 80 | AR23: 5.913141306 | AS23: 80 | AT23: 64.60840927 | AU23: 51.68672742 | AV23: 102.6016269 | AW23: 100 | AX23: 95.69190409 | AY23: 100 | AZ23: 20.64980367 | BA23: 100 | BB23: NA | BC23: NA | BD23: 0.1787663053 | BE23: 0.1787663053 | BF23: 100 | BG23: 20 | BH23: 4. Solvente (>=70 y <80) | BI23: 220460.7651 | BJ23: 202194.7745 | BK23: 487018.1939 | BL23: 470085.0015 | BM23: 114125.6182 | BN23: 81948.35807 | BO23: 479900.4785 | BP23: 441731.9034 | BQ23: 2371953.485 | BR23: 936265.6851 | BS23: 920343.8202 | BT23: 2188003.089 | BU23: 111157.7811 | BV23: 149345.5585 | BW23: 230482.612 | BX23: 237283.0863 | BY23: 92737.17639 | BZ23: -27596.09695 | CA23: 487018.1939 | CB23: 470085.0015 | CC23: 207134.4472 | CD23: 219924.4479 | CE23: 245150.9567 | CF23: 214347.9149 | CG23: 337286.3809 | CH23: 392091.4246 | CI23: 350110.1785 | CJ23: 409743.5707 | CK23: 60 | CL23: 60 | CM23: 39.3824625 | CN23: 39.35019633 | CO23: NA | CP23: NA | CQ23: 178 | CR23: NA | CS23: NA | CT23: NA | CU23: NA | CV23: NA | CW23: 34.29489845 | CX23: 56.23302274 | CY23: 52.00358312 | CZ23: 61.875 | DA23: 38.125 | DB23: 38.80504069 | DC23: 73.4375 | DD23: 92.1875 | DE23: 63.63241705 | DF23: NA | DG23: 0 | DH23: 15.2838278 | DI23: 54.08886849 | DJ23: 38.54097184 | DK23: 32.12471709 | DL23: 73.81714932 | DM23: 60.05617978 | DN23: 45.16853933 | DO23: 39.95320918 | DP23: 66.29213483 | DQ23: 94.60674157 | DR23: 67.86105604 | DS23: 0.1123595506 | DT23: 0.07340741741 | DU23: 15.28548135 | DV23: 55.23869053 | DW23: NA | DX23: NA | DY23: NA | DZ23: NA | EA23: NA | EB23: NA | EC23: NA | ED23: NA | EE23: NA | EF23: NA | EG23: NA | EH23: NA | EI23: NA | EJ23: NA | EK23: NA | EL23: NA | EM23: NA | EN23: NA | EO23: NA | EP23: NA | EQ23: NA | ER23: NA | ES23: NA | ET23: NA | EU23: NA | EV23: NA | EW23: 3 | EX23: 4 | EY23: 1 | EZ23: 9 | FA23: 1 | FB23: 34.29489845 | FC23: 56.23302274 | FD23: 52.00358312 | FE23: 61.875 | FF23: 38.125 | FG23: 38.80504069 | FH23: 73.4375 | FI23: 92.1875 | FJ23: 63.63241705 | FK23: 0 | FL23: 0 | FM23: 15.2838278 | FN23: 54.08886849 | FO23: 50.38952594 | FP23: 76.77481727 | FQ23: 38.66928328 | FR23: 60 | FS23: 55 | FT23: 44.93338024 | FU23: 67.5 | FV23: 100 | FW23: 89.78893178 | FX23: 0 | FY23: 0 | FZ23: 17.15259545 | GA23: 62.08597569 | GB23: 40.90337055 | GC23: 67.01605117 | GD23: 46.82144749 | GE23: 57.77777778 | GF23: 44.44444444 | GG23: 41.11409463 | GH23: 66.66666667 | GI23: 94.44444444 | GJ23: 64.08121774 | GK23: 0 | GL23: 0 | GM23: 15.01282192 | GN23: 56.12691655 | GO23: 64.95190134 | GP23: 0.1566819048 | GQ23: 51.32918117 | GR23: 43.5098994 | GS23: 0 | GT23: 41.67448839 | GU23: 62.93982469 | GV23: 0.1787663053 | GW23: 43.01238581 | GX23: 48.22827201 | GY23: 0 | GZ23: 45.2674598
A24: 68 | B24: SANTANDER | C24: D | D24: SANTANDERES | E24: NA | F24: NA | G24: 2 | H24: NA | J24: 54.00822876 | K24: 45.99177124 | L24: 19.752284 | M24: 33.47305556 | N24: 65.21712399 | O24: 34.78287601 | P24: 33.33176125 | Q24: 40 | R24: 15.30916128 | S24: 40 | T24: 38.84954056 | U24: 31.07963245 | V24: 84.01418422 | W24: 80 | X24: 84.89621129 | Y24: 80 | Z24: 0.08122713524 | AA24: 86.42624399 | AB24: NA | AC24: NA | AD24: 0 | AE24: 0 | AF24: 82.14208133 | AG24: 16.42841627 | AH24: 47.50804871 | AI24: 2. Riesgo (>=40 y <60) | AJ24: 44.43864309 | AK24: 55.56135691 | AL24: 37.98032153 | AM24: 100 | AN24: 66.99153743 | AO24: 33.00846257 | AP24: 39.12221423 | AQ24: 50 | AR24: 13.08641433 | AS24: 60 | AT24: 59.7139639 | AU24: 47.77117112 | AV24: 114.4517425 | AW24: 80 | AX24: 77.82262258 | AY24: 70 | AZ24: 26.62288959 | BA24: 100 | BB24: NA | BC24: NA | BD24: 0 | BE24: 0 | BF24: 83.33333333 | BG24: 16.66666667 | BH24: 3. Vulnerable (>=60 y <70) | BI24: 715422.2591 | BJ24: 660187.8241 | BK24: 1324654.179 | BL24: 1485708.775 | BM24: 211246.9967 | BN24: 568046.0088 | BO24: 1069481.366 | BP24: 1495632.438 | BQ24: 6123002.001 | BR24: 4100742.929 | BS24: 3993245.807 | BT24: 6121284.996 | BU24: 175878.6341 | BV24: 259178.4272 | BW24: 527660.788 | BX24: 662484.0448 | BY24: 202793.4446 | BZ24: -285639.9989 | CA24: 1324654.179 | CB24: 1485708.775 | CC24: 459509.6931 | CD24: 591313.4368 | CE24: 546942.9923 | CF24: 516648.6975 | CG24: 884132.578 | CH24: 1064647.063 | CI24: 1041427.603 | CJ24: 1368043.157 | CK24: 55 | CL24: 60 | CM24: 46.87728648 | CN24: 33.37711041 | CO24: NA | CP24: NA | CQ24: 127 | CR24: NA | CS24: NA | CT24: NA | CU24: NA | CV24: NA | CW24: 34.29489845 | CX24: 56.23302274 | CY24: 52.00358312 | CZ24: 61.875 | DA24: 38.125 | DB24: 38.80504069 | DC24: 73.4375 | DD24: 92.1875 | DE24: 63.63241705 | DF24: NA | DG24: 0 | DH24: 15.2838278 | DI24: 54.08886849 | DJ24: 22.83566958 | DK24: 37.71733661 | DL24: 78.50520104 | DM24: 65.51181102 | DN24: 32.5984252 | DO24: 37.94695095 | DP24: 51.96850394 | DQ24: 91.57480315 | DR24: 88.60733286 | DS24: 0.04724409449 | DT24: 0.04556212973 | DU24: 15.49527057 | DV24: 53.88947049 | DW24: NA | DX24: NA | DY24: NA | DZ24: NA | EA24: NA | EB24: NA | EC24: NA | ED24: NA | EE24: NA | EF24: NA | EG24: NA | EH24: NA | EI24: NA | EJ24: NA | EK24: NA | EL24: NA | EM24: NA | EN24: NA | EO24: NA | EP24: NA | EQ24: NA | ER24: NA | ES24: NA | ET24: NA | EU24: NA | EV24: NA | EW24: 23 | EX24: 2 | EY24: 2 | EZ24: 9 | FA24: 8 | FB24: 34.29489845 | FC24: 56.23302274 | FD24: 52.00358312 | FE24: 61.875 | FF24: 38.125 | FG24: 38.80504069 | FH24: 73.4375 | FI24: 92.1875 | FJ24: 63.63241705 | FK24: 0 | FL24: 0 | FM24: 15.2838278 | FN24: 54.08886849 | FO24: 40.72837278 | FP24: 52.3020015 | FQ24: 33.51412939 | FR24: 55 | FS24: 50 | FT24: 37.04712059 | FU24: 90 | FV24: 90 | FW24: 93.21312199 | FX24: 0 | FY24: 0 | FZ24: 18.21420813 | GA24: 55.26132872 | GB24: 40.90337055 | GC24: 67.01605117 | GD24: 46.82144749 | GE24: 57.77777778 | GF24: 44.44444444 | GG24: 41.11409463 | GH24: 66.66666667 | GI24: 94.44444444 | GJ24: 64.08121774 | GK24: 0 | GL24: 0 | GM24: 15.01282192 | GN24: 56.12691655 | GO24: 42.45710205 | GP24: 0 | GQ24: 43.91066237 | GR24: 35.23887614 | GS24: 0 | GT24: 45.14526033 | GU24: 39.12221423 | GV24: 0 | GW24: 44.43864309 | GX24: 33.33176125 | GY24: 0 | GZ24: 54.00822876
A25: 70 | B25: SUCRE | C25: D | D25: CARIBE | E25: NA | F25: NA | G25: 3 | H25: NA | J25: 76.09425906 | K25: 23.90574094 | L25: 32.67899255 | M25: 100 | N25: 30.72468821 | O25: 69.27531179 | P25: 45.1171431 | Q25: 70 | R25: 17.73733803 | S25: 40 | T25: 60.63621055 | U25: 48.50896844 | V25: 82.26147789 | W25: 80 | X25: 97.59599065 | Y25: 100 | Z25: 0 | AA25: 0 | AB25: NA | AC25: NA | AD25: 0 | AE25: 0 | AF25: 60 | AG25: 12 | AH25: 60.50896844 | AI25: 3. Vulnerable (>=60 y <70) | AJ25: 70.91496688 | AK25: 29.08503312 | AL25: 24.40997408 | AM25: 43.10197755 | AN25: 25.622622 | AO25: 74.377378 | AP25: 51.1884791 | AQ25: 70 | AR25: 7.199191922 | AS25: 80 | AT25: 59.31287773 | AU25: 47.45030219 | AV25: 115.3433526 | AW25: 80 | AX25: 96.55018046 | AY25: 100 | AZ25: 7.695553779 | BA25: 66.80956721 | BB25: NA | BC25: NA | BD25: 0 | BE25: 0 | BF25: 82.26985574 | BG25: 16.45397115 | BH25: 3. Vulnerable (>=60 y <70) | BI25: 595221.4105 | BJ25: 482066.4517 | BK25: 782215.9226 | BL25: 679780.9727 | BM25: 284341.3163 | BN25: 168529.5034 | BO25: 870104.2905 | BP25: 690412.4636 | BQ25: 1440859.8 | BR25: 331966.0223 | BS25: 442699.6811 | BT25: 1295597.392 | BU25: 47438.26717 | BV25: 63517.7681 | BW25: 105144.661 | BX25: 124086.0624 | BY25: 138744.2823 | BZ25: -16038.42044 | CA25: 782215.9226 | CB25: 679780.9727 | CC25: 104411.7205 | CD25: 160990.7736 | CE25: 126926.6285 | CF25: 139575.2507 | CG25: 668440.1027 | CH25: 613336.0824 | CI25: 684905.29 | CJ25: 635251.0989 | CK25: 70 | CL25: 70 | CM25: 75.46537811 | CN25: 62.30444622 | CO25: NA | CP25: NA | CQ25: 195 | CR25: NA | CS25: NA | CT25: NA | CU25: NA | CV25: NA | CW25: 34.29489845 | CX25: 56.23302274 | CY25: 52.00358312 | CZ25: 61.875 | DA25: 38.125 | DB25: 38.80504069 | DC25: 73.4375 | DD25: 92.1875 | DE25: 63.63241705 | DF25: NA | DG25: 0 | DH25: 15.2838278 | DI25: 54.08886849 | DJ25: 16.1180535 | DK25: 30.39618919 | DL25: 69.48577879 | DM25: 56.61538462 | DN25: 72.1025641 | DO25: 39.15487523 | DP25: 60.46153846 | DQ25: 93.12820513 | DR25: 49.5692992 | DS25: 0.05128205128 | DT25: 0.03980529745 | DU25: 13.56174404 | DV25: 52.87970618 | DW25: NA | DX25: NA | DY25: NA | DZ25: NA | EA25: NA | EB25: NA | EC25: NA | ED25: NA | EE25: NA | EF25: NA | EG25: NA | EH25: NA | EI25: NA | EJ25: NA | EK25: NA | EL25: NA | EM25: NA | EN25: NA | EO25: NA | EP25: NA | EQ25: NA | ER25: NA | ES25: NA | ET25: NA | EU25: NA | EV25: NA | EW25: 10 | EX25: 7 | EY25: 3 | EZ25: 4 | FA25: 1 | FB25: 34.29489845 | FC25: 56.23302274 | FD25: 52.00358312 | FE25: 61.875 | FF25: 38.125 | FG25: 38.80504069 | FH25: 73.4375 | FI25: 92.1875 | FJ25: 63.63241705 | FK25: 0 | FL25: 0 | FM25: 15.2838278 | FN25: 54.08886849 | FO25: 32.09961407 | FP25: 52.70008658 | FQ25: 49.14793259 | FR25: 65.71428571 | FS25: 37.14285714 | FT25: 37.88876418 | FU25: 78.57142857 | FV25: 95.71428571 | FW25: 60.82394829 | FX25: 0 | FY25: 0 | FZ25: 15.6739775 | GA25: 53.56274168 | GB25: 30.68665722 | GC25: 54.81098964 | GD25: 60.63508263 | GE25: 67.5 | GF25: 30 | GG25: 38.98123672 | GH25: 80 | GI25: 95 | GJ25: 50 | GK25: 0 | GL25: 0 | GM25: 15 | GN25: 53.98123672 | GO25: 53.25620785 | GP25: 0 | GQ25: 78.82222776 | GR25: 44.92957392 | GS25: 0 | GT25: 79.89025288 | GU25: 51.1884791 | GV25: 0 | GW25: 70.91496688 | GX25: 45.1171431 | GY25: 0 | GZ25: 76.09425906
A26: 73 | B26: TOLIMA | C26: D | D26: CENTRAL | E26: NA | F26: NA | G26: 2 | H26: NA | J26: 60.92106277 | K26: 39.07893723 | L26: 22.0619735 | M26: 78.4835965 | N26: 80.96494321 | O26: 19.03505679 | P26: 37.13798166 | Q26: 50 | R26: 12.68984854 | S26: 60 | T26: 49.3195181 | U26: 39.45561448 | V26: 81.29043633 | W26: 80 | X26: 92.84355712 | Y26: 100 | Z26: 0.2796076723 | AA26: 100 | AB26: NA | AC26: NA | AD26: 0 | AE26: 0 | AF26: 93.33333333 | AG26: 18.66666667 | AH26: 58.12228115 | AI26: 2. Riesgo (>=40 y <60) | AJ26: 62.88948201 | AK26: 37.11051799 | AL26: 17.3982886 | AM26: 45.80869224 | AN26: 83.55852387 | AO26: 16.44147613 | AP26: 39.93691929 | AQ26: 50 | AR26: 9.6731133 | AS26: 80 | AT26: 45.87213727 | AU26: 36.69770982 | AV26: 102.7533976 | AW26: 100 | AX26: 89.75274667 | AY26: 80 | AZ26: 7.259614734 | BA26: 49.79911777 | BB26: NA | BC26: NA | BD26: 0.2129221398 | BE26: 0.2129221398 | BF26: 76.81262806 | BG26: 15.36252561 | BH26: 2. Riesgo (>=40 y <60) | BI26: 664495.9111 | BJ26: 622635.95 | BK26: 1090749.046 | BL26: 990085.5151 | BM26: 210149.0066 | BN26: 151245.8715 | BO26: 952539.4755 | BP26: 869314.6488 | BQ26: 2143643.398 | BR26: 1744158.782 | BS26: 1735599.659 | BT26: 2087349.92 | BU26: 98140.44202 | BV26: 122570.1234 | BW26: 264258.9544 | BX26: 306909.31 | BY26: 138414.4019 | BZ26: -63568.32026 | CA26: 1090749.046 | CB26: 990085.5151 | CC26: 233234.1164 | CD26: 281871.0097 | CE26: 286914.583 | CF26: 274317.946 | CG26: 793630.4629 | CH26: 780233.7745 | CI26: 854804.0246 | CJ26: 869314.6488 | CK26: 60 | CL26: 60 | CM26: 32.03923277 | CN26: 52.74038527 | CO26: NA | CP26: NA | CQ26: 324 | CR26: NA | CS26: NA | CT26: NA | CU26: NA | CV26: NA | CW26: 34.29489845 | CX26: 56.23302274 | CY26: 52.00358312 | CZ26: 61.875 | DA26: 38.125 | DB26: 38.80504069 | DC26: 73.4375 | DD26: 92.1875 | DE26: 63.63241705 | DF26: NA | DG26: 0 | DH26: 15.2838278 | DI26: 54.08886849 | DJ26: 30.19856982 | DK26: 36.99558085 | DL26: 80.95066794 | DM26: 65.21604938 | DN26: 40.12345679 | DO26: 40.55749196 | DP26: 66.57407407 | DQ26: 90.86419753 | DR26: 84.24544645 | DS26: 0.08641975309 | DT26: 0.03297453732 | DU26: 16.12870955 | DV26: 56.77970478 | DW26: NA | DX26: NA | DY26: NA | DZ26: NA | EA26: NA | EB26: NA | EC26: NA | ED26: NA | EE26: NA | EF26: NA | EG26: NA | EH26: NA | EI26: NA | EJ26: NA | EK26: NA | EL26: NA | EM26: NA | EN26: NA | EO26: NA | EP26: NA | EQ26: NA | ER26: NA | ES26: NA | ET26: NA | EU26: NA | EV26: NA | EW26: 11 | EX26: 4 | EY26: 2 | EZ26: 9 | FA26: 5 | FB26: 34.29489845 | FC26: 56.23302274 | FD26: 52.00358312 | FE26: 61.875 | FF26: 38.125 | FG26: 38.80504069 | FH26: 73.4375 | FI26: 92.1875 | FJ26: 63.63241705 | FK26: 0 | FL26: 0 | FM26: 15.2838278 | FN26: 54.08886849 | FO26: 42.2746477 | FP26: 62.52681364 | FQ26: 27.35606324 | FR26: 62.5 | FS26: 65 | FT26: 41.54520393 | FU26: 85 | FV26: 90 | FW26: 50 | FX26: 0 | FY26: 0 | FZ26: 15 | GA26: 56.54520393 | GB26: 40.90337055 | GC26: 67.01605117 | GD26: 46.82144749 | GE26: 57.77777778 | GF26: 44.44444444 | GG26: 41.11409463 | GH26: 66.66666667 | GI26: 94.44444444 | GJ26: 64.08121774 | GK26: 0 | GL26: 0 | GM26: 15.01282192 | GN26: 56.12691655 | GO26: 37.45200339 | GP26: 0 | GQ26: 55.52450548 | GR26: 34.60323132 | GS26: 0 | GT26: 59.94109553 | GU26: 39.93691929 | GV26: 0.2129221398 | GW26: 62.88948201 | GX26: 37.13798166 | GY26: 0 | GZ26: 60.92106277
A27: 76 | B27: VALLE DEL CAUCA | C27: D | D27: PACÍFICO | E27: NA | F27: NA | G27: E | H27: NA | J27: 33.74531715 | K27: 66.25468285 | L27: 24.35057235 | M27: 71.11986996 | N27: 77.76271237 | O27: 22.23728763 | P27: 65.00331107 | Q27: 100 | R27: 20.23105554 | S27: 20 | T27: 55.92236809 | U27: 44.73789447 | V27: 88.44116998 | W27: 80 | X27: 92.87139773 | Y27: 100 | Z27: 0.1152047552 | AA27: 100 | AB27: NA | AC27: NA | AD27: 0 | AE27: 0 | AF27: 93.33333333 | AG27: 18.66666667 | AH27: 63.40456114 | AI27: 3. Vulnerable (>=60 y <70) | AJ27: 28.51609971 | AK27: 71.48390029 | AL27: 16.85015306 | AM27: 42.88026157 | AN27: 79.01827349 | AO27: 20.98172651 | AP27: 60.38288927 | AQ27: 80 | AR27: 15.17303007 | AS27: 40 | AT27: 51.06917767 | AU27: 40.85534214 | AV27: 102.4275936 | AW27: 100 | AX27: 88.80578315 | AY27: 80 | AZ27: 10.98711058 | BA27: 72.03819553 | BB27: NA | BC27: NA | BD27: 0.4072479394 | BE27: 0.4072479394 | BF27: 84.41997978 | BG27: 16.88399596 | BH27: 2. Riesgo (>=40 y <60) | BI27: 801933.0029 | BJ27: 651500.592 | BK27: 2376427.519 | BL27: 2284676.371 | BM27: 449118.767 | BN27: 321270.0127 | BO27: 1844386.902 | BP27: 1906629.641 | BQ27: 6951931.865 | BR27: 4904215.373 | BS27: 5406010.78 | BT27: 6206431.951 | BU27: 780147.7693 | BV27: 764796.7342 | BW27: 1200166.201 | BX27: 1266578.568 | BY27: 488677.3513 | BZ27: -55977.34137 | CA27: 2376427.519 | CB27: 2284676.371 | CC27: 1095325.269 | CD27: 1196279.513 | CE27: 1238478.945 | CF27: 1167926.991 | CG27: 1694691.986 | CH27: 1633024.573 | CI27: 1824772.78 | CJ27: 1838871.879 | CK27: 50 | CL27: 50 | CM27: 38.47952448 | CN27: 39.01288942 | CO27: NA | CP27: NA | CQ27: 178 | CR27: NA | CS27: NA | CT27: NA | CU27: NA | CV27: NA | CW27: 34.29489845 | CX27: 56.23302274 | CY27: 52.00358312 | CZ27: 61.875 | DA27: 38.125 | DB27: 38.80504069 | DC27: 73.4375 | DD27: 92.1875 | DE27: 63.63241705 | DF27: NA | DG27: 0 | DH27: 15.2838278 | DI27: 54.08886849 | DJ27: 20.43086405 | DK27: 33.76336341 | DL27: 72.84038856 | DM27: 60.4494382 | DN27: 60.56179775 | DO27: 39.68733631 | DP27: 58.03370787 | DQ27: 92.02247191 | DR27: 71.03511351 | DS27: 0 | DT27: 0.05384817472 | DU27: 14.75009904 | DV27: 54.43743535 | DW27: NA | DX27: NA | DY27: NA | DZ27: NA | EA27: NA | EB27: NA | EC27: NA | ED27: NA | EE27: NA | EF27: NA | EG27: NA | EH27: NA | EI27: NA | EJ27: NA | EK27: NA | EL27: NA | EM27: NA | EN27: NA | EO27: NA | EP27: NA | EQ27: NA | ER27: NA | ES27: NA | ET27: NA | EU27: NA | EV27: NA | EW27: 7 | EX27: 4 | EY27: 1 | EZ27: 3 | FA27: 2 | FB27: 34.29489845 | FC27: 56.23302274 | FD27: 52.00358312 | FE27: 61.875 | FF27: 38.125 | FG27: 38.80504069 | FH27: 73.4375 | FI27: 92.1875 | FJ27: 63.63241705 | FK27: 0 | FL27: 0 | FM27: 15.2838278 | FN27: 54.08886849 | FO27: 33.20640361 | FP27: 42.96662107 | FQ27: 45.44251875 | FR27: 72.5 | FS27: 30 | FT27: 35.85848695 | FU27: 85 | FV27: 95 | FW27: 50 | FX27: 0 | FY27: 0 | FZ27: 15.33333333 | GA27: 51.19182028 | GB27: 60.27208034 | GC27: 84.76106523 | GD27: 21.80229595 | GE27: 83.33333333 | GF27: 60 | GG27: 49.62700398 | GH27: 80 | GI27: 93.33333333 | GJ27: 95.21916777 | GK27: 0 | GL27: 0 | GM27: 17.90350007 | GN27: 67.53050405 | GO27: 56.56370461 | GP27: 0 | GQ27: 33.76672919 | GR27: 60.58671733 | GS27: 0 | GT27: 29.92791572 | GU27: 60.38288927 | GV27: 0.4072479394 | GW27: 28.51609971 | GX27: 65.00331107 | GY27: 0 | GZ27: 33.74531715
A28: 81 | B28: ARAUCA | C28: D | D28: LLANOS Y ORINOQUÍA | E28: NA | F28: NA | G28: 4 | H28: NA | J28: 78.15598018 | K28: 21.84401982 | L28: 31.40592122 | M28: 60.07413505 | N28: 48.85160052 | O28: 51.14839948 | P28: 13.96481166 | Q28: 20 | R28: 18.60883338 | S28: 40 | T28: 38.61331087 | U28: 30.8906487 | V28: 115.7556766 | W28: 80 | X28: 92.43858131 | Y28: 100 | Z28: 0 | AA28: 0 | AB28: NA | AC28: NA | AD28: 0 | AE28: 0 | AF28: 60 | AG28: 12 | AH28: 42.8906487 | AI28: 2. Riesgo (>=40 y <60) | AJ28: 68.5770658 | AK28: 31.4229342 | AL28: 39.09145913 | AM28: 100 | AN28: 41.08291225 | AO28: 58.91708775 | AP28: 46.03190304 | AQ28: 70 | AR28: -23.73699798 | AS28: 20 | AT28: 56.06800439 | AU28: 44.85440351 | AV28: 120.9012151 | AW28: 70 | AX28: 81.14729784 | AY28: 80 | AZ28: 0 | BA28: 0 | BB28: NA | BC28: NA | BD28: 0 | BE28: 0 | BF28: 50 | BG28: 10 | BH28: 2. Riesgo (>=40 y <60) | BI28: 255629.8738 | BJ28: 216919.976 | BK28: 327076.5374 | BL28: 345679.2982 | BM28: 130231.497 | BN28: 229469.0081 | BO28: 414671.7943 | BP28: 587005.482 | BQ28: 1381738.198 | BR28: 595614.1642 | BS28: 675001.2245 | BT28: 1449785.645 | BU28: 10364.97689 | BV28: 37674.82342 | BW28: 74222.10297 | BX28: 81845.0269 | BY28: 60865.12787 | BZ28: -181980.9686 | CA28: 327076.5374 | CB28: 345679.2982 | CC28: 46354.78659 | CD28: 56361.95592 | CE28: 40045.36793 | CF28: 46618.18815 | CG28: 268874.4089 | CH28: 392339.1217 | CI28: 290868.169 | CJ28: 483490.0633 | CK28: 70 | CL28: 70 | CM28: 71.3233964 | CN28: 75.64142033 | CO28: NA | CP28: NA | CQ28: 59 | CR28: NA | CS28: NA | CT28: NA | CU28: NA | CV28: NA | CW28: 34.29489845 | CX28: 56.23302274 | CY28: 52.00358312 | CZ28: 61.875 | DA28: 38.125 | DB28: 38.80504069 | DC28: 73.4375 | DD28: 92.1875 | DE28: 63.63241705 | DF28: NA | DG28: 0 | DH28: 15.2838278 | DI28: 54.08886849 | DJ28: 31.12501676 | DK28: 46.20852303 | DL28: 85.63497307 | DM28: 64.91525424 | DN28: 35.93220339 | DO28: 42.21055528 | DP28: 50.6779661 | DQ28: 80.6779661 | DR28: 80.32207825 | DS28: 0.03389830508 | DT28: 0.04824769583 | DU28: 14.12793141 | DV28: 56.33848669 | DW28: NA | DX28: NA | DY28: NA | DZ28: NA | EA28: NA | EB28: NA | EC28: NA | ED28: NA | EE28: NA | EF28: NA | EG28: NA | EH28: NA | EI28: NA | EJ28: NA | EK28: NA | EL28: NA | EM28: NA | EN28: NA | EO28: NA | EP28: NA | EQ28: NA | ER28: NA | ES28: NA | ET28: NA | EU28: NA | EV28: NA | EW28: 29 | EX28: 4 | EY28: 4 | EZ28: 10 | FA28: 10 | FB28: 34.29489845 | FC28: 56.23302274 | FD28: 52.00358312 | FE28: 61.875 | FF28: 38.125 | FG28: 38.80504069 | FH28: 73.4375 | FI28: 92.1875 | FJ28: 63.63241705 | FK28: 0 | FL28: 0 | FM28: 15.2838278 | FN28: 54.08886849 | FO28: 32.03685687 | FP28: 56.95302731 | FQ28: 72.29995198 | FR28: 57.5 | FS28: 25 | FT28: 39.00637379 | FU28: 77.5 | FV28: 87.5 | FW28: 42.77148131 | FX28: 0 | FY28: 0 | FZ28: 13.85143209 | GA28: 52.85780587 | GB28: 18.7310903 | GC28: 47.50967026 | GD28: 68.80367135 | GE28: 54 | GF28: 28 | GG28: 34.72710911 | GH28: 70 | GI28: 94 | GJ28: 65.06298625 | GK28: 0 | GL28: 0 | GM28: 15.27086575 | GN28: 49.99797486 | GO28: 37.27461501 | GP28: 0 | GQ28: 45.63354069 | GR28: -39.1188384 | GS28: 0 | GT28: 57.54867515 | GU28: 46.03190304 | GV28: 0 | GW28: 68.5770658 | GX28: 13.96481166 | GY28: 0 | GZ28: 78.15598018
A29: 85 | B29: CASANARE | C29: D | D29: LLANOS Y ORINOQUÍA | E29: NA | F29: NA | G29: 3 | H29: NA | J29: 63.8634134 | K29: 36.1365866 | L29: 17.90824051 | M29: 54.80046693 | N29: 17.96919806 | O29: 82.03080194 | P29: 46.84832888 | Q29: 70 | R29: 22.361352 | S29: 20 | T29: 52.59357109 | U29: 42.07485688 | V29: 126.7343372 | W29: 70 | X29: 86.69488361 | Y29: 80 | Z29: 0 | AA29: 0 | AB29: NA | AC29: NA | AD29: 0 | AE29: 0 | AF29: 50 | AG29: 10 | AH29: 52.07485688 | AI29: 2. Riesgo (>=40 y <60) | AJ29: 55.87881414 | AK29: 44.12118586 | AL29: 56.63307224 | AM29: 100 | AN29: 15.97520849 | AO29: 84.02479151 | AP29: 52.70900622 | AQ29: 70 | AR29: 5.46997057 | AS29: 80 | AT29: 75.62919547 | AU29: 60.50335638 | AV29: 143.9674371 | AW29: 50 | AX29: 79.1823721 | AY29: 70 | AZ29: 7.341942935 | BA29: 63.73966632 | BB29: NA | BC29: NA | BD29: 0 | BE29: 0 | BF29: 61.24655544 | BG29: 12.24931109 | BH29: 4. Solvente (>=70 y <80) | BI29: 246156.2158 | BJ29: 204880.6165 | BK29: 385441.6835 | BL29: 401289.1053 | BM29: 65751.81407 | BN29: 503760.7396 | BO29: 367159.5434 | BP29: 889516.8842 | BQ29: 2844797.371 | BR29: 499534.488 | BS29: 511187.274 | BT29: 3126935.641 | BU29: 58847.26535 | BV29: 76040.33939 | BW29: 125612.3041 | BX29: 144264.4148 | BY29: 86189.97162 | BZ29: -200793.5006 | CA29: 385441.6835 | CB29: 401289.1053 | CC29: 103091.3812 | CD29: 123604.4798 | CE29: 81344.475 | CF29: 85855.859 | CG29: 285450.5974 | CH29: 422721.848 | CI29: 329258.8738 | CJ29: 533858.5304 | CK29: 70 | CL29: 70 | CM29: 81.3490482 | CN29: 62.65805706 | CO29: NA | CP29: NA | CQ29: 59 | CR29: NA | CS29: NA | CT29: NA | CU29: NA | CV29: NA | CW29: 34.29489845 | CX29: 56.23302274 | CY29: 52.00358312 | CZ29: 61.875 | DA29: 38.125 | DB29: 38.80504069 | DC29: 73.4375 | DD29: 92.1875 | DE29: 63.63241705 | DF29: NA | DG29: 0 | DH29: 15.2838278 | DI29: 54.08886849 | DJ29: 31.12501676 | DK29: 46.20852303 | DL29: 85.63497307 | DM29: 64.91525424 | DN29: 35.93220339 | DO29: 42.21055528 | DP29: 50.6779661 | DQ29: 80.6779661 | DR29: 80.32207825 | DS29: 0.03389830508 | DT29: 0.04824769583 | DU29: 14.12793141 | DV29: 56.33848669 | DW29: NA | DX29: NA | DY29: NA | DZ29: NA | EA29: NA | EB29: NA | EC29: NA | ED29: NA | EE29: NA | EF29: NA | EG29: NA | EH29: NA | EI29: NA | EJ29: NA | EK29: NA | EL29: NA | EM29: NA | EN29: NA | EO29: NA | EP29: NA | EQ29: NA | ER29: NA | ES29: NA | ET29: NA | EU29: NA | EV29: NA | EW29: 16 | EX29: 4 | EY29: 2 | EZ29: 4 | FA29: 3 | FB29: 34.29489845 | FC29: 56.23302274 | FD29: 52.00358312 | FE29: 61.875 | FF29: 38.125 | FG29: 38.80504069 | FH29: 73.4375 | FI29: 92.1875 | FJ29: 63.63241705 | FK29: 0 | FL29: 0 | FM29: 15.2838278 | FN29: 54.08886849 | FO29: 32.03685687 | FP29: 56.95302731 | FQ29: 72.29995198 | FR29: 57.5 | FS29: 25 | FT29: 39.00637379 | FU29: 77.5 | FV29: 87.5 | FW29: 42.77148131 | FX29: 0 | FY29: 0 | FZ29: 13.85143209 | GA29: 52.85780587 | GB29: 30.68665722 | GC29: 54.81098964 | GD29: 60.63508263 | GE29: 67.5 | GF29: 30 | GG29: 38.98123672 | GH29: 80 | GI29: 95 | GJ29: 50 | GK29: 0 | GL29: 0 | GM29: 15 | GN29: 53.98123672 | GO29: 35.46028715 | GP29: 0 | GQ29: 53.67410622 | GR29: 47.51974865 | GS29: 0 | GT29: 46.96481579 | GU29: 52.70900622 | GV29: 0 | GW29: 55.87881414 | GX29: 46.84832888 | GY29: 0 | GZ29: 63.8634134
A30: 86 | B30: PUTUMAYO | C30: D | D30: AMAZONÍA | E30: NA | F30: NA | G30: 4 | H30: NA | J30: 80.75588809 | K30: 19.24411191 | L30: 16.68027214 | M30: 31.90649669 | N30: 28.474549 | O30: 71.525451 | P30: 38.64455372 | Q30: 50 | R30: 13.03388261 | S30: 60 | T30: 46.53521192 | U30: 37.22816954 | V30: 109.6654285 | W30: 100 | X30: 85.70795859 | Y30: 80 | Z30: 0.1038651685 | AA30: 72.09874122 | AB30: NA | AC30: NA | AD30: 0 | AE30: 0 | AF30: 84.03291374 | AG30: 16.80658275 | AH30: 54.03475228 | AI30: 2. Riesgo (>=40 y <60) | AJ30: 75.67579273 | AK30: 24.32420727 | AL30: 22.63469385 | AM30: 57.90189047 | AN30: nd | AO30: 0 | AP30: 23.82008944 | AQ30: 30 | AR30: 11.02103865 | AS30: 60 | AT30: 34.44521955 | AU30: 27.55617564 | AV30: 130.1600985 | AW30: 60 | AX30: 87.03419864 | AY30: 80 | AZ30: 0 | BA30: 0 | BB30: NA | BC30: NA | BD30: 0.4515423898 | BE30: 0.4515423898 | BF30: 47.11820906 | BG30: 9.423641811 | BH30: 1. Deterioro (<40) | BI30: 368089.8116 | BJ30: 303609.5012 | BK30: 455805.5398 | BL30: 426318.1535 | BM30: 79774.32561 | BN30: 110993.6131 | BO30: 478255.5399 | BP30: 490369.403 | BQ30: 1439639.682 | BR30: 0 | BS30: 409930.9067 | BT30: 0 | BU30: 32864.20708 | BV30: 17618.20555 | BW30: 85042.27352 | BX30: 73963.64148 | BY30: 59409.15898 | BZ30: -12436.67149 | CA30: 455805.5398 | CB30: 426318.1535 | CC30: 54812.26535 | CD30: 54188.33951 | CE30: 49981.35339 | CF30: 41632.06708 | CG30: 343674.0645 | CH30: 332826.9473 | CI30: 400982.6744 | CJ30: 382409.3891 | CK30: 70 | CL30: 70 | CM30: 59.61348315 | CN30: 70.8928722 | CO30: NA | CP30: NA | CQ30: 39 | CR30: NA | CS30: NA | CT30: NA | CU30: NA | CV30: NA | CW30: 34.29489845 | CX30: 56.23302274 | CY30: 52.00358312 | CZ30: 61.875 | DA30: 38.125 | DB30: 38.80504069 | DC30: 73.4375 | DD30: 92.1875 | DE30: 63.63241705 | DF30: NA | DG30: 0 | DH30: 15.2838278 | DI30: 54.08886849 | DJ30: 17.33692719 | DK30: 37.23605515 | DL30: 75.85562983 | DM30: 53.33333333 | DN30: 55.8974359 | DO30: 38.34550102 | DP30: 66.15384615 | DQ30: 84.61538462 | DR30: 62.21553338 | DS30: 0 | DT30: 0.05542678519 | DU30: 14.21006963 | DV30: 52.55557066 | DW30: NA | DX30: NA | DY30: NA | DZ30: NA | EA30: NA | EB30: NA | EC30: NA | ED30: NA | EE30: NA | EF30: NA | EG30: NA | EH30: NA | EI30: NA | EJ30: NA | EK30: NA | EL30: NA | EM30: NA | EN30: NA | EO30: NA | EP30: NA | EQ30: NA | ER30: NA | ES30: NA | ET30: NA | EU30: NA | EV30: NA | EW30: 15 | EX30: 6 | EY30: 3 | EZ30: 10 | FA30: 3 | FB30: 34.29489845 | FC30: 56.23302274 | FD30: 52.00358312 | FE30: 61.875 | FF30: 38.125 | FG30: 38.80504069 | FH30: 73.4375 | FI30: 92.1875 | FJ30: 63.63241705 | FK30: 0 | FL30: 0 | FM30: 15.2838278 | FN30: 54.08886849 | FO30: 17.97461146 | FP30: 55.33413569 | FQ30: 73.52401261 | FR30: 61.66666667 | FS30: 26.66666667 | FT30: 37.62657489 | FU30: 60 | FV30: 90 | FW30: 75.10497708 | FX30: 0 | FY30: 0 | FZ30: 15.00699847 | GA30: 52.63357337 | GB30: 18.7310903 | GC30: 47.50967026 | GD30: 68.80367135 | GE30: 54 | GF30: 28 | GG30: 34.72710911 | GH30: 70 | GI30: 94 | GJ30: 65.06298625 | GK30: 0 | GL30: 0 | GM30: 15.27086575 | GN30: 49.99797486 | GO30: 19.1019428 | GP30: 0 | GQ30: 81.03226857 | GR30: 22.87537917 | GS30: 0.04763527179 | GT30: 75.61449155 | GU30: 23.82008944 | GV30: 0.4515423898 | GW30: 75.67579273 | GX30: 38.64455372 | GY30: 0 | GZ30: 80.75588809
A31: 88 | B31: SAN ANDRÉS | C31: D | D31: SEAFLOWER REGION | E31: NA | F31: NA | G31: 2 | H31: NA | J31: 48.19469897 | K31: 51.80530103 | L31: 12.11154944 | M31: 37.06218734 | N31: 23.16447154 | O31: 76.83552846 | P31: 19.13777236 | Q31: 30 | R31: 54.62435828 | S31: 0 | T31: 39.14060337 | U31: 31.31248269 | V31: 42.50584258 | W31: 0 | X31: 79.12444825 | Y31: 70 | Z31: 0.05099528001 | AA31: 43.1719487 | AB31: NA | AC31: NA | AD31: 0 | AE31: 0 | AF31: 37.7239829 | AG31: 7.54479658 | AH31: 38.85727927 | AI31: 1. Deterioro (<40) | AJ31: 44.18935313 | AK31: 55.81064687 | AL31: 15.03419521 | AM31: 39.58417045 | AN31: 24.602275 | AO31: 75.397725 | AP31: 48.41416073 | AQ31: 70 | AR31: 41.57238377 | AS31: 0 | AT31: 48.15850846 | AU31: 38.52680677 | AV31: 97.76246916 | AW31: 100 | AX31: 84.77420089 | AY31: 80 | AZ31: 16.23539739 | BA31: 100 | BB31: NA | BC31: NA | BD31: 0.8491983834 | BE31: 0.8491983834 | BF31: 94.18253172 | BG31: 18.83650634 | BH31: 2. Riesgo (>=40 y <60) | BI31: 161653.1335 | BJ31: 53278.09001 | BK31: 335416.8341 | BL31: 426389.8159 | BM31: 23034.52738 | BN31: 34622.05661 | BO31: 190186.462 | BP31: 230288.7259 | BQ31: 1495340.239 | BR31: 365315.9233 | BS31: 346387.664 | BT31: 1484886.756 | BU31: 36074.16277 | BV31: 147718.5038 | BW31: 188497.1881 | BX31: 305114.2508 | BY31: 183219.2932 | BZ31: 42762.9106 | CA31: 335416.8341 | CB31: 426389.8159 | CC31: 76338.49108 | CD31: 152971.0533 | CE31: 179595.2896 | CF31: 156472.1663 | CG31: 137657.6198 | CH31: 191785.6566 | CI31: 173976.0881 | CJ31: 226231.1583 | CK31: 70 | CL31: 60 | CM31: 64.900472 | CN31: 43.76460261 | CO31: NA | CP31: NA | CQ31: 1 | CR31: NA | CS31: NA | CT31: NA | CU31: NA | CV31: NA | CW31: 34.29489845 | CX31: 56.23302274 | CY31: 52.00358312 | CZ31: 61.875 | DA31: 38.125 | DB31: 38.80504069 | DC31: 73.4375 | DD31: 92.1875 | DE31: 63.63241705 | DF31: NA | DG31: 0 | DH31: 15.2838278 | DI31: 54.08886849 | DJ31: 92.54255019 | DK31: 79.77185182 | DL31: 2.86893647 | DM31: 80 | DN31: 20 | DO31: 44.02933416 | DP31: 100 | DQ31: 70 | DR31: 0 | DS31: 0 | DT31: 0 | DU31: 11.33333333 | DV31: 55.36266749 | DW31: NA | DX31: NA | DY31: NA | DZ31: NA | EA31: NA | EB31: NA | EC31: NA | ED31: NA | EE31: NA | EF31: NA | EG31: NA | EH31: NA | EI31: NA | EJ31: NA | EK31: NA | EL31: NA | EM31: NA | EN31: NA | EO31: NA | EP31: NA | EQ31: NA | ER31: NA | ES31: NA | ET31: NA | EU31: NA | EV31: NA | EW31: 32 | EX31: 1 | EY31: 1 | EZ31: 9 | FA31: 9 | FB31: 34.29489845 | FC31: 56.23302274 | FD31: 52.00358312 | FE31: 61.875 | FF31: 38.125 | FG31: 38.80504069 | FH31: 73.4375 | FI31: 92.1875 | FJ31: 63.63241705 | FK31: 0 | FL31: 0 | FM31: 15.2838278 | FN31: 54.08886849 | FO31: 51.80530103 | FP31: 37.06218734 | FQ31: 76.83552846 | FR31: 30 | FS31: 0 | FT31: 31.31248269 | FU31: 0 | FV31: 70 | FW31: 43.1719487 | FX31: 0 | FY31: 0 | FZ31: 7.54479658 | GA31: 38.85727927 | GB31: 40.90337055 | GC31: 67.01605117 | GD31: 46.82144749 | GE31: 57.77777778 | GF31: 44.44444444 | GG31: 41.11409463 | GH31: 66.66666667 | GI31: 94.44444444 | GJ31: 64.08121774 | GK31: 0 | GL31: 0 | GM31: 15.01282192 | GN31: 56.12691655 | GO31: 52.01592843 | GP31: 0 | GQ31: 43.31117444 | GR31: 43.92571594 | GS31: 0 | GT31: 16.66882928 | GU31: 48.41416073 | GV31: 0.8491983834 | GW31: 44.18935313 | GX31: 19.13777236 | GY31: 0 | GZ31: 48.19469897
A32: 91 | B32: AMAZONAS | C32: D | D32: AMAZONÍA | E32: NA | F32: NA | G32: 4 | H32: NA | J32: 89.80435507 | K32: 10.19564493 | L32: 13.30180848 | M32: 25.44407575 | N32: 34.25610598 | O32: 65.74389402 | P32: 36.94267202 | Q32: 50 | R32: 22.47633439 | S32: 20 | T32: 34.27672294 | U32: 27.42137835 | V32: 79.81143025 | W32: 70 | X32: 93.05985798 | Y32: 100 | Z32: 0.1071897751 | AA32: 74.40654037 | AB32: NA | AC32: NA | AD32: 0 | AE32: 0 | AF32: 81.46884679 | AG32: 16.29376936 | AH32: 43.71514771 | AI32: 2. Riesgo (>=40 y <60) | AJ32: 83.84204713 | AK32: 16.15795287 | AL32: 25.46039707 | AM32: 65.13033188 | AN32: 40.32165347 | AO32: 59.67834653 | AP32: 38.62266143 | AQ32: 50 | AR32: 12.09775804 | AS32: 60 | AT32: 50.19332625 | AU32: 40.154661 | AV32: 133.5116246 | AW32: 60 | AX32: 91.837904 | AY32: 100 | AZ32: 13.28602679 | BA32: 100 | BB32: NA | BC32: NA | BD32: 1.101469256 | BE32: 1.101469256 | BF32: 87.76813592 | BG32: 17.55362718 | BH32: 2. Riesgo (>=40 y <60) | BI32: 156267.8422 | BJ32: 109404.2204 | BK32: 174009.2027 | BL32: 158154.8898 | BM32: 21438.24674 | BN32: 44377.6669 | BO32: 161167.9102 | BP32: 174300.7652 | BQ32: 863395.9211 | BR32: 317016.0881 | BS32: 295765.8218 | BT32: 786217.9767 | BU32: 14620.79483 | BV32: 15924.52104 | BW32: 39576.98246 | BX32: 41231.02978 | BY32: 39169.24835 | BZ32: -18736.02883 | CA32: 174009.2027 | CB32: 158154.8898 | CC32: 14232.5225 | CD32: 17997.11815 | CE32: 17832.68695 | CF32: 13479.81361 | CG32: 127282.1148 | CH32: 139211.9448 | CI32: 136774.4564 | CJ32: 151584.4099 | CK32: 70 | CL32: 70 | CM32: 59.28102249 | CN32: 56.71397321 | CO32: NA | CP32: NA | CQ32: 39 | CR32: NA | CS32: NA | CT32: NA | CU32: NA | CV32: NA | CW32: 34.29489845 | CX32: 56.23302274 | CY32: 52.00358312 | CZ32: 61.875 | DA32: 38.125 | DB32: 38.80504069 | DC32: 73.4375 | DD32: 92.1875 | DE32: 63.63241705 | DF32: NA | DG32: 0 | DH32: 15.2838278 | DI32: 54.08886849 | DJ32: 17.33692719 | DK32: 37.23605515 | DL32: 75.85562983 | DM32: 53.33333333 | DN32: 55.8974359 | DO32: 38.34550102 | DP32: 66.15384615 | DQ32: 84.61538462 | DR32: 62.21553338 | DS32: 0 | DT32: 0.05542678519 | DU32: 14.21006963 | DV32: 52.55557066 | DW32: NA | DX32: NA | DY32: NA | DZ32: NA | EA32: NA | EB32: NA | EC32: NA | ED32: NA | EE32: NA | EF32: NA | EG32: NA | EH32: NA | EI32: NA | EJ32: NA | EK32: NA | EL32: NA | EM32: NA | EN32: NA | EO32: NA | EP32: NA | EQ32: NA | ER32: NA | ES32: NA | ET32: NA | EU32: NA | EV32: NA | EW32: 28 | EX32: 6 | EY32: 6 | EZ32: 10 | FA32: 9 | FB32: 34.29489845 | FC32: 56.23302274 | FD32: 52.00358312 | FE32: 61.875 | FF32: 38.125 | FG32: 38.80504069 | FH32: 73.4375 | FI32: 92.1875 | FJ32: 63.63241705 | FK32: 0 | FL32: 0 | FM32: 15.2838278 | FN32: 54.08886849 | FO32: 17.97461146 | FP32: 55.33413569 | FQ32: 73.52401261 | FR32: 61.66666667 | FS32: 26.66666667 | FT32: 37.62657489 | FU32: 60 | FV32: 90 | FW32: 75.10497708 | FX32: 0 | FY32: 0 | FZ32: 15.00699847 | GA32: 52.63357337 | GB32: 18.7310903 | GC32: 47.50967026 | GD32: 68.80367135 | GE32: 54 | GF32: 28 | GG32: 34.72710911 | GH32: 70 | GI32: 94 | GJ32: 65.06298625 | GK32: 0 | GL32: 0 | GM32: 15.27086575 | GN32: 49.99797486 | GO32: 26.19748267 | GP32: 0 | GQ32: 73.45838875 | GR32: 31.50737813 | GS32: 0 | GT32: 63.1396443 | GU32: 38.62266143 | GV32: 1.101469256 | GW32: 83.84204713 | GX32: 36.94267202 | GY32: 0 | GZ32: 89.80435507
A33: 94 | B33: GUAINÍA | C33: D | D33: AMAZONÍA | E33: NA | F33: NA | G33: 4 | H33: NA | J33: 84.37751067 | K33: 15.62248933 | L33: 14.96461624 | M33: 28.62474151 | N33: 21.15882863 | O33: 78.84117137 | P33: 64.32625866 | Q33: 80 | R33: 38.06960705 | S33: 0 | T33: 40.61768044 | U33: 32.49414435 | V33: 122.6103894 | W33: 70 | X33: 86.003604 | Y33: 80 | Z33: 0.3451862706 | AA33: 100 | AB33: NA | AC33: NA | AD33: 0 | AE33: 0 | AF33: 83.33333333 | AG33: 16.66666667 | AH33: 49.16081102 | AI33: 2. Riesgo (>=40 y <60) | AJ33: 80.98584683 | AK33: 19.01415317 | AL33: 38.03873485 | AM33: 97.3070223 | AN33: 20.83011188 | AO33: 79.16988812 | AP33: 63.36841222 | AQ33: 80 | AR33: 26.43185737 | AS33: 20 | AT33: 59.09821272 | AU33: 47.27857017 | AV33: 152.3180235 | AW33: 0 | AX33: 75.83523291 | AY33: 70 | AZ33: 28.93074105 | BA33: 100 | BB33: NA | BC33: NA | BD33: 1.460793715 | BE33: 1.460793715 | BF33: 58.12746038 | BG33: 11.62549208 | BH33: 2. Riesgo (>=40 y <60) | BI33: 132553.2277 | BJ33: 97126.65145 | BK33: 157095.4471 | BL33: 147199.4588 | BM33: 20350.62767 | BN33: 67361.41586 | BO33: 135991.6442 | BP33: 177086.3729 | BQ33: 818597.91 | BR33: 158628.9076 | BS33: 173205.729 | BT33: 761536.5125 | BU33: 30007.96699 | BV33: 26047.04344 | BW33: 46649.63829 | BX33: 41104.14405 | BY33: 59805.61942 | BZ33: 1445.337225 | CA33: 157095.4471 | CB33: 147199.4588 | CC33: 17693.46601 | CD33: 18924.81999 | CE33: 14430.64172 | CF33: 12424.54409 | CG33: 97905.79954 | CH33: 99114.39027 | CI33: 113839.1823 | CJ33: 130697.021 | CK33: 70 | CL33: 70 | CM33: 35.48137294 | CN33: 41.06925895 | CO33: NA | CP33: NA | CQ33: 39 | CR33: NA | CS33: NA | CT33: NA | CU33: NA | CV33: NA | CW33: 34.29489845 | CX33: 56.23302274 | CY33: 52.00358312 | CZ33: 61.875 | DA33: 38.125 | DB33: 38.80504069 | DC33: 73.4375 | DD33: 92.1875 | DE33: 63.63241705 | DF33: NA | DG33: 0 | DH33: 15.2838278 | DI33: 54.08886849 | DJ33: 17.33692719 | DK33: 37.23605515 | DL33: 75.85562983 | DM33: 53.33333333 | DN33: 55.8974359 | DO33: 38.34550102 | DP33: 66.15384615 | DQ33: 84.61538462 | DR33: 62.21553338 | DS33: 0 | DT33: 0.05542678519 | DU33: 14.21006963 | DV33: 52.55557066 | DW33: NA | DX33: NA | DY33: NA | DZ33: NA | EA33: NA | EB33: NA | EC33: NA | ED33: NA | EE33: NA | EF33: NA | EG33: NA | EH33: NA | EI33: NA | EJ33: NA | EK33: NA | EL33: NA | EM33: NA | EN33: NA | EO33: NA | EP33: NA | EQ33: NA | ER33: NA | ES33: NA | ET33: NA | EU33: NA | EV33: NA | EW33: 19 | EX33: 6 | EY33: 5 | EZ33: 10 | FA33: 5 | FB33: 34.29489845 | FC33: 56.23302274 | FD33: 52.00358312 | FE33: 61.875 | FF33: 38.125 | FG33: 38.80504069 | FH33: 73.4375 | FI33: 92.1875 | FJ33: 63.63241705 | FK33: 0 | FL33: 0 | FM33: 15.2838278 | FN33: 54.08886849 | FO33: 17.97461146 | FP33: 55.33413569 | FQ33: 73.52401261 | FR33: 61.66666667 | FS33: 26.66666667 | FT33: 37.62657489 | FU33: 60 | FV33: 90 | FW33: 75.10497708 | FX33: 0 | FY33: 0 | FZ33: 15.00699847 | GA33: 52.63357337 | GB33: 18.7310903 | GC33: 47.50967026 | GD33: 68.80367135 | GE33: 54 | GF33: 28 | GG33: 34.72710911 | GH33: 70 | GI33: 94 | GJ33: 65.06298625 | GK33: 0 | GL33: 0 | GM33: 15.27086575 | GN33: 49.99797486 | GO33: 58.76193076 | GP33: 0 | GQ33: 75.35921302 | GR33: 51.107896 | GS33: 0 | GT33: 66.54868446 | GU33: 63.36841222 | GV33: 1.460793715 | GW33: 80.98584683 | GX33: 64.32625866 | GY33: 0 | GZ33: 84.37751067
A34: 95 | B34: GUAVIARE | C34: D | D34: AMAZONÍA | E34: NA | F34: NA | G34: 4 | H34: NA | J34: 75.96900286 | K34: 24.03099714 | L34: 41.01373166 | M34: 78.4522268 | N34: 21.80223871 | O34: 78.19776129 | P34: 53.99799164 | Q34: 70 | R34: 19.53143288 | S34: 40 | T34: 58.13619704 | U34: 46.50895764 | V34: 147.1425519 | W34: 50 | X34: 90.22482917 | Y34: 100 | Z34: 0.1559651013 | AA34: 100 | AB34: NA | AC34: NA | AD34: 0 | AE34: 0 | AF34: 83.33333333 | AG34: 16.66666667 | AH34: 63.1756243 | AI34: 3. Vulnerable (>=60 y <70) | AJ34: 74.36172432 | AK34: 25.63827568 | AL34: 36.2319629 | AM34: 92.68511255 | AN34: 14.04821433 | AO34: 85.95178567 | AP34: 44.73864693 | AQ34: 50 | AR34: 3.554312797 | AS34: 100 | AT34: 70.85503478 | AU34: 56.68402782 | AV34: 144.6543405 | AW34: 50 | AX34: 86.55817894 | AY34: 80 | AZ34: 5.801157982 | BA34: 56.27445817 | BB34: NA | BC34: NA | BD34: 0.7625533857 | BE34: 0.7625533857 | BF34: 62.85403944 | BG34: 12.57080789 | BH34: 3. Vulnerable (>=60 y <70) | BI34: 127205.3227 | BJ34: 96397.56285 | BK34: 167443.7177 | BL34: 158518.2974 | BM34: 83569.35088 | BN34: 79141.57384 | BO34: 203759.4423 | BP34: 218430.2685 | BQ34: 681034.6708 | BR34: 79868.9316 | BS34: 148480.8046 | BT34: 568534.4041 | BU34: 31991.05297 | BV34: 23237.20588 | BW34: 59244.89411 | BX34: 51939.89419 | BY34: 32704.15732 | BZ34: -21123.77055 | CA34: 167443.7177 | CB34: 158518.2974 | CC34: 33105.063 | CD34: 29159.24046 | CE34: 22498.63319 | CF34: 20157.87454 | CG34: 115089.4356 | CH34: 130650.3783 | CI34: 127558.4966 | CJ34: 150939.3797 | CK34: 70 | CL34: 70 | CM34: 54.40348987 | CN34: 64.19884202 | CO34: NA | CP34: NA | CQ34: 39 | CR34: NA | CS34: NA | CT34: NA | CU34: NA | CV34: NA | CW34: 34.29489845 | CX34: 56.23302274 | CY34: 52.00358312 | CZ34: 61.875 | DA34: 38.125 | DB34: 38.80504069 | DC34: 73.4375 | DD34: 92.1875 | DE34: 63.63241705 | DF34: NA | DG34: 0 | DH34: 15.2838278 | DI34: 54.08886849 | DJ34: 17.33692719 | DK34: 37.23605515 | DL34: 75.85562983 | DM34: 53.33333333 | DN34: 55.8974359 | DO34: 38.34550102 | DP34: 66.15384615 | DQ34: 84.61538462 | DR34: 62.21553338 | DS34: 0 | DT34: 0.05542678519 | DU34: 14.21006963 | DV34: 52.55557066 | DW34: NA | DX34: NA | DY34: NA | DZ34: NA | EA34: NA | EB34: NA | EC34: NA | ED34: NA | EE34: NA | EF34: NA | EG34: NA | EH34: NA | EI34: NA | EJ34: NA | EK34: NA | EL34: NA | EM34: NA | EN34: NA | EO34: NA | EP34: NA | EQ34: NA | ER34: NA | ES34: NA | ET34: NA | EU34: NA | EV34: NA | EW34: 8 | EX34: 6 | EY34: 1 | EZ34: 10 | FA34: 1 | FB34: 34.29489845 | FC34: 56.23302274 | FD34: 52.00358312 | FE34: 61.875 | FF34: 38.125 | FG34: 38.80504069 | FH34: 73.4375 | FI34: 92.1875 | FJ34: 63.63241705 | FK34: 0 | FL34: 0 | FM34: 15.2838278 | FN34: 54.08886849 | FO34: 17.97461146 | FP34: 55.33413569 | FQ34: 73.52401261 | FR34: 61.66666667 | FS34: 26.66666667 | FT34: 37.62657489 | FU34: 60 | FV34: 90 | FW34: 75.10497708 | FX34: 0 | FY34: 0 | FZ34: 15.00699847 | GA34: 52.63357337 | GB34: 18.7310903 | GC34: 47.50967026 | GD34: 68.80367135 | GE34: 54 | GF34: 28 | GG34: 34.72710911 | GH34: 70 | GI34: 94 | GJ34: 65.06298625 | GK34: 0 | GL34: 0 | GM34: 15.27086575 | GN34: 49.99797486 | GO34: 46.77953708 | GP34: 0 | GQ34: 61.6646578 | GR34: 52.11484693 | GS34: 0 | GT34: 53.53871409 | GU34: 44.73864693 | GV34: 0.7625533857 | GW34: 74.36172432 | GX34: 53.99799164 | GY34: 0 | GZ34: 75.96900286
A35: 97 | B35: VAUPÉS | C35: D | D35: AMAZONÍA | E35: NA | F35: NA | G35: 4 | H35: NA | J35: 85.49735868 | K35: 14.50264132 | L35: 52.27860742 | M35: 100 | N35: 10.07213712 | O35: 89.92786288 | P35: 54.65068756 | Q35: 70 | R35: 47.5459157 | S35: 0 | T35: 54.88610084 | U35: 43.90888067 | V35: 195.3802793 | W35: 0 | X35: 85.0070815 | Y35: 80 | Z35: 0.2728585983 | AA35: 100 | AB35: NA | AC35: NA | AD35: 0 | AE35: 0 | AF35: 60 | AG35: 12 | AH35: 55.90888067 | AI35: 2. Riesgo (>=40 y <60) | AJ35: 81.36896524 | AK35: 18.63103476 | AL35: 23.19420303 | AM35: 59.33317288 | AN35: 9.107354399 | AO35: 90.8926456 | AP35: 44.75941468 | AQ35: 50 | AR35: 17.29686805 | AS35: 40 | AT35: 51.77137065 | AU35: 41.41709652 | AV35: 141.0743825 | AW35: 50 | AX35: 82.26736315 | AY35: 80 | AZ35: 23.15247243 | BA35: 100 | BB35: NA | BC35: NA | BD35: 1.21742512 | BE35: 1.21742512 | BF35: 77.88409179 | BG35: 15.57681836 | BH35: 2. Riesgo (>=40 y <60) | BI35: 105227.0522 | BJ35: 67620.23984 | BK35: 123076.3778 | BL35: 106680.9825 | BM35: 101439.906 | BN35: 26592.33736 | BO35: 194037.1234 | BP35: 114650.7915 | BQ35: 580941.3459 | BR35: 47581.23678 | BS35: 58513.20894 | BT35: 522448.5037 | BU35: 19748.18166 | BV35: 12415.2228 | BW35: 36135.28491 | BX35: 27737.67908 | BY35: 58517.79083 | BZ35: -23292.26529 | CA35: 123076.3778 | CB35: 106680.9825 | CC35: 11547.12507 | CD35: 8094.761842 | CE35: 5910.07706 | CF35: 5737.93888 | CG35: 66704.33063 | CH35: 94010.36197 | CI35: 78469.14569 | CJ35: 114274.1889 | CK35: 70 | CL35: 70 | CM35: 42.71414017 | CN35: 46.84752757 | CO35: NA | CP35: NA | CQ35: 39 | CR35: NA | CS35: NA | CT35: NA | CU35: NA | CV35: NA | CW35: 34.29489845 | CX35: 56.23302274 | CY35: 52.00358312 | CZ35: 61.875 | DA35: 38.125 | DB35: 38.80504069 | DC35: 73.4375 | DD35: 92.1875 | DE35: 63.63241705 | DF35: NA | DG35: 0 | DH35: 15.2838278 | DI35: 54.08886849 | DJ35: 17.33692719 | DK35: 37.23605515 | DL35: 75.85562983 | DM35: 53.33333333 | DN35: 55.8974359 | DO35: 38.34550102 | DP35: 66.15384615 | DQ35: 84.61538462 | DR35: 62.21553338 | DS35: 0 | DT35: 0.05542678519 | DU35: 14.21006963 | DV35: 52.55557066 | DW35: NA | DX35: NA | DY35: NA | DZ35: NA | EA35: NA | EB35: NA | EC35: NA | ED35: NA | EE35: NA | EF35: NA | EG35: NA | EH35: NA | EI35: NA | EJ35: NA | EK35: NA | EL35: NA | EM35: NA | EN35: NA | EO35: NA | EP35: NA | EQ35: NA | ER35: NA | ES35: NA | ET35: NA | EU35: NA | EV35: NA | EW35: 13 | EX35: 6 | EY35: 2 | EZ35: 10 | FA35: 2 | FB35: 34.29489845 | FC35: 56.23302274 | FD35: 52.00358312 | FE35: 61.875 | FF35: 38.125 | FG35: 38.80504069 | FH35: 73.4375 | FI35: 92.1875 | FJ35: 63.63241705 | FK35: 0 | FL35: 0 | FM35: 15.2838278 | FN35: 54.08886849 | FO35: 17.97461146 | FP35: 55.33413569 | FQ35: 73.52401261 | FR35: 61.66666667 | FS35: 26.66666667 | FT35: 37.62657489 | FU35: 60 | FV35: 90 | FW35: 75.10497708 | FX35: 0 | FY35: 0 | FZ35: 15.00699847 | GA35: 52.63357337 | GB35: 18.7310903 | GC35: 47.50967026 | GD35: 68.80367135 | GE35: 54 | GF35: 28 | GG35: 34.72710911 | GH35: 70 | GI35: 94 | GJ35: 65.06298625 | GK35: 0 | GL35: 0 | GM35: 15.27086575 | GN35: 49.99797486 | GO35: 54.69358 | GP35: 0 | GQ35: 68.43384129 | GR35: 62.46913248 | GS35: 0 | GT35: 59.92489094 | GU35: 44.75941468 | GV35: 1.21742512 | GW35: 81.36896524 | GX35: 54.65068756 | GY35: 0 | GZ35: 85.49735868
A36: 99 | B36: VICHADA | C36: D | D36: LLANOS Y ORINOQUÍA | E36: NA | F36: NA | G36: 4 | H36: NA | J36: 80.0524979 | K36: 19.9475021 | L36: 6.763548635 | M36: 12.93750727 | N36: 24.79901552 | O36: 75.20098448 | P36: 51.79569939 | Q36: 70 | R36: 30.90682807 | S36: 0 | T36: 35.61719877 | U36: 28.49375902 | V36: 80.94865908 | W36: 80 | X36: 90.07025016 | Y36: 100 | Z36: 0.3031238194 | AA36: 100 | AB36: NA | AC36: NA | AD36: 0 | AE36: 0 | AF36: 93.33333333 | AG36: 18.66666667 | AH36: 47.16042568 | AI36: 2. Riesgo (>=40 y <60) | AJ36: 78.54822129 | AK36: 21.45177871 | AL36: 33.00144191 | AM36: 84.42110539 | AN36: 24.45531702 | AO36: 75.54468298 | AP36: 51.36196376 | AQ36: 70 | AR36: 12.59744143 | AS36: 60 | AT36: 62.28351342 | AU36: 49.82681073 | AV36: 236.5185948 | AW36: 0 | AX36: 84.61823839 | AY36: 80 | AZ36: 20.8186295 | BA36: 100 | BB36: NA | BC36: NA | BD36: 0 | BE36: 0 | BF36: 60 | BG36: 12 | BH36: 3. Vulnerable (>=60 y <70) | BI36: 107525.0093 | BJ36: 85725.02433 | BK36: 134318.1189 | BL36: 139256.8478 | BM36: 6668.108574 | BN36: 57870.62744 | BO36: 98588.90553 | BP36: 175357.8755 | BQ36: 558510.0754 | BR36: 122660.9512 | BS36: 138505.0003 | BT36: 501571.7075 | BU36: 20187.90947 | BV36: 23071.98756 | BW36: 38976.03413 | BX36: 44920.37663 | BY36: 41513.47007 | BZ36: -9054.702406 | CA36: 134318.1189 | CB36: 139256.8478 | CC36: 12718.4817 | CD36: 21184.2326 | CE36: 15711.788 | CF36: 8956.688 | CG36: 84156.78182 | CH36: 107010.8992 | CI36: 93434.60429 | CJ36: 126463.1611 | CK36: 70 | CL36: 70 | CM36: 39.68761806 | CN36: 49.1813705 | CO36: NA | CP36: NA | CQ36: 59 | CR36: NA | CS36: NA | CT36: NA | CU36: NA | CV36: NA | CW36: 34.29489845 | CX36: 56.23302274 | CY36: 52.00358312 | CZ36: 61.875 | DA36: 38.125 | DB36: 38.80504069 | DC36: 73.4375 | DD36: 92.1875 | DE36: 63.63241705 | DF36: NA | DG36: 0 | DH36: 15.2838278 | DI36: 54.08886849 | DJ36: 31.12501676 | DK36: 46.20852303 | DL36: 85.63497307 | DM36: 64.91525424 | DN36: 35.93220339 | DO36: 42.21055528 | DP36: 50.6779661 | DQ36: 80.6779661 | DR36: 80.32207825 | DS36: 0.03389830508 | DT36: 0.04824769583 | DU36: 14.12793141 | DV36: 56.33848669 | DW36: NA | DX36: NA | DY36: NA | DZ36: NA | EA36: NA | EB36: NA | EC36: NA | ED36: NA | EE36: NA | EF36: NA | EG36: NA | EH36: NA | EI36: NA | EJ36: NA | EK36: NA | EL36: NA | EM36: NA | EN36: NA | EO36: NA | EP36: NA | EQ36: NA | ER36: NA | ES36: NA | ET36: NA | EU36: NA | EV36: NA | EW36: 24 | EX36: 4 | EY36: 3 | EZ36: 10 | FA36: 7 | FB36: 34.29489845 | FC36: 56.23302274 | FD36: 52.00358312 | FE36: 61.875 | FF36: 38.125 | FG36: 38.80504069 | FH36: 73.4375 | FI36: 92.1875 | FJ36: 63.63241705 | FK36: 0 | FL36: 0 | FM36: 15.2838278 | FN36: 54.08886849 | FO36: 32.03685687 | FP36: 56.95302731 | FQ36: 72.29995198 | FR36: 57.5 | FS36: 25 | FT36: 39.00637379 | FU36: 77.5 | FV36: 87.5 | FW36: 42.77148131 | FX36: 0 | FY36: 0 | FZ36: 13.85143209 | GA36: 52.85780587 | GB36: 18.7310903 | GC36: 47.50967026 | GD36: 68.80367135 | GE36: 54 | GF36: 28 | GG36: 34.72710911 | GH36: 70 | GI36: 94 | GJ36: 65.06298625 | GK36: 0 | GL36: 0 | GM36: 15.27086575 | GN36: 49.99797486 | GO36: 38.33149545 | GP36: 0 | GQ36: 73.02542547 | GR36: 57.60274493 | GS36: 0 | GT36: 52.87069128 | GU36: 51.36196376 | GV36: 0 | GW36: 78.54822129 | GX36: 51.79569939 | GY36: 0 | GZ36: 80.0524979
A37: 05001 | B37: MEDELLÍN | C37: M | D37: EJE CAFETERO Y ANTIOQUIA | E37: ANTIOQUIA | F37: Valle del aburra | G37: E | H37: C | I37: Ciudades y aglomeraciones | J37: 30.52612868 | K37: 69.47387132 | L37: 20.78910476 | M37: 86.10600313 | N37: 29.60714686 | O37: 70.39285314 | P37: 63.94188007 | Q37: 80 | R37: 14.24962484 | S37: 60 | T37: 73.19454552 | U37: 58.55563641 | V37: 94.11887289 | W37: 100 | X37: 97.2923678 | Y37: 100 | Z37: 10.03394042 | AA37: 100 | AB37: 2 | AC37: 2 | AD37: 0 | AE37: 0 | AF37: 102 | AG37: 20 | AH37: 78.55563641 | AI37: 4. Solvente (>=70 y <80) | AJ37: 27.15876844 | AK37: 72.84123156 | AL37: 20.63111232 | AM37: 56.25174789 | AN37: 29.01629358 | AO37: 70.98370642 | AP37: 66.73370988 | AQ37: 100 | AR37: 14.27242943 | AS37: 60 | AT37: 72.01533718 | AU37: 57.61226974 | AV37: 107.6965752 | AW37: 100 | AX37: 97.96005427 | AY37: 100 | AZ37: 14.10150505 | BA37: 100 | BB37: 2 | BC37: 2 | BD37: 0.03667838729 | BE37: 0.03667838729 | BF37: 100 | BG37: 20 | BH37: 4. Solvente (>=70 y <80) | BI37: 1730399.069 | BJ37: 1545603.038 | BK37: 5668583.419 | BL37: 5690990.892 | BM37: 1010950.221 | BN37: 992833.8491 | BO37: 4862884.824 | BP37: 4812313.722 | BQ37: 21141507.57 | BR37: 6133266.746 | BS37: 6259397.194 | BT37: 21137319.73 | BU37: 1409400.094 | BV37: 1584541.373 | BW37: 2204189.323 | BX37: 2374424.224 | BY37: 824851.4206 | BZ37: 812242.659 | CA37: 5668583.419 | CB37: 5690990.892 | CC37: 2072054.921 | CD37: 2228857.877 | CE37: 2201529.68 | CF37: 2069571.732 | CG37: 4731215.788 | CH37: 4714145.134 | CI37: 4862884.824 | CJ37: 4812313.722 | CK37: 50 | CL37: 50 | CM37: 39.96605958 | CN37: 35.89849495 | CO37: 125 | CP37: 2 | CQ37: 178 | CR37: 2 | CS37: 10 | CT37: 1 | CU37: 13 | CV37: 1 | CW37: 41.49228288 | CX37: 34.76006829 | CY37: 74.85137989 | CZ37: 61.36 | DA37: 41.76 | DB37: 40.67579697 | DC37: 60 | DD37: 92.72 | DE37: 65.54023799 | DF37: 0.16 | DG37: 0.08418797847 | DH37: 14.59632013 | DI37: 55.2721171 | DJ37: 38.54097184 | DK37: 32.12471709 | DL37: 73.81714932 | DM37: 60.05617978 | DN37: 45.16853933 | DO37: 39.95320918 | DP37: 66.29213483 | DQ37: 94.60674157 | DR37: 67.86105604 | DS37: 0.1123595506 | DT37: 0.07340741741 | DU37: 15.28548135 | DV37: 55.23869053 | DW37: 68.29453788 | DX37: 33.2517194 | DY37: 80.19510502 | DZ37: 78 | EA37: 44 | EB37: 48.59861797 | EC37: 85 | ED37: 87 | EE37: 58.77527743 | EF37: 0.4 | EG37: 0.008842168984 | EH37: 15.42678693 | EI37: 64.0254049 | EJ37: 43.51193916 | EK37: 56.51582332 | EL37: 68.08830474 | EM37: 75.38461538 | EN37: 50.76923077 | EO37: 47.08318614 | EP37: 78.46153846 | EQ37: 93.07692308 | ER37: 56.98767857 | ES37: 0.4615384615 | ET37: 0 | EU37: 15.29661447 | EV37: 62.37980061 | EW37: mun | EX37: mun | EY37: mun | EZ37: mun | FA37: mun | FB37: mun | FC37: mun | FD37: mun | FE37: mun | FF37: mun | FG37: mun | FH37: mun | FI37: mun | FJ37: mun | FK37: mun | FL37: mun | FM37: mun | FN37: mun | FO37: mun | FP37: mun | FQ37: mun | FR37: mun | FS37: mun | FT37: mun | FU37: mun | FV37: mun | FW37: mun | FX37: mun | FY37: mun | FZ37: mun | GA37: mun | GB37: mun | GC37: mun | GD37: mun | GE37: mun | GF37: mun | GG37: mun | GH37: mun | GI37: mun | GJ37: mun | GK37: mun | GL37: mun | GM37: mun | GN37: mun | GO37: 67.74423191 | GP37: 0 | GQ37: 25.15590242 | GR37: 66.79230705 | GS37: 0.06034812157 | GT37: 26.25694371 | GU37: 66.73370988 | GV37: 0.03667838729 | GW37: 27.15876844 | GX37: 63.94188007 | GY37: 0 | GZ37: 30.52612868
A38: 05002 | B38: ABEJORRAL | C38: M | D38: EJE CAFETERO Y ANTIOQUIA | E38: ANTIOQUIA | F38: Oriente | G38: 6 | H38: G4 | I38: Rural | J38: 65.50077896 | K38: 34.49922104 | L38: 21.47820665 | M38: 34.86711788 | N38: 21.06316605 | O38: 78.93683395 | P38: 44.12495976 | Q38: 50 | R38: 23.43701445 | S38: 20 | T38: 43.66063457 | U38: 34.92850766 | V38: 137.8146632 | W38: 60 | X38: 96.34137564 | Y38: 100 | Z38: 18.53576233 | AA38: 80.62120573 | AB38: 0 | AC38: 0 | AD38: 0 | AE38: 0 | AF38: 80.20706858 | AG38: 16.04141372 | AH38: 50.96992137 | AI38: 2. Riesgo (>=40 y <60) | AJ38: 68.09378529 | AK38: 31.90621471 | AL38: 27.39611308 | AM38: 39.55274364 | AN38: 22.31960442 | AO38: 77.68039558 | AP38: 44.53592948 | AQ38: 50 | AR38: 16.84569261 | AS38: 40 | AT38: 47.82787079 | AU38: 38.26229663 | AV38: 129.9734689 | AW38: 70 | AX38: 98.81278656 | AY38: 100 | AZ38: 10.53190195 | BA38: 49.93994047 | BB38: 0 | BC38: 0 | BD38: 0 | BE38: 0 | BF38: 73.31331349 | BG38: 14.6626627 | BH38: 2. Riesgo (>=40 y <60) | BI38: 16693.71045 | BJ38: 17376.36853 | BK38: 25486.27774 | BL38: 25518.28843 | BM38: 4325.134744 | BN38: 6983.202823 | BO38: 20137.31787 | BP38: 25489.75762 | BQ38: 94313.65329 | BR38: 20755.32926 | BS38: 19865.4414 | BT38: 92991.47452 | BU38: 2290.016748 | BV38: 2496.060084 | BW38: 5189.844388 | BX38: 5604.598609 | BY38: 5973.222597 | BZ38: 4298.732429 | CA38: 25486.27774 | CB38: 25518.28843 | CC38: 3455.424968 | CD38: 3627.913908 | CE38: 2507.298489 | CF38: 2791.272665 | CG38: 18823.0219 | CH38: 23005.00759 | CI38: 19537.838 | CJ38: 23281.40759 | CK38: 80 | CL38: 80 | CM38: 61.46423767 | CN38: 69.46809805 | CO38: 125 | CP38: 86 | CQ38: 178 | CR38: 126 | CS38: 60 | CT38: 44 | CU38: 218 | CV38: 154 | CW38: 41.49228288 | CX38: 34.76006829 | CY38: 74.85137989 | CZ38: 61.36 | DA38: 41.76 | DB38: 40.67579697 | DC38: 60 | DD38: 92.72 | DE38: 65.54023799 | DF38: 0.16 | DG38: 0.08418797847 | DH38: 14.59632013 | DI38: 55.2721171 | DJ38: 38.54097184 | DK38: 32.12471709 | DL38: 73.81714932 | DM38: 60.05617978 | DN38: 45.16853933 | DO38: 39.95320918 | DP38: 66.29213483 | DQ38: 94.60674157 | DR38: 67.86105604 | DS38: 0.1123595506 | DT38: 0.07340741741 | DU38: 15.28548135 | DV38: 55.23869053 | DW38: 35.17092089 | DX38: 33.91236428 | DY38: 77.02581142 | DZ38: 61.16666667 | EA38: 44 | EB38: 40.20412212 | EC38: 72.33333333 | ED38: 94 | EE38: 73.78236063 | EF38: 0.1 | EG38: 0.02814833793 | EH38: 16.02667593 | EI38: 56.23079805 | EJ38: 18.34058526 | EK38: 36.97826928 | EL38: 74.85474166 | EM38: 58.57798165 | EN38: 55.2293578 | EO38: 39.0369497 | EP38: 54.7706422 | EQ38: 91.55963303 | ER38: 70.74748175 | ES38: 0.04587155963 | ET38: 0.07141694385 | EU38: 14.49510378 | EV38: 53.64243195 | EW38: mun | EX38: mun | EY38: mun | EZ38: mun | FA38: mun | FB38: mun | FC38: mun | FD38: mun | FE38: mun | FF38: mun | FG38: mun | FH38: mun | FI38: mun | FJ38: mun | FK38: mun | FL38: mun | FM38: mun | FN38: mun | FO38: mun | FP38: mun | FQ38: mun | FR38: mun | FS38: mun | FT38: mun | FU38: mun | FV38: mun | FW38: mun | FX38: mun | FY38: mun | FZ38: mun | GA38: mun | GB38: mun | GC38: mun | GD38: mun | GE38: mun | GF38: mun | GG38: mun | GH38: mun | GI38: mun | GJ38: mun | GK38: mun | GL38: mun | GM38: mun | GN38: mun | GO38: 36.74276969 | GP38: 0 | GQ38: 68.5270662 | GR38: 40.25954713 | GS38: 0 | GT38: 55.3198982 | GU38: 44.53592948 | GV38: 0 | GW38: 68.09378529 | GX38: 44.12495976 | GY38: 0 | GZ38: 65.50077896
A39: 05004 | B39: ABRIAQUÍ | C39: M | D39: EJE CAFETERO Y ANTIOQUIA | E39: ANTIOQUIA | F39: Occidente | G39: 6 | H39: G3 | I39: Rural disperso | J39: 65.74100766 | K39: 34.25899234 | L39: 26.07137577 | M39: 44.74454051 | N39: 31.64136976 | O39: 68.35863024 | P39: 22.10199337 | Q39: 30 | R39: 25.41909176 | S39: 20 | T39: 39.47243262 | U39: 31.57794609 | V39: 108.9345622 | W39: 100 | X39: 84.85186759 | Y39: 80 | Z39: 17.47434333 | AA39: 76.00456909 | AB39: 0 | AC39: 0 | AD39: 0 | AE39: 0 | AF39: 85.33485636 | AG39: 17.06697127 | AH39: 48.64491737 | AI39: 2. Riesgo (>=40 y <60) | AJ39: 54.01775427 | AK39: 45.98224573 | AL39: 49.86077073 | AM39: 71.98576953 | AN39: 31.25458083 | AO39: 68.74541917 | AP39: 38.19089885 | AQ39: 50 | AR39: 13.31296213 | AS39: 60 | AT39: 59.34268689 | AU39: 47.47414951 | AV39: 183.5371986 | AW39: 0 | AX39: 92.66576282 | AY39: 100 | AZ39: 21.59794661 | BA39: 100 | BB39: 0 | BC39: 0 | BD39: 0.1969456881 | BE39: 0.1969456881 | BF39: 66.86361235 | BG39: 13.37272247 | BH39: 3. Vulnerable (>=60 y <70) | BI39: 3586.622122 | BJ39: 3786.813263 | BK39: 5455.684739 | BL39: 7010.312285 | BM39: 1181.182268 | BN39: 3442.717673 | BO39: 4530.571299 | BP39: 6904.661966 | BQ39: 15160.9015 | BR39: 4746.811443 | BS39: 4797.116904 | BT39: 15187.57032 | BU39: 304.7861505 | BV39: 707.9282186 | BW39: 1378.99847 | BX39: 1853.656866 | BY39: 1386.78551 | BZ39: 933.2802193 | CA39: 5455.684739 | CB39: 7010.312285 | CC39: 656.834579 | CD39: 904.380062 | CE39: 602.962518 | CF39: 492.750281 | CG39: 3736.504841 | CH39: 6046.793579 | CI39: 4403.562287 | CJ39: 6525.380459 | CK39: 80 | CL39: 80 | CM39: 62.52565667 | CN39: 58.40205339 | CO39: 125 | CP39: 103 | CQ39: 178 | CR39: 150 | CS39: 53 | CT39: 40 | CU39: 218 | CV39: 177 | CW39: 41.49228288 | CX39: 34.76006829 | CY39: 74.85137989 | CZ39: 61.36 | DA39: 41.76 | DB39: 40.67579697 | DC39: 60 | DD39: 92.72 | DE39: 65.54023799 | DF39: 0.16 | DG39: 0.08418797847 | DH39: 14.59632013 | DI39: 55.2721171 | DJ39: 38.54097184 | DK39: 32.12471709 | DL39: 73.81714932 | DM39: 60.05617978 | DN39: 45.16853933 | DO39: 39.95320918 | DP39: 66.29213483 | DQ39: 94.60674157 | DR39: 67.86105604 | DS39: 0.1123595506 | DT39: 0.07340741741 | DU39: 15.28548135 | DV39: 55.23869053 | DW39: 25.71102108 | DX39: 38.87389393 | DY39: 73.64798614 | DZ39: 64.71698113 | EA39: 38.49056604 | EB39: 38.63047173 | EC39: 44.71698113 | ED39: 91.69811321 | EE39: 78.91274641 | EF39: 0.1509433962 | EG39: 0.07533977306 | EH39: 14.40044602 | EI39: 53.03091775 | EJ39: 23.95135566 | EK39: 42.87196998 | EL39: 78.14438498 | EM39: 56.97247706 | EN39: 48.80733945 | EO39: 40.11960434 | EP39: 62.43119266 | EQ39: 92.52293578 | ER39: 73.6854774 | ES39: 0.01834862385 | ET39: 0.04581996451 | EU39: 15.25545959 | EV39: 55.37506393 | EW39: mun | EX39: mun | EY39: mun | EZ39: mun | FA39: mun | FB39: mun | FC39: mun | FD39: mun | FE39: mun | FF39: mun | FG39: mun | FH39: mun | FI39: mun | FJ39: mun | FK39: mun | FL39: mun | FM39: mun | FN39: mun | FO39: mun | FP39: mun | FQ39: mun | FR39: mun | FS39: mun | FT39: mun | FU39: mun | FV39: mun | FW39: mun | FX39: mun | FY39: mun | FZ39: mun | GA39: mun | GB39: mun | GC39: mun | GD39: mun | GE39: mun | GF39: mun | GG39: mun | GH39: mun | GI39: mun | GJ39: mun | GK39: mun | GL39: mun | GM39: mun | GN39: mun | GO39: 22.6805223 | GP39: 0 | GQ39: 43.51977281 | GR39: 22.09879533 | GS39: 0.2930049016 | GT39: 59.83154573 | GU39: 38.19089885 | GV39: 0.1969456881 | GW39: 54.01775427 | GX39: 22.10199337 | GY39: 0 | GZ39: 65.74100766
A40: 05021 | B40: ALEJANDRÍA | C40: M | D40: EJE CAFETERO Y ANTIOQUIA | E40: ANTIOQUIA | F40: Oriente | G40: 6 | H40: G2 | I40: Rural | J40: 56.30223084 | K40: 43.69776916 | L40: 21.41955386 | M40: 25.47373122 | N40: 27.59879395 | O40: 72.40120605 | P40: 26.00797894 | Q40: 40 | R40: 32.83873683 | S40: 0 | T40: 36.31454129 | U40: 29.05163303 | V40: 120.15689 | W40: 70 | X40: 90.53686254 | Y40: 100 | Z40: 0 | AA40: 0 | AB40: 0 | AC40: 0 | AD40: 0 | AE40: 0 | AF40: 56.66666667 | AG40: 11.33333333 | AH40: 40.38496636 | AI40: 2. Riesgo (>=40 y <60) | AJ40: 50.05155208 | AK40: 49.94844792 | AL40: 51.77727791 | AM40: 66.49567251 | AN40: 29.18537835 | AO40: 70.81462165 | AP40: 33.42464583 | AQ40: 40 | AR40: -6.21335126 | AS40: 80 | AT40: 61.45174842 | AU40: 49.16139873 | AV40: 116.8476959 | AW40: 80 | AX40: 70.36406 | AY40: 70 | AZ40: 5.2288257 | BA40: 24.79393043 | BB40: 0 | BC40: 0 | BD40: 0 | BE40: 0 | BF40: 58.26464348 | BG40: 11.6529287 | BH40: 3. Vulnerable (>=60 y <70) | BI40: 5210.999046 | BJ40: 7206.365037 | BK40: 9255.404214 | BL40: 14397.88526 | BM40: 1420.720034 | BN40: 7258.47976 | BO40: 6632.818047 | BP40: 14018.65848 | BQ40: 36407.71551 | BR40: 11329.39519 | BS40: 10048.09039 | BT40: 38818.73675 | BU40: 587.0483344 | BV40: 932.929151 | BW40: 2257.185519 | BX40: 2791.14147 | BY40: 3039.357833 | BZ40: -894.591185 | CA40: 9255.404214 | CB40: 14397.88526 | CC40: 1246.697425 | CD40: 1394.769967 | CE40: 1037.558 | CF40: 1193.66493 | CG40: 5659.997485 | CH40: 9689.575279 | CI40: 6251.594463 | CJ40: 13770.63131 | CK40: 80 | CL40: 80 | CM40: 87.84696051 | CN40: 74.7711743 | CO40: 125 | CP40: 123 | CQ40: 178 | CR40: 176 | CS40: 60 | CT40: 56 | CU40: 217 | CV40: 215 | CW40: 41.49228288 | CX40: 34.76006829 | CY40: 74.85137989 | CZ40: 61.36 | DA40: 41.76 | DB40: 40.67579697 | DC40: 60 | DD40: 92.72 | DE40: 65.54023799 | DF40: 0.16 | DG40: 0.08418797847 | DH40: 14.59632013 | DI40: 55.2721171 | DJ40: 38.54097184 | DK40: 32.12471709 | DL40: 73.81714932 | DM40: 60.05617978 | DN40: 45.16853933 | DO40: 39.95320918 | DP40: 66.29213483 | DQ40: 94.60674157 | DR40: 67.86105604 | DS40: 0.1123595506 | DT40: 0.07340741741 | DU40: 15.28548135 | DV40: 55.23869053 | DW40: 35.17092089 | DX40: 33.91236428 | DY40: 77.02581142 | DZ40: 61.16666667 | EA40: 44 | EB40: 40.20412212 | EC40: 72.33333333 | ED40: 94 | EE40: 73.78236063 | EF40: 0.1 | EG40: 0.02814833793 | EH40: 16.02667593 | EI40: 56.23079805 | EJ40: 28.99269222 | EK40: 29.02779327 | EL40: 77.25411284 | EM40: 61.14678899 | EN40: 47.98165138 | EO40: 39.10448619 | EP40: 69.31192661 | EQ40: 92.43119266 | ER40: 75.74059788 | ES40: 0.02752293578 | ET40: 0.03501753652 | EU40: 15.84098735 | EV40: 55.07662942 | EW40: mun | EX40: mun | EY40: mun | EZ40: mun | FA40: mun | FB40: mun | FC40: mun | FD40: mun | FE40: mun | FF40: mun | FG40: mun | FH40: mun | FI40: mun | FJ40: mun | FK40: mun | FL40: mun | FM40: mun | FN40: mun | FO40: mun | FP40: mun | FQ40: mun | FR40: mun | FS40: mun | FT40: mun | FU40: mun | FV40: mun | FW40: mun | FX40: mun | FY40: mun | FZ40: mun | GA40: mun | GB40: mun | GC40: mun | GD40: mun | GE40: mun | GF40: mun | GG40: mun | GH40: mun | GI40: mun | GJ40: mun | GK40: mun | GL40: mun | GM40: mun | GN40: mun | GO40: 42.10568411 | GP40: 0 | GQ40: 47.17056296 | GR40: 28.10754442 | GS40: 0 | GT40: 68.77388472 | GU40: 33.42464583 | GV40: 0 | GW40: 50.05155208 | GX40: 26.00797894 | GY40: 0 | GZ40: 56.30223084
A41: 05030 | B41: AMAGÁ | C41: M | D41: EJE CAFETERO Y ANTIOQUIA | E41: ANTIOQUIA | F41: Suroeste | G41: 6 | H41: G2 | I41: Intermedio | J41: 46.08997439 | K41: 53.91002561 | L41: 13.7103025 | M41: 16.30531443 | N41: 11.74737727 | O41: 88.25262273 | P41: 59.45155673 | Q41: 80 | R41: 32.5832192 | S41: 0 | T41: 47.69359255 | U41: 38.15487404 | V41: 128.8759582 | W41: 70 | X41: 92.75963185 | Y41: 100 | Z41: 32.24459473 | AA41: 100 | AB41: 0 | AC41: 0 | AD41: 0.1637634043 | AE41: 0.1637634043 | AF41: 90.1637634 | AG41: 18.03275268 | AH41: 56.18762672 | AI41: 2. Riesgo (>=40 y <60) | AJ41: 44.7483918 | AK41: 55.2516082 | AL41: 35.73547064 | AM41: 45.8937636 | AN41: 12.36541704 | AO41: 87.63458296 | AP41: 53.01914057 | AQ41: 70 | AR41: 22.68942955 | AS41: 20 | AT41: 55.75599095 | AU41: 44.60479276 | AV41: 116.2288117 | AW41: 80 | AX41: 84.43667003 | AY41: 80 | AZ41: 28.3419417 | BA41: 100 | BB41: 0 | BC41: 0 | BD41: 0.1007887119 | BE41: 0.1007887119 | BF41: 86.76745538 | BG41: 17.35349108 | BH41: 3. Vulnerable (>=60 y <70) | BI41: 14417.89778 | BJ41: 13973.57793 | BK41: 31282.06941 | BL41: 31226.9947 | BM41: 2952.231112 | BN41: 9582.184984 | BO41: 21532.93929 | BP41: 26814.21236 | BQ41: 140302.4636 | BR41: 16839.0399 | BS41: 16481.85972 | BT41: 136178.5037 | BU41: 9346.385583 | BV41: 6935.590008 | BW41: 15721.01068 | BX41: 13081.29467 | BY41: 10192.70525 | BZ41: 7085.226964 | CA41: 31282.06941 | CB41: 31226.9947 | CC41: 14664.88168 | CD41: 11841.75746 | CE41: 11379.06704 | CF41: 10188.315 | CG41: 19973.87521 | CH41: 22641.02801 | CI41: 21532.93929 | CJ41: 26814.21236 | CK41: 80 | CL41: 80 | CM41: 47.75540527 | CN41: 51.6580583 | CO41: 125 | CP41: 51 | CQ41: 178 | CR41: 74 | CS41: 24 | CT41: 6 | CU41: 217 | CV41: 103 | CW41: 41.49228288 | CX41: 34.76006829 | CY41: 74.85137989 | CZ41: 61.36 | DA41: 41.76 | DB41: 40.67579697 | DC41: 60 | DD41: 92.72 | DE41: 65.54023799 | DF41: 0.16 | DG41: 0.08418797847 | DH41: 14.59632013 | DI41: 55.2721171 | DJ41: 38.54097184 | DK41: 32.12471709 | DL41: 73.81714932 | DM41: 60.05617978 | DN41: 45.16853933 | DO41: 39.95320918 | DP41: 66.29213483 | DQ41: 94.60674157 | DR41: 67.86105604 | DS41: 0.1123595506 | DT41: 0.07340741741 | DU41: 15.28548135 | DV41: 55.23869053 | DW41: 37.47937028 | DX41: 28.15828208 | DY41: 68.77449066 | DZ41: 54.58333333 | EA41: 47.5 | EB41: 37.83927622 | EC41: 56.25 | ED41: 95.41666667 | EE41: 65.3472502 | EF41: 0 | EG41: 0.1192044569 | EH41: 14.49143535 | EI41: 52.33071156 | EJ41: 28.99269222 | EK41: 29.02779327 | EL41: 77.25411284 | EM41: 61.14678899 | EN41: 47.98165138 | EO41: 39.10448619 | EP41: 69.31192661 | EQ41: 92.43119266 | ER41: 75.74059788 | ES41: 0.02752293578 | ET41: 0.03501753652 | EU41: 15.84098735 | EV41: 55.07662942 | EW41: mun | EX41: mun | EY41: mun | EZ41: mun | FA41: mun | FB41: mun | FC41: mun | FD41: mun | FE41: mun | FF41: mun | FG41: mun | FH41: mun | FI41: mun | FJ41: mun | FK41: mun | FL41: mun | FM41: mun | FN41: mun | FO41: mun | FP41: mun | FQ41: mun | FR41: mun | FS41: mun | FT41: mun | FU41: mun | FV41: mun | FW41: mun | FX41: mun | FY41: mun | FZ41: mun | GA41: mun | GB41: mun | GC41: mun | GD41: mun | GE41: mun | GF41: mun | GG41: mun | GH41: mun | GI41: mun | GJ41: mun | GK41: mun | GL41: mun | GM41: mun | GN41: mun | GO41: 53.48330666 | GP41: 0 | GQ41: 51.77694537 | GR41: 53.78789517 | GS41: 0 | GT41: 41.12101836 | GU41: 53.01914057 | GV41: 0.1007887119 | GW41: 44.7483918 | GX41: 59.45155673 | GY41: 0.1637634043 | GZ41: 46.08997439
A42: 05031 | B42: AMALFI | C42: M | D42: EJE CAFETERO Y ANTIOQUIA | E42: ANTIOQUIA | F42: Nordeste | G42: 6 | H42: G2 | I42: Rural | J42: 64.73748226 | K42: 35.26251774 | L42: 19.68906139 | M42: 23.41570048 | N42: 28.52685548 | O42: 71.47314452 | P42: 14.54096116 | Q42: 20 | R42: 13.91636888 | S42: 60 | T42: 42.03027255 | U42: 33.62421804 | V42: 123.3847796 | W42: 70 | X42: 93.68045381 | Y42: 100 | Z42: 0 | AA42: 0 | AB42: 0 | AC42: 0 | AD42: 0 | AE42: 0 | AF42: 56.66666667 | AG42: 11.33333333 | AH42: 44.95755137 | AI42: 2. Riesgo (>=40 y <60) | AJ42: 47.94059567 | AK42: 52.05940433 | AL42: 33.27362499 | AM42: 42.73210489 | AN42: 35.27048568 | AO42: 64.72951432 | AP42: 32.97834546 | AQ42: 40 | AR42: 3.773329685 | AS42: 100 | AT42: 59.90420471 | AU42: 47.92336377 | AV42: 115.3961717 | AW42: 80 | AX42: 95.97346952 | AY42: 100 | AZ42: 13.02665675 | BA42: 61.76951379 | BB42: 0 | BC42: 0 | BD42: 0 | BE42: 0 | BF42: 80.58983793 | BG42: 16.11796759 | BH42: 3. Vulnerable (>=60 y <70) | BI42: 22072.0584 | BJ42: 18785.92175 | BK42: 34094.71242 | BL42: 39185.83297 | BM42: 5255.726238 | BN42: 11917.39459 | BO42: 26693.63529 | BP42: 35816.33978 | BQ42: 89896.6285 | BR42: 28144.01553 | BS42: 25644.68129 | BT42: 79794.80574 | BU42: 1329.520993 | BV42: 3170.192854 | BW42: 9143.281369 | BX42: 9612.953015 | BY42: 4744.745949 | BZ42: 1478.610668 | CA42: 34094.71242 | CB42: 39185.83297 | CC42: 6626.951154 | CD42: 7236.891812 | CE42: 5370.963238 | CF42: 6271.3448 | CG42: 24495.45155 | CH42: 34374.18394 | CI42: 26147.87884 | CJ42: 35816.33978 | CK42: 80 | CL42: 80 | CM42: 89.20487921 | CN42: 66.97334325 | CO42: 125 | CP42: 116 | CQ42: 178 | CR42: 169 | CS42: 10 | CT42: 10 | CU42: 217 | CV42: 204 | CW42: 41.49228288 | CX42: 34.76006829 | CY42: 74.85137989 | CZ42: 61.36 | DA42: 41.76 | DB42: 40.67579697 | DC42: 60 | DD42: 92.72 | DE42: 65.54023799 | DF42: 0.16 | DG42: 0.08418797847 | DH42: 14.59632013 | DI42: 55.2721171 | DJ42: 38.54097184 | DK42: 32.12471709 | DL42: 73.81714932 | DM42: 60.05617978 | DN42: 45.16853933 | DO42: 39.95320918 | DP42: 66.29213483 | DQ42: 94.60674157 | DR42: 67.86105604 | DS42: 0.1123595506 | DT42: 0.07340741741 | DU42: 15.28548135 | DV42: 55.23869053 | DW42: 36.00553024 | DX42: 30.81039862 | DY42: 70.15497961 | DZ42: 64 | EA42: 48 | EB42: 39.83534535 | EC42: 65 | ED42: 93 | EE42: 61.66521957 | EF42: 0.6 | EG42: 0.06767182224 | EH42: 14.77788234 | EI42: 54.61322769 | EJ42: 28.99269222 | EK42: 29.02779327 | EL42: 77.25411284 | EM42: 61.14678899 | EN42: 47.98165138 | EO42: 39.10448619 | EP42: 69.31192661 | EQ42: 92.43119266 | ER42: 75.74059788 | ES42: 0.02752293578 | ET42: 0.03501753652 | EU42: 15.84098735 | EV42: 55.07662942 | EW42: mun | EX42: mun | EY42: mun | EZ42: mun | FA42: mun | FB42: mun | FC42: mun | FD42: mun | FE42: mun | FF42: mun | FG42: mun | FH42: mun | FI42: mun | FJ42: mun | FK42: mun | FL42: mun | FM42: mun | FN42: mun | FO42: mun | FP42: mun | FQ42: mun | FR42: mun | FS42: mun | FT42: mun | FU42: mun | FV42: mun | FW42: mun | FX42: mun | FY42: mun | FZ42: mun | GA42: mun | GB42: mun | GC42: mun | GD42: mun | GE42: mun | GF42: mun | GG42: mun | GH42: mun | GI42: mun | GJ42: mun | GK42: mun | GL42: mun | GM42: mun | GN42: mun | GO42: 33.9360704 | GP42: 0 | GQ42: 51.84286043 | GR42: 32.53480125 | GS42: 0 | GT42: 43.50200271 | GU42: 32.97834546 | GV42: 0 | GW42: 47.94059567 | GX42: 14.54096116 | GY42: 0 | GZ42: 64.73748226
A43: 05034 | B43: ANDES | C43: M | D43: EJE CAFETERO Y ANTIOQUIA | E43: ANTIOQUIA | F43: Suroeste | G43: 6 | H43: G2 | I43: Intermedio | J43: 62.4473519 | K43: 37.5526481 | L43: 12.55706323 | M43: 14.93379628 | N43: 46.64874142 | O43: 53.35125858 | P43: 47.18754113 | Q43: 70 | R43: 15.02992679 | S43: 40 | T43: 43.16754059 | U43: 34.53403247 | V43: 115.9200123 | W43: 80 | X43: 95.48383439 | Y43: 100 | Z43: 20.5768759 | AA43: 89.49901904 | AB43: 0 | AC43: 0 | AD43: 0.2525846199 | AE43: 0.2525846199 | AF43: 90.08559097 | AG43: 18.01711819 | AH43: 52.55115067 | AI43: 2. Riesgo (>=40 y <60) | AJ43: 52.18788602 | AK43: 47.81211398 | AL43: 11.77139259 | AM43: 16.99477849 | AN43: 54.55692747 | AO43: 45.44307253 | AP43: 55.94622594 | AQ43: 80 | AR43: 5.86901528 | AS43: 80 | AT43: 54.049993 | AU43: 43.2399944 | AV43: 111.7831024 | AW43: 80 | AX43: 89.78408493 | AY43: 80 | AZ43: 9.755597315 | BA43: 46.25887627 | BB43: 0 | BC43: 0 | BD43: 0 | BE43: 0 | BF43: 68.75295876 | BG43: 13.75059175 | BH43: 2. Riesgo (>=40 y <60) | BI43: 30883.39031 | BJ43: 30251.8352 | BK43: 49455.08395 | BL43: 57967.15963 | BM43: 4728.110672 | BN43: 5624.594935 | BO43: 37652.99724 | BP43: 47781.89914 | BQ43: 113348.1389 | BR43: 56039.27444 | BS43: 52875.48023 | BT43: 102717.0646 | BU43: 6971.443065 | BV43: 11001.08403 | BW43: 14773.9062 | BX43: 19663.67498 | BY43: 7433.06291 | BZ43: 3402.101456 | CA43: 49455.08395 | CB43: 57967.15963 | CC43: 12574.70914 | CD43: 12073.44746 | CE43: 10847.74655 | CF43: 10800.78044 | CG43: 35952.52553 | CH43: 42900.5409 | CI43: 37652.99724 | CJ43: 47781.89914 | CK43: 80 | CL43: 80 | CM43: 59.4231241 | CN43: 70.24440268 | CO43: 125 | CP43: 71 | CQ43: 178 | CR43: 106 | CS43: 24 | CT43: 14 | CU43: 218 | CV43: 129 | CW43: 41.49228288 | CX43: 34.76006829 | CY43: 74.85137989 | CZ43: 61.36 | DA43: 41.76 | DB43: 40.67579697 | DC43: 60 | DD43: 92.72 | DE43: 65.54023799 | DF43: 0.16 | DG43: 0.08418797847 | DH43: 14.59632013 | DI43: 55.2721171 | DJ43: 38.54097184 | DK43: 32.12471709 | DL43: 73.81714932 | DM43: 60.05617978 | DN43: 45.16853933 | DO43: 39.95320918 | DP43: 66.29213483 | DQ43: 94.60674157 | DR43: 67.86105604 | DS43: 0.1123595506 | DT43: 0.07340741741 | DU43: 15.28548135 | DV43: 55.23869053 | DW43: 37.47937028 | DX43: 28.15828208 | DY43: 68.77449066 | DZ43: 54.58333333 | EA43: 47.5 | EB43: 37.83927622 | EC43: 56.25 | ED43: 95.41666667 | EE43: 65.3472502 | EF43: 0 | EG43: 0.1192044569 | EH43: 14.49143535 | EI43: 52.33071156 | EJ43: 28.99269222 | EK43: 29.02779327 | EL43: 77.25411284 | EM43: 61.14678899 | EN43: 47.98165138 | EO43: 39.10448619 | EP43: 69.31192661 | EQ43: 92.43119266 | ER43: 75.74059788 | ES43: 0.02752293578 | ET43: 0.03501753652 | EU43: 15.84098735 | EV43: 55.07662942 | EW43: mun | EX43: mun | EY43: mun | EZ43: mun | FA43: mun | FB43: mun | FC43: mun | FD43: mun | FE43: mun | FF43: mun | FG43: mun | FH43: mun | FI43: mun | FJ43: mun | FK43: mun | FL43: mun | FM43: mun | FN43: mun | FO43: mun | FP43: mun | FQ43: mun | FR43: mun | FS43: mun | FT43: mun | FU43: mun | FV43: mun | FW43: mun | FX43: mun | FY43: mun | FZ43: mun | GA43: mun | GB43: mun | GC43: mun | GD43: mun | GE43: mun | GF43: mun | GG43: mun | GH43: mun | GI43: mun | GJ43: mun | GK43: mun | GL43: mun | GM43: mun | GN43: mun | GO43: 30.29541044 | GP43: 0 | GQ43: 71.24783415 | GR43: 21.33536825 | GS43: 0 | GT43: 67.46361993 | GU43: 55.94622594 | GV43: 0 | GW43: 52.18788602 | GX43: 47.18754113 | GY43: 0.2525846199 | GZ43: 62.4473519
A44: 05036 | B44: ANGELÓPOLIS | C44: M | D44: EJE CAFETERO Y ANTIOQUIA | E44: ANTIOQUIA | F44: Suroeste | G44: 6 | H44: G2 | I44: Intermedio | J44: 68.14874589 | K44: 31.85125411 | L44: 24.15152035 | M44: 28.72278955 | N44: 11.5893224 | O44: 88.4106776 | P44: 46.05561085 | Q44: 70 | R44: 30.42837612 | S44: 0 | T44: 43.79694425 | U44: 35.0375554 | V44: 119.3020596 | W44: 80 | X44: 97.08031769 | Y44: 100 | Z44: 0 | AA44: 0 | AB44: 0 | AC44: 0 | AD44: 0 | AE44: 0 | AF44: 60 | AG44: 12 | AH44: 47.0375554 | AI44: 2. Riesgo (>=40 y <60) | AJ44: 41.71267635 | AK44: 58.28732365 | AL44: 59.67641377 | AM44: 86.15696278 | AN44: 24.57533631 | AO44: 75.42466369 | AP44: 43.5515057 | AQ44: 50 | AR44: -3.147362755 | AS44: 100 | AT44: 73.97379002 | AU44: 59.17903202 | AV44: 134.4595012 | AW44: 60 | AX44: 55.12826224 | AY44: 50 | AZ44: 11.61547788 | BA44: 55.07801693 | BB44: 0 | BC44: 0 | BD44: 0 | BE44: 0 | BF44: 55.02600564 | BG44: 11.00520113 | BH44: 4. Solvente (>=70 y <80) | BI44: 6209.974127 | BJ44: 4533.46088 | BK44: 9112.382108 | BL44: 10868.30498 | BM44: 1515.215605 | BN44: 7133.895501 | BO44: 6273.789737 | BP44: 11954.2966 | BQ44: 64381.78476 | BR44: 7720.245657 | BS44: 7461.412604 | BT44: 31414.60837 | BU44: 1425.479802 | BV44: 1265.517509 | BW44: 3095.127338 | BX44: 2905.795078 | BY44: 2772.749901 | BZ44: -342.064983 | CA44: 9112.382108 | CB44: 10868.30498 | CC44: 1928.24817 | CD44: 1989.993966 | CE44: 1616.274 | CF44: 1479.995053 | CG44: 6090.615008 | CH44: 6574.210231 | CI44: 6273.789737 | CJ44: 11925.29923 | CK44: 80 | CL44: 80 | CM44: 62.59796949 | CN44: 68.38452212 | CO44: 125 | CP44: 110 | CQ44: 178 | CR44: 161 | CS44: 24 | CT44: 20 | CU44: 218 | CV44: 187 | CW44: 41.49228288 | CX44: 34.76006829 | CY44: 74.85137989 | CZ44: 61.36 | DA44: 41.76 | DB44: 40.67579697 | DC44: 60 | DD44: 92.72 | DE44: 65.54023799 | DF44: 0.16 | DG44: 0.08418797847 | DH44: 14.59632013 | DI44: 55.2721171 | DJ44: 38.54097184 | DK44: 32.12471709 | DL44: 73.81714932 | DM44: 60.05617978 | DN44: 45.16853933 | DO44: 39.95320918 | DP44: 66.29213483 | DQ44: 94.60674157 | DR44: 67.86105604 | DS44: 0.1123595506 | DT44: 0.07340741741 | DU44: 15.28548135 | DV44: 55.23869053 | DW44: 37.47937028 | DX44: 28.15828208 | DY44: 68.77449066 | DZ44: 54.58333333 | EA44: 47.5 | EB44: 37.83927622 | EC44: 56.25 | ED44: 95.41666667 | EE44: 65.3472502 | EF44: 0 | EG44: 0.1192044569 | EH44: 14.49143535 | EI44: 52.33071156 | EJ44: 28.99269222 | EK44: 29.02779327 | EL44: 77.25411284 | EM44: 61.14678899 | EN44: 47.98165138 | EO44: 39.10448619 | EP44: 69.31192661 | EQ44: 92.43119266 | ER44: 75.74059788 | ES44: 0.02752293578 | ET44: 0.03501753652 | EU44: 15.84098735 | EV44: 55.07662942 | EW44: mun | EX44: mun | EY44: mun | EZ44: mun | FA44: mun | FB44: mun | FC44: mun | FD44: mun | FE44: mun | FF44: mun | FG44: mun | FH44: mun | FI44: mun | FJ44: mun | FK44: mun | FL44: mun | FM44: mun | FN44: mun | FO44: mun | FP44: mun | FQ44: mun | FR44: mun | FS44: mun | FT44: mun | FU44: mun | FV44: mun | FW44: mun | FX44: mun | FY44: mun | FZ44: mun | GA44: mun | GB44: mun | GC44: mun | GD44: mun | GE44: mun | GF44: mun | GG44: mun | GH44: mun | GI44: mun | GJ44: mun | GK44: mun | GL44: mun | GM44: mun | GN44: mun | GO44: 53.16269173 | GP44: 0 | GQ44: 64.40708428 | GR44: 33.61158237 | GS44: 0 | GT44: 51.36320655 | GU44: 43.5515057 | GV44: 0 | GW44: 41.71267635 | GX44: 46.05561085 | GY44: 0 | GZ44: 68.14874589
A45: 05038 | B45: ANGOSTURA | C45: M | D45: EJE CAFETERO Y ANTIOQUIA | E45: ANTIOQUIA | F45: Norte | G45: 6 | H45: G3 | I45: Rural disperso | J45: 72.83336247 | K45: 27.16663753 | L45: 32.8648447 | M45: 56.40371217 | N45: 21.59210307 | O45: 78.40789693 | P45: 28.66682676 | Q45: 40 | R45: 14.08858663 | S45: 60 | T45: 52.39564933 | U45: 41.91651946 | V45: 140.5921492 | W45: 50 | X45: 90.3995016 | Y45: 100 | Z45: 12.52287694 | AA45: 54.46819076 | AB45: 0 | AC45: 0 | AD45: 0.1441261221 | AE45: 0.1441261221 | AF45: 68.30018971 | AG45: 13.66003794 | AH45: 55.5765574 | AI45: 2. Riesgo (>=40 y <60) | AJ45: 61.59239351 | AK45: 38.40760649 | AL45: 35.75918446 | AM45: 51.62680747 | AN45: 25.78200406 | AO45: 74.21799594 | AP45: 48.2597801 | AQ45: 70 | AR45: 6.24876181 | AS45: 80 | AT45: 62.85048198 | AU45: 50.28038558 | AV45: 129.9812744 | AW45: 70 | AX45: 94.51427523 | AY45: 100 | AZ45: 4.409995642 | BA45: 20.91122011 | BB45: 0 | BC45: 0 | BD45: 0.1617979717 | BE45: 0.1617979717 | BF45: 63.79887134 | BG45: 12.75977427 | BH45: 3. Vulnerable (>=60 y <70) | BI45: 14232.11682 | BJ45: 12198.57666 | BK45: 19540.65601 | BL45: 19805.32979 | BM45: 5606.360618 | BN45: 6261.244003 | BO45: 17058.83801 | BP45: 17509.47092 | BQ45: 71229.82648 | BR45: 14125.4743 | BS45: 15380.01755 | BT45: 54788.11606 | BU45: 1569.754637 | BV45: 2781.334869 | BW45: 5475.857689 | BX45: 5763.256408 | BY45: 2811.369966 | BZ45: 1237.587884 | CA45: 19540.65601 | CB45: 19805.32979 | CC45: 3340.469465 | CD45: 3044.509797 | CE45: 2376 | CF45: 2342.268 | CG45: 12988.14571 | CH45: 15309.18579 | CI45: 14367.49703 | CJ45: 16197.74976 | CK45: 80 | CL45: 80 | CM45: 67.47712306 | CN45: 75.59000436 | CO45: 125 | CP45: 54 | CQ45: 178 | CR45: 78 | CS45: 133 | CT45: 62 | CU45: 218 | CV45: 103 | CW45: 41.49228288 | CX45: 34.76006829 | CY45: 74.85137989 | CZ45: 61.36 | DA45: 41.76 | DB45: 40.67579697 | DC45: 60 | DD45: 92.72 | DE45: 65.54023799 | DF45: 0.16 | DG45: 0.08418797847 | DH45: 14.59632013 | DI45: 55.2721171 | DJ45: 38.54097184 | DK45: 32.12471709 | DL45: 73.81714932 | DM45: 60.05617978 | DN45: 45.16853933 | DO45: 39.95320918 | DP45: 66.29213483 | DQ45: 94.60674157 | DR45: 67.86105604 | DS45: 0.1123595506 | DT45: 0.07340741741 | DU45: 15.28548135 | DV45: 55.23869053 | DW45: 24.43407725 | DX45: 34.95849314 | DY45: 74.10196205 | DZ45: 57.44360902 | EA45: 57.7443609 | EB45: 39.78920038 | EC45: 64.66165414 | ED45: 93.83458647 | EE45: 75.26525523 | EF45: 0.01503759398 | EG45: 0.01998988022 | EH45: 15.5880977 | EI45: 55.37729808 | EJ45: 23.95135566 | EK45: 42.87196998 | EL45: 78.14438498 | EM45: 56.97247706 | EN45: 48.80733945 | EO45: 40.11960434 | EP45: 62.43119266 | EQ45: 92.52293578 | ER45: 73.6854774 | ES45: 0.01834862385 | ET45: 0.04581996451 | EU45: 15.25545959 | EV45: 55.37506393 | EW45: mun | EX45: mun | EY45: mun | EZ45: mun | FA45: mun | FB45: mun | FC45: mun | FD45: mun | FE45: mun | FF45: mun | FG45: mun | FH45: mun | FI45: mun | FJ45: mun | FK45: mun | FL45: mun | FM45: mun | FN45: mun | FO45: mun | FP45: mun | FQ45: mun | FR45: mun | FS45: mun | FT45: mun | FU45: mun | FV45: mun | FW45: mun | FX45: mun | FY45: mun | FZ45: mun | GA45: mun | GB45: mun | GC45: mun | GD45: mun | GE45: mun | GF45: mun | GG45: mun | GH45: mun | GI45: mun | GJ45: mun | GK45: mun | GL45: mun | GM45: mun | GN45: mun | GO45: 32.65824359 | GP45: 0 | GQ45: 63.22731035 | GR45: 25.9469483 | GS45: 0 | GT45: 62.19642702 | GU45: 48.2597801 | GV45: 0.1617979717 | GW45: 61.59239351 | GX45: 28.66682676 | GY45: 0.1441261221 | GZ45: 72.83336247
A46: 05040 | B46: ANORÍ | C46: M | D46: EJE CAFETERO Y ANTIOQUIA | E46: ANTIOQUIA | F46: Nordeste | G46: 6 | H46: G4 | I46: Rural | J46: 61.90565579 | K46: 38.09434421 | L46: 20.90889416 | M46: 33.94291197 | N46: 11.93610428 | O46: 88.06389572 | P46: 49.22897987 | Q46: 70 | R46: -12.8606785 | S46: 60 | T46: 58.02023038 | U46: 46.4161843 | V46: 202.1999663 | W46: 0 | X46: 90.29318991 | Y46: 100 | Z46: 23.80136126 | AA46: 100 | AB46: 0 | AC46: 0 | AD46: 0.1622629571 | AE46: 0.1622629571 | AF46: 66.82892962 | AG46: 13.36578592 | AH46: 59.78197023 | AI46: 2. Riesgo (>=40 y <60) | AJ46: 61.63606225 | AK46: 38.36393775 | AL46: 36.81299031 | AM46: 53.14822448 | AN46: 38.59587007 | AO46: 61.40412993 | AP46: 46.89050788 | AQ46: 70 | AR46: 19.6446228 | AS46: 40 | AT46: 52.58325843 | AU46: 42.06660675 | AV46: 168.7217253 | AW46: 0 | AX46: 99.92333524 | AY46: 100 | AZ46: 14.65896422 | BA46: 69.50955337 | BB46: 0 | BC46: 0 | BD46: 0 | BE46: 0 | BF46: 56.50318446 | BG46: 11.30063689 | BH46: 2. Riesgo (>=40 y <60) | BI46: 12152.41794 | BJ46: 16552.81046 | BK46: 19630.54553 | BL46: 26855.72352 | BM46: 4387.264056 | BN46: 9199.387583 | BO46: 20982.76466 | BP46: 24989.51459 | BQ46: 83914.58258 | BR46: 33279.73265 | BS46: 10016.13209 | BT46: 86226.14956 | BU46: 2922.910459 | BV46: 2830.232325 | BW46: 5937.377673 | BX46: 6035.832096 | BY46: -2524.621347 | BZ46: 5275.705586 | CA46: 19630.54553 | CB46: 26855.72352 | CC46: 4308.881282 | CD46: 3140.76155 | CE46: 2131 | CF46: 1861.503932 | CG46: 18477.13915 | CH46: 23322.47553 | CI46: 20463.4914 | CJ46: 23340.36937 | CK46: 80 | CL46: 80 | CM46: 56.19863874 | CN46: 65.34103578 | CO46: 125 | CP46: 35 | CQ46: 178 | CR46: 43 | CS46: 10 | CT46: 3 | CU46: 218 | CV46: 60 | CW46: 41.49228288 | CX46: 34.76006829 | CY46: 74.85137989 | CZ46: 61.36 | DA46: 41.76 | DB46: 40.67579697 | DC46: 60 | DD46: 92.72 | DE46: 65.54023799 | DF46: 0.16 | DG46: 0.08418797847 | DH46: 14.59632013 | DI46: 55.2721171 | DJ46: 38.54097184 | DK46: 32.12471709 | DL46: 73.81714932 | DM46: 60.05617978 | DN46: 45.16853933 | DO46: 39.95320918 | DP46: 66.29213483 | DQ46: 94.60674157 | DR46: 67.86105604 | DS46: 0.1123595506 | DT46: 0.07340741741 | DU46: 15.28548135 | DV46: 55.23869053 | DW46: 36.00553024 | DX46: 30.81039862 | DY46: 70.15497961 | DZ46: 64 | EA46: 48 | EB46: 39.83534535 | EC46: 65 | ED46: 93 | EE46: 61.66521957 | EF46: 0.6 | EG46: 0.06767182224 | EH46: 14.77788234 | EI46: 54.61322769 | EJ46: 18.34058526 | EK46: 36.97826928 | EL46: 74.85474166 | EM46: 58.57798165 | EN46: 55.2293578 | EO46: 39.0369497 | EP46: 54.7706422 | EQ46: 91.55963303 | ER46: 70.74748175 | ES46: 0.04587155963 | ET46: 0.07141694385 | EU46: 14.49510378 | EV46: 53.64243195 | EW46: mun | EX46: mun | EY46: mun | EZ46: mun | FA46: mun | FB46: mun | FC46: mun | FD46: mun | FE46: mun | FF46: mun | FG46: mun | FH46: mun | FI46: mun | FJ46: mun | FK46: mun | FL46: mun | FM46: mun | FN46: mun | FO46: mun | FP46: mun | FQ46: mun | FR46: mun | FS46: mun | FT46: mun | FU46: mun | FV46: mun | FW46: mun | FX46: mun | FY46: mun | FZ46: mun | GA46: mun | GB46: mun | GC46: mun | GD46: mun | GE46: mun | GF46: mun | GG46: mun | GH46: mun | GI46: mun | GJ46: mun | GK46: mun | GL46: mun | GM46: mun | GN46: mun | GO46: 38.58512808 | GP46: 0 | GQ46: 58.31782875 | GR46: 29.83004295 | GS46: 0 | GT46: 55.4053041 | GU46: 46.89050788 | GV46: 0 | GW46: 61.63606225 | GX46: 49.22897987 | GY46: 0.1622629571 | GZ46: 61.90565579
A47: 05042 | B47: SANTAFÉ DE ANTIOQUIA | C47: M | D47: EJE CAFETERO Y ANTIOQUIA | E47: ANTIOQUIA | F47: Occidente | G47: 5 | H47: G1 | I47: Rural | J47: 46.64594709 | K47: 53.35405291 | L47: 36.79289555 | M47: 43.28533567 | N47: 22.83226919 | O47: 77.16773081 | P47: 36.02080397 | Q47: 50 | R47: -18.49490971 | S47: 40 | T47: 52.76142388 | U47: 42.2091391 | V47: 91.24201442 | W47: 100 | X47: 68.6621325 | Y47: 60 | Z47: 0 | AA47: 0 | AB47: 0 | AC47: 0 | AD47: 0 | AE47: 0 | AF47: 53.33333333 | AG47: 10.66666667 | AH47: 52.87580577 | AI47: 2. Riesgo (>=40 y <60) | AJ47: 38.84406936 | AK47: 61.15593064 | AL47: 32.87947861 | AM47: 42.40121212 | AN47: 23.46030975 | AO47: 76.53969025 | AP47: 39.9152885 | AQ47: 50 | AR47: 4.266707275 | AS47: 100 | AT47: 66.0193666 | AU47: 52.81549328 | AV47: 106.0115478 | AW47: 100 | AX47: 89.8335714 | AY47: 80 | AZ47: 15.57032908 | BA47: 57.20013848 | BB47: 0 | BC47: 0 | BD47: 0.06222708135 | BE47: 0.06222708135 | BF47: 79.12893991 | BG47: 15.82578798 | BH47: 3. Vulnerable (>=60 y <70) | BI47: 19187.71488 | BJ47: 18331.9998 | BK47: 41134.79537 | BL47: 47193.81903 | BM47: 14439.34747 | BN47: 11218.70742 | BO47: 39244.93372 | BP47: 34120.69745 | BQ47: 163805.4472 | BR47: 36845.93081 | BS47: 37400.50064 | BT47: 157056.4549 | BU47: 5948.335831 | BV47: 7586.568652 | BW47: 16513.61207 | BX47: 19006.67372 | BY47: -7622.61949 | BZ47: 2013.62211 | CA47: 41134.79537 | CB47: 47193.81903 | CC47: 15193.34651 | CD47: 16192.0978 | CE47: 16651.7 | CF47: 15273.9 | CG47: 26946.40839 | CH47: 30651.84111 | CI47: 39244.93372 | CJ47: 34120.69745 | CK47: 80 | CL47: 80 | CM47: 73.77842599 | CN47: 64.42967092 | CO47: 125 | CP47: 67 | CQ47: 178 | CR47: 101 | CS47: 53 | CT47: 29 | CU47: 217 | CV47: 166 | CW47: 41.49228288 | CX47: 34.76006829 | CY47: 74.85137989 | CZ47: 61.36 | DA47: 41.76 | DB47: 40.67579697 | DC47: 60 | DD47: 92.72 | DE47: 65.54023799 | DF47: 0.16 | DG47: 0.08418797847 | DH47: 14.59632013 | DI47: 55.2721171 | DJ47: 38.54097184 | DK47: 32.12471709 | DL47: 73.81714932 | DM47: 60.05617978 | DN47: 45.16853933 | DO47: 39.95320918 | DP47: 66.29213483 | DQ47: 94.60674157 | DR47: 67.86105604 | DS47: 0.1123595506 | DT47: 0.07340741741 | DU47: 15.28548135 | DV47: 55.23869053 | DW47: 25.71102108 | DX47: 38.87389393 | DY47: 73.64798614 | DZ47: 64.71698113 | EA47: 38.49056604 | EB47: 38.63047173 | EC47: 44.71698113 | ED47: 91.69811321 | EE47: 78.91274641 | EF47: 0.1509433962 | EG47: 0.07533977306 | EH47: 14.40044602 | EI47: 53.03091775 | EJ47: 47.27531454 | EK47: 31.39476405 | EL47: 79.08724626 | EM47: 72.94930876 | EN47: 33.3640553 | EO47: 42.25131023 | EP47: 71.47465438 | EQ47: 88.47926267 | ER47: 74.20876562 | ES47: 0.1566820276 | ET47: 0.02422083269 | EU47: 15.63950749 | EV47: 57.89081772 | EW47: mun | EX47: mun | EY47: mun | EZ47: mun | FA47: mun | FB47: mun | FC47: mun | FD47: mun | FE47: mun | FF47: mun | FG47: mun | FH47: mun | FI47: mun | FJ47: mun | FK47: mun | FL47: mun | FM47: mun | FN47: mun | FO47: mun | FP47: mun | FQ47: mun | FR47: mun | FS47: mun | FT47: mun | FU47: mun | FV47: mun | FW47: mun | FX47: mun | FY47: mun | FZ47: mun | GA47: mun | GB47: mun | GC47: mun | GD47: mun | GE47: mun | GF47: mun | GG47: mun | GH47: mun | GI47: mun | GJ47: mun | GK47: mun | GL47: mun | GM47: mun | GN47: mun | GO47: 42.42221764 | GP47: 0 | GQ47: 47.35988242 | GR47: 37.35149959 | GS47: 0.06637083269 | GT47: 34.45091735 | GU47: 39.9152885 | GV47: 0.06222708135 | GW47: 38.84406936 | GX47: 36.02080397 | GY47: 0 | GZ47: 46.64594709
A48: 05044 | B48: ANZA | C48: M | D48: EJE CAFETERO Y ANTIOQUIA | E48: ANTIOQUIA | F48: Occidente | G48: 6 | H48: G3 | I48: Rural disperso | J48: 78.11666288 | K48: 21.88333712 | L48: 18.89790013 | M48: 32.43318899 | N48: 23.51459393 | O48: 76.48540607 | P48: 36.17499141 | Q48: 50 | R48: 17.35559779 | S48: 40 | T48: 44.16038644 | U48: 35.32830915 | V48: 124.0681044 | W48: 70 | X48: 93.22398999 | Y48: 100 | Z48: 9.480402897 | AA48: 41.23496508 | AB48: 0 | AC48: 0 | AD48: 0 | AE48: 0 | AF48: 70.41165503 | AG48: 14.08233101 | AH48: 49.41064015 | AI48: 2. Riesgo (>=40 y <60) | AJ48: 61.85014442 | AK48: 38.14985558 | AL48: 50.66581323 | AM48: 64.42392061 | AN48: 25.44694024 | AO48: 74.55305976 | AP48: 35.35051667 | AQ48: 50 | AR48: -39.09047555 | AS48: 0 | AT48: 45.42536719 | AU48: 36.34029375 | AV48: 173.4250378 | AW48: 0 | AX48: 78.62593833 | AY48: 70 | AZ48: 4.686897646 | BA48: 22.22422793 | BB48: 0 | BC48: 0 | BD48: 0 | BE48: 0 | BF48: 30.74140931 | BG48: 6.148281862 | BH48: 2. Riesgo (>=40 y <60) | BI48: 9329.364531 | BJ48: 8349.292991 | BK48: 11942.86108 | BL48: 13499.22958 | BM48: 1670.360679 | BN48: 8518.917191 | BO48: 8838.869228 | BP48: 16813.93557 | BQ48: 39940.88756 | BR48: 9483.931595 | BS48: 9391.937521 | BT48: 37269.43792 | BU48: 1116.087107 | BV48: 1144.654279 | BW48: 3085.244983 | BX48: 3238.012869 | BY48: 2075.582607 | BZ48: -5276.913039 | CA48: 11942.86108 | CB48: 13499.22958 | CC48: 1031.868747 | CD48: 1935.381021 | CE48: 831.695424 | CF48: 1115.975551 | CG48: 8239.946564 | CH48: 13220.11461 | CI48: 8838.869228 | CJ48: 16813.93557 | CK48: 80 | CL48: 80 | CM48: 70.5195971 | CN48: 75.31310235 | CO48: 125 | CP48: 97 | CQ48: 178 | CR48: 141 | CS48: 53 | CT48: 38 | CU48: 218 | CV48: 160 | CW48: 41.49228288 | CX48: 34.76006829 | CY48: 74.85137989 | CZ48: 61.36 | DA48: 41.76 | DB48: 40.67579697 | DC48: 60 | DD48: 92.72 | DE48: 65.54023799 | DF48: 0.16 | DG48: 0.08418797847 | DH48: 14.59632013 | DI48: 55.2721171 | DJ48: 38.54097184 | DK48: 32.12471709 | DL48: 73.81714932 | DM48: 60.05617978 | DN48: 45.16853933 | DO48: 39.95320918 | DP48: 66.29213483 | DQ48: 94.60674157 | DR48: 67.86105604 | DS48: 0.1123595506 | DT48: 0.07340741741 | DU48: 15.28548135 | DV48: 55.23869053 | DW48: 25.71102108 | DX48: 38.87389393 | DY48: 73.64798614 | DZ48: 64.71698113 | EA48: 38.49056604 | EB48: 38.63047173 | EC48: 44.71698113 | ED48: 91.69811321 | EE48: 78.91274641 | EF48: 0.1509433962 | EG48: 0.07533977306 | EH48: 14.40044602 | EI48: 53.03091775 | EJ48: 23.95135566 | EK48: 42.87196998 | EL48: 78.14438498 | EM48: 56.97247706 | EN48: 48.80733945 | EO48: 40.11960434 | EP48: 62.43119266 | EQ48: 92.52293578 | ER48: 73.6854774 | ES48: 0.01834862385 | ET48: 0.04581996451 | EU48: 15.25545959 | EV48: 55.37506393 | EW48: mun | EX48: mun | EY48: mun | EZ48: mun | FA48: mun | FB48: mun | FC48: mun | FD48: mun | FE48: mun | FF48: mun | FG48: mun | FH48: mun | FI48: mun | FJ48: mun | FK48: mun | FL48: mun | FM48: mun | FN48: mun | FO48: mun | FP48: mun | FQ48: mun | FR48: mun | FS48: mun | FT48: mun | FU48: mun | FV48: mun | FW48: mun | FX48: mun | FY48: mun | FZ48: mun | GA48: mun | GB48: mun | GC48: mun | GD48: mun | GE48: mun | GF48: mun | GG48: mun | GH48: mun | GI48: mun | GJ48: mun | GK48: mun | GL48: mun | GM48: mun | GN48: mun | GO48: 24.44193053 | GP48: 0 | GQ48: 75.03926666 | GR48: 18.38446039 | GS48: 0 | GT48: 43.79187377 | GU48: 35.35051667 | GV48: 0 | GW48: 61.85014442 | GX48: 36.17499141 | GY48: 0 | GZ48: 78.11666288
A49: 05045 | B49: APARTADÓ | C49: M | D49: EJE CAFETERO Y ANTIOQUIA | E49: ANTIOQUIA | F49: Uraba | G49: 3 | H49: G1 | I49: Ciudades y aglomeraciones | J49: 70.58497595 | K49: 29.41502405 | L49: 12.65560615 | M49: 14.88880264 | N49: 31.32088552 | O49: 68.67911448 | P49: 44.35546716 | Q49: 50 | R49: 13.02059869 | S49: 60 | T49: 44.59658823 | U49: 35.67727059 | V49: 99.68001914 | W49: 100 | X49: 92.84295869 | Y49: 100 | Z49: 15.33386081 | AA49: 55.07226635 | AB49: 0 | AC49: 0 | AD49: 0 | AE49: 0 | AF49: 85.02408878 | AG49: 17.00481776 | AH49: 52.68208834 | AI49: 2. Riesgo (>=40 y <60) | AJ49: 60.67989637 | AK49: 39.32010363 | AL49: 23.51757164 | AM49: 30.32814345 | AN49: 24.06591236 | AO49: 75.93408764 | AP49: 52.84292928 | AQ49: 70 | AR49: 7.985009236 | AS49: 80 | AT49: 59.11646694 | AU49: 47.29317355 | AV49: 81.82746903 | AW49: 80 | AX49: 94.13453656 | AY49: 100 | AZ49: 12.4809402 | BA49: 48.11908899 | BB49: 0 | BC49: 0 | BD49: 0.1134626624 | BE49: 0.1134626624 | BF49: 76.15315899 | BG49: 15.2306318 | BH49: 3. Vulnerable (>=60 y <70) | BI49: 138055.1925 | BJ49: 123943.755 | BK49: 195587.2205 | BL49: 204258.3498 | BM49: 20970.21216 | BN49: 41314.37903 | BO49: 165698.9947 | BP49: 175674.5112 | BQ49: 517548.2687 | BR49: 117910.5363 | BS49: 162100.7007 | BT49: 489948.3324 | BU49: 19743.98671 | BV49: 26368.65263 | BW49: 44513.0848 | BX49: 49900.05852 | BY49: 25715.06009 | BZ49: 16310.0481 | CA49: 195587.2205 | CB49: 204258.3498 | CC49: 43656.29201 | CD49: 42852.55978 | CE49: 43796.43221 | CF49: 52369.40637 | CG49: 153839.8492 | CH49: 165370.387 | CI49: 165698.9947 | CJ49: 175674.5112 | CK49: 70 | CL49: 70 | CM49: 54.66613919 | CN49: 57.5190598 | CO49: 125 | CP49: 68 | CQ49: 178 | CR49: 103 | CS49: 11 | CT49: 4 | CU49: 217 | CV49: 168 | CW49: 41.49228288 | CX49: 34.76006829 | CY49: 74.85137989 | CZ49: 61.36 | DA49: 41.76 | DB49: 40.67579697 | DC49: 60 | DD49: 92.72 | DE49: 65.54023799 | DF49: 0.16 | DG49: 0.08418797847 | DH49: 14.59632013 | DI49: 55.2721171 | DJ49: 38.54097184 | DK49: 32.12471709 | DL49: 73.81714932 | DM49: 60.05617978 | DN49: 45.16853933 | DO49: 39.95320918 | DP49: 66.29213483 | DQ49: 94.60674157 | DR49: 67.86105604 | DS49: 0.1123595506 | DT49: 0.07340741741 | DU49: 15.28548135 | DV49: 55.23869053 | DW49: 28.00822344 | DX49: 30.17880163 | DY49: 74.74317546 | DZ49: 63.63636364 | EA49: 50.90909091 | EB49: 39.59610481 | EC49: 38.18181818 | ED49: 96.36363636 | EE49: 57.43011964 | EF49: 0 | EG49: 0.107058227 | EH49: 12.81978326 | EI49: 52.41588807 | EJ49: 47.27531454 | EK49: 31.39476405 | EL49: 79.08724626 | EM49: 72.94930876 | EN49: 33.3640553 | EO49: 42.25131023 | EP49: 71.47465438 | EQ49: 88.47926267 | ER49: 74.20876562 | ES49: 0.1566820276 | ET49: 0.02422083269 | EU49: 15.63950749 | EV49: 57.89081772 | EW49: mun | EX49: mun | EY49: mun | EZ49: mun | FA49: mun | FB49: mun | FC49: mun | FD49: mun | FE49: mun | FF49: mun | FG49: mun | FH49: mun | FI49: mun | FJ49: mun | FK49: mun | FL49: mun | FM49: mun | FN49: mun | FO49: mun | FP49: mun | FQ49: mun | FR49: mun | FS49: mun | FT49: mun | FU49: mun | FV49: mun | FW49: mun | FX49: mun | FY49: mun | FZ49: mun | GA49: mun | GB49: mun | GC49: mun | GD49: mun | GE49: mun | GF49: mun | GG49: mun | GH49: mun | GI49: mun | GJ49: mun | GK49: mun | GL49: mun | GM49: mun | GN49: mun | GO49: 45.35861022 | GP49: 0 | GQ49: 64.81309026 | GR49: 47.15029651 | GS49: 0 | GT49: 69.17361836 | GU49: 52.84292928 | GV49: 0.1134626624 | GW49: 60.67989637 | GX49: 44.35546716 | GY49: 0 | GZ49: 70.58497595
A50: 05051 | B50: ARBOLETES | C50: M | D50: EJE CAFETERO Y ANTIOQUIA | E50: ANTIOQUIA | F50: Uraba | G50: 6 | H50: G4 | I50: Intermedio | J50: 73.1326362 | K50: 26.8673638 | L50: 12.07915443 | M50: 19.60896029 | N50: 28.78573856 | O50: 71.21426144 | P50: 61.50721802 | Q50: 80 | R50: 16.23061494 | S50: 40 | T50: 47.53811711 | U50: 38.03049368 | V50: 225.0129743 | W50: 0 | X50: 96.58941408 | Y50: 100 | Z50: 13.96583335 | AA50: 60.74432245 | AB50: 0 | AC50: 0 | AD50: 0.3281347371 | AE50: 0.3281347371 | AF50: 53.90957555 | AG50: 10.78191511 | AH50: 48.8124088 | AI50: 2. Riesgo (>=40 y <60) | AJ50: 68.07783571 | AK50: 31.92216429 | AL50: 17.63906057 | AM50: 22.42887986 | AN50: 34.10510985 | AO50: 65.89489015 | AP50: 73.84728918 | AQ50: 100 | AR50: -10.63617442 | AS50: 60 | AT50: 56.04918686 | AU50: 44.83934949 | AV50: 149.2342339 | AW50: 50 | AX50: 81.65186633 | AY50: 80 | AZ50: 9.505825024 | BA50: 45.07451152 | BB50: 0 | BC50: 0 | BD50: 0 | BE50: 0 | BF50: 58.35817051 | BG50: 11.6716341 | BH50: 2. Riesgo (>=40 y <60) | BI50: 32644.207 | BJ50: 36677.19942 | BK50: 44636.9893 | BL50: 53875.3899 | BM50: 4047.646261 | BN50: 9617.051788 | BO50: 33509.35105 | BP50: 54521.33774 | BQ50: 103596.3412 | BR50: 31405.28036 | BS50: 29820.97195 | BT50: 92083.79771 | BU50: 7829.128689 | BV50: 10402.58584 | BW50: 12728.79662 | BX50: 14086.61842 | BY50: 7244.858033 | BZ50: -5730.280439 | CA50: 44636.9893 | CB50: 53875.3899 | CC50: 7212.081371 | CD50: 5266.922324 | CE50: 3205.184676 | CF50: 3529.299 | CG50: 32366.48584 | CH50: 44246.99484 | CI50: 33509.35105 | CJ50: 54189.81442 | CK50: 80 | CL50: 80 | CM50: 66.03416665 | CN50: 70.49417498 | CO50: 125 | CP50: 102 | CQ50: 178 | CR50: 149 | CS50: 11 | CT50: 9 | CU50: 218 | CV50: 169 | CW50: 41.49228288 | CX50: 34.76006829 | CY50: 74.85137989 | CZ50: 61.36 | DA50: 41.76 | DB50: 40.67579697 | DC50: 60 | DD50: 92.72 | DE50: 65.54023799 | DF50: 0.16 | DG50: 0.08418797847 | DH50: 14.59632013 | DI50: 55.2721171 | DJ50: 38.54097184 | DK50: 32.12471709 | DL50: 73.81714932 | DM50: 60.05617978 | DN50: 45.16853933 | DO50: 39.95320918 | DP50: 66.29213483 | DQ50: 94.60674157 | DR50: 67.86105604 | DS50: 0.1123595506 | DT50: 0.07340741741 | DU50: 15.28548135 | DV50: 55.23869053 | DW50: 28.00822344 | DX50: 30.17880163 | DY50: 74.74317546 | DZ50: 63.63636364 | EA50: 50.90909091 | EB50: 39.59610481 | EC50: 38.18181818 | ED50: 96.36363636 | EE50: 57.43011964 | EF50: 0 | EG50: 0.107058227 | EH50: 12.81978326 | EI50: 52.41588807 | EJ50: 18.34058526 | EK50: 36.97826928 | EL50: 74.85474166 | EM50: 58.57798165 | EN50: 55.2293578 | EO50: 39.0369497 | EP50: 54.7706422 | EQ50: 91.55963303 | ER50: 70.74748175 | ES50: 0.04587155963 | ET50: 0.07141694385 | EU50: 14.49510378 | EV50: 53.64243195 | EW50: mun | EX50: mun | EY50: mun | EZ50: mun | FA50: mun | FB50: mun | FC50: mun | FD50: mun | FE50: mun | FF50: mun | FG50: mun | FH50: mun | FI50: mun | FJ50: mun | FK50: mun | FL50: mun | FM50: mun | FN50: mun | FO50: mun | FP50: mun | FQ50: mun | FR50: mun | FS50: mun | FT50: mun | FU50: mun | FV50: mun | FW50: mun | FX50: mun | FY50: mun | FZ50: mun | GA50: mun | GB50: mun | GC50: mun | GD50: mun | GE50: mun | GF50: mun | GG50: mun | GH50: mun | GI50: mun | GJ50: mun | GK50: mun | GL50: mun | GM50: mun | GN50: mun | GO50: 49.67760649 | GP50: 0 | GQ50: 77.06996102 | GR50: 58.68847957 | GS50: 0 | GT50: 74.03973486 | GU50: 73.84728918 | GV50: 0 | GW50: 68.07783571 | GX50: 61.50721802 | GY50: 0.3281347371 | GZ50: 73.1326362
A51: 05055 | B51: ARGELIA | C51: M | D51: EJE CAFETERO Y ANTIOQUIA | E51: ANTIOQUIA | F51: Oriente | G51: 6 | H51: G4 | I51: Rural disperso | J51: 71.59307043 | K51: 28.40692957 | L51: 32.32061311 | M51: 52.46837624 | N51: 24.37386797 | O51: 75.62613203 | P51: 29.64592173 | Q51: 40 | R51: 15.49444003 | S51: 40 | T51: 47.30028757 | U51: 37.84023006 | V51: 129.1693254 | W51: 70 | X51: 82.86521991 | Y51: 80 | Z51: 10.46668044 | AA51: 45.52477433 | AB51: 0 | AC51: 0 | AD51: 0 | AE51: 0 | AF51: 65.17492478 | AG51: 13.03498496 | AH51: 50.87521501 | AI51: 2. Riesgo (>=40 y <60) | AJ51: 50.40650016 | AK51: 49.59349984 | AL51: 31.6389395 | AM51: 49.78832929 | AN51: 20.48196477 | AO51: 79.51803523 | AP51: 33.38744536 | AQ51: 40 | AR51: 10.86356936 | AS51: 60 | AT51: 55.77997287 | AU51: 44.6239783 | AV51: 163.2062844 | AW51: 0 | AX51: 84.12782661 | AY51: 80 | AZ51: 4.693757767 | BA51: 22.2567571 | BB51: 0 | BC51: 0 | BD51: 0 | BE51: 0 | BF51: 34.0855857 | BG51: 6.81711714 | BH51: 2. Riesgo (>=40 y <60) | BI51: 8665.991126 | BJ51: 8305.173585 | BK51: 12104.51106 | BL51: 16476.39403 | BM51: 3991.680082 | BN51: 4426.638632 | BO51: 12350.26102 | BP51: 13991.10938 | BQ51: 45509.67203 | BR51: 9116.839836 | BS51: 11092.46737 | BT51: 44511.54926 | BU51: 665.2300042 | BV51: 760.8621972 | BW51: 2243.917428 | BX51: 2278.887136 | BY51: 1875.526206 | BZ51: 1789.924493 | CA51: 12104.51106 | CB51: 16476.39403 | CC51: 1141.127201 | CD51: 1130.79975 | CE51: 883.435132 | CF51: 692.865323 | CG51: 9253.517477 | CH51: 11762.32671 | CI51: 11166.94976 | CJ51: 13981.49362 | CK51: 80 | CL51: 80 | CM51: 69.53331956 | CN51: 75.30624223 | CO51: 125 | CP51: 88 | CQ51: 178 | CR51: 128 | CS51: 60 | CT51: 45 | CU51: 218 | CV51: 140 | CW51: 41.49228288 | CX51: 34.76006829 | CY51: 74.85137989 | CZ51: 61.36 | DA51: 41.76 | DB51: 40.67579697 | DC51: 60 | DD51: 92.72 | DE51: 65.54023799 | DF51: 0.16 | DG51: 0.08418797847 | DH51: 14.59632013 | DI51: 55.2721171 | DJ51: 38.54097184 | DK51: 32.12471709 | DL51: 73.81714932 | DM51: 60.05617978 | DN51: 45.16853933 | DO51: 39.95320918 | DP51: 66.29213483 | DQ51: 94.60674157 | DR51: 67.86105604 | DS51: 0.1123595506 | DT51: 0.07340741741 | DU51: 15.28548135 | DV51: 55.23869053 | DW51: 35.17092089 | DX51: 33.91236428 | DY51: 77.02581142 | DZ51: 61.16666667 | EA51: 44 | EB51: 40.20412212 | EC51: 72.33333333 | ED51: 94 | EE51: 73.78236063 | EF51: 0.1 | EG51: 0.02814833793 | EH51: 16.02667593 | EI51: 56.23079805 | EJ51: 18.34058526 | EK51: 36.97826928 | EL51: 74.85474166 | EM51: 58.57798165 | EN51: 55.2293578 | EO51: 39.0369497 | EP51: 54.7706422 | EQ51: 91.55963303 | ER51: 70.74748175 | ES51: 0.04587155963 | ET51: 0.07141694385 | EU51: 14.49510378 | EV51: 53.64243195 | EW51: mun | EX51: mun | EY51: mun | EZ51: mun | FA51: mun | FB51: mun | FC51: mun | FD51: mun | FE51: mun | FF51: mun | FG51: mun | FH51: mun | FI51: mun | FJ51: mun | FK51: mun | FL51: mun | FM51: mun | FN51: mun | FO51: mun | FP51: mun | FQ51: mun | FR51: mun | FS51: mun | FT51: mun | FU51: mun | FV51: mun | FW51: mun | FX51: mun | FY51: mun | FZ51: mun | GA51: mun | GB51: mun | GC51: mun | GD51: mun | GE51: mun | GF51: mun | GG51: mun | GH51: mun | GI51: mun | GJ51: mun | GK51: mun | GL51: mun | GM51: mun | GN51: mun | GO51: 23.4902754 | GP51: 0 | GQ51: 70.98207582 | GR51: 27.5752858 | GS51: 0 | GT51: 75.29073564 | GU51: 33.38744536 | GV51: 0 | GW51: 50.40650016 | GX51: 29.64592173 | GY51: 0 | GZ51: 71.59307043
A52: 05059 | B52: ARMENIA | C52: M | D52: EJE CAFETERO Y ANTIOQUIA | E52: ANTIOQUIA | F52: Occidente | G52: 6 | H52: G4 | I52: Rural | J52: 73.37581874 | K52: 26.62418126 | L52: 21.17173701 | M52: 34.36960367 | N52: 20.3918532 | O52: 79.6081468 | P52: 41.68828322 | Q52: 50 | R52: 48.59498647 | S52: 0 | T52: 38.12038634 | U52: 30.49630908 | V52: 106.0009075 | W52: 100 | X52: 95.075328 | Y52: 100 | Z52: 11.49142416 | AA52: 49.98189201 | AB52: 0 | AC52: 0 | AD52: 0 | AE52: 0 | AF52: 83.32729734 | AG52: 16.66545947 | AH52: 47.16176854 | AI52: 2. Riesgo (>=40 y <60) | AJ52: 60.19163491 | AK52: 39.80836509 | AL52: 25.49800439 | AM52: 36.81237656 | AN52: 14.73717324 | AO52: 85.26282676 | AP52: 37.98150364 | AQ52: 50 | AR52: 17.92600895 | AS52: 40 | AT52: 50.37671368 | AU52: 40.30137094 | AV52: 89.13163139 | AW52: 80 | AX52: 93.35091529 | AY52: 100 | AZ52: 4.863655228 | BA52: 23.06237313 | BB52: 2 | BC52: 2 | BD52: 0 | BE52: 0 | BF52: 69.68745771 | BG52: 13.93749154 | BH52: 2. Riesgo (>=40 y <60) | BI52: 6075.3861 | BJ52: 5756.516409 | BK52: 8279.820524 | BL52: 9563.648534 | BM52: 1224.335014 | BN52: 1714.763629 | BO52: 5782.87466 | BP52: 6725.08955 | BQ52: 38533.1244 | BR52: 5408.329293 | BS52: 7857.618162 | BT52: 36698.55272 | BU52: 905.8187793 | BV52: 811.5461423 | BW52: 2172.837808 | BX52: 2136.687768 | BY52: 4023.577663 | BZ52: 1714.380492 | CA52: 8279.820524 | CB52: 9563.648534 | CC52: 1130.555011 | CD52: 831.8072236 | CE52: 1066.5522 | CF52: 933.2346 | CG52: 4731.613954 | CH52: 6277.932649 | CI52: 4976.700111 | CJ52: 6725.08955 | CK52: 80 | CL52: 80 | CM52: 68.50857584 | CN52: 75.13634477 | CO52: 125 | CP52: 109 | CQ52: 178 | CR52: 159 | CS52: 53 | CT52: 45 | CU52: 218 | CV52: 186 | CW52: 41.49228288 | CX52: 34.76006829 | CY52: 74.85137989 | CZ52: 61.36 | DA52: 41.76 | DB52: 40.67579697 | DC52: 60 | DD52: 92.72 | DE52: 65.54023799 | DF52: 0.16 | DG52: 0.08418797847 | DH52: 14.59632013 | DI52: 55.2721171 | DJ52: 38.54097184 | DK52: 32.12471709 | DL52: 73.81714932 | DM52: 60.05617978 | DN52: 45.16853933 | DO52: 39.95320918 | DP52: 66.29213483 | DQ52: 94.60674157 | DR52: 67.86105604 | DS52: 0.1123595506 | DT52: 0.07340741741 | DU52: 15.28548135 | DV52: 55.23869053 | DW52: 25.71102108 | DX52: 38.87389393 | DY52: 73.64798614 | DZ52: 64.71698113 | EA52: 38.49056604 | EB52: 38.63047173 | EC52: 44.71698113 | ED52: 91.69811321 | EE52: 78.91274641 | EF52: 0.1509433962 | EG52: 0.07533977306 | EH52: 14.40044602 | EI52: 53.03091775 | EJ52: 18.34058526 | EK52: 36.97826928 | EL52: 74.85474166 | EM52: 58.57798165 | EN52: 55.2293578 | EO52: 39.0369497 | EP52: 54.7706422 | EQ52: 91.55963303 | ER52: 70.74748175 | ES52: 0.04587155963 | ET52: 0.07141694385 | EU52: 14.49510378 | EV52: 53.64243195 | EW52: mun | EX52: mun | EY52: mun | EZ52: mun | FA52: mun | FB52: mun | FC52: mun | FD52: mun | FE52: mun | FF52: mun | FG52: mun | FH52: mun | FI52: mun | FJ52: mun | FK52: mun | FL52: mun | FM52: mun | FN52: mun | FO52: mun | FP52: mun | FQ52: mun | FR52: mun | FS52: mun | FT52: mun | FU52: mun | FV52: mun | FW52: mun | FX52: mun | FY52: mun | FZ52: mun | GA52: mun | GB52: mun | GC52: mun | GD52: mun | GE52: mun | GF52: mun | GG52: mun | GH52: mun | GI52: mun | GJ52: mun | GK52: mun | GL52: mun | GM52: mun | GN52: mun | GO52: 33.76319525 | GP52: 0 | GQ52: 70.90273793 | GR52: 42.99675516 | GS52: 0.2532768434 | GT52: 68.61121453 | GU52: 37.98150364 | GV52: 0 | GW52: 60.19163491 | GX52: 41.68828322 | GY52: 0 | GZ52: 73.37581874
A53: 05079 | B53: BARBOSA | C53: M | D53: EJE CAFETERO Y ANTIOQUIA | E53: ANTIOQUIA | F53: Valle del aburra | G53: 4 | H53: G1 | I53: Ciudades y aglomeraciones | J53: 40.46553901 | K53: 59.53446099 | L53: 19.70463552 | M53: 23.18169717 | N53: 7.722528291 | O53: 92.27747171 | P53: 38.02073486 | Q53: 50 | R53: 23.03188134 | S53: 20 | T53: 48.99872597 | U53: 39.19898078 | V53: 51.21971345 | W53: 50 | X53: 82.62349304 | Y53: 80 | Z53: 0 | AA53: 0 | AB53: 0 | AC53: 0 | AD53: 0.08842168984 | AE53: 0.08842168984 | AF53: 43.42175502 | AG53: 8.684351005 | AH53: 47.88333178 | AI53: 2. Riesgo (>=40 y <60) | AJ53: 33.04369707 | AK53: 66.95630293 | AL53: 36.54780956 | AM53: 47.13187346 | AN53: 10.69872207 | AO53: 89.30127793 | AP53: 39.62356158 | AQ53: 50 | AR53: 7.195812269 | AS53: 80 | AT53: 66.67789086 | AU53: 53.34231269 | AV53: 105.1632901 | AW53: 100 | AX53: 76.43337012 | AY53: 70 | AZ53: 9.603346728 | BA53: 46.25607427 | BB53: 0 | BC53: 0 | BD53: 0 | BE53: 0 | BF53: 72.08535809 | BG53: 14.41707162 | BH53: 3. Vulnerable (>=60 y <70) | BI53: 23795.24743 | BJ53: 21077.74142 | BK53: 58803.73279 | BL53: 63787.47927 | BM53: 8190.231032 | BN53: 17989.35909 | BO53: 41564.99634 | BP53: 49221.44256 | BQ53: 317761.7818 | BR53: 35672.64741 | BS53: 24539.2435 | BT53: 333429.0505 | BU53: 11313.874 | BV53: 11588.84164 | BW53: 29757.11553 | BX53: 29247.34976 | BY53: 14418.81745 | BZ53: 4590.027259 | CA53: 58803.73279 | CB53: 63787.47927 | CC53: 16872.96519 | CD53: 25378.02433 | CE53: 32942.32641 | CF53: 24132.01823 | CG53: 34332.25045 | CH53: 37621.60737 | CI53: 41552.64948 | CJ53: 49221.44256 | CK53: 80 | CL53: 80 | CM53: 63.13047487 | CN53: 70.39665327 | CO53: 125 | CP53: 107 | CQ53: 178 | CR53: 156 | CS53: 10 | CT53: 10 | CU53: 217 | CV53: 200 | CW53: 41.49228288 | CX53: 34.76006829 | CY53: 74.85137989 | CZ53: 61.36 | DA53: 41.76 | DB53: 40.67579697 | DC53: 60 | DD53: 92.72 | DE53: 65.54023799 | DF53: 0.16 | DG53: 0.08418797847 | DH53: 14.59632013 | DI53: 55.2721171 | DJ53: 38.54097184 | DK53: 32.12471709 | DL53: 73.81714932 | DM53: 60.05617978 | DN53: 45.16853933 | DO53: 39.95320918 | DP53: 66.29213483 | DQ53: 94.60674157 | DR53: 67.86105604 | DS53: 0.1123595506 | DT53: 0.07340741741 | DU53: 15.28548135 | DV53: 55.23869053 | DW53: 68.29453788 | DX53: 33.2517194 | DY53: 80.19510502 | DZ53: 78 | EA53: 44 | EB53: 48.59861797 | EC53: 85 | ED53: 87 | EE53: 58.77527743 | EF53: 0.4 | EG53: 0.008842168984 | EH53: 15.42678693 | EI53: 64.0254049 | EJ53: 47.27531454 | EK53: 31.39476405 | EL53: 79.08724626 | EM53: 72.94930876 | EN53: 33.3640553 | EO53: 42.25131023 | EP53: 71.47465438 | EQ53: 88.47926267 | ER53: 74.20876562 | ES53: 0.1566820276 | ET53: 0.02422083269 | EU53: 15.63950749 | EV53: 57.89081772 | EW53: mun | EX53: mun | EY53: mun | EZ53: mun | FA53: mun | FB53: mun | FC53: mun | FD53: mun | FE53: mun | FF53: mun | FG53: mun | FH53: mun | FI53: mun | FJ53: mun | FK53: mun | FL53: mun | FM53: mun | FN53: mun | FO53: mun | FP53: mun | FQ53: mun | FR53: mun | FS53: mun | FT53: mun | FU53: mun | FV53: mun | FW53: mun | FX53: mun | FY53: mun | FZ53: mun | GA53: mun | GB53: mun | GC53: mun | GD53: mun | GE53: mun | GF53: mun | GG53: mun | GH53: mun | GI53: mun | GJ53: mun | GK53: mun | GL53: mun | GM53: mun | GN53: mun | GO53: 58.11433398 | GP53: 0 | GQ53: 35.9177764 | GR53: 52.4674762 | GS53: 0 | GT53: 41.76011805 | GU53: 39.62356158 | GV53: 0 | GW53: 33.04369707 | GX53: 38.02073486 | GY53: 0.08842168984 | GZ53: 40.46553901
A54: 05086 | B54: BELMIRA | C54: M | D54: EJE CAFETERO Y ANTIOQUIA | E54: ANTIOQUIA | F54: Norte | G54: 6 | H54: G3 | I54: Rural disperso | J54: 58.14846014 | K54: 41.85153986 | L54: 33.12858217 | M54: 56.85634696 | N54: 15.85430559 | O54: 84.14569441 | P54: 33.11555579 | Q54: 40 | R54: 28.05244027 | S54: 20 | T54: 48.57071625 | U54: 38.856573 | V54: 136.1244606 | W54: 60 | X54: 91.95670833 | Y54: 100 | Z54: 4.742632804 | AA54: 20.62805771 | AB54: 0 | AC54: 0 | AD54: 0 | AE54: 0 | AF54: 60.20935257 | AG54: 12.04187051 | AH54: 50.89844351 | AI54: 2. Riesgo (>=40 y <60) | AJ54: 34.89961374 | AK54: 65.10038626 | AL54: 55.66516765 | AM54: 80.36578396 | AN54: 19.49837425 | AO54: 80.50162575 | AP54: 43.8597142 | AQ54: 50 | AR54: -4.903033 | AS54: 100 | AT54: 75.19355919 | AU54: 60.15484736 | AV54: 155.6519523 | AW54: 0 | AX54: 75.05009582 | AY54: 70 | AZ54: 16.33541394 | BA54: 77.45890567 | BB54: 0 | BC54: 0 | BD54: 0 | BE54: 0 | BF54: 49.15296856 | BG54: 9.830593712 | BH54: 3. Vulnerable (>=60 y <70) | BI54: 6117.832296 | BJ54: 6281.170036 | BK54: 10521.05642 | BL54: 17997.82108 | BM54: 2660.267029 | BN54: 10247.97283 | BO54: 8030.12642 | BP54: 18410.02778 | BQ54: 46161.50404 | BR54: 8705.108998 | BS54: 7318.585915 | BT54: 44645.30676 | BU54: 975.3840441 | BV54: 1571.147946 | BW54: 2945.395362 | BX54: 3582.212001 | BY54: 3049.596607 | BZ54: -882.4391066 | CA54: 10521.05642 | CB54: 17997.82108 | CC54: 1902.883835 | CD54: 2258.743306 | CE54: 1397.9 | CF54: 1451.15 | CG54: 6088.625554 | CH54: 13816.74349 | CI54: 6621.186931 | CJ54: 18410.02778 | CK54: 80 | CL54: 80 | CM54: 75.2573672 | CN54: 63.66458606 | CO54: 125 | CP54: 87 | CQ54: 178 | CR54: 127 | CS54: 133 | CT54: 100 | CU54: 218 | CV54: 157 | CW54: 41.49228288 | CX54: 34.76006829 | CY54: 74.85137989 | CZ54: 61.36 | DA54: 41.76 | DB54: 40.67579697 | DC54: 60 | DD54: 92.72 | DE54: 65.54023799 | DF54: 0.16 | DG54: 0.08418797847 | DH54: 14.59632013 | DI54: 55.2721171 | DJ54: 38.54097184 | DK54: 32.12471709 | DL54: 73.81714932 | DM54: 60.05617978 | DN54: 45.16853933 | DO54: 39.95320918 | DP54: 66.29213483 | DQ54: 94.60674157 | DR54: 67.86105604 | DS54: 0.1123595506 | DT54: 0.07340741741 | DU54: 15.28548135 | DV54: 55.23869053 | DW54: 24.43407725 | DX54: 34.95849314 | DY54: 74.10196205 | DZ54: 57.44360902 | EA54: 57.7443609 | EB54: 39.78920038 | EC54: 64.66165414 | ED54: 93.83458647 | EE54: 75.26525523 | EF54: 0.01503759398 | EG54: 0.01998988022 | EH54: 15.5880977 | EI54: 55.37729808 | EJ54: 23.95135566 | EK54: 42.87196998 | EL54: 78.14438498 | EM54: 56.97247706 | EN54: 48.80733945 | EO54: 40.11960434 | EP54: 62.43119266 | EQ54: 92.52293578 | ER54: 73.6854774 | ES54: 0.01834862385 | ET54: 0.04581996451 | EU54: 15.25545959 | EV54: 55.37506393 | EW54: mun | EX54: mun | EY54: mun | EZ54: mun | FA54: mun | FB54: mun | FC54: mun | FD54: mun | FE54: mun | FF54: mun | FG54: mun | FH54: mun | FI54: mun | FJ54: mun | FK54: mun | FL54: mun | FM54: mun | FN54: mun | FO54: mun | FP54: mun | FQ54: mun | FR54: mun | FS54: mun | FT54: mun | FU54: mun | FV54: mun | FW54: mun | FX54: mun | FY54: mun | FZ54: mun | GA54: mun | GB54: mun | GC54: mun | GD54: mun | GE54: mun | GF54: mun | GG54: mun | GH54: mun | GI54: mun | GJ54: mun | GK54: mun | GL54: mun | GM54: mun | GN54: mun | GO54: 41.20516087 | GP54: 0 | GQ54: 48.48657888 | GR54: 28.93064168 | GS54: 0 | GT54: 49.88561973 | GU54: 43.8597142 | GV54: 0 | GW54: 34.89961374 | GX54: 33.11555579 | GY54: 0 | GZ54: 58.14846014
A55: 05088 | B55: BELLO | C55: M | D55: EJE CAFETERO Y ANTIOQUIA | E55: ANTIOQUIA | F55: Valle del aburra | G55: 1 | H55: G1 | I55: Ciudades y aglomeraciones | J55: 58.5585385 | K55: 41.4414615 | L55: 7.442281247 | M55: 8.755539271 | N55: 40.68775031 | O55: 59.31224969 | P55: 59.60427806 | Q55: 80 | R55: 14.83706164 | S55: 60 | T55: 49.90185009 | U55: 39.92148007 | V55: 86.90155542 | W55: 80 | X55: 91.16776846 | Y55: 100 | Z55: 0 | AA55: 0 | AB55: 0 | AC55: 0 | AD55: 0 | AE55: 0 | AF55: 60 | AG55: 12 | AH55: 51.92148007 | AI55: 2. Riesgo (>=40 y <60) | AJ55: 48.30208436 | AK55: 51.69791564 | AL55: 12.54399036 | AM55: 16.1766676 | AN55: 38.75864295 | AO55: 61.24135705 | AP55: 57.67166212 | AQ55: 80 | AR55: 10.97931607 | AS55: 60 | AT55: 53.82318806 | AU55: 43.05855045 | AV55: 106.5609729 | AW55: 100 | AX55: 88.15876262 | AY55: 80 | AZ55: 15.69114539 | BA55: 81.79754383 | BB55: 0 | BC55: 0 | BD55: 0.06135312048 | BE55: 0.06135312048 | BF55: 87.32720106 | BG55: 17.46544021 | BH55: 3. Vulnerable (>=60 y <70) | BI55: 289390.2052 | BJ55: 260976.6086 | BK55: 494189.5967 | BL55: 540300.925 | BM55: 27213.55967 | BN55: 46277.44916 | BO55: 365661.5327 | BP55: 368921.2748 | BQ55: 1245076.961 | BR55: 441504.1535 | BS55: 506593.8052 | BT55: 1139111.485 | BU55: 112002.4938 | BV55: 113115.9838 | BW55: 187910.1592 | BX55: 196137.8944 | BY55: 73323.21508 | BZ55: 59321.34626 | CA55: 494189.5967 | CB55: 540300.925 | CC55: 160357.0542 | CD55: 181177.8021 | CE55: 184527.2544 | CF55: 170022.6613 | CG55: 333365.4595 | CH55: 325236.4309 | CI55: 365661.5327 | CJ55: 368921.2748 | CK55: 65 | CL55: 65 | CM55: 48.02012502 | CN55: 49.30885461 | CO55: 125 | CP55: 79 | CQ55: 178 | CR55: 118 | CS55: 10 | CT55: 9 | CU55: 217 | CV55: 172 | CW55: 41.49228288 | CX55: 34.76006829 | CY55: 74.85137989 | CZ55: 61.36 | DA55: 41.76 | DB55: 40.67579697 | DC55: 60 | DD55: 92.72 | DE55: 65.54023799 | DF55: 0.16 | DG55: 0.08418797847 | DH55: 14.59632013 | DI55: 55.2721171 | DJ55: 38.54097184 | DK55: 32.12471709 | DL55: 73.81714932 | DM55: 60.05617978 | DN55: 45.16853933 | DO55: 39.95320918 | DP55: 66.29213483 | DQ55: 94.60674157 | DR55: 67.86105604 | DS55: 0.1123595506 | DT55: 0.07340741741 | DU55: 15.28548135 | DV55: 55.23869053 | DW55: 68.29453788 | DX55: 33.2517194 | DY55: 80.19510502 | DZ55: 78 | EA55: 44 | EB55: 48.59861797 | EC55: 85 | ED55: 87 | EE55: 58.77527743 | EF55: 0.4 | EG55: 0.008842168984 | EH55: 15.42678693 | EI55: 64.0254049 | EJ55: 47.27531454 | EK55: 31.39476405 | EL55: 79.08724626 | EM55: 72.94930876 | EN55: 33.3640553 | EO55: 42.25131023 | EP55: 71.47465438 | EQ55: 88.47926267 | ER55: 74.20876562 | ES55: 0.1566820276 | ET55: 0.02422083269 | EU55: 15.63950749 | EV55: 57.89081772 | EW55: mun | EX55: mun | EY55: mun | EZ55: mun | FA55: mun | FB55: mun | FC55: mun | FD55: mun | FE55: mun | FF55: mun | FG55: mun | FH55: mun | FI55: mun | FJ55: mun | FK55: mun | FL55: mun | FM55: mun | FN55: mun | FO55: mun | FP55: mun | FQ55: mun | FR55: mun | FS55: mun | FT55: mun | FU55: mun | FV55: mun | FW55: mun | FX55: mun | FY55: mun | FZ55: mun | GA55: mun | GB55: mun | GC55: mun | GD55: mun | GE55: mun | GF55: mun | GG55: mun | GH55: mun | GI55: mun | GJ55: mun | GK55: mun | GL55: mun | GM55: mun | GN55: mun | GO55: 53.46557914 | GP55: 0 | GQ55: 53.96482654 | GR55: 54.31379444 | GS55: 0.0390820487 | GT55: 53.35126375 | GU55: 57.67166212 | GV55: 0.06135312048 | GW55: 48.30208436 | GX55: 59.60427806 | GY55: 0 | GZ55: 58.5585385
A56: 05091 | B56: BETANIA | C56: M | D56: EJE CAFETERO Y ANTIOQUIA | E56: ANTIOQUIA | F56: Suroeste | G56: 6 | H56: G3 | I56: Intermedio | J56: 61.93036205 | K56: 38.06963795 | L56: 20.59014189 | M56: 35.33746919 | N56: 21.81077439 | O56: 78.18922561 | P56: 37.16539271 | Q56: 50 | R56: 4.960822329 | S56: 100 | T56: 60.31926655 | U56: 48.25541324 | V56: 192.0246668 | W56: 0 | X56: 91.6048324 | Y56: 100 | Z56: 22.09894007 | AA56: 96.11922954 | AB56: 0 | AC56: 0 | AD56: 0.204420886 | AE56: 0.204420886 | AF56: 65.5774974 | AG56: 13.11549948 | AH56: 61.37091272 | AI56: 3. Vulnerable (>=60 y <70) | AJ56: 52.66905084 | AK56: 47.33094916 | AL56: 44.94813224 | AM56: 64.89321847 | AN56: 21.86969715 | AO56: 78.13030285 | AP56: 17.36559911 | AQ56: 30 | AR56: -3.413481997 | AS56: 100 | AT56: 64.0708941 | AU56: 51.25671528 | AV56: 92.92305192 | AW56: 100 | AX56: 83.01574997 | AY56: 80 | AZ56: 4.202036646 | BA56: 19.92512473 | BB56: 0 | BC56: 0 | BD56: 0.08094460462 | BE56: 0.08094460462 | BF56: 66.72265285 | BG56: 13.34453057 | BH56: 3. Vulnerable (>=60 y <70) | BI56: 8895.281933 | BJ56: 8082.086071 | BK56: 14363.36175 | BL56: 15345.03839 | BM56: 2409.610847 | BN56: 6836.524556 | BO56: 11702.74037 | BP56: 15209.80787 | BQ56: 76757.86036 | BR56: 16744.27214 | BS56: 16741.48375 | BT56: 76563.80437 | BU56: 1554.418801 | BV56: 540.4463853 | BW56: 4182.436098 | BX56: 3112.166658 | BY56: 712.5408567 | BZ56: -523.8001229 | CA56: 14363.36175 | CB56: 15345.03839 | CC56: 2812.14023 | CD56: 1994.836849 | CE56: 1464.468225 | CF56: 2146.762087 | CG56: 10484.12642 | CH56: 11515.19988 | CI56: 11444.94908 | CJ56: 13871.10263 | CK56: 80 | CL56: 80 | CM56: 57.90105993 | CN56: 75.79796335 | CO56: 125 | CP56: 29 | CQ56: 178 | CR56: 34 | CS56: 24 | CT56: 3 | CU56: 218 | CV56: 43 | CW56: 41.49228288 | CX56: 34.76006829 | CY56: 74.85137989 | CZ56: 61.36 | DA56: 41.76 | DB56: 40.67579697 | DC56: 60 | DD56: 92.72 | DE56: 65.54023799 | DF56: 0.16 | DG56: 0.08418797847 | DH56: 14.59632013 | DI56: 55.2721171 | DJ56: 38.54097184 | DK56: 32.12471709 | DL56: 73.81714932 | DM56: 60.05617978 | DN56: 45.16853933 | DO56: 39.95320918 | DP56: 66.29213483 | DQ56: 94.60674157 | DR56: 67.86105604 | DS56: 0.1123595506 | DT56: 0.07340741741 | DU56: 15.28548135 | DV56: 55.23869053 | DW56: 37.47937028 | DX56: 28.15828208 | DY56: 68.77449066 | DZ56: 54.58333333 | EA56: 47.5 | EB56: 37.83927622 | EC56: 56.25 | ED56: 95.41666667 | EE56: 65.3472502 | EF56: 0 | EG56: 0.1192044569 | EH56: 14.49143535 | EI56: 52.33071156 | EJ56: 23.95135566 | EK56: 42.87196998 | EL56: 78.14438498 | EM56: 56.97247706 | EN56: 48.80733945 | EO56: 40.11960434 | EP56: 62.43119266 | EQ56: 92.52293578 | ER56: 73.6854774 | ES56: 0.01834862385 | ET56: 0.04581996451 | EU56: 15.25545959 | EV56: 55.37506393 | EW56: mun | EX56: mun | EY56: mun | EZ56: mun | FA56: mun | FB56: mun | FC56: mun | FD56: mun | FE56: mun | FF56: mun | FG56: mun | FH56: mun | FI56: mun | FJ56: mun | FK56: mun | FL56: mun | FM56: mun | FN56: mun | FO56: mun | FP56: mun | FQ56: mun | FR56: mun | FS56: mun | FT56: mun | FU56: mun | FV56: mun | FW56: mun | FX56: mun | FY56: mun | FZ56: mun | GA56: mun | GB56: mun | GC56: mun | GD56: mun | GE56: mun | GF56: mun | GG56: mun | GH56: mun | GI56: mun | GJ56: mun | GK56: mun | GL56: mun | GM56: mun | GN56: mun | GO56: 10.13274708 | GP56: 0 | GQ56: 68.88946447 | GR56: 15.83692536 | GS56: 0 | GT56: 59.92080374 | GU56: 17.36559911 | GV56: 0.08094460462 | GW56: 52.66905084 | GX56: 37.16539271 | GY56: 0.204420886 | GZ56: 61.93036205
A57: 05093 | B57: BETULIA | C57: M | D57: EJE CAFETERO Y ANTIOQUIA | E57: ANTIOQUIA | F57: Suroeste | G57: 6 | H57: G3 | I57: Intermedio | J57: 73.54993581 | K57: 26.45006419 | L57: 8.298000546 | M57: 14.24129761 | N57: 23.47462981 | O57: 76.52537019 | P57: 28.11888051 | Q57: 40 | R57: 28.88853192 | S57: 20 | T57: 35.4433464 | U57: 28.35467712 | V57: 157.7503549 | W57: 0 | X57: 91.08645951 | Y57: 100 | Z57: 17.48189517 | AA57: 76.03741579 | AB57: 0 | AC57: 0 | AD57: 0 | AE57: 0 | AF57: 58.6791386 | AG57: 11.73582772 | AH57: 40.09050484 | AI57: 2. Riesgo (>=40 y <60) | AJ57: 66.33940377 | AK57: 33.66059623 | AL57: 25.73831928 | AM57: 32.72746122 | AN57: 21.13889424 | AO57: 78.86110576 | AP57: 33.02517686 | AQ57: 40 | AR57: 14.51531034 | AS57: 60 | AT57: 49.04983264 | AU57: 39.23986611 | AV57: 172.6325733 | AW57: 0 | AX57: 96.7480058 | AY57: 100 | AZ57: 10.2167593 | BA57: 48.445604 | BB57: 0 | BC57: 0 | BD57: 0 | BE57: 0 | BF57: 49.481868 | BG57: 9.8963736 | BH57: 2. Riesgo (>=40 y <60) | BI57: 17359.57893 | BJ57: 15345.59461 | BK57: 23602.43927 | BL57: 23131.94532 | BM57: 1459.695605 | BN57: 5333.066781 | BO57: 17590.93166 | BP57: 20720.33812 | BQ57: 69787.68475 | BR57: 13606.04304 | BS57: 16382.40065 | BT57: 64364.97049 | BU57: 1161.696644 | BV57: 1335.050294 | BW57: 4131.375869 | BX57: 4042.522769 | BY57: 6818.398202 | BZ57: 3357.673651 | CA57: 23602.43927 | CB57: 23131.94532 | CC57: 2302.527964 | CD57: 2532.076456 | CE57: 1459.602399 | CF57: 1466.743157 | CG57: 15873.42623 | CH57: 19385.99742 | CI57: 17426.76828 | CJ57: 20037.61965 | CK57: 80 | CL57: 80 | CM57: 62.51810483 | CN57: 69.7832407 | CO57: 125 | CP57: 124 | CQ57: 178 | CR57: 177 | CS57: 24 | CT57: 24 | CU57: 218 | CV57: 204 | CW57: 41.49228288 | CX57: 34.76006829 | CY57: 74.85137989 | CZ57: 61.36 | DA57: 41.76 | DB57: 40.67579697 | DC57: 60 | DD57: 92.72 | DE57: 65.54023799 | DF57: 0.16 | DG57: 0.08418797847 | DH57: 14.59632013 | DI57: 55.2721171 | DJ57: 38.54097184 | DK57: 32.12471709 | DL57: 73.81714932 | DM57: 60.05617978 | DN57: 45.16853933 | DO57: 39.95320918 | DP57: 66.29213483 | DQ57: 94.60674157 | DR57: 67.86105604 | DS57: 0.1123595506 | DT57: 0.07340741741 | DU57: 15.28548135 | DV57: 55.23869053 | DW57: 37.47937028 | DX57: 28.15828208 | DY57: 68.77449066 | DZ57: 54.58333333 | EA57: 47.5 | EB57: 37.83927622 | EC57: 56.25 | ED57: 95.41666667 | EE57: 65.3472502 | EF57: 0 | EG57: 0.1192044569 | EH57: 14.49143535 | EI57: 52.33071156 | EJ57: 23.95135566 | EK57: 42.87196998 | EL57: 78.14438498 | EM57: 56.97247706 | EN57: 48.80733945 | EO57: 40.11960434 | EP57: 62.43119266 | EQ57: 92.52293578 | ER57: 73.6854774 | ES57: 0.01834862385 | ET57: 0.04581996451 | EU57: 15.25545959 | EV57: 55.37506393 | EW57: mun | EX57: mun | EY57: mun | EZ57: mun | FA57: mun | FB57: mun | FC57: mun | FD57: mun | FE57: mun | FF57: mun | FG57: mun | FH57: mun | FI57: mun | FJ57: mun | FK57: mun | FL57: mun | FM57: mun | FN57: mun | FO57: mun | FP57: mun | FQ57: mun | FR57: mun | FS57: mun | FT57: mun | FU57: mun | FV57: mun | FW57: mun | FX57: mun | FY57: mun | FZ57: mun | GA57: mun | GB57: mun | GC57: mun | GD57: mun | GE57: mun | GF57: mun | GG57: mun | GH57: mun | GI57: mun | GJ57: mun | GK57: mun | GL57: mun | GM57: mun | GN57: mun | GO57: 16.19396117 | GP57: 0 | GQ57: 68.17487671 | GR57: 27.30802818 | GS57: 0 | GT57: 62.99790354 | GU57: 33.02517686 | GV57: 0 | GW57: 66.33940377 | GX57: 28.11888051 | GY57: 0 | GZ57: 73.54993581
A58: 05101 | B58: CIUDAD BOLÍVAR | C58: M | D58: EJE CAFETERO Y ANTIOQUIA | E58: ANTIOQUIA | F58: Suroeste | G58: 6 | H58: G2 | I58: Intermedio | J58: 61.71908768 | K58: 38.28091232 | L58: 18.82503404 | M58: 22.38813471 | N58: 21.06654332 | O58: 78.93345668 | P58: 48.41792403 | Q58: 70 | R58: 12.50829554 | S58: 60 | T58: 53.92050074 | U58: 43.13640059 | V58: 106.4613142 | W58: 100 | X58: 95.56107089 | Y58: 100 | Z58: 19.02012741 | AA58: 82.72794925 | AB58: 0 | AC58: 0 | AD58: 0 | AE58: 0 | AF58: 94.24264975 | AG58: 18.84852995 | AH58: 61.98493054 | AI58: 3. Vulnerable (>=60 y <70) | AJ58: 48.41426177 | AK58: 51.58573823 | AL58: 42.37509107 | AM58: 54.42078634 | AN58: 18.21029698 | AO58: 81.78970302 | AP58: 41.33473995 | AQ58: 50 | AR58: -1.634769814 | AS58: 100 | AT58: 67.55924552 | AU58: 54.04739642 | AV58: 111.0841099 | AW58: 80 | AX58: 93.70210518 | AY58: 100 | AZ58: 19.17307313 | BA58: 90.91445547 | BB58: 0 | BC58: 0 | BD58: 0.06351705888 | BE58: 0.06351705888 | BF58: 90.36833555 | BG58: 18.07366711 | BH58: 4. Solvente (>=70 y <80) | BI58: 20789.94275 | BJ58: 19576.43179 | BK58: 33684.78623 | BL58: 40435.25828 | BM58: 5444.438672 | BN58: 16881.57519 | BO58: 28921.26868 | BP58: 39838.4399 | BQ58: 191821.5922 | BR58: 34139.33528 | BS58: 40410.17881 | BT58: 187472.6993 | BU58: 4056.191059 | BV58: 3935.289606 | BW58: 8377.457607 | BX58: 9520.537957 | BY58: 4252.195734 | BZ58: -661.0233966 | CA58: 33684.78623 | CB58: 40435.25828 | CC58: 7314.522964 | CD58: 8283.155208 | CE58: 6870.5924 | CF58: 7456.651736 | CG58: 26255.20026 | CH58: 35982.40147 | CI58: 27474.78656 | CJ58: 38400.84638 | CK58: 80 | CL58: 80 | CM58: 60.97987259 | CN58: 60.82692687 | CO58: 125 | CP58: 25 | CQ58: 178 | CR58: 30 | CS58: 24 | CT58: 1 | CU58: 217 | CV58: 36 | CW58: 41.49228288 | CX58: 34.76006829 | CY58: 74.85137989 | CZ58: 61.36 | DA58: 41.76 | DB58: 40.67579697 | DC58: 60 | DD58: 92.72 | DE58: 65.54023799 | DF58: 0.16 | DG58: 0.08418797847 | DH58: 14.59632013 | DI58: 55.2721171 | DJ58: 38.54097184 | DK58: 32.12471709 | DL58: 73.81714932 | DM58: 60.05617978 | DN58: 45.16853933 | DO58: 39.95320918 | DP58: 66.29213483 | DQ58: 94.60674157 | DR58: 67.86105604 | DS58: 0.1123595506 | DT58: 0.07340741741 | DU58: 15.28548135 | DV58: 55.23869053 | DW58: 37.47937028 | DX58: 28.15828208 | DY58: 68.77449066 | DZ58: 54.58333333 | EA58: 47.5 | EB58: 37.83927622 | EC58: 56.25 | ED58: 95.41666667 | EE58: 65.3472502 | EF58: 0 | EG58: 0.1192044569 | EH58: 14.49143535 | EI58: 52.33071156 | EJ58: 28.99269222 | EK58: 29.02779327 | EL58: 77.25411284 | EM58: 61.14678899 | EN58: 47.98165138 | EO58: 39.10448619 | EP58: 69.31192661 | EQ58: 92.43119266 | ER58: 75.74059788 | ES58: 0.02752293578 | ET58: 0.03501753652 | EU58: 15.84098735 | EV58: 55.07662942 | EW58: mun | EX58: mun | EY58: mun | EZ58: mun | FA58: mun | FB58: mun | FC58: mun | FD58: mun | FE58: mun | FF58: mun | FG58: mun | FH58: mun | FI58: mun | FJ58: mun | FK58: mun | FL58: mun | FM58: mun | FN58: mun | FO58: mun | FP58: mun | FQ58: mun | FR58: mun | FS58: mun | FT58: mun | FU58: mun | FV58: mun | FW58: mun | FX58: mun | FY58: mun | FZ58: mun | GA58: mun | GB58: mun | GC58: mun | GD58: mun | GE58: mun | GF58: mun | GG58: mun | GH58: mun | GI58: mun | GJ58: mun | GK58: mun | GL58: mun | GM58: mun | GN58: mun | GO58: 55.89191252 | GP58: 0 | GQ58: 59.92733166 | GR58: 50.93127838 | GS58: 0.09234934747 | GT58: 52.32513369 | GU58: 41.33473995 | GV58: 0.06351705888 | GW58: 48.41426177 | GX58: 48.41792403 | GY58: 0 | GZ58: 61.71908768
A59: 05107 | B59: BRICEÑO | C59: M | D59: EJE CAFETERO Y ANTIOQUIA | E59: ANTIOQUIA | F59: Norte | G59: 5 | H59: G1 | I59: Rural disperso | J59: 50.42424955 | K59: 49.57575045 | L59: 34.59552784 | M59: 40.70022249 | N59: 12.73222705 | O59: 87.26777295 | P59: 46.97746943 | Q59: 70 | R59: 12.2043305 | S59: 60 | T59: 61.50874918 | U59: 49.20699934 | V59: 159.5422722 | W59: 0 | X59: 91.82117702 | Y59: 100 | Z59: 27.85395623 | AA59: 100 | AB59: 0 | AC59: 0 | AD59: 0 | AE59: 0 | AF59: 66.66666667 | AG59: 13.33333333 | AH59: 62.54033268 | AI59: 3. Vulnerable (>=60 y <70) | AJ59: 42.35819047 | AK59: 57.64180953 | AL59: 46.33077388 | AM59: 59.50092572 | AN59: 14.19022613 | AO59: 85.80977387 | AP59: 57.66231616 | AQ59: 80 | AR59: 4.886311839 | AS59: 100 | AT59: 76.59050182 | AU59: 61.27240146 | AV59: 247.0162913 | AW59: 0 | AX59: 91.19409785 | AY59: 100 | AZ59: 34.45995844 | BA59: 100 | BB59: 0 | BC59: 0 | BD59: 0 | BE59: 0 | BF59: 66.66666667 | BG59: 13.33333333 | BH59: 4. Solvente (>=70 y <80) | BI59: 10792.2826 | BJ59: 9992.884325 | BK59: 21402.96127 | BL59: 23591.38626 | BM59: 5439.661814 | BN59: 8265.65544 | BO59: 15723.59826 | BP59: 17840.52963 | BQ59: 59490.21401 | BR59: 8111.827188 | BS59: 7574.429117 | BT59: 57164.89019 | BU59: 4861.907847 | BV59: 6679.155066 | BW59: 10349.44603 | BX59: 11583.22369 | BY59: 2612.088129 | BZ59: 1152.7487 | CA59: 21402.96127 | CB59: 23591.38626 | CC59: 8228.871318 | CD59: 9749.733017 | CE59: 5157.8 | CF59: 3947 | CG59: 14230.36096 | CH59: 16269.51004 | CI59: 15497.90737 | CJ59: 17840.52963 | CK59: 80 | CL59: 80 | CM59: 52.14604377 | CN59: 45.54004156 | CO59: 125 | CP59: 23 | CQ59: 178 | CR59: 27 | CS59: 133 | CT59: 22 | CU59: 217 | CV59: 31 | CW59: 41.49228288 | CX59: 34.76006829 | CY59: 74.85137989 | CZ59: 61.36 | DA59: 41.76 | DB59: 40.67579697 | DC59: 60 | DD59: 92.72 | DE59: 65.54023799 | DF59: 0.16 | DG59: 0.08418797847 | DH59: 14.59632013 | DI59: 55.2721171 | DJ59: 38.54097184 | DK59: 32.12471709 | DL59: 73.81714932 | DM59: 60.05617978 | DN59: 45.16853933 | DO59: 39.95320918 | DP59: 66.29213483 | DQ59: 94.60674157 | DR59: 67.86105604 | DS59: 0.1123595506 | DT59: 0.07340741741 | DU59: 15.28548135 | DV59: 55.23869053 | DW59: 24.43407725 | DX59: 34.95849314 | DY59: 74.10196205 | DZ59: 57.44360902 | EA59: 57.7443609 | EB59: 39.78920038 | EC59: 64.66165414 | ED59: 93.83458647 | EE59: 75.26525523 | EF59: 0.01503759398 | EG59: 0.01998988022 | EH59: 15.5880977 | EI59: 55.37729808 | EJ59: 47.27531454 | EK59: 31.39476405 | EL59: 79.08724626 | EM59: 72.94930876 | EN59: 33.3640553 | EO59: 42.25131023 | EP59: 71.47465438 | EQ59: 88.47926267 | ER59: 74.20876562 | ES59: 0.1566820276 | ET59: 0.02422083269 | EU59: 15.63950749 | EV59: 57.89081772 | EW59: mun | EX59: mun | EY59: mun | EZ59: mun | FA59: mun | FB59: mun | FC59: mun | FD59: mun | FE59: mun | FF59: mun | FG59: mun | FH59: mun | FI59: mun | FJ59: mun | FK59: mun | FL59: mun | FM59: mun | FN59: mun | FO59: mun | FP59: mun | FQ59: mun | FR59: mun | FS59: mun | FT59: mun | FU59: mun | FV59: mun | FW59: mun | FX59: mun | FY59: mun | FZ59: mun | GA59: mun | GB59: mun | GC59: mun | GD59: mun | GE59: mun | GF59: mun | GG59: mun | GH59: mun | GI59: mun | GJ59: mun | GK59: mun | GL59: mun | GM59: mun | GN59: mun | GO59: 72.19830538 | GP59: 0 | GQ59: 37.87508814 | GR59: 60.46317504 | GS59: 0 | GT59: 35.33334599 | GU59: 57.66231616 | GV59: 0 | GW59: 42.35819047 | GX59: 46.97746943 | GY59: 0 | GZ59: 50.42424955
A60: 05113 | B60: BURITICÁ | C60: M | D60: EJE CAFETERO Y ANTIOQUIA | E60: ANTIOQUIA | F60: Occidente | G60: 6 | H60: G4 | I60: Rural disperso | J60: 62.92492871 | K60: 37.07507129 | L60: 40.69378755 | M60: 66.06115262 | N60: 17.88353729 | O60: 82.11646271 | P60: 65.35713528 | Q60: 100 | R60: 15.94888535 | S60: 40 | T60: 65.05053732 | U60: 52.04042986 | V60: 565.4062403 | W60: 0 | X60: 80.96187918 | Y60: 80 | Z60: 46.03863915 | AA60: 100 | AB60: 2 | AC60: 2 | AD60: 0.8378654613 | AE60: 0.8378654613 | AF60: 62.83786546 | AG60: 12.56757309 | AH60: 64.60800295 | AI60: 3. Vulnerable (>=60 y <70) | AJ60: 47.15706624 | AK60: 52.84293376 | AL60: 49.71055312 | AM60: 71.76889501 | AN60: 14.78399234 | AO60: 85.21600766 | AP60: 69.00666786 | AQ60: 100 | AR60: 5.003401189 | AS60: 80 | AT60: 77.96556729 | AU60: 62.37245383 | AV60: 518.9057641 | AW60: 0 | AX60: 78.85316785 | AY60: 70 | AZ60: 39.52538701 | BA60: 100 | BB60: 0 | BC60: 0 | BD60: 1.112642877 | BE60: 1.112642877 | BF60: 57.77930954 | BG60: 11.55586191 | BH60: 4. Solvente (>=70 y <80) | BI60: 10332.54476 | BJ60: 9530.918763 | BK60: 16420.43141 | BL60: 20211.00871 | BM60: 6302.082019 | BN60: 9743.718838 | BO60: 15486.59488 | BP60: 19600.9061 | BQ60: 50407.03246 | BR60: 6652.062267 | BS60: 9014.560446 | BT60: 44995.03324 | BU60: 4079.219638 | BV60: 4502.997039 | BW60: 6241.429677 | BX60: 6525.452074 | BY60: 2619.808115 | BZ60: 1011.23785 | CA60: 16420.43141 | CB60: 20211.00871 | CC60: 4532.488157 | CD60: 3409.682301 | CE60: 801.633911 | CF60: 657.090851 | CG60: 11198.51266 | CH60: 14229.95711 | CI60: 13831.83391 | CJ60: 18046.14513 | CK60: 80 | CL60: 80 | CM60: 33.96136085 | CN60: 40.47461299 | CO60: 125 | CP60: 14 | CQ60: 178 | CR60: 15 | CS60: 53 | CT60: 3 | CU60: 218 | CV60: 22 | CW60: 41.49228288 | CX60: 34.76006829 | CY60: 74.85137989 | CZ60: 61.36 | DA60: 41.76 | DB60: 40.67579697 | DC60: 60 | DD60: 92.72 | DE60: 65.54023799 | DF60: 0.16 | DG60: 0.08418797847 | DH60: 14.59632013 | DI60: 55.2721171 | DJ60: 38.54097184 | DK60: 32.12471709 | DL60: 73.81714932 | DM60: 60.05617978 | DN60: 45.16853933 | DO60: 39.95320918 | DP60: 66.29213483 | DQ60: 94.60674157 | DR60: 67.86105604 | DS60: 0.1123595506 | DT60: 0.07340741741 | DU60: 15.28548135 | DV60: 55.23869053 | DW60: 25.71102108 | DX60: 38.87389393 | DY60: 73.64798614 | DZ60: 64.71698113 | EA60: 38.49056604 | EB60: 38.63047173 | EC60: 44.71698113 | ED60: 91.69811321 | EE60: 78.91274641 | EF60: 0.1509433962 | EG60: 0.07533977306 | EH60: 14.40044602 | EI60: 53.03091775 | EJ60: 18.34058526 | EK60: 36.97826928 | EL60: 74.85474166 | EM60: 58.57798165 | EN60: 55.2293578 | EO60: 39.0369497 | EP60: 54.7706422 | EQ60: 91.55963303 | ER60: 70.74748175 | ES60: 0.04587155963 | ET60: 0.07141694385 | EU60: 14.49510378 | EV60: 53.64243195 | EW60: mun | EX60: mun | EY60: mun | EZ60: mun | FA60: mun | FB60: mun | FC60: mun | FD60: mun | FE60: mun | FF60: mun | FG60: mun | FH60: mun | FI60: mun | FJ60: mun | FK60: mun | FL60: mun | FM60: mun | FN60: mun | FO60: mun | FP60: mun | FQ60: mun | FR60: mun | FS60: mun | FT60: mun | FU60: mun | FV60: mun | FW60: mun | FX60: mun | FY60: mun | FZ60: mun | GA60: mun | GB60: mun | GC60: mun | GD60: mun | GE60: mun | GF60: mun | GG60: mun | GH60: mun | GI60: mun | GJ60: mun | GK60: mun | GL60: mun | GM60: mun | GN60: mun | GO60: 40.26248516 | GP60: 0 | GQ60: 74.79973544 | GR60: 37.46211222 | GS60: 0 | GT60: 70.98336714 | GU60: 69.00666786 | GV60: 1.112642877 | GW60: 47.15706624 | GX60: 65.35713528 | GY60: 0.8378654613 | GZ60: 62.92492871
A61: 05120 | B61: CÁCERES | C61: M | D61: EJE CAFETERO Y ANTIOQUIA | E61: ANTIOQUIA | F61: Bajo cauca | G61: 6 | H61: G4 | I61: Rural disperso | J61: 72.26077753 | K61: 27.73922247 | L61: 25.19604797 | M61: 40.90255714 | N61: 36.10647062 | O61: 63.89352938 | P61: 44.79981021 | Q61: 50 | R61: 17.89250778 | S61: 40 | T61: 44.5070618 | U61: 35.60564944 | V61: 153.4942287 | W61: 0 | X61: 101.4360991 | Y61: 100 | Z61: 13.68896031 | AA61: 59.54006453 | AB61: 0 | AC61: 0 | AD61: 0.2468270139 | AE61: 0.2468270139 | AF61: 53.42684852 | AG61: 10.6853697 | AH61: 46.29101914 | AI61: 2. Riesgo (>=40 y <60) | AJ61: 77.24262341 | AK61: 22.75737659 | AL61: N.D | AM61: 0 | AN61: 26.40329864 | AO61: 73.59670136 | AP61: 0 | AQ61: 0 | AR61: 100.2296726 | AS61: 0 | AT61: 19.27081559 | AU61: 15.41665247 | AV61: 128.0641764 | AW61: 70 | AX61: N.D | AY61: 0 | AZ61: 9.515932095 | BA61: 45.12243701 | BB61: 0 | BC61: 0 | BD61: 0 | BE61: 0 | BF61: 38.37414567 | BG61: 7.674829134 | BH61: 1. Deterioro (<40) | BI61: 25634.58758 | BJ61: 26585.19784 | BK61: 35475.10621 | BL61: 34417.78213 | BM61: 8380.505563 | BN61: 0 | BO61: 33261.1907 | BP61: 0 | BQ61: 125814.6833 | BR61: 29976.00743 | BS61: 45427.24165 | BT61: 113531.2972 | BU61: 3233.138384 | BV61: N.D. | BW61: 7216.857323 | BX61: 6309.604374 | BY61: 6347.386137 | BZ61: 34496.83035 | CA61: 35475.10621 | CB61: 34417.78213 | CC61: 5097.466136 | CD61: 4090.491078 | CE61: 3320.949706 | CF61: 3194.094706 | CG61: 28208.77683 | CH61: N.D. | CI61: 27809.40618 | CJ61: N.D. | CK61: 80 | CL61: 80 | CM61: 66.31103969 | CN61: 70.48406791 | CO61: 125 | CP61: 111 | CQ61: 178 | CR61: 163 | CS61: 6 | CT61: 6 | CU61: 218 | CV61: 184 | CW61: 41.49228288 | CX61: 34.76006829 | CY61: 74.85137989 | CZ61: 61.36 | DA61: 41.76 | DB61: 40.67579697 | DC61: 60 | DD61: 92.72 | DE61: 65.54023799 | DF61: 0.16 | DG61: 0.08418797847 | DH61: 14.59632013 | DI61: 55.2721171 | DJ61: 38.54097184 | DK61: 32.12471709 | DL61: 73.81714932 | DM61: 60.05617978 | DN61: 45.16853933 | DO61: 39.95320918 | DP61: 66.29213483 | DQ61: 94.60674157 | DR61: 67.86105604 | DS61: 0.1123595506 | DT61: 0.07340741741 | DU61: 15.28548135 | DV61: 55.23869053 | DW61: 28.98613867 | DX61: 36.08588481 | DY61: 63.53545502 | DZ61: 63.33333333 | EA61: 76.66666667 | EB61: 42.97719656 | EC61: 68.33333333 | ED61: 93.33333333 | EE61: 38.89838297 | EF61: 0 | EG61: 0.04113783565 | EH61: 13.37923088 | EI61: 56.35642744 | EJ61: 18.34058526 | EK61: 36.97826928 | EL61: 74.85474166 | EM61: 58.57798165 | EN61: 55.2293578 | EO61: 39.0369497 | EP61: 54.7706422 | EQ61: 91.55963303 | ER61: 70.74748175 | ES61: 0.04587155963 | ET61: 0.07141694385 | EU61: 14.49510378 | EV61: 53.64243195 | EW61: mun | EX61: mun | EY61: mun | EZ61: mun | FA61: mun | FB61: mun | FC61: mun | FD61: mun | FE61: mun | FF61: mun | FG61: mun | FH61: mun | FI61: mun | FJ61: mun | FK61: mun | FL61: mun | FM61: mun | FN61: mun | FO61: mun | FP61: mun | FQ61: mun | FR61: mun | FS61: mun | FT61: mun | FU61: mun | FV61: mun | FW61: mun | FX61: mun | FY61: mun | FZ61: mun | GA61: mun | GB61: mun | GC61: mun | GD61: mun | GE61: mun | GF61: mun | GG61: mun | GH61: mun | GI61: mun | GJ61: mun | GK61: mun | GL61: mun | GM61: mun | GN61: mun | GO61: 21.74248514 | GP61: 0 | GQ61: 77.40774577 | GR61: 33.06160387 | GS61: 0 | GT61: 76.73293064 | GU61: 0 | GV61: 0 | GW61: 77.24262341 | GX61: 44.79981021 | GY61: 0.2468270139 | GZ61: 72.26077753
A62: 05125 | B62: CAICEDO | C62: M | D62: EJE CAFETERO Y ANTIOQUIA | E62: ANTIOQUIA | F62: Suroeste | G62: 6 | H62: G4 | I62: Rural disperso | J62: 66.60361336 | K62: 33.39638664 | L62: 28.6313663 | M62: 46.4793565 | N62: 17.29877742 | O62: 82.70122258 | P62: 49.55826386 | Q62: 70 | R62: 22.00398412 | S62: 20 | T62: 50.51539314 | U62: 40.41231451 | V62: 226.6008482 | W62: 0 | X62: 81.43045852 | Y62: 80 | Z62: 20.77822891 | AA62: 90.37480293 | AB62: 0 | AC62: 0 | AD62: 0.5330941018 | AE62: 0.5330941018 | AF62: 57.32469508 | AG62: 11.46493902 | AH62: 51.87725353 | AI62: 2. Riesgo (>=40 y <60) | AJ62: 56.40712104 | AK62: 43.59287896 | AL62: 26.1970319 | AM62: 33.3107355 | AN62: 15.67650916 | AO62: 84.32349084 | AP62: 46.0160647 | AQ62: 70 | AR62: 36.80453846 | AS62: 0 | AT62: 46.24542106 | AU62: 36.99633685 | AV62: 193.3528071 | AW62: 0 | AX62: 83.77133425 | AY62: 80 | AZ62: 20.10279011 | BA62: 95.32296692 | BB62: 0 | BC62: 0 | BD62: 0 | BE62: 0 | BF62: 58.44098897 | BG62: 11.68819779 | BH62: 2. Riesgo (>=40 y <60) | BI62: 12036.30184 | BJ62: 10783.57138 | BK62: 18071.54482 | BL62: 19117.39365 | BM62: 4239.440776 | BN62: 3405.177216 | BO62: 14806.98033 | BP62: 12998.33214 | BQ62: 51270.93821 | BR62: 7189.279589 | BS62: 8869.245483 | BT62: 45860.20726 | BU62: 2208.294035 | BV62: 1626.809472 | BW62: 4455.9552 | BX62: 3535.307685 | BY62: 3977.823584 | BZ62: 7036.068499 | CA62: 18071.54482 | CB62: 19117.39365 | CC62: 2458.850103 | CD62: 1556.00756 | CE62: 1085.101897 | CF62: 804.750437 | CG62: 12012.73551 | CH62: 10888.87626 | CI62: 14752.14033 | CJ62: 12998.33214 | CK62: 80 | CL62: 80 | CM62: 59.22177109 | CN62: 59.89720989 | CO62: 125 | CP62: 80 | CQ62: 178 | CR62: 119 | CS62: 24 | CT62: 16 | CU62: 218 | CV62: 127 | CW62: 41.49228288 | CX62: 34.76006829 | CY62: 74.85137989 | CZ62: 61.36 | DA62: 41.76 | DB62: 40.67579697 | DC62: 60 | DD62: 92.72 | DE62: 65.54023799 | DF62: 0.16 | DG62: 0.08418797847 | DH62: 14.59632013 | DI62: 55.2721171 | DJ62: 38.54097184 | DK62: 32.12471709 | DL62: 73.81714932 | DM62: 60.05617978 | DN62: 45.16853933 | DO62: 39.95320918 | DP62: 66.29213483 | DQ62: 94.60674157 | DR62: 67.86105604 | DS62: 0.1123595506 | DT62: 0.07340741741 | DU62: 15.28548135 | DV62: 55.23869053 | DW62: 37.47937028 | DX62: 28.15828208 | DY62: 68.77449066 | DZ62: 54.58333333 | EA62: 47.5 | EB62: 37.83927622 | EC62: 56.25 | ED62: 95.41666667 | EE62: 65.3472502 | EF62: 0 | EG62: 0.1192044569 | EH62: 14.49143535 | EI62: 52.33071156 | EJ62: 18.34058526 | EK62: 36.97826928 | EL62: 74.85474166 | EM62: 58.57798165 | EN62: 55.2293578 | EO62: 39.0369497 | EP62: 54.7706422 | EQ62: 91.55963303 | ER62: 70.74748175 | ES62: 0.04587155963 | ET62: 0.07141694385 | EU62: 14.49510378 | EV62: 53.64243195 | EW62: mun | EX62: mun | EY62: mun | EZ62: mun | FA62: mun | FB62: mun | FC62: mun | FD62: mun | FE62: mun | FF62: mun | FG62: mun | FH62: mun | FI62: mun | FJ62: mun | FK62: mun | FL62: mun | FM62: mun | FN62: mun | FO62: mun | FP62: mun | FQ62: mun | FR62: mun | FS62: mun | FT62: mun | FU62: mun | FV62: mun | FW62: mun | FX62: mun | FY62: mun | FZ62: mun | GA62: mun | GB62: mun | GC62: mun | GD62: mun | GE62: mun | GF62: mun | GG62: mun | GH62: mun | GI62: mun | GJ62: mun | GK62: mun | GL62: mun | GM62: mun | GN62: mun | GO62: 41.0789641 | GP62: 0 | GQ62: 64.40099701 | GR62: 29.49733275 | GS62: 0 | GT62: 67.19060909 | GU62: 46.0160647 | GV62: 0 | GW62: 56.40712104 | GX62: 49.55826386 | GY62: 0.5330941018 | GZ62: 66.60361336
A63: 05129 | B63: CALDAS | C63: M | D63: EJE CAFETERO Y ANTIOQUIA | E63: ANTIOQUIA | F63: Valle del aburra | G63: 3 | H63: G1 | I63: Ciudades y aglomeraciones | J63: 40.35140124 | K63: 59.64859876 | L63: 20.15416074 | M63: 23.71054519 | N63: 24.89537461 | O63: 75.10462539 | P63: 55.77727491 | Q63: 80 | R63: 30.68894984 | S63: 0 | T63: 47.69275387 | U63: 38.15420309 | V63: 100.7584604 | W63: 100 | X63: 85.78512659 | Y63: 80 | Z63: 27.354302 | AA63: 98.2442337 | AB63: 0 | AC63: 0 | AD63: 0 | AE63: 0 | AF63: 92.7480779 | AG63: 18.54961558 | AH63: 56.70381867 | AI63: 2. Riesgo (>=40 y <60) | AJ63: 33.47533464 | AK63: 66.52466536 | AL63: 24.69280521 | AM63: 31.84371881 | AN63: 26.8098741 | AO63: 73.1901259 | AP63: 57.88726563 | AQ63: 80 | AR63: 25.5337142 | AS63: 20 | AT63: 54.31170201 | AU63: 43.44936161 | AV63: 109.96927 | AW63: 100 | AX63: 93.49833849 | AY63: 100 | AZ63: 15.17476441 | BA63: 58.50487441 | BB63: 0 | BC63: 0 | BD63: 0 | BE63: 0 | BF63: 86.16829147 | BG63: 17.23365829 | BH63: 3. Vulnerable (>=60 y <70) | BI63: 24739.32441 | BJ63: 21490.90615 | BK63: 61309.70339 | BL63: 64199.22721 | BM63: 9020.222641 | BN63: 12788.82599 | BO63: 44756.13129 | BP63: 51791.70971 | BQ63: 214153.2679 | BR63: 56593.75515 | BS63: 53314.25827 | BT63: 211092.9538 | BU63: 18745.41226 | BV63: 21382.93827 | BW63: 33607.61581 | BX63: 36938.933 | BY63: 18815.30412 | BZ63: 16392.4472 | CA63: 61309.70339 | CB63: 64199.22721 | CC63: 32621.27389 | CD63: 34267.47196 | CE63: 32375.71691 | CF63: 31160.95248 | CG63: 38394.10389 | CH63: 47440.8399 | CI63: 44756.13129 | CJ63: 50739.76785 | CK63: 70 | CL63: 70 | CM63: 42.645698 | CN63: 54.82523559 | CO63: 125 | CP63: 50 | CQ63: 178 | CR63: 72 | CS63: 10 | CT63: 8 | CU63: 217 | CV63: 120 | CW63: 41.49228288 | CX63: 34.76006829 | CY63: 74.85137989 | CZ63: 61.36 | DA63: 41.76 | DB63: 40.67579697 | DC63: 60 | DD63: 92.72 | DE63: 65.54023799 | DF63: 0.16 | DG63: 0.08418797847 | DH63: 14.59632013 | DI63: 55.2721171 | DJ63: 38.54097184 | DK63: 32.12471709 | DL63: 73.81714932 | DM63: 60.05617978 | DN63: 45.16853933 | DO63: 39.95320918 | DP63: 66.29213483 | DQ63: 94.60674157 | DR63: 67.86105604 | DS63: 0.1123595506 | DT63: 0.07340741741 | DU63: 15.28548135 | DV63: 55.23869053 | DW63: 68.29453788 | DX63: 33.2517194 | DY63: 80.19510502 | DZ63: 78 | EA63: 44 | EB63: 48.59861797 | EC63: 85 | ED63: 87 | EE63: 58.77527743 | EF63: 0.4 | EG63: 0.008842168984 | EH63: 15.42678693 | EI63: 64.0254049 | EJ63: 47.27531454 | EK63: 31.39476405 | EL63: 79.08724626 | EM63: 72.94930876 | EN63: 33.3640553 | EO63: 42.25131023 | EP63: 71.47465438 | EQ63: 88.47926267 | ER63: 74.20876562 | ES63: 0.1566820276 | ET63: 0.02422083269 | EU63: 15.63950749 | EV63: 57.89081772 | EW63: mun | EX63: mun | EY63: mun | EZ63: mun | FA63: mun | FB63: mun | FC63: mun | FD63: mun | FE63: mun | FF63: mun | FG63: mun | FH63: mun | FI63: mun | FJ63: mun | FK63: mun | FL63: mun | FM63: mun | FN63: mun | FO63: mun | FP63: mun | FQ63: mun | FR63: mun | FS63: mun | FT63: mun | FU63: mun | FV63: mun | FW63: mun | FX63: mun | FY63: mun | FZ63: mun | GA63: mun | GB63: mun | GC63: mun | GD63: mun | GE63: mun | GF63: mun | GG63: mun | GH63: mun | GI63: mun | GJ63: mun | GK63: mun | GL63: mun | GM63: mun | GN63: mun | GO63: 54.91249583 | GP63: 0 | GQ63: 41.06617828 | GR63: 63.52340955 | GS63: 0.1387570069 | GT63: 31.23114215 | GU63: 57.88726563 | GV63: 0 | GW63: 33.47533464 | GX63: 55.77727491 | GY63: 0 | GZ63: 40.35140124
A64: 05134 | B64: CAMPAMENTO | C64: M | D64: EJE CAFETERO Y ANTIOQUIA | E64: ANTIOQUIA | F64: Norte | G64: 6 | H64: G4 | I64: Rural | J64: 64.32730612 | K64: 35.67269388 | L64: 21.08626307 | M64: 34.23084767 | N64: 29.41035485 | O64: 70.58964515 | P64: 29.40578616 | Q64: 40 | R64: 31.87602512 | S64: 0 | T64: 36.09863734 | U64: 28.87890987 | V64: 143.5321684 | W64: 50 | X64: 89.05216603 | Y64: 80 | Z64: 13.7198732 | AA64: 59.67451999 | AB64: 0 | AC64: 0 | AD64: 0 | AE64: 0 | AF64: 63.22484 | AG64: 12.644968 | AH64: 41.52387787 | AI64: 2. Riesgo (>=40 y <60) | AJ64: 61.65669999 | AK64: 38.34330001 | AL64: 36.83345112 | AM64: 53.17776449 | AN64: 30.16179186 | AO64: 69.83820814 | AP64: 24.82563313 | AQ64: 30 | AR64: 10.31930383 | AS64: 60 | AT64: 50.27185453 | AU64: 40.21748362 | AV64: 163.6331048 | AW64: 0 | AX64: 94.95347665 | AY64: 100 | AZ64: 9.03521692 | BA64: 42.84299239 | BB64: 0 | BC64: 0 | BD64: 0 | BE64: 0 | BF64: 47.6143308 | BG64: 9.522866159 | BH64: 2. Riesgo (>=40 y <60) | BI64: 11900.81006 | BJ64: 11368.90626 | BK64: 18500.40174 | BL64: 18439.04436 | BM64: 2420.928525 | BN64: 5710.892895 | BO64: 11481.06954 | BP64: 15504.63701 | BQ64: 42753.47024 | BR64: 11499.72503 | BS64: 12573.94731 | BT64: 38126.79659 | BU64: 1170.033791 | BV64: 993.798121 | BW64: 3978.923688 | BX64: 4003.112895 | BY64: 5897.192707 | BZ64: 1902.781011 | CA64: 18500.40174 | CB64: 18439.04436 | CC64: 1725.680742 | CD64: 1776.528865 | CE64: 1202.295458 | CF64: 1085.67815 | CG64: 10224.14111 | CH64: 14722.19188 | CI64: 11481.06954 | CJ64: 15504.63701 | CK64: 80 | CL64: 80 | CM64: 66.2801268 | CN64: 70.96478308 | CO64: 125 | CP64: 122 | CQ64: 178 | CR64: 175 | CS64: 133 | CT64: 129 | CU64: 218 | CV64: 209 | CW64: 41.49228288 | CX64: 34.76006829 | CY64: 74.85137989 | CZ64: 61.36 | DA64: 41.76 | DB64: 40.67579697 | DC64: 60 | DD64: 92.72 | DE64: 65.54023799 | DF64: 0.16 | DG64: 0.08418797847 | DH64: 14.59632013 | DI64: 55.2721171 | DJ64: 38.54097184 | DK64: 32.12471709 | DL64: 73.81714932 | DM64: 60.05617978 | DN64: 45.16853933 | DO64: 39.95320918 | DP64: 66.29213483 | DQ64: 94.60674157 | DR64: 67.86105604 | DS64: 0.1123595506 | DT64: 0.07340741741 | DU64: 15.28548135 | DV64: 55.23869053 | DW64: 24.43407725 | DX64: 34.95849314 | DY64: 74.10196205 | DZ64: 57.44360902 | EA64: 57.7443609 | EB64: 39.78920038 | EC64: 64.66165414 | ED64: 93.83458647 | EE64: 75.26525523 | EF64: 0.01503759398 | EG64: 0.01998988022 | EH64: 15.5880977 | EI64: 55.37729808 | EJ64: 18.34058526 | EK64: 36.97826928 | EL64: 74.85474166 | EM64: 58.57798165 | EN64: 55.2293578 | EO64: 39.0369497 | EP64: 54.7706422 | EQ64: 91.55963303 | ER64: 70.74748175 | ES64: 0.04587155963 | ET64: 0.07141694385 | EU64: 14.49510378 | EV64: 53.64243195 | EW64: mun | EX64: mun | EY64: mun | EZ64: mun | FA64: mun | FB64: mun | FC64: mun | FD64: mun | FE64: mun | FF64: mun | FG64: mun | FH64: mun | FI64: mun | FJ64: mun | FK64: mun | FL64: mun | FM64: mun | FN64: mun | FO64: mun | FP64: mun | FQ64: mun | FR64: mun | FS64: mun | FT64: mun | FU64: mun | FV64: mun | FW64: mun | FX64: mun | FY64: mun | FZ64: mun | GA64: mun | GB64: mun | GC64: mun | GD64: mun | GE64: mun | GF64: mun | GG64: mun | GH64: mun | GI64: mun | GJ64: mun | GK64: mun | GL64: mun | GM64: mun | GN64: mun | GO64: 7.17191909 | GP64: 0 | GQ64: 65.61904909 | GR64: 23.3738713 | GS64: 0 | GT64: 71.9260754 | GU64: 24.82563313 | GV64: 0 | GW64: 61.65669999 | GX64: 29.40578616 | GY64: 0 | GZ64: 64.32730612
A65: 05138 | B65: CAÑASGORDAS | C65: M | D65: EJE CAFETERO Y ANTIOQUIA | E65: ANTIOQUIA | F65: Occidente | G65: 6 | H65: G4 | I65: Rural | J65: 65.63910339 | K65: 34.36089661 | L65: 19.85077797 | M65: 32.22519585 | N65: 37.50389211 | O65: 62.49610789 | P65: 56.60965961 | Q65: 80 | R65: 22.42371977 | S65: 20 | T65: 45.81644007 | U65: 36.65315205 | V65: 240.6300659 | W65: 0 | X65: 95.47052041 | Y65: 100 | Z65: 43.35349676 | AA65: 100 | AB65: 0 | AC65: 0 | AD65: 0.4408073287 | AE65: 0.4408073287 | AF65: 67.107474 | AG65: 13.4214948 | AH65: 50.07464685 | AI65: 2. Riesgo (>=40 y <60) | AJ65: 46.05790824 | AK65: 53.94209176 | AL65: 52.03411825 | AM65: 66.16378362 | AN65: 42.35592353 | AO65: 57.64407647 | AP65: 51.97477247 | AQ65: 70 | AR65: -0.7895392011 | AS65: 100 | AT65: 69.54999037 | AU65: 55.6399923 | AV65: 257.4666 | AW65: 0 | AX65: 70.26736564 | AY65: 70 | AZ65: 33.03610525 | BA65: 100 | BB65: 0 | BC65: 0 | BD65: 0.6090352839 | BE65: 0.6090352839 | BF65: 57.27570195 | BG65: 11.45514039 | BH65: 3. Vulnerable (>=60 y <70) | BI65: 17429.09332 | BJ65: 15700.86436 | BK65: 26552.91193 | BL65: 34089.39955 | BM65: 4032.481133 | BN65: 16278.59172 | BO65: 20313.97025 | BP65: 31284.45771 | BQ65: 54045.60761 | BR65: 19157.44318 | BS65: 20269.20637 | BT65: 45229.66701 | BU65: 4281.772139 | BV65: 3526.504082 | BW65: 7563.677593 | BX65: 6785.030341 | BY65: 6023.455357 | BZ65: -269.1491729 | CA65: 26552.91193 | CB65: 34089.39955 | CC65: 5207.623064 | CD65: 4946.127094 | CE65: 2164.161425 | CF65: 1921.075236 | CG65: 18797.1158 | CH65: 21305.37861 | CI65: 19688.92148 | CJ65: 30320.44593 | CK65: 80 | CL65: 80 | CM65: 36.64650324 | CN65: 46.96389475 | CO65: 125 | CP65: 94 | CQ65: 178 | CR65: 136 | CS65: 53 | CT65: 37 | CU65: 218 | CV65: 156 | CW65: 41.49228288 | CX65: 34.76006829 | CY65: 74.85137989 | CZ65: 61.36 | DA65: 41.76 | DB65: 40.67579697 | DC65: 60 | DD65: 92.72 | DE65: 65.54023799 | DF65: 0.16 | DG65: 0.08418797847 | DH65: 14.59632013 | DI65: 55.2721171 | DJ65: 38.54097184 | DK65: 32.12471709 | DL65: 73.81714932 | DM65: 60.05617978 | DN65: 45.16853933 | DO65: 39.95320918 | DP65: 66.29213483 | DQ65: 94.60674157 | DR65: 67.86105604 | DS65: 0.1123595506 | DT65: 0.07340741741 | DU65: 15.28548135 | DV65: 55.23869053 | DW65: 25.71102108 | DX65: 38.87389393 | DY65: 73.64798614 | DZ65: 64.71698113 | EA65: 38.49056604 | EB65: 38.63047173 | EC65: 44.71698113 | ED65: 91.69811321 | EE65: 78.91274641 | EF65: 0.1509433962 | EG65: 0.07533977306 | EH65: 14.40044602 | EI65: 53.03091775 | EJ65: 18.34058526 | EK65: 36.97826928 | EL65: 74.85474166 | EM65: 58.57798165 | EN65: 55.2293578 | EO65: 39.0369497 | EP65: 54.7706422 | EQ65: 91.55963303 | ER65: 70.74748175 | ES65: 0.04587155963 | ET65: 0.07141694385 | EU65: 14.49510378 | EV65: 53.64243195 | EW65: mun | EX65: mun | EY65: mun | EZ65: mun | FA65: mun | FB65: mun | FC65: mun | FD65: mun | FE65: mun | FF65: mun | FG65: mun | FH65: mun | FI65: mun | FJ65: mun | FK65: mun | FL65: mun | FM65: mun | FN65: mun | FO65: mun | FP65: mun | FQ65: mun | FR65: mun | FS65: mun | FT65: mun | FU65: mun | FV65: mun | FW65: mun | FX65: mun | FY65: mun | FZ65: mun | GA65: mun | GB65: mun | GC65: mun | GD65: mun | GE65: mun | GF65: mun | GG65: mun | GH65: mun | GI65: mun | GJ65: mun | GK65: mun | GL65: mun | GM65: mun | GN65: mun | GO65: 33.23887513 | GP65: 0 | GQ65: 74.1069317 | GR65: 41.13344592 | GS65: 0 | GT65: 65.36299758 | GU65: 51.97477247 | GV65: 0.6090352839 | GW65: 46.05790824 | GX65: 56.60965961 | GY65: 0.4408073287 | GZ65: 65.63910339
A66: 05142 | B66: CARACOLÍ | C66: M | D66: EJE CAFETERO Y ANTIOQUIA | E66: ANTIOQUIA | F66: Magdalena medio | G66: 6 | H66: G3 | I66: Rural | J66: 63.70977079 | K66: 36.29022921 | L66: 29.63824424 | M66: 50.86611584 | N66: 39.84721192 | O66: 60.15278808 | P66: 11.03341122 | Q66: 20 | R66: 9.248528248 | S66: 80 | T66: 49.46182663 | U66: 39.5694613 | V66: 111.5898777 | W66: 80 | X66: 86.64115547 | Y66: 80 | Z66: 5.387604036 | AA66: 23.43335686 | AB66: 2 | AC66: 2 | AD66: 0 | AE66: 0 | AF66: 63.14445229 | AG66: 12.62889046 | AH66: 52.19835176 | AI66: 2. Riesgo (>=40 y <60) | AJ66: 49.9237477 | AK66: 50.0762523 | AL66: 44.67337875 | AM66: 57.3723935 | AN66: 25.38813307 | AO66: 74.61186693 | AP66: 34.25034291 | AQ66: 40 | AR66: 1.313883331 | AS66: 100 | AT66: 64.41210255 | AU66: 51.52968204 | AV66: 171.5513718 | AW66: 0 | AX66: 85.56402011 | AY66: 80 | AZ66: 15.50748661 | BA66: 73.53305813 | BB66: 2 | BC66: 2 | BD66: 0 | BE66: 0 | BF66: 53.17768604 | BG66: 10.63553721 | BH66: 3. Vulnerable (>=60 y <70) | BI66: 5402.970394 | BJ66: 5300.676858 | BK66: 8480.599329 | BL66: 10617.54596 | BM66: 2060.355775 | BN66: 4397.429339 | BO66: 6951.679589 | BP66: 9843.511868 | BQ66: 28764.5485 | BR66: 7126.527569 | BS66: 11461.8706 | BT66: 28070.30966 | BU66: 210.9028484 | BV66: 817.4622334 | BW66: 1911.492686 | BX66: 2386.72715 | BY66: 825.0241488 | BZ66: 139.5021666 | CA66: 8480.599329 | CB66: 10617.54596 | CC66: 1120.473962 | CD66: 1511.539137 | CE66: 1004.1 | CF66: 881.1 | CG66: 5959.6826 | CH66: 7532.481066 | CI66: 6878.581626 | CJ66: 8803.32768 | CK66: 80 | CL66: 80 | CM66: 74.61239596 | CN66: 64.49251339 | CO66: 125 | CP66: 76 | CQ66: 178 | CR66: 113 | CS66: 6 | CT66: 4 | CU66: 217 | CV66: 155 | CW66: 41.49228288 | CX66: 34.76006829 | CY66: 74.85137989 | CZ66: 61.36 | DA66: 41.76 | DB66: 40.67579697 | DC66: 60 | DD66: 92.72 | DE66: 65.54023799 | DF66: 0.16 | DG66: 0.08418797847 | DH66: 14.59632013 | DI66: 55.2721171 | DJ66: 38.54097184 | DK66: 32.12471709 | DL66: 73.81714932 | DM66: 60.05617978 | DN66: 45.16853933 | DO66: 39.95320918 | DP66: 66.29213483 | DQ66: 94.60674157 | DR66: 67.86105604 | DS66: 0.1123595506 | DT66: 0.07340741741 | DU66: 15.28548135 | DV66: 55.23869053 | DW66: 44.23064757 | DX66: 47.54569766 | DY66: 79.27393946 | DZ66: 68.33333333 | EA66: 26.66666667 | EB66: 42.56804555 | EC66: 38.33333333 | ED66: 88.33333333 | EE66: 55.0956881 | EF66: 0.6666666667 | EG66: 0.06446872079 | EH66: 12.2637174 | EI66: 54.83176295 | EJ66: 23.95135566 | EK66: 42.87196998 | EL66: 78.14438498 | EM66: 56.97247706 | EN66: 48.80733945 | EO66: 40.11960434 | EP66: 62.43119266 | EQ66: 92.52293578 | ER66: 73.6854774 | ES66: 0.01834862385 | ET66: 0.04581996451 | EU66: 15.25545959 | EV66: 55.37506393 | EW66: mun | EX66: mun | EY66: mun | EZ66: mun | FA66: mun | FB66: mun | FC66: mun | FD66: mun | FE66: mun | FF66: mun | FG66: mun | FH66: mun | FI66: mun | FJ66: mun | FK66: mun | FL66: mun | FM66: mun | FN66: mun | FO66: mun | FP66: mun | FQ66: mun | FR66: mun | FS66: mun | FT66: mun | FU66: mun | FV66: mun | FW66: mun | FX66: mun | FY66: mun | FZ66: mun | GA66: mun | GB66: mun | GC66: mun | GD66: mun | GE66: mun | GF66: mun | GG66: mun | GH66: mun | GI66: mun | GJ66: mun | GK66: mun | GL66: mun | GM66: mun | GN66: mun | GO66: 25.38276515 | GP66: 0 | GQ66: 67.10256646 | GR66: 12.64430597 | GS66: 0 | GT66: 54.42330458 | GU66: 34.25034291 | GV66: 0 | GW66: 49.9237477 | GX66: 11.03341122 | GY66: 0 | GZ66: 63.70977079
A67: 05145 | B67: CARAMANTA | C67: M | D67: EJE CAFETERO Y ANTIOQUIA | E67: ANTIOQUIA | F67: Suroeste | G67: 6 | H67: G3 | I67: Intermedio | J67: 58.16930867 | K67: 41.83069133 | L67: 17.11957402 | M67: 29.38116806 | N67: 14.61686423 | O67: 85.38313577 | P67: 4.741470876 | Q67: 20 | R67: 12.36864031 | S67: 60 | T67: 47.31899903 | U67: 37.85519923 | V67: 122.7957349 | W67: 70 | X67: 93.61239979 | Y67: 100 | Z67: 0 | AA67: 0 | AB67: 0 | AC67: 0 | AD67: 0.1985005031 | AE67: 0.1985005031 | AF67: 56.86516717 | AG67: 11.37303343 | AH67: 49.22823266 | AI67: 2. Riesgo (>=40 y <60) | AJ67: 66.29083208 | AK67: 33.70916792 | AL67: 34.71344831 | AM67: 44.58121754 | AN67: 13.17965223 | AO67: 86.82034777 | AP67: 12.13680552 | AQ67: 20 | AR67: 18.17741774 | AS67: 40 | AT67: 45.02214665 | AU67: 36.01771732 | AV67: 106.9811726 | AW67: 100 | AX67: 85.41476346 | AY67: 80 | AZ67: 1.09063239 | BA67: 5.171536622 | BB67: 0 | BC67: 0 | BD67: 0 | BE67: 0 | BF67: 61.72384554 | BG67: 12.34476911 | BH67: 2. Riesgo (>=40 y <60) | BI67: 5815.261681 | BJ67: 5561.633399 | BK67: 9997.13047 | BL67: 8389.747458 | BM67: 1181.724935 | BN67: 2604.969458 | BO67: 6902.770676 | BP67: 7504.208269 | BQ67: 87129.29372 | BR67: 11290.21925 | BS67: 12735.57056 | BT67: 85664.0149 | BU67: 100.1790356 | BV67: 281.6603676 | BW67: 2112.826129 | BX67: 2320.71254 | BY67: 1267.43071 | BZ67: 1525.039443 | CA67: 9997.13047 | CB67: 8389.747458 | CC67: 1306.79948 | CD67: 1242.8523 | CE67: 1064.20592 | CF67: 1161.748623 | CG67: 6461.849281 | CH67: 6386.950548 | CI67: 6902.770676 | CJ67: 7477.572131 | CK67: 80 | CL67: 80 | CM67: 94.46279039 | CN67: 78.90936761 | CO67: 125 | CP67: 99 | CQ67: 178 | CR67: 145 | CS67: 24 | CT67: 18 | CU67: 217 | CV67: 180 | CW67: 41.49228288 | CX67: 34.76006829 | CY67: 74.85137989 | CZ67: 61.36 | DA67: 41.76 | DB67: 40.67579697 | DC67: 60 | DD67: 92.72 | DE67: 65.54023799 | DF67: 0.16 | DG67: 0.08418797847 | DH67: 14.59632013 | DI67: 55.2721171 | DJ67: 38.54097184 | DK67: 32.12471709 | DL67: 73.81714932 | DM67: 60.05617978 | DN67: 45.16853933 | DO67: 39.95320918 | DP67: 66.29213483 | DQ67: 94.60674157 | DR67: 67.86105604 | DS67: 0.1123595506 | DT67: 0.07340741741 | DU67: 15.28548135 | DV67: 55.23869053 | DW67: 37.47937028 | DX67: 28.15828208 | DY67: 68.77449066 | DZ67: 54.58333333 | EA67: 47.5 | EB67: 37.83927622 | EC67: 56.25 | ED67: 95.41666667 | EE67: 65.3472502 | EF67: 0 | EG67: 0.1192044569 | EH67: 14.49143535 | EI67: 52.33071156 | EJ67: 23.95135566 | EK67: 42.87196998 | EL67: 78.14438498 | EM67: 56.97247706 | EN67: 48.80733945 | EO67: 40.11960434 | EP67: 62.43119266 | EQ67: 92.52293578 | ER67: 73.6854774 | ES67: 0.01834862385 | ET67: 0.04581996451 | EU67: 15.25545959 | EV67: 55.37506393 | EW67: mun | EX67: mun | EY67: mun | EZ67: mun | FA67: mun | FB67: mun | FC67: mun | FD67: mun | FE67: mun | FF67: mun | FG67: mun | FH67: mun | FI67: mun | FJ67: mun | FK67: mun | FL67: mun | FM67: mun | FN67: mun | FO67: mun | FP67: mun | FQ67: mun | FR67: mun | FS67: mun | FT67: mun | FU67: mun | FV67: mun | FW67: mun | FX67: mun | FY67: mun | FZ67: mun | GA67: mun | GB67: mun | GC67: mun | GD67: mun | GE67: mun | GF67: mun | GG67: mun | GH67: mun | GI67: mun | GJ67: mun | GK67: mun | GL67: mun | GM67: mun | GN67: mun | GO67: 3.643039841 | GP67: 0 | GQ67: 72.89948521 | GR67: 14.18746252 | GS67: 0 | GT67: 51.37416651 | GU67: 12.13680552 | GV67: 0 | GW67: 66.29083208 | GX67: 4.741470876 | GY67: 0.1985005031 | GZ67: 58.16930867
A68: 05147 | B68: CAREPA | C68: M | D68: EJE CAFETERO Y ANTIOQUIA | E68: ANTIOQUIA | F68: Uraba | G68: 6 | H68: G2 | I68: Intermedio | J68: 56.69686747 | K68: 43.30313253 | L68: 29.03719887 | M68: 34.53320289 | N68: 22.07542893 | O68: 77.92457107 | P68: 47.94066367 | Q68: 70 | R68: 12.81319255 | S68: 60 | T68: 57.1521813 | U68: 45.72174504 | V68: 100.0813373 | W68: 100 | X68: 94.39494369 | Y68: 100 | Z68: 13.50669271 | AA68: 58.74729252 | AB68: 0 | AC68: 0 | AD68: 0 | AE68: 0 | AF68: 86.24909751 | AG68: 17.2498195 | AH68: 62.97156454 | AI68: 3. Vulnerable (>=60 y <70) | AJ68: 53.73162608 | AK68: 46.26837392 | AL68: 30.1144948 | AM68: 38.67494903 | AN68: 28.69557006 | AO68: 71.30442994 | AP68: 45.81340514 | AQ68: 70 | AR68: -1.118162254 | AS68: 100 | AT68: 65.24955058 | AU68: 52.19964046 | AV68: 89.21653717 | AW68: 80 | AX68: 85.84629792 | AY68: 80 | AZ68: 16.93568577 | BA68: 80.3052614 | BB68: 0 | BC68: 0 | BD68: 0 | BE68: 0 | BF68: 80.1017538 | BG68: 16.02035076 | BH68: 3. Vulnerable (>=60 y <70) | BI68: 31567.71879 | BJ68: 30275.75452 | BK68: 55678.06512 | BL68: 56346.24658 | BM68: 13554.57503 | BN68: 16033.84202 | BO68: 46680.03648 | BP68: 53242.93876 | BQ68: 116762.2516 | BR68: 29044.39317 | BS68: 25775.76786 | BT68: 101215.5992 | BU68: 8558.185768 | BV68: 7160.2366 | BW68: 17851.62139 | BX68: 15629.1299 | BY68: 7134.13769 | BZ68: -630.0424606 | CA68: 55678.06512 | CB68: 56346.24658 | CC68: 14094.45473 | CD68: 11870.01099 | CE68: 14083 | CF68: 13304.72059 | CG68: 40986.05048 | CH68: 43376.00942 | CI68: 43419.75203 | CJ68: 50527.52474 | CK68: 80 | CL68: 80 | CM68: 66.49330729 | CN68: 63.06431423 | CO68: 125 | CP68: 22 | CQ68: 178 | CR68: 26 | CS68: 11 | CT68: 1 | CU68: 217 | CV68: 27 | CW68: 41.49228288 | CX68: 34.76006829 | CY68: 74.85137989 | CZ68: 61.36 | DA68: 41.76 | DB68: 40.67579697 | DC68: 60 | DD68: 92.72 | DE68: 65.54023799 | DF68: 0.16 | DG68: 0.08418797847 | DH68: 14.59632013 | DI68: 55.2721171 | DJ68: 38.54097184 | DK68: 32.12471709 | DL68: 73.81714932 | DM68: 60.05617978 | DN68: 45.16853933 | DO68: 39.95320918 | DP68: 66.29213483 | DQ68: 94.60674157 | DR68: 67.86105604 | DS68: 0.1123595506 | DT68: 0.07340741741 | DU68: 15.28548135 | DV68: 55.23869053 | DW68: 28.00822344 | DX68: 30.17880163 | DY68: 74.74317546 | DZ68: 63.63636364 | EA68: 50.90909091 | EB68: 39.59610481 | EC68: 38.18181818 | ED68: 96.36363636 | EE68: 57.43011964 | EF68: 0 | EG68: 0.107058227 | EH68: 12.81978326 | EI68: 52.41588807 | EJ68: 28.99269222 | EK68: 29.02779327 | EL68: 77.25411284 | EM68: 61.14678899 | EN68: 47.98165138 | EO68: 39.10448619 | EP68: 69.31192661 | EQ68: 92.43119266 | ER68: 75.74059788 | ES68: 0.02752293578 | ET68: 0.03501753652 | EU68: 15.84098735 | EV68: 55.07662942 | EW68: mun | EX68: mun | EY68: mun | EZ68: mun | FA68: mun | FB68: mun | FC68: mun | FD68: mun | FE68: mun | FF68: mun | FG68: mun | FH68: mun | FI68: mun | FJ68: mun | FK68: mun | FL68: mun | FM68: mun | FN68: mun | FO68: mun | FP68: mun | FQ68: mun | FR68: mun | FS68: mun | FT68: mun | FU68: mun | FV68: mun | FW68: mun | FX68: mun | FY68: mun | FZ68: mun | GA68: mun | GB68: mun | GC68: mun | GD68: mun | GE68: mun | GF68: mun | GG68: mun | GH68: mun | GI68: mun | GJ68: mun | GK68: mun | GL68: mun | GM68: mun | GN68: mun | GO68: 34.90753873 | GP68: 0 | GQ68: 58.36175715 | GR68: 41.99157355 | GS68: 0 | GT68: 57.25286146 | GU68: 45.81340514 | GV68: 0 | GW68: 53.73162608 | GX68: 47.94066367 | GY68: 0 | GZ68: 56.69686747
A69: 05148 | B69: EL CARMEN DE VIBORAL | C69: M | D69: EJE CAFETERO Y ANTIOQUIA | E69: ANTIOQUIA | F69: Oriente | G69: 4 | H69: G1 | I69: Intermedio | J69: 33.58886553 | K69: 66.41113447 | L69: 24.86169255 | M69: 29.24876369 | N69: 31.11437653 | O69: 68.88562347 | P69: 50.41805589 | Q69: 70 | R69: 21.71644824 | S69: 20 | T69: 50.90910433 | U69: 40.72728346 | V69: 125.9162514 | W69: 70 | X69: 86.76871821 | Y69: 80 | Z69: 32.33997957 | AA69: 100 | AB69: 0 | AC69: 0 | AD69: 0.08004891796 | AE69: 0.08004891796 | AF69: 83.41338225 | AG69: 16.68267645 | AH69: 57.40995991 | AI69: 2. Riesgo (>=40 y <60) | AJ69: 30.83931875 | AK69: 69.16068125 | AL69: 41.87511561 | AM69: 54.00194086 | AN69: 32.26835304 | AO69: 67.73164696 | AP69: 48.19831596 | AQ69: 70 | AR69: 7.422774005 | AS69: 80 | AT69: 68.17885381 | AU69: 54.54308305 | AV69: 122.5994835 | AW69: 70 | AX69: 85.4571905 | AY69: 80 | AZ69: 30.33591428 | BA69: 100 | BB69: 0 | BC69: 0 | BD69: 0.07377945359 | BE69: 0.07377945359 | BF69: 83.40711279 | BG69: 16.68142256 | BH69: 4. Solvente (>=70 y <80) | BI69: 20688.45364 | BJ69: 18799.68965 | BK69: 61593.18965 | BL69: 60960.13275 | BM69: 10066.36923 | BN69: 19150.653 | BO69: 40489.47675 | BP69: 45732.77641 | BQ69: 128736.651 | BR69: 36239.04639 | BS69: 40055.60633 | BT69: 112305.2247 | BU69: 17558.36261 | BV69: 15909.32078 | BW69: 34825.54474 | BX69: 33008.04284 | BY69: 13441.00249 | BZ69: 4524.932887 | CA69: 61593.18965 | CB69: 60960.13275 | CC69: 32357.70824 | CD69: 30011.69286 | CE69: 25697.80143 | CF69: 24479.46109 | CG69: 32808.53756 | CH69: 39081.94586 | CI69: 37811.48118 | CJ69: 45732.77641 | CK69: 80 | CL69: 80 | CM69: 47.66002043 | CN69: 49.66408572 | CO69: 125 | CP69: 46 | CQ69: 178 | CR69: 65 | CS69: 60 | CT69: 29 | CU69: 217 | CV69: 111 | CW69: 41.49228288 | CX69: 34.76006829 | CY69: 74.85137989 | CZ69: 61.36 | DA69: 41.76 | DB69: 40.67579697 | DC69: 60 | DD69: 92.72 | DE69: 65.54023799 | DF69: 0.16 | DG69: 0.08418797847 | DH69: 14.59632013 | DI69: 55.2721171 | DJ69: 38.54097184 | DK69: 32.12471709 | DL69: 73.81714932 | DM69: 60.05617978 | DN69: 45.16853933 | DO69: 39.95320918 | DP69: 66.29213483 | DQ69: 94.60674157 | DR69: 67.86105604 | DS69: 0.1123595506 | DT69: 0.07340741741 | DU69: 15.28548135 | DV69: 55.23869053 | DW69: 35.17092089 | DX69: 33.91236428 | DY69: 77.02581142 | DZ69: 61.16666667 | EA69: 44 | EB69: 40.20412212 | EC69: 72.33333333 | ED69: 94 | EE69: 73.78236063 | EF69: 0.1 | EG69: 0.02814833793 | EH69: 16.02667593 | EI69: 56.23079805 | EJ69: 47.27531454 | EK69: 31.39476405 | EL69: 79.08724626 | EM69: 72.94930876 | EN69: 33.3640553 | EO69: 42.25131023 | EP69: 71.47465438 | EQ69: 88.47926267 | ER69: 74.20876562 | ES69: 0.1566820276 | ET69: 0.02422083269 | EU69: 15.63950749 | EV69: 57.89081772 | EW69: mun | EX69: mun | EY69: mun | EZ69: mun | FA69: mun | FB69: mun | FC69: mun | FD69: mun | FE69: mun | FF69: mun | FG69: mun | FH69: mun | FI69: mun | FJ69: mun | FK69: mun | FL69: mun | FM69: mun | FN69: mun | FO69: mun | FP69: mun | FQ69: mun | FR69: mun | FS69: mun | FT69: mun | FU69: mun | FV69: mun | FW69: mun | FX69: mun | FY69: mun | FZ69: mun | GA69: mun | GB69: mun | GC69: mun | GD69: mun | GE69: mun | GF69: mun | GG69: mun | GH69: mun | GI69: mun | GJ69: mun | GK69: mun | GL69: mun | GM69: mun | GN69: mun | GO69: 51.88625648 | GP69: 0 | GQ69: 33.40092671 | GR69: 50.73964576 | GS69: 0.02562573636 | GT69: 27.45833491 | GU69: 48.19831596 | GV69: 0.07377945359 | GW69: 30.83931875 | GX69: 50.41805589 | GY69: 0.08004891796 | GZ69: 33.58886553
A70: 05150 | B70: CAROLINA | C70: M | D70: EJE CAFETERO Y ANTIOQUIA | E70: ANTIOQUIA | F70: Norte | G70: 6 | H70: G2 | I70: Rural | J70: 70.54612506 | K70: 29.45387494 | L70: 40.42847066 | M70: 48.08055302 | N70: 8.440557391 | O70: 91.55944261 | P70: 28.01023533 | Q70: 40 | R70: 4.790478064 | S70: 100 | T70: 61.81877412 | U70: 49.45501929 | V70: 110.0682491 | W70: 80 | X70: 94.29582722 | Y70: 100 | Z70: 0 | AA70: 0 | AB70: 0 | AC70: 0 | AD70: 0 | AE70: 0 | AF70: 60 | AG70: 12 | AH70: 61.45501929 | AI70: 3. Vulnerable (>=60 y <70) | AJ70: 24.37128137 | AK70: 75.62871863 | AL70: 48.71203012 | AM70: 62.81879181 | AN70: 7.871695173 | AO70: 92.12830483 | AP70: 42.80122916 | AQ70: 50 | AR70: 7.796542859 | AS70: 80 | AT70: 72.11516305 | AU70: 57.69213044 | AV70: 121.7384853 | AW70: 70 | AX70: 83.27800894 | AY70: 80 | AZ70: 0.8673429247 | BA70: 4.112747558 | BB70: 0 | BC70: 0 | BD70: 0.2785882391 | BE70: 0.2785882391 | BF70: 51.64950409 | BG70: 10.32990082 | BH70: 3. Vulnerable (>=60 y <70) | BI70: 6821.165529 | BJ70: 3608.679419 | BK70: 9669.086039 | BL70: 14807.0976 | BM70: 3554.401314 | BN70: 6024.390483 | BO70: 8791.827284 | BP70: 12367.35662 | BQ70: 82343.56368 | BR70: 6314.809085 | BS70: 6950.25575 | BT70: 80221.71776 | BU70: 732.0318243 | BV70: 1418.563698 | BW70: 2613.444035 | BX70: 3314.30598 | BY70: 463.1954457 | BZ70: 1154.441711 | CA70: 9669.086039 | CB70: 14807.0976 | CC70: 1739.569874 | CD70: 2009.350406 | CE70: 1580.446576 | CF70: 1650.54658 | CG70: 8101.476409 | CH70: 9796.27515 | CI70: 8591.553464 | CJ70: 11763.33978 | CK70: 80 | CL70: 80 | CM70: 96.46268006 | CN70: 79.13265708 | CO70: 125 | CP70: 27 | CQ70: 178 | CR70: 32 | CS70: 133 | CT70: 27 | CU70: 217 | CV70: 70 | CW70: 41.49228288 | CX70: 34.76006829 | CY70: 74.85137989 | CZ70: 61.36 | DA70: 41.76 | DB70: 40.67579697 | DC70: 60 | DD70: 92.72 | DE70: 65.54023799 | DF70: 0.16 | DG70: 0.08418797847 | DH70: 14.59632013 | DI70: 55.2721171 | DJ70: 38.54097184 | DK70: 32.12471709 | DL70: 73.81714932 | DM70: 60.05617978 | DN70: 45.16853933 | DO70: 39.95320918 | DP70: 66.29213483 | DQ70: 94.60674157 | DR70: 67.86105604 | DS70: 0.1123595506 | DT70: 0.07340741741 | DU70: 15.28548135 | DV70: 55.23869053 | DW70: 24.43407725 | DX70: 34.95849314 | DY70: 74.10196205 | DZ70: 57.44360902 | EA70: 57.7443609 | EB70: 39.78920038 | EC70: 64.66165414 | ED70: 93.83458647 | EE70: 75.26525523 | EF70: 0.01503759398 | EG70: 0.01998988022 | EH70: 15.5880977 | EI70: 55.37729808 | EJ70: 28.99269222 | EK70: 29.02779327 | EL70: 77.25411284 | EM70: 61.14678899 | EN70: 47.98165138 | EO70: 39.10448619 | EP70: 69.31192661 | EQ70: 92.43119266 | ER70: 75.74059788 | ES70: 0.02752293578 | ET70: 0.03501753652 | EU70: 15.84098735 | EV70: 55.07662942 | EW70: mun | EX70: mun | EY70: mun | EZ70: mun | FA70: mun | FB70: mun | FC70: mun | FD70: mun | FE70: mun | FF70: mun | FG70: mun | FH70: mun | FI70: mun | FJ70: mun | FK70: mun | FL70: mun | FM70: mun | FN70: mun | FO70: mun | FP70: mun | FQ70: mun | FR70: mun | FS70: mun | FT70: mun | FU70: mun | FV70: mun | FW70: mun | FX70: mun | FY70: mun | FZ70: mun | GA70: mun | GB70: mun | GC70: mun | GD70: mun | GE70: mun | GF70: mun | GG70: mun | GH70: mun | GI70: mun | GJ70: mun | GK70: mun | GL70: mun | GM70: mun | GN70: mun | GO70: 9.722372807 | GP70: 0 | GQ70: 36.53047282 | GR70: 30.61828906 | GS70: 0 | GT70: 27.77292086 | GU70: 42.80122916 | GV70: 0.2785882391 | GW70: 24.37128137 | GX70: 28.01023533 | GY70: 0 | GZ70: 70.54612506
A71: 05154 | B71: CAUCASIA | C71: M | D71: EJE CAFETERO Y ANTIOQUIA | E71: ANTIOQUIA | F71: Bajo cauca | G71: 5 | H71: G1 | I71: Ciudades y aglomeraciones | J71: 65.40419616 | K71: 34.59580384 | L71: 28.34390092 | M71: 33.3454393 | N71: 29.64757103 | O71: 70.35242897 | P71: 45.97536945 | Q71: 70 | R71: 6.053566986 | S71: 80 | T71: 57.65873442 | U71: 46.12698754 | V71: 91.78134289 | W71: 100 | X71: 94.06374797 | Y71: 100 | Z71: 0 | AA71: 0 | AB71: 0 | AC71: 0 | AD71: 0 | AE71: 0 | AF71: 66.66666667 | AG71: 13.33333333 | AH71: 59.46032087 | AI71: 2. Riesgo (>=40 y <60) | AJ71: 57.22125443 | AK71: 42.77874557 | AL71: 38.50632526 | AM71: 49.65756557 | AN71: 26.62949098 | AO71: 73.37050902 | AP71: 47.44252038 | AQ71: 70 | AR71: -0.7185488999 | AS71: 100 | AT71: 67.16136403 | AU71: 53.72909123 | AV71: 113.5545322 | AW71: 80 | AX71: 95.26567805 | AY71: 100 | AZ71: 5.790527057 | BA71: 21.27244375 | BB71: 0 | BC71: 0 | BD71: 0 | BE71: 0 | BF71: 67.09081458 | BG71: 13.41816292 | BH71: 3. Vulnerable (>=60 y <70) | BI71: 74024.00231 | BJ71: 68043.26869 | BK71: 113179.2861 | BL71: 118912.5778 | BM71: 30852.61832 | BN71: 47250.86199 | BO71: 108850.9955 | BP71: 122709.3514 | BQ71: 361149.3921 | BR71: 89026.23464 | BS71: 107072.0226 | BT71: 334314.4438 | BU71: 13179.52562 | BV71: 15167.98276 | BW71: 28666.49204 | BX71: 31971.28365 | BY71: 6851.3839 | BZ71: -854.4450196 | CA71: 113179.2861 | CB71: 118912.5778 | CC71: 22827.32928 | CD71: 26014.87775 | CE71: 24871.42654 | CF71: 22909.59 | CG71: 87176.77856 | CH71: 95328.24394 | CI71: 92678.40208 | CJ71: 100065.6752 | CK71: 80 | CL71: 80 | CM71: 77.38654573 | CN71: 74.20947294 | CO71: 125 | CP71: 37 | CQ71: 178 | CR71: 46 | CS71: 6 | CT71: 3 | CU71: 217 | CV71: 91 | CW71: 41.49228288 | CX71: 34.76006829 | CY71: 74.85137989 | CZ71: 61.36 | DA71: 41.76 | DB71: 40.67579697 | DC71: 60 | DD71: 92.72 | DE71: 65.54023799 | DF71: 0.16 | DG71: 0.08418797847 | DH71: 14.59632013 | DI71: 55.2721171 | DJ71: 38.54097184 | DK71: 32.12471709 | DL71: 73.81714932 | DM71: 60.05617978 | DN71: 45.16853933 | DO71: 39.95320918 | DP71: 66.29213483 | DQ71: 94.60674157 | DR71: 67.86105604 | DS71: 0.1123595506 | DT71: 0.07340741741 | DU71: 15.28548135 | DV71: 55.23869053 | DW71: 28.98613867 | DX71: 36.08588481 | DY71: 63.53545502 | DZ71: 63.33333333 | EA71: 76.66666667 | EB71: 42.97719656 | EC71: 68.33333333 | ED71: 93.33333333 | EE71: 38.89838297 | EF71: 0 | EG71: 0.04113783565 | EH71: 13.37923088 | EI71: 56.35642744 | EJ71: 47.27531454 | EK71: 31.39476405 | EL71: 79.08724626 | EM71: 72.94930876 | EN71: 33.3640553 | EO71: 42.25131023 | EP71: 71.47465438 | EQ71: 88.47926267 | ER71: 74.20876562 | ES71: 0.1566820276 | ET71: 0.02422083269 | EU71: 15.63950749 | EV71: 57.89081772 | EW71: mun | EX71: mun | EY71: mun | EZ71: mun | FA71: mun | FB71: mun | FC71: mun | FD71: mun | FE71: mun | FF71: mun | FG71: mun | FH71: mun | FI71: mun | FJ71: mun | FK71: mun | FL71: mun | FM71: mun | FN71: mun | FO71: mun | FP71: mun | FQ71: mun | FR71: mun | FS71: mun | FT71: mun | FU71: mun | FV71: mun | FW71: mun | FX71: mun | FY71: mun | FZ71: mun | GA71: mun | GB71: mun | GC71: mun | GD71: mun | GE71: mun | GF71: mun | GG71: mun | GH71: mun | GI71: mun | GJ71: mun | GK71: mun | GL71: mun | GM71: mun | GN71: mun | GO71: 52.5225284 | GP71: 0 | GQ71: 62.15925034 | GR71: 60.8379607 | GS71: 0 | GT71: 56.72616851 | GU71: 47.44252038 | GV71: 0 | GW71: 57.22125443 | GX71: 45.97536945 | GY71: 0 | GZ71: 65.40419616
A72: 05172 | B72: CHIGORODÓ | C72: M | D72: EJE CAFETERO Y ANTIOQUIA | E72: ANTIOQUIA | F72: Uraba | G72: 6 | H72: G2 | I72: Intermedio | J72: 60.15578995 | K72: 39.84421005 | L72: 28.87938552 | M72: 34.34551949 | N72: 37.73354459 | O72: 62.26645541 | P72: 49.37166527 | Q72: 70 | R72: 5.70044735 | S72: 80 | T72: 57.29123699 | U72: 45.83298959 | V72: 169.5429741 | W72: 0 | X72: 92.82058975 | Y72: 100 | Z72: 0 | AA72: 0 | AB72: 0 | AC72: 0 | AD72: 0.2030546347 | AE72: 0.2030546347 | AF72: 33.53638797 | AG72: 6.707277594 | AH72: 52.54026719 | AI72: 2. Riesgo (>=40 y <60) | AJ72: 61.61450015 | AK72: 38.38549985 | AL72: 17.315712 | AM72: 24.99930978 | AN72: 37.81314601 | AO72: 62.18685399 | AP72: 52.55369955 | AQ72: 70 | AR72: 5.314382954 | AS72: 80 | AT72: 55.11433272 | AU72: 44.09146618 | AV72: 117.8153025 | AW72: 80 | AX72: 98.50280204 | AY72: 100 | AZ72: 20.86722136 | BA72: 98.94773017 | BB72: 0 | BC72: 0 | BD72: 0 | BE72: 0 | BF72: 92.98257672 | BG72: 18.59651534 | BH72: 3. Vulnerable (>=60 y <70) | BI72: 43585.38361 | BJ72: 40807.43045 | BK72: 72454.17881 | BL72: 66230.23858 | BM72: 20512.2333 | BN72: 10136.33492 | BO72: 71027.24983 | BP72: 58538.36627 | BQ72: 162521.1021 | BR72: 52246.38198 | BS72: 61324.97252 | BT72: 138169.8893 | BU72: 10396.96981 | BV72: 8712.301401 | BW72: 21058.57632 | BX72: 16577.90313 | BY72: 4130.212316 | BZ72: 3519.728509 | CA72: 72454.17881 | CB72: 66230.23858 | CC72: 19135.85204 | CD72: 14523.88994 | CE72: 11286.72665 | CF72: 12327.677 | CG72: 55059.47791 | CH72: 55787.23021 | CI72: 59318.17289 | CJ72: 56635.17083 | CK72: 80 | CL72: 80 | CM72: 58.19002899 | CN72: 59.13277864 | CO72: 125 | CP72: 72 | CQ72: 178 | CR72: 107 | CS72: 11 | CT72: 5 | CU72: 218 | CV72: 130 | CW72: 41.49228288 | CX72: 34.76006829 | CY72: 74.85137989 | CZ72: 61.36 | DA72: 41.76 | DB72: 40.67579697 | DC72: 60 | DD72: 92.72 | DE72: 65.54023799 | DF72: 0.16 | DG72: 0.08418797847 | DH72: 14.59632013 | DI72: 55.2721171 | DJ72: 38.54097184 | DK72: 32.12471709 | DL72: 73.81714932 | DM72: 60.05617978 | DN72: 45.16853933 | DO72: 39.95320918 | DP72: 66.29213483 | DQ72: 94.60674157 | DR72: 67.86105604 | DS72: 0.1123595506 | DT72: 0.07340741741 | DU72: 15.28548135 | DV72: 55.23869053 | DW72: 28.00822344 | DX72: 30.17880163 | DY72: 74.74317546 | DZ72: 63.63636364 | EA72: 50.90909091 | EB72: 39.59610481 | EC72: 38.18181818 | ED72: 96.36363636 | EE72: 57.43011964 | EF72: 0 | EG72: 0.107058227 | EH72: 12.81978326 | EI72: 52.41588807 | EJ72: 28.99269222 | EK72: 29.02779327 | EL72: 77.25411284 | EM72: 61.14678899 | EN72: 47.98165138 | EO72: 39.10448619 | EP72: 69.31192661 | EQ72: 92.43119266 | ER72: 75.74059788 | ES72: 0.02752293578 | ET72: 0.03501753652 | EU72: 15.84098735 | EV72: 55.07662942 | EW72: mun | EX72: mun | EY72: mun | EZ72: mun | FA72: mun | FB72: mun | FC72: mun | FD72: mun | FE72: mun | FF72: mun | FG72: mun | FH72: mun | FI72: mun | FJ72: mun | FK72: mun | FL72: mun | FM72: mun | FN72: mun | FO72: mun | FP72: mun | FQ72: mun | FR72: mun | FS72: mun | FT72: mun | FU72: mun | FV72: mun | FW72: mun | FX72: mun | FY72: mun | FZ72: mun | GA72: mun | GB72: mun | GC72: mun | GD72: mun | GE72: mun | GF72: mun | GG72: mun | GH72: mun | GI72: mun | GJ72: mun | GK72: mun | GL72: mun | GM72: mun | GN72: mun | GO72: 50.12786144 | GP72: 0 | GQ72: 55.39296219 | GR72: 46.73307886 | GS72: 0 | GT72: 56.40928808 | GU72: 52.55369955 | GV72: 0 | GW72: 61.61450015 | GX72: 49.37166527 | GY72: 0.2030546347 | GZ72: 60.15578995
A73: 05190 | B73: CISNEROS | C73: M | D73: EJE CAFETERO Y ANTIOQUIA | E73: ANTIOQUIA | F73: Nordeste | G73: 6 | H73: G2 | I73: Intermedio | J73: 58.54786211 | K73: 41.45213789 | L73: 21.02241925 | M73: 25.00142911 | N73: 42.02911221 | O73: 57.97088779 | P73: 48.18179434 | Q73: 70 | R73: 16.71168725 | S73: 40 | T73: 46.88489096 | U73: 37.50791277 | V73: 140.9966142 | W73: 50 | X73: 97.34518384 | Y73: 100 | Z73: 25.44637059 | AA73: 100 | AB73: 0 | AC73: 0 | AD73: 0.1828533098 | AE73: 0.1828533098 | AF73: 83.51618664 | AG73: 16.70323733 | AH73: 54.21115009 | AI73: 2. Riesgo (>=40 y <60) | AJ73: 47.49233718 | AK73: 52.50766282 | AL73: 48.08134116 | AM73: 62.00545847 | AN73: 40.4236834 | AO73: 59.5763166 | AP73: 46.90092828 | AQ73: 70 | AR73: -3.954192755 | AS73: 100 | AT73: 68.81788758 | AU73: 55.05431006 | AV73: 122.3988056 | AW73: 70 | AX73: 84.11811914 | AY73: 80 | AZ73: 25.81252583 | BA73: 100 | BB73: 0 | BC73: 0 | BD73: 0 | BE73: 0 | BF73: 83.33333333 | BG73: 16.66666667 | BH73: 4. Solvente (>=70 y <80) | BI73: 9751.699559 | BJ73: 9075.425226 | BK73: 16655.94474 | BL73: 19109.24112 | BM73: 2655.504924 | BN73: 9173.743059 | BO73: 12631.77607 | BP73: 19079.63222 | BQ73: 75836.58677 | BR73: 29834.06274 | BS73: 31873.44415 | BT73: 73803.4247 | BU73: 2638.12386 | BV73: 2331.204455 | BW73: 5475.354117 | BX73: 4970.486813 | BY73: 2783.489394 | BZ73: -755.6162279 | CA73: 16655.94474 | CB73: 19109.24112 | CC73: 4227.013973 | CD73: 3714.240446 | CE73: 2997.954239 | CF73: 3034.539781 | CG73: 12178.36974 | CH73: 14886.5686 | CI73: 12510.50053 | CJ73: 17697.21999 | CK73: 80 | CL73: 80 | CM73: 54.55362941 | CN73: 54.18747417 | CO73: 125 | CP73: 60 | CQ73: 178 | CR73: 91 | CS73: 10 | CT73: 6 | CU73: 217 | CV73: 150 | CW73: 41.49228288 | CX73: 34.76006829 | CY73: 74.85137989 | CZ73: 61.36 | DA73: 41.76 | DB73: 40.67579697 | DC73: 60 | DD73: 92.72 | DE73: 65.54023799 | DF73: 0.16 | DG73: 0.08418797847 | DH73: 14.59632013 | DI73: 55.2721171 | DJ73: 38.54097184 | DK73: 32.12471709 | DL73: 73.81714932 | DM73: 60.05617978 | DN73: 45.16853933 | DO73: 39.95320918 | DP73: 66.29213483 | DQ73: 94.60674157 | DR73: 67.86105604 | DS73: 0.1123595506 | DT73: 0.07340741741 | DU73: 15.28548135 | DV73: 55.23869053 | DW73: 36.00553024 | DX73: 30.81039862 | DY73: 70.15497961 | DZ73: 64 | EA73: 48 | EB73: 39.83534535 | EC73: 65 | ED73: 93 | EE73: 61.66521957 | EF73: 0.6 | EG73: 0.06767182224 | EH73: 14.77788234 | EI73: 54.61322769 | EJ73: 28.99269222 | EK73: 29.02779327 | EL73: 77.25411284 | EM73: 61.14678899 | EN73: 47.98165138 | EO73: 39.10448619 | EP73: 69.31192661 | EQ73: 92.43119266 | ER73: 75.74059788 | ES73: 0.02752293578 | ET73: 0.03501753652 | EU73: 15.84098735 | EV73: 55.07662942 | EW73: mun | EX73: mun | EY73: mun | EZ73: mun | FA73: mun | FB73: mun | FC73: mun | FD73: mun | FE73: mun | FF73: mun | FG73: mun | FH73: mun | FI73: mun | FJ73: mun | FK73: mun | FL73: mun | FM73: mun | FN73: mun | FO73: mun | FP73: mun | FQ73: mun | FR73: mun | FS73: mun | FT73: mun | FU73: mun | FV73: mun | FW73: mun | FX73: mun | FY73: mun | FZ73: mun | GA73: mun | GB73: mun | GC73: mun | GD73: mun | GE73: mun | GF73: mun | GG73: mun | GH73: mun | GI73: mun | GJ73: mun | GK73: mun | GL73: mun | GM73: mun | GN73: mun | GO73: 49.48837306 | GP73: 0 | GQ73: 62.46313187 | GR73: 41.86488212 | GS73: 0 | GT73: 66.25562435 | GU73: 46.90092828 | GV73: 0 | GW73: 47.49233718 | GX73: 48.18179434 | GY73: 0.1828533098 | GZ73: 58.54786211
A74: 05197 | B74: COCORNÁ | C74: M | D74: EJE CAFETERO Y ANTIOQUIA | E74: ANTIOQUIA | F74: Oriente | G74: 6 | H74: G3 | I74: Rural | J74: 64.03118581 | K74: 35.96881419 | L74: 23.19990768 | M74: 39.81643386 | N74: 12.20436303 | O74: 87.79563697 | P74: 41.05816128 | Q74: 50 | R74: 18.90225743 | S74: 40 | T74: 50.716177 | U74: 40.5729416 | V74: 134.5347104 | W74: 60 | X74: 94.14524704 | Y74: 100 | Z74: 1.305405651 | AA74: 5.677855365 | AB74: 0 | AC74: 0 | AD74: 0 | AE74: 0 | AF74: 55.22595179 | AG74: 11.04519036 | AH74: 51.61813196 | AI74: 2. Riesgo (>=40 y <60) | AJ74: 51.07667163 | AK74: 48.92332837 | AL74: 39.96970099 | AM74: 50.82332009 | AN74: 12.17677256 | AO74: 87.82322744 | AP74: 53.52065539 | AQ74: 70 | AR74: 12.81044475 | AS74: 60 | AT74: 63.51397518 | AU74: 50.81118014 | AV74: 161.8302157 | AW74: 0 | AX74: 100 | AY74: 100 | AZ74: 18.99517802 | BA74: 90.07091634 | BB74: 0 | BC74: 0 | BD74: 0 | BE74: 0 | BF74: 63.35697211 | BG74: 12.67139442 | BH74: 3. Vulnerable (>=60 y <70) | BI74: 15424.36904 | BJ74: 13894.21513 | BK74: 24088.83866 | BL74: 27202.66354 | BM74: 4571.823345 | BN74: 10190.57261 | BO74: 19706.21353 | BP74: 25495.74392 | BQ74: 170190.9132 | BR74: 20544.08172 | BS74: 20770.7169 | BT74: 168715.3276 | BU74: 2126.326903 | BV74: 3024.096793 | BW74: 5178.816675 | BX74: 5650.335877 | BY74: 4553.334295 | BZ74: 3484.782184 | CA74: 24088.83866 | CB74: 27202.66354 | CC74: 3456.290573 | CD74: 4141.513318 | CE74: 2569.069768 | CF74: 2559.171846 | CG74: 17446.4413 | CH74: 23906.13793 | CI74: 18531.40955 | CJ74: 23906.13793 | CK74: 80 | CL74: 80 | CM74: 78.69459435 | CN74: 61.00482198 | CO74: 125 | CP74: 82 | CQ74: 178 | CR74: 122 | CS74: 60 | CT74: 40 | CU74: 218 | CV74: 130 | CW74: 41.49228288 | CX74: 34.76006829 | CY74: 74.85137989 | CZ74: 61.36 | DA74: 41.76 | DB74: 40.67579697 | DC74: 60 | DD74: 92.72 | DE74: 65.54023799 | DF74: 0.16 | DG74: 0.08418797847 | DH74: 14.59632013 | DI74: 55.2721171 | DJ74: 38.54097184 | DK74: 32.12471709 | DL74: 73.81714932 | DM74: 60.05617978 | DN74: 45.16853933 | DO74: 39.95320918 | DP74: 66.29213483 | DQ74: 94.60674157 | DR74: 67.86105604 | DS74: 0.1123595506 | DT74: 0.07340741741 | DU74: 15.28548135 | DV74: 55.23869053 | DW74: 35.17092089 | DX74: 33.91236428 | DY74: 77.02581142 | DZ74: 61.16666667 | EA74: 44 | EB74: 40.20412212 | EC74: 72.33333333 | ED74: 94 | EE74: 73.78236063 | EF74: 0.1 | EG74: 0.02814833793 | EH74: 16.02667593 | EI74: 56.23079805 | EJ74: 23.95135566 | EK74: 42.87196998 | EL74: 78.14438498 | EM74: 56.97247706 | EN74: 48.80733945 | EO74: 40.11960434 | EP74: 62.43119266 | EQ74: 92.52293578 | ER74: 73.6854774 | ES74: 0.01834862385 | ET74: 0.04581996451 | EU74: 15.25545959 | EV74: 55.37506393 | EW74: mun | EX74: mun | EY74: mun | EZ74: mun | FA74: mun | FB74: mun | FC74: mun | FD74: mun | FE74: mun | FF74: mun | FG74: mun | FH74: mun | FI74: mun | FJ74: mun | FK74: mun | FL74: mun | FM74: mun | FN74: mun | FO74: mun | FP74: mun | FQ74: mun | FR74: mun | FS74: mun | FT74: mun | FU74: mun | FV74: mun | FW74: mun | FX74: mun | FY74: mun | FZ74: mun | GA74: mun | GB74: mun | GC74: mun | GD74: mun | GE74: mun | GF74: mun | GG74: mun | GH74: mun | GI74: mun | GJ74: mun | GK74: mun | GL74: mun | GM74: mun | GN74: mun | GO74: 31.50876884 | GP74: 0 | GQ74: 59.26923256 | GR74: 31.8619723 | GS74: 0 | GT74: 55.12162271 | GU74: 53.52065539 | GV74: 0 | GW74: 51.07667163 | GX74: 41.05816128 | GY74: 0 | GZ74: 64.03118581
A75: 05206 | B75: CONCEPCIÓN | C75: M | D75: EJE CAFETERO Y ANTIOQUIA | E75: ANTIOQUIA | F75: Oriente | G75: 6 | H75: G3 | I75: Rural | J75: 58.55971112 | K75: 41.44028888 | L75: 58.26716617 | M75: 100 | N75: 5.309661878 | O75: 94.69033812 | P75: 48.85310402 | Q75: 70 | R75: 6.082706204 | S75: 80 | T75: 77.2261254 | U75: 61.78090032 | V75: 126.5994568 | W75: 70 | X75: 92.60596573 | Y75: 100 | Z75: 7.85555924 | AA75: 34.16771571 | AB75: 0 | AC75: 0 | AD75: 0.1672391251 | AE75: 0.1672391251 | AF75: 68.22314436 | AG75: 13.64462887 | AH75: 75.42552919 | AI75: 4. Solvente (>=70 y <80) | AJ75: 51.36612278 | AK75: 48.63387722 | AL75: 39.06431962 | AM75: 50.16888312 | AN75: 7.14498937 | AO75: 92.85501063 | AP75: 50.51876317 | AQ75: 70 | AR75: 16.4141344 | AS75: 40 | AT75: 60.3315542 | AU75: 48.26524336 | AV75: 128.0678645 | AW75: 70 | AX75: 94.4116544 | AY75: 100 | AZ75: 3.083734565 | BA75: 14.62238457 | BB75: 0 | BC75: 0 | BD75: 0.1864410823 | BE75: 0.1864410823 | BF75: 61.72723594 | BG75: 12.34544719 | BH75: 3. Vulnerable (>=60 y <70) | BI75: 5775.731045 | BJ75: 5331.91506 | BK75: 9862.977351 | BL75: 10380.2171 | BM75: 6980.402382 | BN75: 3667.798735 | BO75: 11979.99292 | BP75: 9389.127396 | BQ75: 57556.54305 | BR75: 4018.454168 | BS75: 3056.057825 | BT75: 56241.56958 | BU75: 1291.477131 | BV75: 1397.108274 | BW75: 2643.592781 | BX75: 2765.523513 | BY75: 599.9402851 | BZ75: 1703.822786 | CA75: 9862.977351 | CB75: 10380.2171 | CC75: 1729.980477 | CD75: 1596.655534 | CE75: 1366.499131 | CF75: 1246.726132 | CG75: 9338.155238 | CH75: 8864.430508 | CI75: 10083.75126 | CJ75: 9389.127396 | CK75: 80 | CL75: 80 | CM75: 72.14444076 | CN75: 76.91626544 | CO75: 125 | CP75: 3 | CQ75: 178 | CR75: 3 | CS75: 60 | CT75: 2 | CU75: 217 | CV75: 1 | CW75: 41.49228288 | CX75: 34.76006829 | CY75: 74.85137989 | CZ75: 61.36 | DA75: 41.76 | DB75: 40.67579697 | DC75: 60 | DD75: 92.72 | DE75: 65.54023799 | DF75: 0.16 | DG75: 0.08418797847 | DH75: 14.59632013 | DI75: 55.2721171 | DJ75: 38.54097184 | DK75: 32.12471709 | DL75: 73.81714932 | DM75: 60.05617978 | DN75: 45.16853933 | DO75: 39.95320918 | DP75: 66.29213483 | DQ75: 94.60674157 | DR75: 67.86105604 | DS75: 0.1123595506 | DT75: 0.07340741741 | DU75: 15.28548135 | DV75: 55.23869053 | DW75: 35.17092089 | DX75: 33.91236428 | DY75: 77.02581142 | DZ75: 61.16666667 | EA75: 44 | EB75: 40.20412212 | EC75: 72.33333333 | ED75: 94 | EE75: 73.78236063 | EF75: 0.1 | EG75: 0.02814833793 | EH75: 16.02667593 | EI75: 56.23079805 | EJ75: 23.95135566 | EK75: 42.87196998 | EL75: 78.14438498 | EM75: 56.97247706 | EN75: 48.80733945 | EO75: 40.11960434 | EP75: 62.43119266 | EQ75: 92.52293578 | ER75: 73.6854774 | ES75: 0.01834862385 | ET75: 0.04581996451 | EU75: 15.25545959 | EV75: 55.37506393 | EW75: mun | EX75: mun | EY75: mun | EZ75: mun | FA75: mun | FB75: mun | FC75: mun | FD75: mun | FE75: mun | FF75: mun | FG75: mun | FH75: mun | FI75: mun | FJ75: mun | FK75: mun | FL75: mun | FM75: mun | FN75: mun | FO75: mun | FP75: mun | FQ75: mun | FR75: mun | FS75: mun | FT75: mun | FU75: mun | FV75: mun | FW75: mun | FX75: mun | FY75: mun | FZ75: mun | GA75: mun | GB75: mun | GC75: mun | GD75: mun | GE75: mun | GF75: mun | GG75: mun | GH75: mun | GI75: mun | GJ75: mun | GK75: mun | GL75: mun | GM75: mun | GN75: mun | GO75: 39.29631595 | GP75: 0 | GQ75: 61.13077499 | GR75: 34.98506651 | GS75: 0.1814654974 | GT75: 53.92476326 | GU75: 50.51876317 | GV75: 0.1864410823 | GW75: 51.36612278 | GX75: 48.85310402 | GY75: 0.1672391251 | GZ75: 58.55971112
A76: 05209 | B76: CONCORDIA | C76: M | D76: EJE CAFETERO Y ANTIOQUIA | E76: ANTIOQUIA | F76: Suroeste | G76: 6 | H76: G3 | I76: Intermedio | J76: 70.04623965 | K76: 29.95376035 | L76: 9.783524562 | M76: 16.7908021 | N76: 19.22388037 | O76: 80.77611963 | P76: 35.32767327 | Q76: 50 | R76: 18.11139375 | S76: 40 | T76: 43.50413642 | U76: 34.80330913 | V76: 131.1336937 | W76: 60 | X76: 95.85627676 | Y76: 100 | Z76: 9.613954657 | AA76: 41.8158478 | AB76: 0 | AC76: 0 | AD76: 0.09678294656 | AE76: 0.09678294656 | AF76: 67.36873221 | AG76: 13.47374644 | AH76: 48.27705558 | AI76: 2. Riesgo (>=40 y <60) | AJ76: 60.11413692 | AK76: 39.88586308 | AL76: 28.45573514 | AM76: 41.08255772 | AN76: 5.183247082 | AO76: 94.81675292 | AP76: 32.91626726 | AQ76: 40 | AR76: 8.816383776 | AS76: 80 | AT76: 59.15703474 | AU76: 47.3256278 | AV76: 135.4522831 | AW76: 60 | AX76: 94.4575961 | AY76: 100 | AZ76: 8.366333099 | BA76: 39.67129384 | BB76: 0 | BC76: 0 | BD76: 0 | BE76: 0 | BF76: 66.55709795 | BG76: 13.31141959 | BH76: 3. Vulnerable (>=60 y <70) | BI76: 17283.59195 | BJ76: 15980.24755 | BK76: 24674.54646 | BL76: 26583.17721 | BM76: 1839.583971 | BN76: 6796.966699 | BO76: 18802.87579 | BP76: 23886.10474 | BQ76: 104364.3181 | BR76: 5287.145445 | BS76: 20062.87167 | BT76: 102004.5034 | BU76: 2233.359601 | BV76: 2056.158616 | BW76: 6321.841759 | BX76: 6246.633616 | BY76: 4468.904266 | BZ76: 2343.674923 | CA76: 24674.54646 | CB76: 26583.17721 | CC76: 4530.761427 | CD76: 4449.532791 | CE76: 3455.070394 | CF76: 3284.944844 | CG76: 17525.19699 | CH76: 20154.08777 | CI76: 18282.785 | CJ76: 21336.65116 | CK76: 80 | CL76: 80 | CM76: 70.38604534 | CN76: 71.6336669 | CO76: 125 | CP76: 106 | CQ76: 178 | CR76: 155 | CS76: 24 | CT76: 19 | CU76: 218 | CV76: 180 | CW76: 41.49228288 | CX76: 34.76006829 | CY76: 74.85137989 | CZ76: 61.36 | DA76: 41.76 | DB76: 40.67579697 | DC76: 60 | DD76: 92.72 | DE76: 65.54023799 | DF76: 0.16 | DG76: 0.08418797847 | DH76: 14.59632013 | DI76: 55.2721171 | DJ76: 38.54097184 | DK76: 32.12471709 | DL76: 73.81714932 | DM76: 60.05617978 | DN76: 45.16853933 | DO76: 39.95320918 | DP76: 66.29213483 | DQ76: 94.60674157 | DR76: 67.86105604 | DS76: 0.1123595506 | DT76: 0.07340741741 | DU76: 15.28548135 | DV76: 55.23869053 | DW76: 37.47937028 | DX76: 28.15828208 | DY76: 68.77449066 | DZ76: 54.58333333 | EA76: 47.5 | EB76: 37.83927622 | EC76: 56.25 | ED76: 95.41666667 | EE76: 65.3472502 | EF76: 0 | EG76: 0.1192044569 | EH76: 14.49143535 | EI76: 52.33071156 | EJ76: 23.95135566 | EK76: 42.87196998 | EL76: 78.14438498 | EM76: 56.97247706 | EN76: 48.80733945 | EO76: 40.11960434 | EP76: 62.43119266 | EQ76: 92.52293578 | ER76: 73.6854774 | ES76: 0.01834862385 | ET76: 0.04581996451 | EU76: 15.25545959 | EV76: 55.37506393 | EW76: mun | EX76: mun | EY76: mun | EZ76: mun | FA76: mun | FB76: mun | FC76: mun | FD76: mun | FE76: mun | FF76: mun | FG76: mun | FH76: mun | FI76: mun | FJ76: mun | FK76: mun | FL76: mun | FM76: mun | FN76: mun | FO76: mun | FP76: mun | FQ76: mun | FR76: mun | FS76: mun | FT76: mun | FU76: mun | FV76: mun | FW76: mun | FX76: mun | FY76: mun | FZ76: mun | GA76: mun | GB76: mun | GC76: mun | GD76: mun | GE76: mun | GF76: mun | GG76: mun | GH76: mun | GI76: mun | GJ76: mun | GK76: mun | GL76: mun | GM76: mun | GN76: mun | GO76: 32.15695314 | GP76: 0 | GQ76: 65.12810192 | GR76: 31.23259229 | GS76: 0 | GT76: 51.6525066 | GU76: 32.91626726 | GV76: 0 | GW76: 60.11413692 | GX76: 35.32767327 | GY76: 0.09678294656 | GZ76: 70.04623965
A77: 05212 | B77: COPACABANA | C77: M | D77: EJE CAFETERO Y ANTIOQUIA | E77: ANTIOQUIA | F77: Valle del aburra | G77: 3 | H77: G1 | I77: Ciudades y aglomeraciones | J77: 31.31570093 | K77: 68.68429907 | L77: 25.92427983 | M77: 30.49885412 | N77: 10.52754634 | O77: 89.47245366 | P77: 59.60834741 | Q77: 80 | R77: 42.98641413 | S77: 0 | T77: 53.73112137 | U77: 42.9848971 | V77: 116.6376829 | W77: 80 | X77: 97.31807965 | Y77: 100 | Z77: 27.31072885 | AA77: 98.08773873 | AB77: 0 | AC77: 0 | AD77: 0 | AE77: 0 | AF77: 92.69591291 | AG77: 18.53918258 | AH77: 61.52407968 | AI77: 3. Vulnerable (>=60 y <70) | AJ77: 27.37360842 | AK77: 72.62639158 | AL77: 33.12252214 | AM77: 42.71463985 | AN77: 14.70504444 | AO77: 85.29495556 | AP77: 58.55517222 | AQ77: 80 | AR77: 19.72728597 | AS77: 40 | AT77: 64.1271974 | AU77: 51.30175792 | AV77: 134.6066903 | AW77: 60 | AX77: 84.80944212 | AY77: 80 | AZ77: 27.52972908 | BA77: 100 | BB77: 0 | BC77: 0 | BD77: 0.07390101135 | BE77: 0.07390101135 | BF77: 80.07390101 | BG77: 16.0147802 | BH77: 3. Vulnerable (>=60 y <70) | BI77: 24087.4121 | BJ77: 21218.58441 | BK77: 76918.00402 | BL77: 77514.75101 | BM77: 12119.37625 | BN77: 19445.59278 | BO77: 46749.13374 | BP77: 58708.06786 | BQ77: 277727.5581 | BR77: 40415.93144 | BS77: 29237.89739 | BT77: 274843.9939 | BU77: 26622.54525 | BV77: 26764.25608 | BW77: 44662.44478 | BX77: 45707.75744 | BY77: 33064.29175 | BZ77: 15291.5566 | CA77: 76918.00402 | CB77: 77514.75101 | CC77: 43990.77 | CD77: 44886.27198 | CE77: 37715.74411 | CF77: 33346.24146 | CG77: 45495.35921 | CH77: 49789.98483 | CI77: 46749.13374 | CJ77: 58708.06786 | CK77: 70 | CL77: 70 | CM77: 42.68927115 | CN77: 42.47027092 | CO77: 125 | CP77: 26 | CQ77: 178 | CR77: 31 | CS77: 10 | CT77: 6 | CU77: 217 | CV77: 66 | CW77: 41.49228288 | CX77: 34.76006829 | CY77: 74.85137989 | CZ77: 61.36 | DA77: 41.76 | DB77: 40.67579697 | DC77: 60 | DD77: 92.72 | DE77: 65.54023799 | DF77: 0.16 | DG77: 0.08418797847 | DH77: 14.59632013 | DI77: 55.2721171 | DJ77: 38.54097184 | DK77: 32.12471709 | DL77: 73.81714932 | DM77: 60.05617978 | DN77: 45.16853933 | DO77: 39.95320918 | DP77: 66.29213483 | DQ77: 94.60674157 | DR77: 67.86105604 | DS77: 0.1123595506 | DT77: 0.07340741741 | DU77: 15.28548135 | DV77: 55.23869053 | DW77: 68.29453788 | DX77: 33.2517194 | DY77: 80.19510502 | DZ77: 78 | EA77: 44 | EB77: 48.59861797 | EC77: 85 | ED77: 87 | EE77: 58.77527743 | EF77: 0.4 | EG77: 0.008842168984 | EH77: 15.42678693 | EI77: 64.0254049 | EJ77: 47.27531454 | EK77: 31.39476405 | EL77: 79.08724626 | EM77: 72.94930876 | EN77: 33.3640553 | EO77: 42.25131023 | EP77: 71.47465438 | EQ77: 88.47926267 | ER77: 74.20876562 | ES77: 0.1566820276 | ET77: 0.02422083269 | EU77: 15.63950749 | EV77: 57.89081772 | EW77: mun | EX77: mun | EY77: mun | EZ77: mun | FA77: mun | FB77: mun | FC77: mun | FD77: mun | FE77: mun | FF77: mun | FG77: mun | FH77: mun | FI77: mun | FJ77: mun | FK77: mun | FL77: mun | FM77: mun | FN77: mun | FO77: mun | FP77: mun | FQ77: mun | FR77: mun | FS77: mun | FT77: mun | FU77: mun | FV77: mun | FW77: mun | FX77: mun | FY77: mun | FZ77: mun | GA77: mun | GB77: mun | GC77: mun | GD77: mun | GE77: mun | GF77: mun | GG77: mun | GH77: mun | GI77: mun | GJ77: mun | GK77: mun | GL77: mun | GM77: mun | GN77: mun | GO77: 56.20543495 | GP77: 0 | GQ77: 31.72966379 | GR77: 57.98708993 | GS77: 0 | GT77: 32.92911101 | GU77: 58.55517222 | GV77: 0.07390101135 | GW77: 27.37360842 | GX77: 59.60834741 | GY77: 0 | GZ77: 31.31570093
A78: 05234 | B78: DABEIBA | C78: M | D78: EJE CAFETERO Y ANTIOQUIA | E78: ANTIOQUIA | F78: Occidente | G78: 6 | H78: G4 | I78: Rural | J78: 68.09775707 | K78: 31.90224293 | L78: 25.81512787 | M78: 41.90755408 | N78: 30.74106537 | O78: 69.25893463 | P78: 60.22331298 | Q78: 80 | R78: 11.15357657 | S78: 60 | T78: 56.61374633 | U78: 45.29099706 | V78: 211.949339 | W78: 0 | X78: 88.18247827 | Y78: 80 | Z78: 39.77374131 | AA78: 100 | AB78: 2 | AC78: 2 | AD78: 0.6582920544 | AE78: 0.6582920544 | AF78: 62.65829205 | AG78: 12.53165841 | AH78: 57.82265547 | AI78: 2. Riesgo (>=40 y <60) | AJ78: 66.86156966 | AK78: 33.13843034 | AL78: 36.97820972 | AM78: 47.01950083 | AN78: 14.47942962 | AO78: 85.52057038 | AP78: 68.45597242 | AQ78: 100 | AR78: -0.4875211795 | AS78: 100 | AT78: 73.13570031 | AU78: 58.50856025 | AV78: 169.4862866 | AW78: 0 | AX78: 92.30291891 | AY78: 100 | AZ78: 15.14610292 | BA78: 71.81945689 | BB78: 0 | BC78: 0 | BD78: 0.7081514536 | BE78: 0.7081514536 | BF78: 57.98130375 | BG78: 11.59626075 | BH78: 4. Solvente (>=70 y <80) | BI78: 26424.64303 | BJ78: 27616.93289 | BK78: 38803.9844 | BL78: 41304.64335 | BM78: 9163.320321 | BN78: 14262.9978 | BO78: 35495.93233 | BP78: 38571.3584 | BQ78: 64947.81655 | BR78: 8468.725658 | BS78: 19965.65074 | BT78: 58487.97832 | BU78: 5547.87198 | BV78: 5973.935234 | BW78: 9212.166693 | BX78: 8726.682308 | BY78: 4328.437451 | BZ78: -201.3688844 | CA78: 38803.9844 | CB78: 41304.64335 | CC78: 6870.931282 | CD78: 4261.807252 | CE78: 3241.78 | CF78: 2514.544 | CG78: 27573.49812 | CH78: 35602.48967 | CI78: 31268.68133 | CJ78: 38571.3584 | CK78: 80 | CL78: 80 | CM78: 40.22625869 | CN78: 64.85389708 | CO78: 125 | CP78: 44 | CQ78: 178 | CR78: 60 | CS78: 53 | CT78: 15 | CU78: 218 | CV78: 51 | CW78: 41.49228288 | CX78: 34.76006829 | CY78: 74.85137989 | CZ78: 61.36 | DA78: 41.76 | DB78: 40.67579697 | DC78: 60 | DD78: 92.72 | DE78: 65.54023799 | DF78: 0.16 | DG78: 0.08418797847 | DH78: 14.59632013 | DI78: 55.2721171 | DJ78: 38.54097184 | DK78: 32.12471709 | DL78: 73.81714932 | DM78: 60.05617978 | DN78: 45.16853933 | DO78: 39.95320918 | DP78: 66.29213483 | DQ78: 94.60674157 | DR78: 67.86105604 | DS78: 0.1123595506 | DT78: 0.07340741741 | DU78: 15.28548135 | DV78: 55.23869053 | DW78: 25.71102108 | DX78: 38.87389393 | DY78: 73.64798614 | DZ78: 64.71698113 | EA78: 38.49056604 | EB78: 38.63047173 | EC78: 44.71698113 | ED78: 91.69811321 | EE78: 78.91274641 | EF78: 0.1509433962 | EG78: 0.07533977306 | EH78: 14.40044602 | EI78: 53.03091775 | EJ78: 18.34058526 | EK78: 36.97826928 | EL78: 74.85474166 | EM78: 58.57798165 | EN78: 55.2293578 | EO78: 39.0369497 | EP78: 54.7706422 | EQ78: 91.55963303 | ER78: 70.74748175 | ES78: 0.04587155963 | ET78: 0.07141694385 | EU78: 14.49510378 | EV78: 53.64243195 | EW78: mun | EX78: mun | EY78: mun | EZ78: mun | FA78: mun | FB78: mun | FC78: mun | FD78: mun | FE78: mun | FF78: mun | FG78: mun | FH78: mun | FI78: mun | FJ78: mun | FK78: mun | FL78: mun | FM78: mun | FN78: mun | FO78: mun | FP78: mun | FQ78: mun | FR78: mun | FS78: mun | FT78: mun | FU78: mun | FV78: mun | FW78: mun | FX78: mun | FY78: mun | FZ78: mun | GA78: mun | GB78: mun | GC78: mun | GD78: mun | GE78: mun | GF78: mun | GG78: mun | GH78: mun | GI78: mun | GJ78: mun | GK78: mun | GL78: mun | GM78: mun | GN78: mun | GO78: 23.45961929 | GP78: 0 | GQ78: 89.75119257 | GR78: 0 | GS78: 0 | GT78: 81.21177566 | GU78: 68.45597242 | GV78: 0.7081514536 | GW78: 66.86156966 | GX78: 60.22331298 | GY78: 0.6582920544 | GZ78: 68.09775707
A79: 05237 | B79: DON MATÍAS | C79: M | D79: EJE CAFETERO Y ANTIOQUIA | E79: ANTIOQUIA | F79: Norte | G79: 6 | H79: G1 | I79: Intermedio | J79: 46.2411863 | K79: 53.7588137 | L79: 31.93196506 | M79: 37.5666499 | N79: 27.38998532 | O79: 72.61001468 | P79: 48.59764394 | Q79: 70 | R79: 34.11976424 | S79: 0 | T79: 46.78709566 | U79: 37.42967653 | V79: 112.323123 | W79: 80 | X79: 86.92726758 | Y79: 80 | Z79: 32.38094107 | AA79: 100 | AB79: 0 | AC79: 0 | AD79: 0 | AE79: 0 | AF79: 86.66666667 | AG79: 17.33333333 | AH79: 54.76300986 | AI79: 2. Riesgo (>=40 y <60) | AJ79: 31.26393559 | AK79: 68.73606441 | AL79: 56.15498321 | AM79: 72.41718711 | AN79: 34.44780065 | AO79: 65.55219935 | AP79: 58.1590922 | AQ79: 80 | AR79: -1.626134064 | AS79: 100 | AT79: 77.34109017 | AU79: 61.87287214 | AV79: 115.2764098 | AW79: 80 | AX79: 83.59805989 | AY79: 80 | AZ79: 24.86709446 | BA79: 100 | BB79: 0 | BC79: 0 | BD79: 0.2153120355 | BE79: 0.2153120355 | BF79: 86.8819787 | BG79: 17.37639574 | BH79: 4. Solvente (>=70 y <80) | BI79: 11087.70299 | BJ79: 9873.463425 | BK79: 23977.98127 | BL79: 31580.99977 | BM79: 4394.362369 | BN79: 15778.8906 | BO79: 13761.64092 | BP79: 28098.82525 | BQ79: 93088.06805 | BR79: 28673.05976 | BS79: 25496.80817 | BT79: 83236.25665 | BU79: 5983.018113 | BV79: 7580.966675 | BW79: 12311.3337 | BX79: 13034.87793 | BY79: 8529.557286 | BZ79: -513.5493948 | CA79: 23977.98127 | CB79: 31580.99977 | CC79: 10665.24452 | CD79: 11277.95687 | CE79: 9495.146 | CF79: 9783.403983 | CG79: 11962.61842 | CH79: 22568.6777 | CI79: 13761.64092 | CJ79: 26996.65247 | CK79: 80 | CL79: 80 | CM79: 47.61905893 | CN79: 55.13290554 | CO79: 125 | CP79: 58 | CQ79: 178 | CR79: 87 | CS79: 133 | CT79: 68 | CU79: 217 | CV79: 142 | CW79: 41.49228288 | CX79: 34.76006829 | CY79: 74.85137989 | CZ79: 61.36 | DA79: 41.76 | DB79: 40.67579697 | DC79: 60 | DD79: 92.72 | DE79: 65.54023799 | DF79: 0.16 | DG79: 0.08418797847 | DH79: 14.59632013 | DI79: 55.2721171 | DJ79: 38.54097184 | DK79: 32.12471709 | DL79: 73.81714932 | DM79: 60.05617978 | DN79: 45.16853933 | DO79: 39.95320918 | DP79: 66.29213483 | DQ79: 94.60674157 | DR79: 67.86105604 | DS79: 0.1123595506 | DT79: 0.07340741741 | DU79: 15.28548135 | DV79: 55.23869053 | DW79: 24.43407725 | DX79: 34.95849314 | DY79: 74.10196205 | DZ79: 57.44360902 | EA79: 57.7443609 | EB79: 39.78920038 | EC79: 64.66165414 | ED79: 93.83458647 | EE79: 75.26525523 | EF79: 0.01503759398 | EG79: 0.01998988022 | EH79: 15.5880977 | EI79: 55.37729808 | EJ79: 47.27531454 | EK79: 31.39476405 | EL79: 79.08724626 | EM79: 72.94930876 | EN79: 33.3640553 | EO79: 42.25131023 | EP79: 71.47465438 | EQ79: 88.47926267 | ER79: 74.20876562 | ES79: 0.1566820276 | ET79: 0.02422083269 | EU79: 15.63950749 | EV79: 57.89081772 | EW79: mun | EX79: mun | EY79: mun | EZ79: mun | FA79: mun | FB79: mun | FC79: mun | FD79: mun | FE79: mun | FF79: mun | FG79: mun | FH79: mun | FI79: mun | FJ79: mun | FK79: mun | FL79: mun | FM79: mun | FN79: mun | FO79: mun | FP79: mun | FQ79: mun | FR79: mun | FS79: mun | FT79: mun | FU79: mun | FV79: mun | FW79: mun | FX79: mun | FY79: mun | FZ79: mun | GA79: mun | GB79: mun | GC79: mun | GD79: mun | GE79: mun | GF79: mun | GG79: mun | GH79: mun | GI79: mun | GJ79: mun | GK79: mun | GL79: mun | GM79: mun | GN79: mun | GO79: 41.72759937 | GP79: 0 | GQ79: 38.87494477 | GR79: 51.78878974 | GS79: 0.230656096 | GT79: 39.34488288 | GU79: 58.1590922 | GV79: 0.2153120355 | GW79: 31.26393559 | GX79: 48.59764394 | GY79: 0 | GZ79: 46.2411863
